Workbook

Sheet Feuil1
C2: Bonus | F2: 1) Ce qui nous interresse est dans la partie jaune, en haut, de gauche a droite. En blanc, les cases a remplir | P2: 4) Choisir entre l'approximation des kits=0 ou kit officiel=1. Dans ce dernier cas, entrer les valeurs des | AH2: choisir une tactique : | AY2: 8) Choisir la position des joueurs. | BJ2: 8) Entrer les bonus de match que vous pensez avoir.
AH3: Def/Neutre/Off : | AJ3: =AH4 -> 433 | AP3: =AH5 -> Defensif
F4: , en jaune pale, les informations. Les données sont indicatives (a 1% pres) pour un moral et une energie max. | P4: caracteristiques de vos kits. | AH4: 433
AH5: Defensif
C6: batiments : | F6: 2) Remplir les cases blanches de "bonus batiments" a "objets" par la valeur des gains. Pour "objet", il | X6: 5) Choisir une tactique. | AV6: Position : | AX6: Capitaine
AJ7: 1 | AK7: 2 | AL7: 3 | AM7: 4 | AN7: 5 | AO7: 6 | AP7: 7 | AQ7: 8 | AR7: 9 | AS7: 10 | AT7: 11 | BJ7: Meilleur capitaine :
C8: force : | D8: =Team!A11 ->  | F8: s'agit de la valeur max des objets que l'on trouve au marché. | O8: caracteristiques kit en cours | AG8: 0 | AI8: =IF(G11="","",G11) ->  | AJ8: =IF(AI8<>"",AY52*IF($AX$33=1,$BW$55,1),"") ->  | AK8: =IF(AI8<>"",BP52*IF($AX$33=1,$BW$56,1),"") ->  | AL8: =IF(AI8<>"",AY75*IF($AX$33=1,$BW$57,1),"") ->  | AM8: =IF(AI8<>"",BP75*IF($AX$33=1,$BW$58,1),"") ->  | AN8: =IF(AI8<>"",AY98*IF($AX$33=1,$BW$59,1),"") ->  | AO8: =IF(AI8<>"",BP98*IF($AX$33=1,$BW$60,1),"") ->  | AP8: =IF(AI8<>"",AY121*IF($AX$33=1,$BW$61,1),"") ->  | AQ8: =IF(AI8<>"",BP121*IF($AX$33=1,$BW$62,1),"") ->  | AR8: =IF(AI8<>"",AY144*IF($AX$33=1,$BW$63,1),"") ->  | AS8: =IF(AI8<>"",BP144*IF($AX$33=1,$BW$64,1),"") ->  | AT8: =IF(AI8<>"",AY167*IF($AX$33=1,$BW$65,1),"") ->  | AV8: 1 | AW8: =IF(ISNA(VLOOKUP(1,$AV$8:$AV$25,1,FALSE)),1,"") ->  | AX8: =IF(AND(AV8<>"",AI8<>""),IF(ISNA(VLOOKUP(AI8,$E$104:$I$121,5,FALSE)),0,VLOOKUP(AI8,$E$104:$I$121,5,FALSE)),"") ->  | BJ8: =IF(ISNA(VLOOKUP("CAP",D104:I121,2,)),"",VLOOKUP("CAP",D104:I121,2,)) ->  | BN8: =IF(ISNA(VLOOKUP(BJ8,E104:I121,5,FALSE)),"",VLOOKUP(BJ8,E104:I121,5,FALSE)) -> 
C9: habilité : | D9: =+Team!B11 ->  | Q9: kit 1 | R9: kit 2A | S9: kit 2B | T9: kit 4A | U9: kit 4B | V9: kit 5 | W9: kit 6A | X9: kit 6B | Y9: kit 7 | Z9: kit 8 | AA9: kit 9A | AB9: kit 9B | AC9: kit 10 | AD9: kit 11 | AG9: 0 | AJ9: =IF(AI9<>"",AY53*IF($AX$33=1,$BW$55,1),"") ->  | AV9: 2 | AW9: =IF(ISNA(VLOOKUP(2,$AV$8:$AV$25,1,FALSE)),2,"") ->  | BA9: nom du joueur | BB9: kit | BC9: attaque | BE9: defense | BG9: cumulé
C10: vitesse : | D10: =Team!C11 ->  | G10: NOM | H10: force | I10: habilité | J10: vitesse | K10: endurance | L10: intelligence | M10: XP | N10: % Capitaine | P10: force | Q10: =IF(Q39=1,Q26,Q19) -> 0 | R10: 0 | S10: 0 | T10: 0 | U10: 0 | V10: 0 | W10: 0 | X10: 0 | Y10: 0 | Z10: 0 | AA10: 0 | AB10: 0 | AC10: 0 | AD10: 0 | AG10: 0 | AV10: 3 | AW10: =IF(ISNA(VLOOKUP(3,$AV$8:$AV$25,1,FALSE)),3,"") ->  | AZ10: 1 | BA10: =IF(AV8=1,AI8,IF(AV9=1,AI9,IF(AV10=1,AI10,IF(AV11=1,AI11,IF(AV12=1,AI12,IF(AV13=1,AI13,IF(AV14=1,AI14,IF(AV15=1,AI15,BT67)))))))) ->  | BB10: =IF(AV8=1,BS103,IF(AV9=1,BS104,IF(AV10=1,BS105,IF(AV11=1,BS106,IF(AV12=1,BS107,IF(AV13=1,BS108,IF(AV14=1,BS109,IF(AV15=1,BS110,BT124)))))))) ->  | BC10: =BW67*BS55 ->  | BE10: =BW67*BU55 ->  | BG10: =ROUND(BW67*BW55,2) -> 
C11: endurance : | D11: =Team!D11 ->  | G11: =IF(Team!C44<>0,Team!C44,"") ->  | H11: =IF($G11<>"",VLOOKUP(Team!X17,Team!$E$41:$F$256,2,FALSE),"") ->  | I11: =IF($G11<>"",VLOOKUP(Team!Y17,Team!$E$41:$F$256,2,FALSE),"") ->  | J11: =IF($G11<>"",VLOOKUP(Team!Z17,Team!$E$41:$F$256,2,FALSE),"") ->  | K11: =IF($G11<>"",VLOOKUP(Team!AA17,Team!$E$41:$F$256,2,FALSE),"") ->  | L11: =IF($G11<>"",VLOOKUP(Team!AB17,Team!$E$41:$F$256,2,FALSE),"") ->  | M11: =IF($G11<>"",VLOOKUP(Team!X17,Team!$E$41:$P$263,12,FALSE),"") ->  | N11: =G104 ->  | P11: habilité | Q11: =IF(Q40=1,Q27,Q20) -> 0 | R11: 0 | S11: 0 | T11: 0 | U11: 0 | V11: 0 | W11: 0 | X11: 0 | Y11: 0 | Z11: 0 | AA11: 0 | AB11: 0 | AC11: 0 | AD11: 0 | AG11: 0 | AV11: 4 | AW11: =IF(ISNA(VLOOKUP(4,$AV$8:$AV$25,1,FALSE)),4,"") ->  | AZ11: 2 | BA11: =IF(AV8=2,AI8,IF(AV9=2,AI9,IF(AV10=2,AI10,IF(AV11=2,AI11,IF(AV12=2,AI12,IF(AV13=2,AI13,IF(AV14=2,AI14,IF(AV15=2,AI15,BT68)))))))) ->  | BB11: =IF(AV8=2,BU103,IF(AV9=2,BU104,IF(AV10=2,BU105,IF(AV11=2,BU106,IF(AV12=2,BU107,IF(AV13=2,BU108,IF(AV14=2,BU109,IF(AV15=2,BU110,BT125)))))))) ->  | BG11: =ROUND(BW68*BW56,2) ->  | BJ11: bonus match
C12: intelligence : | D12: =Team!E11 ->  | G12: =IF(Team!C55<>0,Team!C55,"") ->  | H12: =IF($G12<>"",VLOOKUP(Team!X18,Team!$E$41:$F$256,2,FALSE),"") ->  | I12: =IF($G12<>"",VLOOKUP(Team!Y18,Team!$E$41:$F$256,2,FALSE),"") ->  | J12: =IF($G12<>"",VLOOKUP(Team!Z18,Team!$E$41:$F$256,2,FALSE),"") ->  | K12: =IF($G12<>"",VLOOKUP(Team!AA18,Team!$E$41:$F$256,2,FALSE),"") ->  | L12: =IF($G12<>"",VLOOKUP(Team!AB18,Team!$E$41:$F$256,2,FALSE),"") ->  | M12: =IF($G12<>"",VLOOKUP(Team!X18,Team!$E$41:$P$263,12,FALSE),"") ->  | N12: =G105 ->  | P12: vitesse | Q12: =IF(Q41=1,Q28,Q21) -> 0 | R12: 0 | S12: 0 | T12: 0 | U12: 0 | V12: 0 | W12: 0 | X12: 0 | Y12: 0 | Z12: 0 | AA12: 0 | AB12: 0 | AC12: 0 | AD12: 0 | AG12: 0 | AV12: 5 | AW12: =IF(ISNA(VLOOKUP(5,$AV$8:$AV$25,1,FALSE)),5,"") ->  | AZ12: 3 | BA12: =IF(AV8=3,AI8,IF(AV9=3,AI9,IF(AV10=3,AI10,IF(AV11=3,AI11,IF(AV12=3,AI12,IF(AV13=3,AI13,IF(AV14=3,AI14,IF(AV15=3,AI15,BT69)))))))) ->  | BB12: =IF(AV8=3,BW103,IF(AV9=3,BW104,IF(AV10=3,BW105,IF(AV11=3,BW106,IF(AV12=3,BW107,IF(AV13=3,BW108,IF(AV14=3,BW109,IF(AV15=3,BW110,BT126)))))))) -> 
C13: Laboratoire : | D13: =Team!F11 ->  | G13: =IF(Team!C66<>0,Team!C66,"") ->  | H13: =IF($G13<>"",VLOOKUP(Team!X19,Team!$E$41:$F$256,2,FALSE),"") ->  | I13: =IF($G13<>"",VLOOKUP(Team!Y19,Team!$E$41:$F$256,2,FALSE),"") ->  | J13: =IF($G13<>"",VLOOKUP(Team!Z19,Team!$E$41:$F$256,2,FALSE),"") ->  | K13: =IF($G13<>"",VLOOKUP(Team!AA19,Team!$E$41:$F$256,2,FALSE),"") ->  | L13: =IF($G13<>"",VLOOKUP(Team!AB19,Team!$E$41:$F$256,2,FALSE),"") ->  | M13: =IF($G13<>"",VLOOKUP(Team!X19,Team!$E$41:$P$263,12,FALSE),"") ->  | P13: endurance | Q13: =IF(Q42=1,Q29,Q22) -> 0 | R13: 0 | S13: 0 | T13: 0 | U13: 0 | V13: 0 | W13: 0 | X13: 0 | Y13: 0 | Z13: 0 | AA13: 0 | AB13: 0 | AC13: 0 | AD13: 0 | AG13: 0 | AV13: 6 | AW13: =IF(ISNA(VLOOKUP(6,$AV$8:$AV$25,1,FALSE)),6,"") ->  | AZ13: 4 | BA13: =IF(AV8=4,AI8,IF(AV9=4,AI9,IF(AV10=4,AI10,IF(AV11=4,AI11,IF(AV12=4,AI12,IF(AV13=4,AI13,IF(AV14=4,AI14,IF(AV15=4,AI15,BT70)))))))) ->  | BB13: =IF(AV8=4,BY103,IF(AV9=4,BY104,IF(AV10=4,BY105,IF(AV11=4,BY106,IF(AV12=4,BY107,IF(AV13=4,BY108,IF(AV14=4,BY109,IF(AV15=4,BY110,BT127)))))))) ->  | BJ13: bonus de chance : | BM13: 0 | BN13: %
G14: =IF(Team!C77<>0,Team!C77,"") ->  | H14: =IF($G14<>"",VLOOKUP(Team!X20,Team!$E$41:$F$256,2,FALSE),"") ->  | I14: =IF($G14<>"",VLOOKUP(Team!Y20,Team!$E$41:$F$256,2,FALSE),"") ->  | J14: =IF($G14<>"",VLOOKUP(Team!Z20,Team!$E$41:$F$256,2,FALSE),"") ->  | K14: =IF($G14<>"",VLOOKUP(Team!AA20,Team!$E$41:$F$256,2,FALSE),"") ->  | L14: =IF($G14<>"",VLOOKUP(Team!AB20,Team!$E$41:$F$256,2,FALSE),"") ->  | M14: =IF($G14<>"",VLOOKUP(Team!X20,Team!$E$41:$P$263,12,FALSE),"") ->  | P14: intelligence | Q14: =IF(Q43=1,Q30,Q23) -> 0 | R14: 0 | S14: 0 | T14: 0 | U14: 0 | V14: 0 | W14: 0 | X14: 0 | Y14: 0 | Z14: 0 | AA14: 0 | AB14: 0 | AC14: 0 | AD14: 0 | AG14: 0 | AV14: 7 | AW14: =IF(ISNA(VLOOKUP(7,$AV$8:$AV$25,1,FALSE)),7,"") ->  | AZ14: 5 | BA14: =IF(AV8=5,AI8,IF(AV9=5,AI9,IF(AV10=5,AI10,IF(AV11=5,AI11,IF(AV12=5,AI12,IF(AV13=5,AI13,IF(AV14=5,AI14,IF(AV15=5,AI15,BT71)))))))) ->  | BB14: =IF(AV8=5,CA103,IF(AV9=5,CA104,IF(AV10=5,CA105,IF(AV11=5,CA106,IF(AV12=5,CA107,IF(AV13=5,CA108,IF(AV14=5,CA109,IF(AV15=5,CA110,BT128)))))))) ->  | BJ14: bonus d'experience : | BN14: %
C15: baby foot | D15: 0 | G15: =IF(Team!C88<>0,Team!C88,"") ->  | H15: =IF($G15<>"",VLOOKUP(Team!X21,Team!$E$41:$F$256,2,FALSE),"") ->  | I15: =IF($G15<>"",VLOOKUP(Team!Y21,Team!$E$41:$F$256,2,FALSE),"") ->  | J15: =IF($G15<>"",VLOOKUP(Team!Z21,Team!$E$41:$F$256,2,FALSE),"") ->  | K15: =IF($G15<>"",VLOOKUP(Team!AA21,Team!$E$41:$F$256,2,FALSE),"") ->  | L15: =IF($G15<>"",VLOOKUP(Team!AB21,Team!$E$41:$F$256,2,FALSE),"") ->  | M15: =IF($G15<>"",VLOOKUP(Team!X21,Team!$E$41:$P$263,12,FALSE),"") ->  | AG15: 0 | AV15: 8 | AW15: =IF(ISNA(VLOOKUP(8,$AV$8:$AV$25,1,FALSE)),8,"") ->  | AZ15: 6 | BA15: =IF(AV8=6,AI8,IF(AV9=6,AI9,IF(AV10=6,AI10,IF(AV11=6,AI11,IF(AV12=6,AI12,IF(AV13=6,AI13,IF(AV14=6,AI14,IF(AV15=6,AI15,BT72)))))))) ->  | BB15: =IF(AV8=6,CC103,IF(AV9=6,CC104,IF(AV10=6,CC105,IF(AV11=6,CC106,IF(AV12=6,CC107,IF(AV13=6,CC108,IF(AV14=6,CC109,IF(AV15=6,CC110,BT129)))))))) ->  | BJ15: bonus a domicile : | BN15: %
C16: body pump | D16: 0 | G16: =IF(Team!C99<>0,Team!C99,"") ->  | H16: =IF($G16<>"",VLOOKUP(Team!X22,Team!$E$41:$F$256,2,FALSE),"") ->  | I16: =IF($G16<>"",VLOOKUP(Team!Y22,Team!$E$41:$F$256,2,FALSE),"") ->  | J16: =IF($G16<>"",VLOOKUP(Team!Z22,Team!$E$41:$F$256,2,FALSE),"") ->  | K16: =IF($G16<>"",VLOOKUP(Team!AA22,Team!$E$41:$F$256,2,FALSE),"") ->  | L16: =IF($G16<>"",VLOOKUP(Team!AB22,Team!$E$41:$F$256,2,FALSE),"") ->  | M16: =IF($G16<>"",VLOOKUP(Team!X22,Team!$E$41:$P$263,12,FALSE),"") ->  | Q16: kit officiel : | T16: 1 | U16: aprroximation kit : | X16: 0 | Z16: choix kit : | AC16: 0 | AG16: 0 | AV16: 9 | AW16: =IF(ISNA(VLOOKUP(9,$AV$8:$AV$25,1,FALSE)),9,"") ->  | AZ16: 7 | BA16: =IF(AV8=7,AI8,IF(AV9=7,AI9,IF(AV10=7,AI10,IF(AV11=7,AI11,IF(AV12=7,AI12,IF(AV13=7,AI13,IF(AV14=7,AI14,IF(AV15=7,AI15,BT73)))))))) ->  | BB16: =IF(AV8=7,CE103,IF(AV9=7,CE104,IF(AV10=7,CE105,IF(AV11=7,CE106,IF(AV12=7,CE107,IF(AV13=7,CE108,IF(AV14=7,CE109,IF(AV15=7,CE110,BT130)))))))) ->  | BJ16: bonus capitaine : | BM16: 0.0738 | BN16: %
C17: stage montagne | D17: 0 | G17: =IF(Team!C110<>0,Team!C110,"") ->  | H17: =IF($G17<>"",VLOOKUP(Team!X23,Team!$E$41:$F$256,2,FALSE),"") ->  | I17: =IF($G17<>"",VLOOKUP(Team!Y23,Team!$E$41:$F$256,2,FALSE),"") ->  | J17: =IF($G17<>"",VLOOKUP(Team!Z23,Team!$E$41:$F$256,2,FALSE),"") ->  | K17: =IF($G17<>"",VLOOKUP(Team!AA23,Team!$E$41:$F$256,2,FALSE),"") ->  | L17: =IF($G17<>"",VLOOKUP(Team!AB23,Team!$E$41:$F$256,2,FALSE),"") ->  | M17: =IF($G17<>"",VLOOKUP(Team!X23,Team!$E$41:$P$263,12,FALSE),"") ->  | AG17: 0 | AV17: 10 | AW17: =IF(ISNA(VLOOKUP(10,$AV$8:$AV$25,1,FALSE)),10,"") ->  | AZ17: 8 | BA17: =IF(AV8=8,AI8,IF(AV9=8,AI9,IF(AV10=8,AI10,IF(AV11=8,AI11,IF(AV12=8,AI12,IF(AV13=8,AI13,IF(AV14=8,AI14,IF(AV15=8,AI15,BT74)))))))) ->  | BB17: =IF(AV8=8,CG103,IF(AV9=8,CG104,IF(AV10=8,CG105,IF(AV11=8,CG106,IF(AV12=8,CG107,IF(AV13=8,CG108,IF(AV14=8,CG109,IF(AV15=8,CG110,BT131)))))))) ->  | BJ17: bonus de meteo : | BM17: 5 | BN17: %
G18: =IF(Team!C121<>0,Team!C121,"") ->  | H18: =IF($G18<>"",VLOOKUP(Team!X24,Team!$E$41:$F$256,2,FALSE),"") ->  | I18: =IF($G18<>"",VLOOKUP(Team!Y24,Team!$E$41:$F$256,2,FALSE),"") ->  | J18: =IF($G18<>"",VLOOKUP(Team!Z24,Team!$E$41:$F$256,2,FALSE),"") ->  | K18: =IF($G18<>"",VLOOKUP(Team!AA24,Team!$E$41:$F$256,2,FALSE),"") ->  | L18: =IF($G18<>"",VLOOKUP(Team!AB24,Team!$E$41:$F$256,2,FALSE),"") ->  | M18: =IF($G18<>"",VLOOKUP(Team!X24,Team!$E$41:$P$263,12,FALSE),"") ->  | O18: approximation kit | Q18: =Q9 -> kit 1 | R18: kit 2A | S18: kit 2B | T18: kit 4A | U18: kit 4B | V18: kit 5 | W18: kit 6A | X18: kit 6B | Y18: kit 7 | Z18: kit 8 | AA18: kit 9A | AB18: kit 9B | AC18: kit 10 | AD18: kit 11 | AG18: 0 | AV18: 11 | AW18: =IF(ISNA(VLOOKUP(11,$AV$8:$AV$25,1,FALSE)),11,"") ->  | AZ18: 9 | BA18: =IF(AV8=9,AI8,IF(AV9=9,AI9,IF(AV10=9,AI10,IF(AV11=9,AI11,IF(AV12=9,AI12,IF(AV13=9,AI13,IF(AV14=9,AI14,IF(AV15=9,AI15,BT75)))))))) ->  | BB18: =IF(AV8=9,CI103,IF(AV9=9,CI104,IF(AV10=9,CI105,IF(AV11=9,CI106,IF(AV12=9,CI107,IF(AV13=9,CI108,IF(AV14=9,CI109,IF(AV15=9,CI110,BT132)))))))) ->  | BJ18: Bonus d'agressivité : | BM18: 16 | BN18: %
C19: vitamines : | D19: 0 | G19: =IF(Team!C132<>0,Team!C132,"") ->  | H19: =IF($G19<>"",VLOOKUP(Team!X25,Team!$E$41:$F$256,2,FALSE),"") ->  | I19: =IF($G19<>"",VLOOKUP(Team!Y25,Team!$E$41:$F$256,2,FALSE),"") ->  | J19: =IF($G19<>"",VLOOKUP(Team!Z25,Team!$E$41:$F$256,2,FALSE),"") ->  | K19: =IF($G19<>"",VLOOKUP(Team!AA25,Team!$E$41:$F$256,2,FALSE),"") ->  | L19: =IF($G19<>"",VLOOKUP(Team!AB25,Team!$E$41:$F$256,2,FALSE),"") ->  | M19: =IF($G19<>"",VLOOKUP(Team!X25,Team!$E$41:$P$263,12,FALSE),"") ->  | P19: =P10 -> force | Q19: =ROUND(Q45*Q51,0) -> 0 | R19: 0 | S19: 0 | T19: 0 | U19: 0 | V19: 0 | W19: 0 | X19: 0 | Y19: 0 | Z19: 0 | AA19: 0 | AB19: 0 | AC19: 0 | AD19: 0 | AG19: 0 | AV19: 12 | AW19: =IF(ISNA(VLOOKUP(12,$AV$8:$AV$25,1,FALSE)),12,"") ->  | AZ19: 10 | BA19: =IF(AV8=10,AI8,IF(AV9=10,AI9,IF(AV10=10,AI10,IF(AV11=10,AI11,IF(AV12=10,AI12,IF(AV13=10,AI13,IF(AV14=10,AI14,IF(AV15=10,AI15,BT76)))))))) ->  | BB19: =IF(AV8=10,CK103,IF(AV9=10,CK104,IF(AV10=10,CK105,IF(AV11=10,CK106,IF(AV12=10,CK107,IF(AV13=10,CK108,IF(AV14=10,CK109,IF(AV15=10,CK110,BT133)))))))) ->  | BJ19: Bonus stratégie : | BM19: 10 | BN19: %
G20: =IF(Team!C143<>0,Team!C143,"") ->  | H20: =IF($G20<>"",VLOOKUP(Team!X26,Team!$E$41:$F$256,2,FALSE),"") ->  | I20: =IF($G20<>"",VLOOKUP(Team!Y26,Team!$E$41:$F$256,2,FALSE),"") ->  | J20: =IF($G20<>"",VLOOKUP(Team!Z26,Team!$E$41:$F$256,2,FALSE),"") ->  | K20: =IF($G20<>"",VLOOKUP(Team!AA26,Team!$E$41:$F$256,2,FALSE),"") ->  | L20: =IF($G20<>"",VLOOKUP(Team!AB26,Team!$E$41:$F$256,2,FALSE),"") ->  | M20: =IF($G20<>"",VLOOKUP(Team!X26,Team!$E$41:$P$263,12,FALSE),"") ->  | P20: =P11 -> habilité | Q20: =ROUND(Q46*Q52,0) -> 0 | R20: 0 | S20: 0 | T20: 0 | U20: 0 | V20: 0 | W20: 0 | X20: 0 | Y20: 0 | Z20: 0 | AA20: 0 | AB20: 0 | AC20: 0 | AD20: 0 | AG20: 0 | AV20: 13 | AW20: =IF(ISNA(VLOOKUP(13,$AV$8:$AV$25,1,FALSE)),13,"") ->  | AZ20: 11 | BA20: =IF(AV8=11,AI8,IF(AV9=11,AI9,IF(AV10=11,AI10,IF(AV11=11,AI11,IF(AV12=11,AI12,IF(AV13=11,AI13,IF(AV14=11,AI14,IF(AV15=11,AI15,BT77)))))))) ->  | BB20: =IF(AV8=11,CM103,IF(AV9=11,CM104,IF(AV10=11,CM105,IF(AV11=11,CM106,IF(AV12=11,CM107,IF(AV13=11,CM108,IF(AV14=11,CM109,IF(AV15=11,CM110,BT134)))))))) -> 
C21: objets : | D21: 0 | G21: =IF(Team!C154<>0,Team!C154,"") ->  | H21: =IF($G21<>"",VLOOKUP(Team!X27,Team!$E$41:$F$256,2,FALSE),"") ->  | I21: =IF($G21<>"",VLOOKUP(Team!Y27,Team!$E$41:$F$256,2,FALSE),"") ->  | J21: =IF($G21<>"",VLOOKUP(Team!Z27,Team!$E$41:$F$256,2,FALSE),"") ->  | K21: =IF($G21<>"",VLOOKUP(Team!AA27,Team!$E$41:$F$256,2,FALSE),"") ->  | L21: =IF($G21<>"",VLOOKUP(Team!AB27,Team!$E$41:$F$256,2,FALSE),"") ->  | M21: =IF($G21<>"",VLOOKUP(Team!X27,Team!$E$41:$P$263,12,FALSE),"") ->  | P21: =P12 -> vitesse | Q21: =ROUND(Q47*Q53,0) -> 0 | R21: 0 | S21: 0 | T21: 0 | U21: 0 | V21: 0 | W21: 0 | X21: 0 | Y21: 0 | Z21: 0 | AA21: 0 | AB21: 0 | AC21: 0 | AD21: 0 | AG21: 0 | AV21: 14 | AW21: =IF(ISNA(VLOOKUP(14,$AV$8:$AV$25,1,FALSE)),14,"") ->  | BC21: =ROUND(SUM(BC10:BD20),2) ->  | BE21: =ROUND(SUM(BE10:BF20),2) ->  | BG21: =BC21+BE21 -> 
G22: =IF(Team!C165<>0,Team!C165,"") ->  | H22: =IF($G22<>"",VLOOKUP(Team!X28,Team!$E$41:$F$256,2,FALSE),"") ->  | I22: =IF($G22<>"",VLOOKUP(Team!Y28,Team!$E$41:$F$256,2,FALSE),"") ->  | J22: =IF($G22<>"",VLOOKUP(Team!Z28,Team!$E$41:$F$256,2,FALSE),"") ->  | K22: =IF($G22<>"",VLOOKUP(Team!AA28,Team!$E$41:$F$256,2,FALSE),"") ->  | L22: =IF($G22<>"",VLOOKUP(Team!AB28,Team!$E$41:$F$256,2,FALSE),"") ->  | M22: =IF($G22<>"",VLOOKUP(Team!X28,Team!$E$41:$P$263,12,FALSE),"") ->  | P22: =P13 -> endurance | Q22: =ROUND(Q48*Q54,0) -> 0 | R22: 0 | S22: 0 | T22: 0 | U22: 0 | V22: 0 | W22: 0 | X22: 0 | Y22: 0 | Z22: 0 | AA22: 0 | AB22: 0 | AC22: 0 | AD22: 0 | AG22: 0 | AV22: 15 | AW22: =IF(ISNA(VLOOKUP(15,$AV$8:$AV$25,1,FALSE)),15,"") -> 
A23: 3) Entrer les stats des joueurs à comparer. | G23: =IF(Team!C176<>0,Team!C176,"") ->  | H23: =IF($G23<>"",VLOOKUP(Team!X29,Team!$E$41:$F$256,2,FALSE),"") ->  | I23: =IF($G23<>"",VLOOKUP(Team!Y29,Team!$E$41:$F$256,2,FALSE),"") ->  | J23: =IF($G23<>"",VLOOKUP(Team!Z29,Team!$E$41:$F$256,2,FALSE),"") ->  | K23: =IF($G23<>"",VLOOKUP(Team!AA29,Team!$E$41:$F$256,2,FALSE),"") ->  | L23: =IF($G23<>"",VLOOKUP(Team!AB29,Team!$E$41:$F$256,2,FALSE),"") ->  | M23: =IF($G23<>"",VLOOKUP(Team!X29,Team!$E$41:$P$263,12,FALSE),"") ->  | N23: =G116 ->  | P23: =P14 -> intelligence | Q23: =ROUND(Q49*Q55,0) -> 0 | R23: 0 | S23: 0 | T23: 0 | U23: 0 | V23: 0 | W23: 0 | X23: 0 | Y23: 0 | Z23: 0 | AA23: 0 | AB23: 0 | AC23: 0 | AD23: 0 | AG23: 0 | AV23: 16 | AW23: =IF(ISNA(VLOOKUP(16,$AV$8:$AV$25,1,FALSE)),16,"") -> 
G24: =IF(Team!C187<>0,Team!C187,"") ->  | H24: =IF($G24<>"",VLOOKUP(Team!X30,Team!$E$41:$F$256,2,FALSE),"") ->  | I24: =IF($G24<>"",VLOOKUP(Team!Y30,Team!$E$41:$F$256,2,FALSE),"") ->  | J24: =IF($G24<>"",VLOOKUP(Team!Z30,Team!$E$41:$F$256,2,FALSE),"") ->  | K24: =IF($G24<>"",VLOOKUP(Team!AA30,Team!$E$41:$F$256,2,FALSE),"") ->  | L24: =IF($G24<>"",VLOOKUP(Team!AB30,Team!$E$41:$F$256,2,FALSE),"") ->  | M24: =IF($G24<>"",VLOOKUP(Team!X30,Team!$E$41:$P$263,12,FALSE),"") ->  | AG24: 0 | AV24: 17 | AW24: =IF(ISNA(VLOOKUP(17,$AV$8:$AV$25,1,FALSE)),17,"") ->  | BA24: avec bonus match | BC24: =ROUND(BC21*(100+BM13)/100*(100+BM14)/100*(100+BM15)/100*(100+BM16)/100*(BM17+100)/100*(100+BM18)/100*(100+BM19)/100,2) ->  | BE24: =ROUND(BE21*(100+BM13)/100*(BM14+100)/100*(100+BM15)/100*(100+BM16)/100*(BM17+100)/100*(100+BM18)/100*(100+BM19)/100,2) ->  | BG24: =BC24+BE24 -> 
E25: =VLOOKUP(AH4,B26:C29,2,FALSE) -> B | G25: =IF(Team!C198<>0,Team!C198,"") ->  | H25: =IF($G25<>"",VLOOKUP(Team!X31,Team!$E$41:$F$256,2,FALSE),"") ->  | I25: =IF($G25<>"",VLOOKUP(Team!Y31,Team!$E$41:$F$256,2,FALSE),"") ->  | J25: =IF($G25<>"",VLOOKUP(Team!Z31,Team!$E$41:$F$256,2,FALSE),"") ->  | K25: =IF($G25<>"",VLOOKUP(Team!AA31,Team!$E$41:$F$256,2,FALSE),"") ->  | L25: =IF($G25<>"",VLOOKUP(Team!AB31,Team!$E$41:$F$256,2,FALSE),"") ->  | M25: =IF($G25<>"",VLOOKUP(Team!X31,Team!$E$41:$P$263,12,FALSE),"") ->  | O25: caracteristiques kit officiel | Q25: =Q9 -> kit 1 | R25: kit 2A | S25: kit 2B | T25: kit 4A | U25: kit 4B | V25: kit 5 | W25: kit 6A | X25: kit 6B | Y25: kit 7 | Z25: kit 8 | AA25: kit 9A | AB25: kit 9B | AC25: kit 10 | AD25: kit 11 | AG25: 0 | AI25: =IF(G28="","",G28) ->  | AJ25: =IF(AI25<>"",AY69*IF($AX$33=1,$BW$55,1),"") ->  | AK25: =IF(AI25<>"",BP69*IF($AX$33=1,$BW$56,1),"") ->  | AM25: =IF(AI25<>"",BP92*IF($AX$33=1,$BW$58,1),"") ->  | AN25: =IF(AI25<>"",AY115*IF($AX$33=1,$BW$59,1),"") ->  | AO25: =IF(AI25<>"",BP115*IF($AX$33=1,$BW$60,1),"") ->  | AP25: =IF(AI25<>"",AY138*IF($AX$33=1,$BW$61,1),"") ->  | AQ25: =IF(AI25<>"",BP138*IF($AX$33=1,$BW$62,1),"") ->  | AR25: =IF(AI25<>"",AY161*IF($AX$33=1,$BW$63,1),"") ->  | AS25: =IF(AI25<>"",BP161*IF($AX$33=1,$BW$64,1),"") ->  | AT25: =IF(AI25<>"",AY184*IF($AX$33=1,$BW$65,1),"") ->  | AV25: 18 | AW25: =IF(ISNA(VLOOKUP(18,$AV$8:$AV$25,1,FALSE)),18,"") -> 
B26: 541 | C26: A | D26: 541 | E26: =VLOOKUP(AH5,B31:C33,2,FALSE) -> d | G26: =IF(Team!C209<>0,Team!C209,"") ->  | H26: =IF($G26<>"",VLOOKUP(Team!X32,Team!$E$41:$F$256,2,FALSE),"") ->  | I26: =IF($G26<>"",VLOOKUP(Team!Y32,Team!$E$41:$F$256,2,FALSE),"") ->  | J26: =IF($G26<>"",VLOOKUP(Team!Z32,Team!$E$41:$F$256,2,FALSE),"") ->  | K26: =IF($G26<>"",VLOOKUP(Team!AA32,Team!$E$41:$F$256,2,FALSE),"") ->  | L26: =IF($G26<>"",VLOOKUP(Team!AB32,Team!$E$41:$F$256,2,FALSE),"") ->  | M26: =IF($G26<>"",VLOOKUP(Team!X32,Team!$E$41:$P$263,12,FALSE),"") ->  | P26: =P19 -> force | BK26: 10) Enjoy !!
B27: 433 | C27: B | D27: 433 | G27: =IF(Team!C220<>0,Team!C220,"") ->  | H27: =IF($G27<>"",VLOOKUP(Team!X33,Team!$E$41:$F$256,2,FALSE),"") ->  | I27: =IF($G27<>"",VLOOKUP(Team!Y33,Team!$E$41:$F$256,2,FALSE),"") ->  | J27: =IF($G27<>"",VLOOKUP(Team!Z33,Team!$E$41:$F$256,2,FALSE),"") ->  | K27: =IF($G27<>"",VLOOKUP(Team!AA33,Team!$E$41:$F$256,2,FALSE),"") ->  | L27: =IF($G27<>"",VLOOKUP(Team!AB33,Team!$E$41:$F$256,2,FALSE),"") ->  | M27: =IF($G27<>"",VLOOKUP(Team!X33,Team!$E$41:$P$263,12,FALSE),"") ->  | P27: =P20 -> habilité | AI27: =IF(G30="","",G30) ->  | AJ27: =IF(AI27<>"",AY70*IF($AX$33=1,$BW$55,1),"") ->  | AK27: =IF(AI27<>"",BP70*IF($AX$33=1,$BW$56,1),"") ->  | AL27: =IF(AI27<>"",AY93*IF($AX$33=1,$BW$57,1),"") ->  | AM27: =IF(AI27<>"",BP93*IF($AX$33=1,$BW$58,1),"") ->  | AN27: =IF(AI27<>"",AY116*IF($AX$33=1,$BW$59,1),"") ->  | AO27: =IF(AI27<>"",BP116*IF($AX$33=1,$BW$60,1),"") ->  | AP27: =IF(AI27<>"",AY139*IF($AX$33=1,$BW$61,1),"") ->  | AQ27: =IF(AI27<>"",BP139*IF($AX$33=1,$BW$62,1),"") ->  | AR27: =IF(AI27<>"",AY162*IF($AX$33=1,$BW$63,1),"") ->  | AS27: =IF(AI27<>"",BP162*IF($AX$33=1,$BW$64,1),"") ->  | AT27: =IF(AI27<>"",AY185*IF($AX$33=1,$BW$65,1),"") -> 
B28: 352 | C28: C | D28: 352 | G28: =IF(Team!C231<>0,Team!C231,"") ->  | H28: =IF($G28<>"",VLOOKUP(Team!X34,Team!$E$41:$F$256,2,FALSE),"") ->  | I28: =IF($G28<>"",VLOOKUP(Team!Y34,Team!$E$41:$F$256,2,FALSE),"") ->  | J28: =IF($G28<>"",VLOOKUP(Team!Z34,Team!$E$41:$F$256,2,FALSE),"") ->  | K28: =IF($G28<>"",VLOOKUP(Team!AA34,Team!$E$41:$F$256,2,FALSE),"") ->  | L28: =IF($G28<>"",VLOOKUP(Team!AB34,Team!$E$41:$F$256,2,FALSE),"") ->  | M28: =IF($G28<>"",VLOOKUP(Team!X34,Team!$E$41:$P$263,12,FALSE),"") ->  | P28: =P21 -> vitesse | AJ28: =IF(AI28<>"",AY71*IF($AX$33=1,$BW$55,1),"") ->  | AK28: =IF(AI28<>"",BP71*IF($AX$33=1,$BW$56,1),"") ->  | AL28: =IF(AI28<>"",AY94*IF($AX$33=1,$BW$57,1),"") ->  | AM28: =IF(AI28<>"",BP94*IF($AX$33=1,$BW$58,1),"") ->  | AN28: =IF(AI28<>"",AY117*IF($AX$33=1,$BW$59,1),"") ->  | AO28: =IF(AI28<>"",BP117*IF($AX$33=1,$BW$60,1),"") ->  | AP28: =IF(AI28<>"",AY140*IF($AX$33=1,$BW$61,1),"") ->  | AQ28: =IF(AI28<>"",BP140*IF($AX$33=1,$BW$62,1),"") ->  | AR28: =IF(AI28<>"",AY163*IF($AX$33=1,$BW$63,1),"") ->  | AS28: =IF(AI28<>"",BP163*IF($AX$33=1,$BW$64,1),"") ->  | AT28: =IF(AI28<>"",AY186*IF($AX$33=1,$BW$65,1),"") -> 
B29: 442 | C29: D | D29: 442 | P29: =P22 -> endurance | AK29: =IF(AI29<>"",BP72*IF($AX$33=1,$BW$56,1),"") ->  | BI29: La colonne Kit donne le meilleur kit pour ce joueur a cette position
E30: Joueurs à comparer | N30: =IF(L30<>"",(L30/100+M30/500)/100,"") ->  | P30: =P23 -> intelligence
B31: Defensif | C31: d | D31: defensif | J31: Travail en cours | N31: =IF(L31<>"",(L31/100+M31/500)/100,"") ->  | AG31: vitamines : | AJ31: 0 | AK31: 0 | AL31: 0 | AM31: 0 | AN31: 0 | AO31: 0 | AP31: 0 | AQ31: 0 | AR31: 0 | AS31: 0 | AT31: 0 | AV31: pourcentage : | AX31: 0
B32: Neutre | C32: n | D32: neutre | T32: 6) Choisir si le joueur ou la position a une vitamine. | AV32: valeur brute : | AX32: 1 | BA32: 9) Choisir entre pourcentage poste ou valeur brute.
B33: Offensif | C33: o | D33: offensif | AH33: Gain minimum pour une vitamine | AJ33: =BB167 -> 0 | AK33: 0 | AL33: 0 | AM33: 0 | AN33: 0 | AO33: 0 | AP33: 0 | AQ33: 0 | AR33: 0 | AS33: 0 | AT33: 0 | AV33: pourcentage/valeur brute : | AX33: 1
AI35: coefficient caracteristique par poste / tactique actuelle | AR35: coefficient caracteristique par poste et par tactique
AK36: =F42 -> 433 | AT36: 541 | BB36: 433 | BJ36: 352 | BR36: 442
AJ37: Position | AK37: force | AL37: hab | AM37: vit | AN37: end | AO37: int | AP37: % poste | AS37: Position | AT37: force | AU37: hab | AV37: vit | AW37: end | AX37: int | AY37: % poste | BA37: Position | BB37: force | BC37: hab | BD37: vit | BE37: end | BF37: int | BG37: % poste | BI37: Position | BJ37: force | BK37: hab | BL37: vit | BM37: end | BN37: int | BO37: % poste | BQ37: Position | BR37: force | BS37: hab | BT37: vit | BU37: end | BV37: int | BW37: % poste
E38: caracteristiques bonus : | P38: choix kit | AG38: bonus cara | AJ38: 1 | AK38: =IF(AK36=AT36,AT38,IF(AK36=BB36,BB38,IF(AK36=BJ36,BJ38,IF(AK36=BR36,BR38,erreur)))) -> 150 | AL38: =IF(AK36=AT36,AU38,IF(AK36=BB36,BC38,IF(AK36=BJ36,BK38,IF(AK36=BR36,BS38,erreur)))) -> 400 | AM38: =IF(AK36=AT36,AV38,IF(AK36=BB36,BD38,IF(AK36=BJ36,BL38,IF(AK36=BR36,BT38,erreur)))) -> 150 | AN38: =IF(AK36=AT36,AW38,IF(AK36=BB36,BE38,IF(AK36=BJ36,BM38,IF(AK36=BR36,BU38,erreur)))) -> 50 | AO38: =IF(AK36=AT36,AX38,IF(AK36=BB36,BF38,IF(AK36=BJ36,BN38,IF(AK36=BR36,BV38,erreur)))) -> 250 | AP38: =IF(AK36=AT36,AY38,IF(AK36=BB36,BG38,IF(AK36=BJ36,BO38,IF(AK36=BR36,BW38,erreur)))) -> 200 | AS38: 1 | AT38: 150 | AU38: 400 | AV38: 150 | AW38: 50 | AX38: 250 | AY38: 200 | BA38: 1 | BB38: 150 | BC38: 400 | BD38: 150 | BE38: 50 | BF38: 250 | BG38: 200 | BI38: 1 | BJ38: 150 | BK38: 400 | BL38: 150 | BM38: 50 | BN38: 250 | BO38: 200 | BQ38: 1 | BR38: 150 | BS38: 400 | BT38: 150 | BU38: 50 | BV38: 250 | BW38: 200
E39: force | F39: hab | G39: vit | H39: end | I39: int | Q39: =AC16 -> 0 | R39: =AC16 -> 0 | S39: =AC16 -> 0 | T39: =AC16 -> 0 | U39: =AC16 -> 0 | V39: =AC16 -> 0 | W39: =AC16 -> 0 | X39: =AC16 -> 0 | Y39: =AC16 -> 0 | Z39: =AC16 -> 0 | AA39: =AC16 -> 0 | AB39: =AC16 -> 0 | AC39: =AC16 -> 0 | AD39: =AC16 -> 0 | AH39: =D8+D13 ->  | AJ39: 2 | AK39: =IF(AK36=AT36,AT39,IF(AK36=BB36,BB39,IF(AK36=BJ36,BJ39,IF(AK36=BR36,BR39,erreur)))) -> 250 | AL39: =IF(AK36=AT36,AU39,IF(AK36=BB36,BC39,IF(AK36=BJ36,BK39,IF(AK36=BR36,BS39,erreur)))) -> 200 | AM39: =IF(AK36=AT36,AV39,IF(AK36=BB36,BD39,IF(AK36=BJ36,BL39,IF(AK36=BR36,BT39,erreur)))) -> 250 | AN39: =IF(AK36=AT36,AW39,IF(AK36=BB36,BE39,IF(AK36=BJ36,BM39,IF(AK36=BR36,BU39,erreur)))) -> 300 | AO39: =IF(AK36=AT36,AX39,IF(AK36=BB36,BF39,IF(AK36=BJ36,BN39,IF(AK36=BR36,BV39,erreur)))) -> 200 | AP39: =IF(AK36=AT36,AY39,IF(AK36=BB36,BG39,IF(AK36=BJ36,BO39,IF(AK36=BR36,BW39,erreur)))) -> 200 | AS39: 2 | AT39: 300 | AU39: 200 | AV39: 200 | AW39: 300 | AX39: 200 | AY39: 200 | BA39: 2 | BB39: 250 | BC39: 200 | BD39: 250 | BE39: 300 | BF39: 200 | BG39: 200 | BI39: 2 | BJ39: 300 | BK39: 200 | BL39: 200 | BM39: 300 | BN39: 200 | BO39: 200 | BQ39: 2 | BR39: 250 | BS39: 200 | BT39: 250 | BU39: 300 | BV39: 200 | BW39: 200
E40: =AH39+D16+D17+D21 ->  | F40: =AH40+D15+D17+D21 ->  | G40: =AH41+D15+D17+D21 ->  | H40: =AH42+D16+D17+D21 ->  | I40: =AH43+D15+D17+D21 ->  | Q40: =AC16 -> 0 | R40: =AC16 -> 0 | S40: =AC16 -> 0 | T40: =AC16 -> 0 | U40: =AC16 -> 0 | V40: =AC16 -> 0 | W40: =AC16 -> 0 | X40: =AC16 -> 0 | Y40: =AC16 -> 0 | Z40: =AC16 -> 0 | AA40: =AC16 -> 0 | AB40: =AC16 -> 0 | AC40: =AC16 -> 0 | AD40: =AC16 -> 0 | AH40: =D9+D13 ->  | AJ40: 3 | AK40: =IF(AK36=AT36,AT40,IF(AK36=BB36,BB40,IF(AK36=BJ36,BJ40,IF(AK36=BR36,BR40,erreur)))) -> 125 | AL40: =IF(AK36=AT36,AU40,IF(AK36=BB36,BC40,IF(AK36=BJ36,BK40,IF(AK36=BR36,BS40,erreur)))) -> 100 | AM40: =IF(AK36=AT36,AV40,IF(AK36=BB36,BD40,IF(AK36=BJ36,BL40,IF(AK36=BR36,BT40,erreur)))) -> 125 | AN40: =IF(AK36=AT36,AW40,IF(AK36=BB36,BE40,IF(AK36=BJ36,BM40,IF(AK36=BR36,BU40,erreur)))) -> 150 | AO40: =IF(AK36=AT36,AX40,IF(AK36=BB36,BF40,IF(AK36=BJ36,BN40,IF(AK36=BR36,BV40,erreur)))) -> 100 | AP40: =IF(AK36=AT36,AY40,IF(AK36=BB36,BG40,IF(AK36=BJ36,BO40,IF(AK36=BR36,BW40,erreur)))) -> 100 | AS40: 3 | AT40: 300 | AU40: 200 | AV40: 200 | AW40: 300 | AX40: 200 | AY40: 200 | BA40: 3 | BB40: 125 | BC40: 100 | BD40: 125 | BE40: 150 | BF40: 100 | BG40: 100 | BI40: 3 | BJ40: 300 | BK40: 200 | BL40: 200 | BM40: 300 | BN40: 200 | BO40: 200 | BQ40: 3 | BR40: 250 | BS40: 200 | BT40: 250 | BU40: 300 | BV40: 200 | BW40: 200
E41: stats brutes / pourcentage placement pour la tactique en cours | Q41: =AC16 -> 0 | R41: =AC16 -> 0 | S41: =AC16 -> 0 | T41: =AC16 -> 0 | U41: =AC16 -> 0 | V41: =AC16 -> 0 | W41: =AC16 -> 0 | X41: =AC16 -> 0 | Y41: =AC16 -> 0 | Z41: =AC16 -> 0 | AA41: =AC16 -> 0 | AB41: =AC16 -> 0 | AC41: =AC16 -> 0 | AD41: =AC16 -> 0 | AH41: =D10+D13 ->  | AJ41: 4 | AK41: =IF(AK36=AT36,AT41,IF(AK36=BB36,BB41,IF(AK36=BJ36,BI41,IF(AK36=BR36,BR41,erreur)))) -> 300 | AL41: =IF(AK36=AT36,AU41,IF(AK36=BB36,BC41,IF(AK36=BJ36,BK41,IF(AK36=BR36,BS41,erreur)))) -> 100 | AM41: =IF(AK36=AT36,AV41,IF(AK36=BB36,BD41,IF(AK36=BJ36,BL41,IF(AK36=BR36,BT41,erreur)))) -> 250 | AN41: =IF(AK36=AT36,AW41,IF(AK36=BB36,BE41,IF(AK36=BJ36,BM41,IF(AK36=BR36,BU41,erreur)))) -> 250 | AO41: =IF(AK36=AT36,AX41,IF(AK36=BB36,BF41,IF(AK36=BJ36,BN41,IF(AK36=BR36,BV41,erreur)))) -> 150 | AP41: =IF(AK36=AT36,AY41,IF(AK36=BB36,BG41,IF(AK36=BJ36,BO41,IF(AK36=BR36,BW41,erreur)))) -> 200 | AS41: 4 | AT41: 300 | AU41: 150 | AV41: 300 | AW41: 200 | AX41: 100 | AY41: 200 | BA41: 4 | BB41: 300 | BC41: 100 | BD41: 250 | BE41: 250 | BF41: 150 | BG41: 200 | BI41: 4 | BJ41: 300 | BK41: 150 | BL41: 300 | BM41: 200 | BN41: 100 | BO41: 200 | BQ41: 4 | BR41: 300 | BS41: 100 | BT41: 250 | BU41: 250 | BV41: 150 | BW41: 200
F42: =IF(E25=C26,D26,IF(E25=C27,D27,IF(E25=C28,D28,IF(E25=C29,D29,AH2)))) -> 433 | Q42: =AC16 -> 0 | R42: =AC16 -> 0 | S42: =AC16 -> 0 | T42: =AC16 -> 0 | U42: =AC16 -> 0 | V42: =AC16 -> 0 | W42: =AC16 -> 0 | X42: =AC16 -> 0 | Y42: =AC16 -> 0 | Z42: =AC16 -> 0 | AA42: =AC16 -> 0 | AB42: =AC16 -> 0 | AC42: =AC16 -> 0 | AD42: =AC16 -> 0 | AH42: =D11+D13 ->  | AJ42: 5 | AK42: =IF(AK36=AT36,AT42,IF(AK36=BB36,BB42,IF(AK36=BJ36,BJ42,IF(AK36=BR36,BR42,erreur)))) -> 200 | AL42: =IF(AK36=AT36,AU42,IF(AK36=BB36,BC42,IF(AK36=BJ36,BK42,IF(AK36=BR36,BS42,erreur)))) -> 150 | AM42: =IF(AK36=AT36,AV42,IF(AK36=BB36,BD42,IF(AK36=BJ36,BL42,IF(AK36=BR36,BT42,erreur)))) -> 150 | AN42: =IF(AK36=AT36,AW42,IF(AK36=BB36,BE42,IF(AK36=BJ36,BM42,IF(AK36=BR36,BU42,erreur)))) -> 150 | AO42: =IF(AK36=AT36,AX42,IF(AK36=BB36,BF42,IF(AK36=BJ36,BN42,IF(AK36=BR36,BV42,erreur)))) -> 150 | AP42: =IF(AK36=AT36,AY42,IF(AK36=BB36,BG42,IF(AK36=BJ36,BO42,IF(AK36=BR36,BW42,erreur)))) -> 200 | AS42: 5 | AT42: 200 | AU42: 150 | AV42: 150 | AW42: 150 | AX42: 150 | AY42: 200 | BA42: 5 | BB42: 200 | BC42: 150 | BD42: 150 | BE42: 150 | BF42: 150 | BG42: 200 | BI42: 5 | BJ42: 200 | BK42: 150 | BL42: 150 | BM42: 150 | BN42: 150 | BO42: 200 | BQ42: 5 | BR42: 200 | BS42: 150 | BT42: 150 | BU42: 150 | BV42: 150 | BW42: 200
F43: defensif | I43: neutre | L43: offensif | Q43: =AC16 -> 0 | R43: =AC16 -> 0 | S43: =AC16 -> 0 | T43: =AC16 -> 0 | U43: =AC16 -> 0 | V43: =AC16 -> 0 | W43: =AC16 -> 0 | X43: =AC16 -> 0 | Y43: =AC16 -> 0 | Z43: =AC16 -> 0 | AA43: =AC16 -> 0 | AB43: =AC16 -> 0 | AC43: =AC16 -> 0 | AD43: =AC16 -> 0 | AH43: =D12+D13 ->  | AJ43: 6 | AK43: =IF(AK36=AT36,AT43,IF(AK36=BB36,BB43,IF(AK36=BJ36,BJ43,IF(AK36=BR36,BR43,erreur)))) -> 250 | AL43: =IF(AK36=AT36,AU43,IF(AK36=BB36,BC43,IF(AK36=BJ36,BK43,IF(AK36=BR36,BS43,erreur)))) -> 200 | AM43: =IF(AK36=AT36,AV43,IF(AK36=BB36,BD43,IF(AK36=BJ36,BL43,IF(AK36=BR36,BT43,erreur)))) -> 250 | AN43: =IF(AK36=AT36,AW43,IF(AK36=BB36,BE43,IF(AK36=BJ36,BM43,IF(AK36=BR36,BU43,erreur)))) -> 250 | AO43: =IF(AK36=AT36,AX43,IF(AK36=BB36,BF43,IF(AK36=BJ36,BN43,IF(AK36=BR36,BV43,erreur)))) -> 150 | AP43: =IF(AK36=AT36,AY43,IF(AK36=BB36,BG43,IF(AK36=BJ36,BO43,IF(AK36=BR36,BW43,erreur)))) -> 200 | AS43: 6 | AT43: 250 | AU43: 250 | AV43: 150 | AW43: 250 | AX43: 200 | AY43: 200 | BA43: 6 | BB43: 250 | BC43: 200 | BD43: 250 | BE43: 250 | BF43: 150 | BG43: 200 | BI43: 6 | BJ43: 250 | BK43: 250 | BL43: 150 | BM43: 250 | BN43: 200 | BO43: 200 | BQ43: 6 | BR43: 250 | BS43: 200 | BT43: 250 | BU43: 250 | BV43: 150 | BW43: 200
F44: 1% attaque | G44: 1% defense | H44: 1% cumulé | I44: 1% attaque | J44: 1% defense | K44: 1% cumulé | L44: 1% attaque | M44: 1% defense | N44: 1% cumulé | P44: coefficient caracteristique kit | AJ44: 7 | AK44: =IF(AK36=AT36,AT44,IF(AK36=BB36,BB44,IF(AK36=BJ36,BJ44,IF(AK36=BR36,BR44,erreur)))) -> 250 | AL44: =IF(AK36=AT36,AU44,IF(AK36=BB36,BC44,IF(AK36=BJ36,BK44,IF(AK36=BR36,BS44,erreur)))) -> 250 | AM44: =IF(AK36=AT36,AV44,IF(AK36=BB36,BD44,IF(AK36=BJ36,BL44,IF(AK36=BR36,BT44,erreur)))) -> 250 | AN44: =IF(AK36=AT36,AW44,IF(AK36=BB36,BE44,IF(AK36=BJ36,BM44,IF(AK36=BR36,BU44,erreur)))) -> 250 | AO44: =IF(AK36=AT36,AX44,IF(AK36=BB36,BF44,IF(AK36=BJ36,BN44,IF(AK36=BR36,BV44,erreur)))) -> 200 | AP44: =IF(AK36=AT36,AY44,IF(AK36=BB36,BG44,IF(AK36=BJ36,BO44,IF(AK36=BR36,BW44,erreur)))) -> 200 | AS44: 7 | AT44: 250 | AU44: 250 | AV44: 250 | AW44: 250 | AX44: 200 | AY44: 200 | BA44: 7 | BB44: 250 | BC44: 250 | BD44: 250 | BE44: 250 | BF44: 200 | BG44: 200 | BI44: 7 | BJ44: 250 | BK44: 250 | BL44: 250 | BM44: 250 | BN44: 200 | BO44: 200 | BQ44: 7 | BR44: 250 | BS44: 250 | BT44: 250 | BU44: 250 | BV44: 200 | BW44: 200
F45: =IF(E25=C26,E62,IF(E25=C27,H62,IF(E25=C28,K62,IF(E25=C29,N62,erreur)))) -> 0.05445 | G45: =IF(E25=C26,F62,IF(E25=C27,I62,IF(E25=C28,L62,IF(E25=C29,O62,erreur)))) -> 2.67025 | H45: =F45+G45 -> 2.7247 | I45: =IF(E25=C26,E76,IF(E25=C27,H76,IF(E25=C28,K76,IF(E25=C29,N76,erreur)))) -> 0.16345 | J45: =IF(E25=C26,F76,IF(E25=C27,I76,IF(E25=C28,L76,IF(E25=C29,O76,erreur)))) -> 2.5613 | K45: =I45+J45 -> 2.72475 | L45: =IF(E25=C26,E90,IF(E25=C27,H90,IF(E25=C28,K90,IF(E25=C29,N90,erreur)))) -> 0.27245 | M45: =IF(E25=C26,F90,IF(E25=C27,I90,IF(E25=C28,L90,IF(E25=C29,O90,erreur)))) -> 2.4523 | N45: =L45+M45 -> 2.72475 | Q45: 0.777 | R45: 1.75 | S45: 1.51 | T45: 2 | U45: 2 | V45: 1.75 | W45: 1.6 | X45: 1.6 | Y45: 1.477 | Z45: 1.075 | AA45: 1.185 | AB45: 1.6 | AC45: 1 | AD45: 1.185 | AJ45: 8 | AK45: =IF(AK36=AT36,AT45,IF(AK36=BB36,BB45,IF(AK36=BJ36,BJ45,IF(AK36=BR36,BR45,erreur)))) -> 200 | AL45: =IF(AK36=AT36,AU45,IF(AK36=BB36,BC45,IF(AK36=BJ36,BK45,IF(AK36=BR36,BS45,erreur)))) -> 300 | AM45: =IF(AK36=AT36,AV45,IF(AK36=BB36,BD45,IF(AK36=BJ36,BL45,IF(AK36=BR36,BT45,erreur)))) -> 300 | AN45: =IF(AK36=AT36,AW45,IF(AK36=BB36,BE45,IF(AK36=BJ36,BM45,IF(AK36=BR36,BU45,erreur)))) -> 300 | AO45: =IF(AK36=AT36,AX45,IF(AK36=BB36,BF45,IF(AK36=BJ36,BN45,IF(AK36=BR36,BV45,erreur)))) -> 200 | AP45: =IF(AK36=AT36,AY45,IF(AK36=BB36,BG45,IF(AK36=BJ36,BO45,IF(AK36=BR36,BW45,erreur)))) -> 200 | AS45: 8 | AT45: 250 | AU45: 250 | AV45: 250 | AW45: 250 | AX45: 200 | AY45: 200 | BA45: 8 | BB45: 200 | BC45: 300 | BD45: 300 | BE45: 300 | BF45: 200 | BG45: 200 | BI45: 8 | BJ45: 200 | BK45: 300 | BL45: 300 | BM45: 300 | BN45: 200 | BO45: 200 | BQ45: 8 | BR45: 250 | BS45: 250 | BT45: 250 | BU45: 250 | BV45: 200 | BW45: 200
F46: =IF(E25=C26,E63,IF(E25=C27,H63,IF(E25=C28,K63,IF(E25=C29,N63,erreur)))) -> 0.68115 | G46: =IF(E25=C26,F63,IF(E25=C27,I63,IF(E25=C28,L63,IF(E25=C29,O63,erreur)))) -> 0.68115 | H46: =F46+G46 -> 1.3623 | I46: =IF(E25=C26,E77,IF(E25=C27,H77,IF(E25=C28,K77,IF(E25=C29,N77,erreur)))) -> 0.8174 | J46: =IF(E25=C26,F77,IF(E25=C27,I77,IF(E25=C28,L77,IF(E25=C29,O77,erreur)))) -> 0.54495 | K46: =I46+J46 -> 1.36235 | L46: =IF(E25=C26,E91,IF(E25=C27,H91,IF(E25=C28,K91,IF(E25=C29,N91,erreur)))) -> 0.95365 | M46: =IF(E25=C26,F91,IF(E25=C27,I91,IF(E25=C28,L91,IF(E25=C29,O91,erreur)))) -> 0.4087 | N46: =L46+M46 -> 1.36235 | Q46: 2.083 | R46: 1.166 | S46: 1.166 | T46: 0.666 | U46: 1 | V46: 1.333 | W46: 1.6 | X46: 1.25 | Y46: 1.477 | Z46: 1.6 | AA46: 1.6 | AB46: 1.834 | AC46: 1.75 | AD46: 1.6 | AJ46: 9 | AK46: =IF(AK36=AT36,AT46,IF(AK36=BB36,BB46,IF(AK36=BJ36,BJ46,IF(AK36=BR36,BR46,erreur)))) -> 350 | AL46: =IF(AK36=AT36,AU46,IF(AK36=BB36,BC46,IF(AK36=BJ36,BK46,IF(AK36=BR36,BS46,erreur)))) -> 400 | AM46: =IF(AK36=AT36,AV46,IF(AK36=BB36,BD46,IF(AK36=BJ36,BL46,IF(AK36=BR36,BT46,erreur)))) -> 250 | AN46: =IF(AK36=AT36,AW46,IF(AK36=BB36,BE46,IF(AK36=BJ36,BM46,IF(AK36=BR36,BU46,erreur)))) -> 250 | AO46: =IF(AK36=AT36,AX46,IF(AK36=BB36,BF46,IF(AK36=BJ36,BN46,IF(AK36=BR36,BV46,erreur)))) -> 250 | AP46: =IF(AK36=AT36,AY46,IF(AK36=BB36,BG46,IF(AK36=BJ36,BO46,IF(AK36=BR36,BW46,erreur)))) -> 200 | AS46: 9 | AT46: 250 | AU46: 350 | AV46: 400 | AW46: 300 | AX46: 200 | AY46: 200 | BA46: 9 | BB46: 350 | BC46: 400 | BD46: 250 | BE46: 250 | BF46: 250 | BG46: 200 | BI46: 9 | BJ46: 350 | BK46: 400 | BL46: 250 | BM46: 250 | BN46: 250 | BO46: 200 | BQ46: 9 | BR46: 250 | BS46: 350 | BT46: 400 | BU46: 300 | BV46: 200 | BW46: 200
F47: =IF(E25=C26,E64,IF(E25=C27,H64,IF(E25=C28,K64,IF(E25=C29,N64,erreur)))) -> 0.68115 | G47: =IF(E25=C26,F64,IF(E25=C27,I64,IF(E25=C28,L64,IF(E25=C29,O64,erreur)))) -> 0.68115 | H47: 1.3623 | I47: =IF(E25=C26,E78,IF(E25=C27,H78,IF(E25=C28,K78,IF(E25=C29,N78,erreur)))) -> 0.8174 | J47: =IF(E25=C26,F78,IF(E25=C27,I78,IF(E25=C28,L78,IF(E25=C29,O78,erreur)))) -> 0.54495 | K47: 1.36235 | L47: =IF(E25=C26,E92,IF(E25=C27,H92,IF(E25=C28,K92,IF(E25=C29,N92,erreur)))) -> 0.95365 | M47: =IF(E25=C26,F92,IF(E25=C27,I92,IF(E25=C28,L92,IF(E25=C29,O92,erreur)))) -> 0.4087 | N47: 1.36235 | Q47: 0.777 | R47: 1.166 | S47: 1.5 | T47: 1.666 | U47: 2 | V47: 1.333 | W47: 0.94 | X47: 1.6 | Y47: 1.477 | Z47: 1.6 | AA47: 1.834 | AB47: 1.185 | AC47: 1.25 | AD47: 1.834 | AJ47: 10 | AK47: =IF(AK36=AT36,AT47,IF(AK36=BB36,BB47,IF(AK36=BJ36,BJ47,IF(AK36=BR36,BR47,erreur)))) -> 200 | AL47: =IF(AK36=AT36,AU47,IF(AK36=BB36,BC47,IF(AK36=BJ36,BK47,IF(AK36=BR36,BS47,erreur)))) -> 350 | AM47: =IF(AK36=AT36,AV47,IF(AK36=BB36,BD47,IF(AK36=BJ36,BL47,IF(AK36=BR36,BT47,erreur)))) -> 250 | AN47: =IF(AK36=AT36,AW47,IF(AK36=BB36,BE47,IF(AK36=BJ36,BM47,IF(AK36=BR36,BU47,erreur)))) -> 300 | AO47: =IF(AK36=AT36,AX47,IF(AK36=BB36,BF47,IF(AK36=BJ36,BN47,IF(AK36=BR36,BV47,erreur)))) -> 300 | AP47: =IF(AK36=AT36,AY47,IF(AK36=BB36,BG47,IF(AK36=BJ36,BO47,IF(AK36=BR36,BW47,erreur)))) -> 200 | AS47: 10 | AT47: 200 | AU47: 350 | AV47: 250 | AW47: 300 | AX47: 300 | AY47: 200 | BA47: 10 | BB47: 200 | BC47: 350 | BD47: 250 | BE47: 300 | BF47: 300 | BG47: 200 | BI47: 10 | BJ47: 200 | BK47: 350 | BL47: 250 | BM47: 300 | BN47: 300 | BO47: 200 | BQ47: 10 | BR47: 200 | BS47: 350 | BT47: 250 | BU47: 300 | BV47: 300 | BW47: 200
F48: =IF(E25=C26,E65,IF(E25=C27,H65,IF(E25=C28,K65,IF(E25=C29,N65,erreur)))) -> 0.18165 | G48: =IF(E25=C26,F65,IF(E25=C27,I65,IF(E25=C28,L65,IF(E25=C29,O65,erreur)))) -> 0.7266 | H48: 0.90825 | I48: =IF(E25=C26,E79,IF(E25=C27,H79,IF(E25=C28,K79,IF(E25=C29,N79,erreur)))) -> 0.27245 | J48: =IF(E25=C26,F79,IF(E25=C27,I79,IF(E25=C28,L79,IF(E25=C29,O79,erreur)))) -> 0.63575 | K48: 0.9082 | L48: =IF(E25=C26,E93,IF(E25=C27,H93,IF(E25=C28,K93,IF(E25=C29,N93,erreur)))) -> 0.3633 | M48: =IF(E25=C26,F93,IF(E25=C27,I93,IF(E25=C28,L93,IF(E25=C29,O93,erreur)))) -> 0.54495 | N48: 0.90825 | Q48: 0.25 | R48: 1.75 | S48: 1.75 | T48: 1.666 | U48: 1.333 | V48: 1.333 | W48: 1.6 | X48: 1.6 | Y48: 1.477 | Z48: 1.6 | AA48: 1.4 | AB48: 1.185 | AC48: 1.477 | AD48: 1.6 | AJ48: 11 | AK48: =IF(AK36=AT36,AT48,IF(AK36=BB36,BB48,IF(AK36=BJ36,BJ48,IF(AK36=BR36,BR48,erreur)))) -> 100 | AL48: =IF(AK36=AT36,AU48,IF(AK36=BB36,BC48,IF(AK36=BJ36,BK48,IF(AK36=BR36,BS48,erreur)))) -> 150 | AM48: =IF(AK36=AT36,AV48,IF(AK36=BB36,BD48,IF(AK36=BJ36,BL48,IF(AK36=BR36,BT48,erreur)))) -> 150 | AN48: =IF(AK36=AT36,AW48,IF(AK36=BB36,BE48,IF(AK36=BJ36,BM48,IF(AK36=BR36,BU48,erreur)))) -> 150 | AO48: =IF(AK36=AT36,AX48,IF(AK36=BB36,BF48,IF(AK36=BJ36,BN48,IF(AK36=BR36,BV48,erreur)))) -> 100 | AP48: =IF(AK36=AT36,AY48,IF(AK36=BB36,BG48,IF(AK36=BJ36,BO48,IF(AK36=BR36,BW48,erreur)))) -> 100 | AS48: 11 | AT48: 250 | AU48: 350 | AV48: 400 | AW48: 350 | AX48: 150 | AY48: 200 | BA48: 11 | BB48: 100 | BC48: 150 | BD48: 150 | BE48: 150 | BF48: 100 | BG48: 100 | BI48: 11 | BJ48: 200 | BK48: 300 | BL48: 300 | BM48: 300 | BN48: 200 | BO48: 200 | BQ48: 11 | BR48: 250 | BS48: 350 | BT48: 400 | BU48: 350 | BV48: 150 | BW48: 200
F49: =IF(E25=C26,E66,IF(E25=C27,H66,IF(E25=C28,K66,IF(E25=C29,N66,erreur)))) -> 0.4087 | G49: =IF(E25=C26,F66,IF(E25=C27,I66,IF(E25=C28,L66,IF(E25=C29,O66,erreur)))) -> 0.95365 | H49: 1.36235 | I49: =IF(E25=C26,E80,IF(E25=C27,H80,IF(E25=C28,K80,IF(E25=C29,N80,erreur)))) -> 0.68115 | J49: =IF(E25=C26,F80,IF(E25=C27,I80,IF(E25=C28,L80,IF(E25=C29,O80,erreur)))) -> 0.68115 | K49: 1.3623 | L49: =IF(E25=C26,E94,IF(E25=C27,H94,IF(E25=C28,K94,IF(E25=C29,N94,erreur)))) -> 0.95365 | M49: =IF(E25=C26,F94,IF(E25=C27,I94,IF(E25=C28,L94,IF(E25=C29,O94,erreur)))) -> 0.4087 | N49: 1.36235 | Q49: 1.3 | R49: 1.166 | S49: 1.166 | T49: 1 | U49: 0.666 | V49: 1.333 | W49: 1.25 | X49: 0.93 | Y49: 1.185 | Z49: 1.075 | AA49: 0.9 | AB49: 1.185 | AC49: 1.477 | AD49: 0.69
F50: =IF(E25=C26,E67,IF(E25=C27,H67,IF(E25=C28,K67,IF(E25=C29,N67,erreur)))) -> 0.8174 | G50: =IF(E25=C26,F67,IF(E25=C27,I67,IF(E25=C28,L67,IF(E25=C29,O67,erreur)))) -> 0.54495 | H50: 1.36235 | I50: =IF(E25=C26,E81,IF(E25=C27,H81,IF(E25=C28,K81,IF(E25=C29,N81,erreur)))) -> 0.95365 | J50: =IF(E25=C26,F81,IF(E25=C27,I81,IF(E25=C28,L81,IF(E25=C29,O81,erreur)))) -> 0.4087 | K50: 1.36235 | L50: =IF(E25=C26,E95,IF(E25=C27,H95,IF(E25=C28,K95,IF(E25=C29,N95,erreur)))) -> 0.95365 | M50: =IF(E25=C26,F95,IF(E25=C27,I95,IF(E25=C28,L95,IF(E25=C29,O95,erreur)))) -> 0.4087 | N50: 1.36235 | P50: valeur objet max | AI50: pourcentage poste par kit et par place
F51: =IF(E25=C26,E68,IF(E25=C27,H68,IF(E25=C28,K68,IF(E25=C29,N68,erreur)))) -> 0.81415 | G51: =IF(E25=C26,F68,IF(E25=C27,I68,IF(E25=C28,L68,IF(E25=C29,O68,erreur)))) -> 0.54275 | H51: 1.3569 | I51: =IF(E25=C26,E82,IF(E25=C27,H82,IF(E25=C28,K82,IF(E25=C29,N82,erreur)))) -> 0.94985 | J51: =IF(E25=C26,F82,IF(E25=C27,I82,IF(E25=C28,L82,IF(E25=C29,O82,erreur)))) -> 0.40705 | K51: 1.3569 | L51: =IF(E25=C26,E96,IF(E25=C27,H96,IF(E25=C28,K96,IF(E25=C29,N96,erreur)))) -> 0.94985 | M51: =IF(E25=C26,F96,IF(E25=C27,I96,IF(E25=C28,L96,IF(E25=C29,O96,erreur)))) -> 0.40705 | N51: 1.3569 | Q51: =D21 -> 0 | R51: =D21 -> 0 | S51: =D21 -> 0 | T51: =D21 -> 0 | U51: =D21 -> 0 | V51: =D21 -> 0 | W51: =D21 -> 0 | X51: =D21 -> 0 | Y51: =D21 -> 0 | Z51: =D21 -> 0 | AA51: =D21 -> 0 | AB51: =D21 -> 0 | AC51: =D21 -> 0 | AD51: =D21 -> 0 | AJ51: 1 | AK51: =Q9 -> kit 1 | AL51: kit 2A | AM51: kit 2B | AN51: kit 4A | AO51: kit 4B | AP51: kit 5 | AQ51: kit 6A | AR51: kit 6B | AS51: kit 7 | AT51: kit 8 | AU51: kit 9A | AV51: kit 9B | AW51: kit 10 | AX51: kit 11 | AY51: MAX | BA51: 2 | BB51: =Q9 -> kit 1 | BC51: kit 2A | BD51: kit 2B | BE51: kit 4A | BF51: kit 4B | BG51: kit 5 | BH51: kit 6A | BI51: kit 6B | BJ51: kit 7 | BK51: kit 8 | BL51: kit 9A | BM51: kit 9B | BN51: kit 10 | BO51: kit 11 | BP51: MAX | BR51: coefficient multiplicateur par tactique :
F52: =IF(E25=C26,E69,IF(E25=C27,H69,IF(E25=C28,K69,IF(E25=C29,N69,erreur)))) -> 1.63485 | G52: =IF(E25=C26,F69,IF(E25=C27,I69,IF(E25=C28,L69,IF(E25=C29,O69,erreur)))) -> 1.0899 | H52: 2.72475 | I52: =IF(E25=C26,E83,IF(E25=C27,H83,IF(E25=C28,K83,IF(E25=C29,N83,erreur)))) -> 1.90735 | J52: =IF(E25=C26,F83,IF(E25=C27,I83,IF(E25=C28,L83,IF(E25=C29,O83,erreur)))) -> 0.8174 | K52: 2.72475 | L52: =IF(E25=C26,E97,IF(E25=C27,H97,IF(E25=C28,K97,IF(E25=C29,N97,erreur)))) -> 2.4523 | M52: =IF(E25=C26,F97,IF(E25=C27,I97,IF(E25=C28,L97,IF(E25=C29,O97,erreur)))) -> 0.27245 | N52: 2.72475 | Q52: =D21 -> 0 | R52: =D21 -> 0 | S52: =D21 -> 0 | T52: =D21 -> 0 | U52: =D21 -> 0 | V52: =D21 -> 0 | W52: =D21 -> 0 | X52: =D21 -> 0 | Y52: =D21 -> 0 | Z52: =D21 -> 0 | AA52: =D21 -> 0 | AB52: =D21 -> 0 | AC52: =D21 -> 0 | AD52: =D21 -> 0 | AJ52: =AJ167 ->  | AK52: =MIN((S58+AJ31*D19)/AK38,(S59+AJ31*D19)/AL38,(S60+AJ31*D19)/AM38,(S61+AJ31*D19)/AN38,(S62+AJ31*D19)/AO38)*AP38 ->  | AL52: =MIN((T58+AJ31*D19)/AK38,(T59+AJ31*D19)/AL38,(T60+AJ31*D19)/AM38,(T61+AJ31*D19)/AN38,(T62+AJ31*D19)/AO38)*AP38 ->  | AM52: =MIN((U58+AJ31*D19)/AK38,(U59+AJ31*D19)/AL38,(U60+AJ31*D19)/AM38,(U61+AJ31*D19)/AN38,(U62+AJ31*D19)/AO38)*AP38 ->  | AN52: =MIN((V58+AJ31*D19)/AK38,(V59+AJ31*D19)/AL38,(V60+AJ31*D19)/AM38,(V61+AJ31*D19)/AN38,(V62+AJ31*D19)/AO38)*AP38 ->  | AO52: =MIN((W58+AJ31*D19)/AK38,(W59+AJ31*D19)/AL38,(W60+AJ31*D19)/AM38,(W61+AJ31*D19)/AN38,(W62+AJ31*D19)/AO38)*AP38 ->  | AP52: =MIN((X58+AJ31*D19)/AK38,(X59+AJ31*D19)/AL38,(X60+AJ31*D19)/AM38,(X61+AJ31*D19)/AN38,(X62+AJ31*D19)/AO38)*AP38 ->  | AQ52: =MIN((Y58+AJ31*D19)/AK38,(Y59+AJ31*D19)/AL38,(Y60+AJ31*D19)/AM38,(Y61+AJ31*D19)/AN38,(Y62+AJ31*D19)/AO38)*AP38 ->  | AR52: =MIN((Z58+AJ31*D19)/AK38,(Z59+AJ31*D19)/AL38,(Z60+AJ31*D19)/AM38,(Z61+AJ31*D19)/AN38,(Z62+AJ31*D19)/AO38)*AP38 ->  | AS52: =MIN((AA58+AJ31*D19)/AK38,(AA59+AJ31*D19)/AL38,(AA60+AJ31*D19)/AM38,(AA61+AJ31*D19)/AN38,(AA62+AJ31*D19)/AO38)*AP38 ->  | AT52: =MIN((AB58+AJ31*D19)/AK38,(AB59+AJ31*D19)/AL38,(AB60+AJ31*D19)/AM38,(AB61+AJ31*D19)/AN38,(AB62+AJ31*D19)/AO38)*AP38 ->  | AU52: =MIN((AC58+AJ31*D19)/AK38,(AC59+AJ31*D19)/AL38,(AC60+AJ31*D19)/AM38,(AC61+AJ31*D19)/AN38,(AC62+AJ31*D19)/AO38)*AP38 ->  | AV52: =MIN((AD58+AJ31*D19)/AK38,(AD59+AJ31*D19)/AL38,(AD60+AJ31*D19)/AM38,(AD61+AJ31*D19)/AN38,(AD62+AJ31*D19)/AO38)*AP38 ->  | AW52: =MIN((AE58+AJ31*D19)/AK38,(AE59+AJ31*D19)/AL38,(AE60+AJ31*D19)/AM38,(AE61+AJ31*D19)/AN38,(AE62+AJ31*D19)/AO38)*AP38 ->  | AX52: =MIN((AF58+AJ31*D19)/AK38,(AF59+AJ31*D19)/AL38,(AF60+AJ31*D19)/AM38,(AF61+AJ31*D19)/AN38,(AF62+AJ31*D19)/AO38)*AP38 ->  | AY52: =MAX(AK52:AX52) ->  | BA52: =AJ167 ->  | BB52: =MIN((S58+AK31*D19)/AK39,(S59+AK31*D19)/AL39,(S60+AK31*D19)/AM39,(S61+AK31*D19)/AN39,(S62+AK31*D19)/AO39)*AP39 ->  | BC52: =MIN((T58+AK31*D19)/AK39,(T59+AK31*D19)/AL39,(T60+AK31*D19)/AM39,(T61+AK31*D19)/AN39,(T62+AK31*D19)/AO39)*AP39 ->  | BD52: =MIN((U58+AK31*D19)/AK39,(U59+AK31*D19)/AL39,(U60+AK31*D19)/AM39,(U61+AK31*D19)/AN39,(U62+AK31*D19)/AO39)*AP39 ->  | BE52: =MIN((V58+AK31*D19)/AK39,(V59+AK31*D19)/AL39,(V60+AK31*D19)/AM39,(V61+AK31*D19)/AN39,(V62+AK31*D19)/AO39)*AP39 ->  | BF52: =MIN((W58+AK31*D19)/AK39,(W59+AK31*D19)/AL39,(W60+AK31*D19)/AM39,(W61+AK31*D19)/AN39,(W62+AK31*D19)/AO39)*AP39 ->  | BG52: =MIN((X58+AK31*D19)/AK39,(X59+AK31*D19)/AL39,(X60+AK31*D19)/AM39,(X61+AK31*D19)/AN39,(X62+AK31*D19)/AO39)*AP39 ->  | BH52: =MIN((Y58+AK31*D19)/AK39,(Y59+AK31*D19)/AL39,(Y60+AK31*D19)/AM39,(Y61+AK31*D19)/AN39,(Y62+AK31*D19)/AO39)*AP39 ->  | BI52: =MIN((Z58+AK31*D19)/AK39,(Z59+AK31*D19)/AL39,(Z60+AK31*D19)/AM39,(Z61+AK31*D19)/AN39,(Z62+AK31*D19)/AO39)*AP39 ->  | BJ52: =MIN((AA58+AK31*D19)/AK39,(AA59+AK31*D19)/AL39,(AA60+AK31*D19)/AM39,(AA61+AK31*D19)/AN39,(AA62+AK31*D19)/AO39)*AP39 ->  | BK52: =MIN((AB58+AK31*D19)/AK39,(AB59+AK31*D19)/AL39,(AB60+AK31*D19)/AM39,(AB61+AK31*D19)/AN39,(AB62+AK31*D19)/AO39)*AP39 ->  | BL52: =MIN((AC58+AK31*D19)/AK39,(AC59+AK31*D19)/AL39,(AC60+AK31*D19)/AM39,(AC61+AK31*D19)/AN39,(AC62+AK31*D19)/AO39)*AP39 ->  | BM52: =MIN((AD58+AK31*D19)/AK39,(AD59+AK31*D19)/AL39,(AD60+AK31*D19)/AM39,(AD61+AK31*D19)/AN39,(AD62+AK31*D19)/AO39)*AP39 ->  | BN52: =MIN((AE58+AK31*D19)/AK39,(AE59+AK31*D19)/AL39,(AE60+AK31*D19)/AM39,(AE61+AK31*D19)/AN39,(AE62+AK31*D19)/AO39)*AP39 ->  | BO52: =MIN((AF58+AK31*D19)/AK39,(AF59+AK31*D19)/AL39,(AF60+AK31*D19)/AM39,(AF61+AK31*D19)/AN39,(AF62+AK31*D19)/AO39)*AP39 ->  | BP52: =MAX(BB52:BO52) ->  | BS52: =F42 -> 433
F53: =IF(E25=C26,E70,IF(E25=C27,H70,IF(E25=C28,K70,IF(E25=C29,N70,erreur)))) -> 2.04355 | G53: =IF(E25=C26,F70,IF(E25=C27,I70,IF(E25=C28,L70,IF(E25=C29,O70,erreur)))) -> 0.22705 | H53: 2.2706 | I53: =IF(E25=C26,E84,IF(E25=C27,H84,IF(E25=C28,K84,IF(E25=C29,N84,erreur)))) -> 2.04355 | J53: =IF(E25=C26,F84,IF(E25=C27,I84,IF(E25=C28,L84,IF(E25=C29,O84,erreur)))) -> 0.22705 | K53: 2.2706 | L53: =IF(E25=C26,E98,IF(E25=C27,H98,IF(E25=C28,K98,IF(E25=C29,N98,erreur)))) -> 2.04355 | M53: =IF(E25=C26,F98,IF(E25=C27,I98,IF(E25=C28,L98,IF(E25=C29,O98,erreur)))) -> 0.22705 | N53: 2.2706 | Q53: =D21 -> 0 | R53: =D21 -> 0 | S53: =D21 -> 0 | T53: =D21 -> 0 | U53: =D21 -> 0 | V53: =D21 -> 0 | W53: =D21 -> 0 | X53: =D21 -> 0 | Y53: =D21 -> 0 | Z53: =D21 -> 0 | AA53: =D21 -> 0 | AB53: =D21 -> 0 | AC53: =D21 -> 0 | AD53: =D21 -> 0 | AK53: =MIN((S65+AJ31*D19)/AK38,(S66+AJ31*D19)/AL38,(S67+AJ31*D19)/AM38,(S68+AJ31*D19)/AN38,(S69+AJ31*D19)/AO38)*AP38 ->  | AL53: =MIN((T65+AJ31*D19)/AK38,(T66+AJ31*D19)/AL38,(T67+AJ31*D19)/AM38,(T68+AJ31*D19)/AN38,(T69+AJ31*D19)/AO38)*AP38 ->  | AM53: =MIN((U65+AJ31*D19)/AK38,(U66+AJ31*D19)/AL38,(U67+AJ31*D19)/AM38,(U68+AJ31*D19)/AN38,(U69+AJ31*D19)/AO38)*AP38 ->  | AN53: =MIN((V65+AJ31*D19)/AK38,(V66+AJ31*D19)/AL38,(V67+AJ31*D19)/AM38,(V68+AJ31*D19)/AN38,(V69+AJ31*D19)/AO38)*AP38 ->  | AO53: =MIN((W65+AJ31*D19)/AK38,(W66+AJ31*D19)/AL38,(W67+AJ31*D19)/AM38,(W68+AJ31*D19)/AN38,(W69+AJ31*D19)/AO38)*AP38 ->  | AP53: =MIN((X65+AJ31*D19)/AK38,(X66+AJ31*D19)/AL38,(X67+AJ31*D19)/AM38,(X68+AJ31*D19)/AN38,(X69+AJ31*D19)/AO38)*AP38 ->  | AQ53: =MIN((Y65+AJ31*D19)/AK38,(Y66+AJ31*D19)/AL38,(Y67+AJ31*D19)/AM38,(Y68+AJ31*D19)/AN38,(Y69+AJ31*D19)/AO38)*AP38 ->  | AR53: =MIN((Z65+AJ31*D19)/AK38,(Z66+AJ31*D19)/AL38,(Z67+AJ31*D19)/AM38,(Z68+AJ31*D19)/AN38,(Z69+AJ31*D19)/AO38)*AP38 ->  | AS53: =MIN((AA65+AJ31*D19)/AK38,(AA66+AJ31*D19)/AL38,(AA67+AJ31*D19)/AM38,(AA68+AJ31*D19)/AN38,(AA69+AJ31*D19)/AO38)*AP38 ->  | AT53: =MIN((AB65+AJ31*D19)/AK38,(AB66+AJ31*D19)/AL38,(AB67+AJ31*D19)/AM38,(AB68+AJ31*D19)/AN38,(AB69+AJ31*D19)/AO38)*AP38 ->  | AU53: =MIN((AC65+AJ31*D19)/AK38,(AC66+AJ31*D19)/AL38,(AC67+AJ31*D19)/AM38,(AC68+AJ31*D19)/AN38,(AC69+AJ31*D19)/AO38)*AP38 ->  | AV53: =MIN((AD65+AJ31*D19)/AK38,(AD66+AJ31*D19)/AL38,(AD67+AJ31*D19)/AM38,(AD68+AJ31*D19)/AN38,(AD69+AJ31*D19)/AO38)*AP38 ->  | AW53: =MIN((AE65+AJ31*D19)/AK38,(AE66+AJ31*D19)/AL38,(AE67+AJ31*D19)/AM38,(AE68+AJ31*D19)/AN38,(AE69+AJ31*D19)/AO38)*AP38 ->  | AX53: =MIN((AF65+AJ31*D19)/AK38,(AF66+AJ31*D19)/AL38,(AF67+AJ31*D19)/AM38,(AF68+AJ31*D19)/AN38,(AF69+AJ31*D19)/AO38)*AP38 ->  | AY53: =MAX(AK53:AX53) ->  | BB53: =MIN((S65+AK31*D19)/AK39,(S66+AK31*D19)/AL39,(S67+AK31*D19)/AM39,(S68+AK31*D19)/AN39,(S69+AK31*D19)/AO39)*AP39 ->  | BC53: =MIN((T65+AK31*D19)/AK39,(T66+AK31*D19)/AL39,(T67+AK31*D19)/AM39,(T68+AK31*D19)/AN39,(T69+AK31*D19)/AO39)*AP39 ->  | BD53: =MIN((U65+AK31*D19)/AK39,(U66+AK31*D19)/AL39,(U67+AK31*D19)/AM39,(U68+AK31*D19)/AN39,(U69+AK31*D19)/AO39)*AP39 ->  | BE53: =MIN((V65+AK31*D19)/AK39,(V66+AK31*D19)/AL39,(V67+AK31*D19)/AM39,(V68+AK31*D19)/AN39,(V69+AK31*D19)/AO39)*AP39 ->  | BF53: =MIN((W65+AK31*D19)/AK39,(W66+AK31*D19)/AL39,(W67+AK31*D19)/AM39,(W68+AK31*D19)/AN39,(W69+AK31*D19)/AO39)*AP39 ->  | BG53: =MIN((X65+AK31*D19)/AK39,(X66+AK31*D19)/AL39,(X67+AK31*D19)/AM39,(X68+AK31*D19)/AN39,(X69+AK31*D19)/AO39)*AP39 ->  | BH53: =MIN((Y65+AK31*D19)/AK39,(Y66+AK31*D19)/AL39,(Y67+AK31*D19)/AM39,(Y68+AK31*D19)/AN39,(Y69+AK31*D19)/AO39)*AP39 ->  | BI53: =MIN((Z65+AK31*D19)/AK39,(Z66+AK31*D19)/AL39,(Z67+AK31*D19)/AM39,(Z68+AK31*D19)/AN39,(Z69+AK31*D19)/AO39)*AP39 ->  | BJ53: =MIN((AA65+AK31*D19)/AK39,(AA66+AK31*D19)/AL39,(AA67+AK31*D19)/AM39,(AA68+AK31*D19)/AN39,(AA69+AK31*D19)/AO39)*AP39 ->  | BK53: =MIN((AB65+AK31*D19)/AK39,(AB66+AK31*D19)/AL39,(AB67+AK31*D19)/AM39,(AB68+AK31*D19)/AN39,(AB69+AK31*D19)/AO39)*AP39 ->  | BL53: =MIN((AC65+AK31*D19)/AK39,(AC66+AK31*D19)/AL39,(AC67+AK31*D19)/AM39,(AC68+AK31*D19)/AN39,(AC69+AK31*D19)/AO39)*AP39 ->  | BM53: =MIN((AD65+AK31*D19)/AK39,(AD66+AK31*D19)/AL39,(AD67+AK31*D19)/AM39,(AD68+AK31*D19)/AN39,(AD69+AK31*D19)/AO39)*AP39 ->  | BN53: =MIN((AE65+AK31*D19)/AK39,(AE66+AK31*D19)/AL39,(AE67+AK31*D19)/AM39,(AE68+AK31*D19)/AN39,(AE69+AK31*D19)/AO39)*AP39 ->  | BO53: =MIN((AF65+AK31*D19)/AK39,(AF66+AK31*D19)/AL39,(AF67+AK31*D19)/AM39,(AF68+AK31*D19)/AN39,(AF69+AK31*D19)/AO39)*AP39 ->  | BP53: =MAX(BB53:BO53) ->  | BS53: =AP3 -> Defensif
F54: =IF(E25=C26,E71,IF(E25=C27,H71,IF(E25=C28,K71,IF(E25=C29,N71,erreur)))) -> 1.0899 | G54: =IF(E25=C26,F71,IF(E25=C27,I71,IF(E25=C28,L71,IF(E25=C29,O71,erreur)))) -> 0.7266 | H54: 1.8165 | I54: =IF(E25=C26,E85,IF(E25=C27,H85,IF(E25=C28,K85,IF(E25=C29,N85,erreur)))) -> 1.4532 | J54: =IF(E25=C26,F85,IF(E25=C27,I85,IF(E25=C28,L85,IF(E25=C29,O85,erreur)))) -> 0.3633 | K54: 1.8165 | L54: =IF(E25=C26,E99,IF(E25=C27,H99,IF(E25=C28,K99,IF(E25=C29,N99,erreur)))) -> 1.63485 | M54: =IF(E25=C26,F99,IF(E25=C27,I99,IF(E25=C28,L99,IF(E25=C29,O99,erreur)))) -> 0.18165 | N54: 1.8165 | Q54: =D21 -> 0 | R54: =D21 -> 0 | S54: =D21 -> 0 | T54: =D21 -> 0 | U54: =D21 -> 0 | V54: =D21 -> 0 | W54: =D21 -> 0 | X54: =D21 -> 0 | Y54: =D21 -> 0 | Z54: =D21 -> 0 | AA54: =D21 -> 0 | AB54: =D21 -> 0 | AC54: =D21 -> 0 | AD54: =D21 -> 0 | AK54: =MIN((S72+AJ31*D19)/AK38,(S73+AJ31*D19)/AL38,(S74+AJ31*D19)/AM38,(S75+AJ31*D19)/AN38,(S76+AJ31*D19)/AO38)*AP38 ->  | AL54: =MIN((T72+AJ31*D19)/AK38,(T73+AJ31*D19)/AL38,(T74+AJ31*D19)/AM38,(T75+AJ31*D19)/AN38,(T76+AJ31*D19)/AO38)*AP38 ->  | AM54: =MIN((U72+AJ31*D19)/AK38,(U73+AJ31*D19)/AL38,(U74+AJ31*D19)/AM38,(U75+AJ31*D19)/AN38,(U76+AJ31*D19)/AO38)*AP38 ->  | AN54: =MIN((V72+AJ31*D19)/AK38,(V73+AJ31*D19)/AL38,(V74+AJ31*D19)/AM38,(V75+AJ31*D19)/AN38,(V76+AJ31*D19)/AO38)*AP38 ->  | AO54: =MIN((W72+AJ31*D19)/AK38,(W73+AJ31*D19)/AL38,(W74+AJ31*D19)/AM38,(W75+AJ31*D19)/AN38,(W76+AJ31*D19)/AO38)*AP38 ->  | AP54: =MIN((X72+AJ31*D19)/AK38,(X73+AJ31*D19)/AL38,(X74+AJ31*D19)/AM38,(X75+AJ31*D19)/AN38,(X76+AJ31*D19)/AO38)*AP38 ->  | AQ54: =MIN((Y72+AJ31*D19)/AK38,(Y73+AJ31*D19)/AL38,(Y74+AJ31*D19)/AM38,(Y75+AJ31*D19)/AN38,(Y76+AJ31*D19)/AO38)*AP38 ->  | AR54: =MIN((Z72+AJ31*D19)/AK38,(Z73+AJ31*D19)/AL38,(Z74+AJ31*D19)/AM38,(Z75+AJ31*D19)/AN38,(Z76+AJ31*D19)/AO38)*AP38 ->  | AS54: =MIN((AA72+AJ31*D19)/AK38,(AA73+AJ31*D19)/AL38,(AA74+AJ31*D19)/AM38,(AA75+AJ31*D19)/AN38,(AA76+AJ31*D19)/AO38)*AP38 ->  | AT54: =MIN((AB72+AJ31*D19)/AK38,(AB73+AJ31*D19)/AL38,(AB74+AJ31*D19)/AM38,(AB75+AJ31*D19)/AN38,(AB76+AJ31*D19)/AO38)*AP38 ->  | AU54: =MIN((AC72+AJ31*D19)/AK38,(AC73+AJ31*D19)/AL38,(AC74+AJ31*D19)/AM38,(AC75+AJ31*D19)/AN38,(AC76+AJ31*D19)/AO38)*AP38 ->  | AV54: =MIN((AD72+AJ31*D19)/AK38,(AD73+AJ31*D19)/AL38,(AD74+AJ31*D19)/AM38,(AD75+AJ31*D19)/AN38,(AD76+AJ31*D19)/AO38)*AP38 ->  | AW54: =MIN((AE72+AJ31*D19)/AK38,(AE73+AJ31*D19)/AL38,(AE74+AJ31*D19)/AM38,(AE75+AJ31*D19)/AN38,(AE76+AJ31*D19)/AO38)*AP38 ->  | AX54: =MIN((AF72+AJ31*D19)/AK38,(AF73+AJ31*D19)/AL38,(AF74+AJ31*D19)/AM38,(AF75+AJ31*D19)/AN38,(AF76+AJ31*D19)/AO38)*AP38 ->  | BB54: =MIN((S72+AK31*D19)/AK39,(S73+AK31*D19)/AL39,(S74+AK31*D19)/AM39,(S75+AK31*D19)/AN39,(S76+AK31*D19)/AO39)*AP39 ->  | BC54: =MIN((T72+AK31*D19)/AK39,(T73+AK31*D19)/AL39,(T74+AK31*D19)/AM39,(T75+AK31*D19)/AN39,(T76+AK31*D19)/AO39)*AP39 ->  | BD54: =MIN((U72+AK31*D19)/AK39,(U73+AK31*D19)/AL39,(U74+AK31*D19)/AM39,(U75+AK31*D19)/AN39,(U76+AK31*D19)/AO39)*AP39 ->  | BE54: =MIN((V72+AK31*D19)/AK39,(V73+AK31*D19)/AL39,(V74+AK31*D19)/AM39,(V75+AK31*D19)/AN39,(V76+AK31*D19)/AO39)*AP39 ->  | BF54: =MIN((W72+AK31*D19)/AK39,(W73+AK31*D19)/AL39,(W74+AK31*D19)/AM39,(W75+AK31*D19)/AN39,(W76+AK31*D19)/AO39)*AP39 ->  | BG54: =MIN((X72+AK31*D19)/AK39,(X73+AK31*D19)/AL39,(X74+AK31*D19)/AM39,(X75+AK31*D19)/AN39,(X76+AK31*D19)/AO39)*AP39 ->  | BH54: =MIN((Y72+AK31*D19)/AK39,(Y73+AK31*D19)/AL39,(Y74+AK31*D19)/AM39,(Y75+AK31*D19)/AN39,(Y76+AK31*D19)/AO39)*AP39 ->  | BI54: =MIN((Z72+AK31*D19)/AK39,(Z73+AK31*D19)/AL39,(Z74+AK31*D19)/AM39,(Z75+AK31*D19)/AN39,(Z76+AK31*D19)/AO39)*AP39 ->  | BJ54: =MIN((AA72+AK31*D19)/AK39,(AA73+AK31*D19)/AL39,(AA74+AK31*D19)/AM39,(AA75+AK31*D19)/AN39,(AA76+AK31*D19)/AO39)*AP39 ->  | BK54: =MIN((AB72+AK31*D19)/AK39,(AB73+AK31*D19)/AL39,(AB74+AK31*D19)/AM39,(AB75+AK31*D19)/AN39,(AB76+AK31*D19)/AO39)*AP39 ->  | BL54: =MIN((AC72+AK31*D19)/AK39,(AC73+AK31*D19)/AL39,(AC74+AK31*D19)/AM39,(AC75+AK31*D19)/AN39,(AC76+AK31*D19)/AO39)*AP39 ->  | BM54: =MIN((AD72+AK31*D19)/AK39,(AD73+AK31*D19)/AL39,(AD74+AK31*D19)/AM39,(AD75+AK31*D19)/AN39,(AD76+AK31*D19)/AO39)*AP39 ->  | BN54: =MIN((AE72+AK31*D19)/AK39,(AE73+AK31*D19)/AL39,(AE74+AK31*D19)/AM39,(AE75+AK31*D19)/AN39,(AE76+AK31*D19)/AO39)*AP39 ->  | BO54: =MIN((AF72+AK31*D19)/AK39,(AF73+AK31*D19)/AL39,(AF74+AK31*D19)/AM39,(AF75+AK31*D19)/AN39,(AF76+AK31*D19)/AO39)*AP39 ->  | BS54: 1% attaque | BU54: 1% defense | BW54: 1% cumulé
F55: =IF(E25=C26,E72,IF(E25=C27,H72,IF(E25=C28,K72,IF(E25=C29,N72, erreur)))) -> 1.63485 | G55: =IF(E25=C26,F72,IF(E25=C27,I72,IF(E25=C28,L72,IF(E25=C29,O72,erreur)))) -> 1.0899 | H55: 2.72475 | I55: =IF(E25=C26,E86,IF(E25=C27,H86,IF(E25=C28,K86,IF(E25=C29,N86,erreur)))) -> 1.90735 | J55: =IF(E25=C26,F86,IF(E25=C27,I86,IF(E25=C28,L86,IF(E25=C29,O86,erreur)))) -> 0.8174 | K55: 2.72475 | L55: =IF(E25=C26,E100,IF(E25=C27,H100,IF(E25=C28,K100,IF(E25=C29,N100,erreur)))) -> 2.4523 | M55: =IF(E25=C26,F100,IF(E25=C27,I100,IF(E25=C28,L100,IF(E25=C29,O100,erreur)))) -> 0.27245 | N55: 2.72475 | Q55: =D21 -> 0 | R55: =D21 -> 0 | S55: =D21 -> 0 | T55: =D21 -> 0 | U55: =D21 -> 0 | V55: =D21 -> 0 | W55: =D21 -> 0 | X55: =D21 -> 0 | Y55: =D21 -> 0 | Z55: =D21 -> 0 | AA55: =D21 -> 0 | AB55: =D21 -> 0 | AC55: =D21 -> 0 | AD55: =D21 -> 0 | AK55: =MIN((S79+AJ31*D19)/AK38,(S80+AJ31*D19)/AL38,(S81+AJ31*D19)/AM38,(S82+AJ31*D19)/AN38,(S83+AJ31*D19)/AO38)*AP38 ->  | AL55: =MIN((T79+AJ31*D19)/AK38,(T80+AJ31*D19)/AL38,(T81+AJ31*D19)/AM38,(T82+AJ31*D19)/AN38,(T83+AJ31*D19)/AO38)*AP38 ->  | AM55: =MIN((U79+AJ31*D19)/AK38,(U80+AJ31*D19)/AL38,(U81+AJ31*D19)/AM38,(U82+AJ31*D19)/AN38,(U83+AJ31*D19)/AO38)*AP38 ->  | AN55: =MIN((V79+AJ31*D19)/AK38,(V80+AJ31*D19)/AL38,(V81+AJ31*D19)/AM38,(V82+AJ31*D19)/AN38,(V83+AJ31*D19)/AO38)*AP38 ->  | AO55: =MIN((W79+AJ31*D19)/AK38,(W80+AJ31*D19)/AL38,(W81+AJ31*D19)/AM38,(W82+AJ31*D19)/AN38,(W83+AJ31*D19)/AO38)*AP38 ->  | AP55: =MIN((X79+AJ31*D19)/AK38,(X80+AJ31*D19)/AL38,(X81+AJ31*D19)/AM38,(X82+AJ31*D19)/AN38,(X83+AJ31*D19)/AO38)*AP38 ->  | AQ55: =MIN((Y79+AJ31*D19)/AK38,(Y80+AJ31*D19)/AL38,(Y81+AJ31*D19)/AM38,(Y82+AJ31*D19)/AN38,(Y83+AJ31*D19)/AO38)*AP38 ->  | AR55: =MIN((Z79+AJ31*D19)/AK38,(Z80+AJ31*D19)/AL38,(Z81+AJ31*D19)/AM38,(Z82+AJ31*D19)/AN38,(Z83+AJ31*D19)/AO38)*AP38 ->  | AS55: =MIN((AA79+AJ31*D19)/AK38,(AA80+AJ31*D19)/AL38,(AA81+AJ31*D19)/AM38,(AA82+AJ31*D19)/AN38,(AA83+AJ31*D19)/AO38)*AP38 ->  | AT55: =MIN((AB79+AJ31*D19)/AK38,(AB80+AJ31*D19)/AL38,(AB81+AJ31*D19)/AM38,(AB82+AJ31*D19)/AN38,(AB83+AJ31*D19)/AO38)*AP38 ->  | AU55: =MIN((AC79+AJ31*D19)/AK38,(AC80+AJ31*D19)/AL38,(AC81+AJ31*D19)/AM38,(AC82+AJ31*D19)/AN38,(AC83+AJ31*D19)/AO38)*AP38 ->  | AV55: =MIN((AD79+AJ31*D19)/AK38,(AD80+AJ31*D19)/AL38,(AD81+AJ31*D19)/AM38,(AD82+AJ31*D19)/AN38,(AD83+AJ31*D19)/AO38)*AP38 ->  | AW55: =MIN((AE79+AJ31*D19)/AK38,(AE80+AJ31*D19)/AL38,(AE81+AJ31*D19)/AM38,(AE82+AJ31*D19)/AN38,(AE83+AJ31*D19)/AO38)*AP38 ->  | AX55: =MIN((AF79+AJ31*D19)/AK38,(AF80+AJ31*D19)/AL38,(AF81+AJ31*D19)/AM38,(AF82+AJ31*D19)/AN38,(AF83+AJ31*D19)/AO38)*AP38 ->  | BB55: =MIN((S79+AK31*D19)/AK39,(S80+AK31*D19)/AL39,(S81+AK31*D19)/AM39,(S82+AK31*D19)/AN39,(S83+AK31*D19)/AO39)*AP39 ->  | BC55: =MIN((T79+AK31*D19)/AK39,(T80+AK31*D19)/AL39,(T81+AK31*D19)/AM39,(T82+AK31*D19)/AN39,(T83+AK31*D19)/AO39)*AP39 ->  | BD55: =MIN((U79+AK31*D19)/AK39,(U80+AK31*D19)/AL39,(U81+AK31*D19)/AM39,(U82+AK31*D19)/AN39,(U83+AK31*D19)/AO39)*AP39 ->  | BE55: =MIN((V79+AK31*D19)/AK39,(V80+AK31*D19)/AL39,(V81+AK31*D19)/AM39,(V82+AK31*D19)/AN39,(V83+AK31*D19)/AO39)*AP39 ->  | BF55: =MIN((W79+AK31*D19)/AK39,(W80+AK31*D19)/AL39,(W81+AK31*D19)/AM39,(W82+AK31*D19)/AN39,(W83+AK31*D19)/AO39)*AP39 ->  | BG55: =MIN((X79+AK31*D19)/AK39,(X80+AK31*D19)/AL39,(X81+AK31*D19)/AM39,(X82+AK31*D19)/AN39,(X83+AK31*D19)/AO39)*AP39 ->  | BH55: =MIN((Y79+AK31*D19)/AK39,(Y80+AK31*D19)/AL39,(Y81+AK31*D19)/AM39,(Y82+AK31*D19)/AN39,(Y83+AK31*D19)/AO39)*AP39 ->  | BI55: =MIN((Z79+AK31*D19)/AK39,(Z80+AK31*D19)/AL39,(Z81+AK31*D19)/AM39,(Z82+AK31*D19)/AN39,(Z83+AK31*D19)/AO39)*AP39 ->  | BJ55: =MIN((AA79+AK31*D19)/AK39,(AA80+AK31*D19)/AL39,(AA81+AK31*D19)/AM39,(AA82+AK31*D19)/AN39,(AA83+AK31*D19)/AO39)*AP39 ->  | BK55: =MIN((AB79+AK31*D19)/AK39,(AB80+AK31*D19)/AL39,(AB81+AK31*D19)/AM39,(AB82+AK31*D19)/AN39,(AB83+AK31*D19)/AO39)*AP39 ->  | BL55: =MIN((AC79+AK31*D19)/AK39,(AC80+AK31*D19)/AL39,(AC81+AK31*D19)/AM39,(AC82+AK31*D19)/AN39,(AC83+AK31*D19)/AO39)*AP39 ->  | BM55: =MIN((AD79+AK31*D19)/AK39,(AD80+AK31*D19)/AL39,(AD81+AK31*D19)/AM39,(AD82+AK31*D19)/AN39,(AD83+AK31*D19)/AO39)*AP39 ->  | BN55: =MIN((AE79+AK31*D19)/AK39,(AE80+AK31*D19)/AL39,(AE81+AK31*D19)/AM39,(AE82+AK31*D19)/AN39,(AE83+AK31*D19)/AO39)*AP39 ->  | BO55: =MIN((AF79+AK31*D19)/AK39,(AF80+AK31*D19)/AL39,(AF81+AK31*D19)/AM39,(AF82+AK31*D19)/AN39,(AF83+AK31*D19)/AO39)*AP39 ->  | BS55: =IF(E26=C31,F45,IF(E26=C32,I45,IF(E26=C33,L45,erreur))) -> 0.05445 | BU55: =IF(E26=C31,G45,IF(E26=C32,J45,IF(E26=C33,M45,erreur))) -> 2.67025 | BW55: =BS55+BU55 -> 2.7247
E56: tactique selectionnée (ca ne sert a rien) | Q56: caracteristiques joueur avec bonus batiment, objet et kit, sans vitamine. | AK56: =MIN((S86+AJ31*D19)/AK38,(S87+AJ31*D19)/AL38,(S88+AJ31*D19)/AM38,(S89+AJ31*D19)/AN38,(S90+AJ31*D19)/AO38)*AP38 ->  | AL56: =MIN((T86+AJ31*D19)/AK38,(T87+AJ31*D19)/AL38,(T88+AJ31*D19)/AM38,(T89+AJ31*D19)/AN38,(T90+AJ31*D19)/AO38)*AP38 ->  | AM56: =MIN((U86+AJ31*D19)/AK38,(U87+AJ31*D19)/AL38,(U88+AJ31*D19)/AM38,(U89+AJ31*D19)/AN38,(U90+AJ31*D19)/AO38)*AP38 ->  | AN56: =MIN((V86+AJ31*D19)/AK38,(V87+AJ31*D19)/AL38,(V88+AJ31*D19)/AM38,(V89+AJ31*D19)/AN38,(V90+AJ31*D19)/AO38)*AP38 ->  | AO56: =MIN((W86+AJ31*D19)/AK38,(W87+AJ31*D19)/AL38,(W88+AJ31*D19)/AM38,(W89+AJ31*D19)/AN38,(W90+AJ31*D19)/AO38)*AP38 ->  | AP56: =MIN((X86+AJ31*D19)/AK38,(X87+AJ31*D19)/AL38,(X88+AJ31*D19)/AM38,(X89+AJ31*D19)/AN38,(X90+AJ31*D19)/AO38)*AP38 ->  | AQ56: =MIN((Y86+AJ31*D19)/AK38,(Y87+AJ31*D19)/AL38,(Y88+AJ31*D19)/AM38,(Y89+AJ31*D19)/AN38,(Y90+AJ31*D19)/AO38)*AP38 ->  | AR56: =MIN((Z86+AJ31*D19)/AK38,(Z87+AJ31*D19)/AL38,(Z88+AJ31*D19)/AM38,(Z89+AJ31*D19)/AN38,(Z90+AJ31*D19)/AO38)*AP38 ->  | AS56: =MIN((AA86+AJ31*D19)/AK38,(AA87+AJ31*D19)/AL38,(AA88+AJ31*D19)/AM38,(AA89+AJ31*D19)/AN38,(AA90+AJ31*D19)/AO38)*AP38 ->  | AT56: =MIN((AB86+AJ31*D19)/AK38,(AB87+AJ31*D19)/AL38,(AB88+AJ31*D19)/AM38,(AB89+AJ31*D19)/AN38,(AB90+AJ31*D19)/AO38)*AP38 ->  | AU56: =MIN((AC86+AJ31*D19)/AK38,(AC87+AJ31*D19)/AL38,(AC88+AJ31*D19)/AM38,(AC89+AJ31*D19)/AN38,(AC90+AJ31*D19)/AO38)*AP38 ->  | AV56: =MIN((AD86+AJ31*D19)/AK38,(AD87+AJ31*D19)/AL38,(AD88+AJ31*D19)/AM38,(AD89+AJ31*D19)/AN38,(AD90+AJ31*D19)/AO38)*AP38 ->  | AW56: =MIN((AE86+AJ31*D19)/AK38,(AE87+AJ31*D19)/AL38,(AE88+AJ31*D19)/AM38,(AE89+AJ31*D19)/AN38,(AE90+AJ31*D19)/AO38)*AP38 ->  | AX56: =MIN((AF86+AJ31*D19)/AK38,(AF87+AJ31*D19)/AL38,(AF88+AJ31*D19)/AM38,(AF89+AJ31*D19)/AN38,(AF90+AJ31*D19)/AO38)*AP38 ->  | BB56: =MIN((S86+AK31*D19)/AK39,(S87+AK31*D19)/AL39,(S88+AK31*D19)/AM39,(S89+AK31*D19)/AN39,(S90+AK31*D19)/AO39)*AP39 ->  | BC56: =MIN((T86+AK31*D19)/AK39,(T87+AK31*D19)/AL39,(T88+AK31*D19)/AM39,(T89+AK31*D19)/AN39,(T90+AK31*D19)/AO39)*AP39 ->  | BD56: =MIN((U86+AK31*D19)/AK39,(U87+AK31*D19)/AL39,(U88+AK31*D19)/AM39,(U89+AK31*D19)/AN39,(U90+AK31*D19)/AO39)*AP39 ->  | BE56: =MIN((V86+AK31*D19)/AK39,(V87+AK31*D19)/AL39,(V88+AK31*D19)/AM39,(V89+AK31*D19)/AN39,(V90+AK31*D19)/AO39)*AP39 ->  | BF56: =MIN((W86+AK31*D19)/AK39,(W87+AK31*D19)/AL39,(W88+AK31*D19)/AM39,(W89+AK31*D19)/AN39,(W90+AK31*D19)/AO39)*AP39 ->  | BG56: =MIN((X86+AK31*D19)/AK39,(X87+AK31*D19)/AL39,(X88+AK31*D19)/AM39,(X89+AK31*D19)/AN39,(X90+AK31*D19)/AO39)*AP39 ->  | BH56: =MIN((Y86+AK31*D19)/AK39,(Y87+AK31*D19)/AL39,(Y88+AK31*D19)/AM39,(Y89+AK31*D19)/AN39,(Y90+AK31*D19)/AO39)*AP39 ->  | BI56: =MIN((Z86+AK31*D19)/AK39,(Z87+AK31*D19)/AL39,(Z88+AK31*D19)/AM39,(Z89+AK31*D19)/AN39,(Z90+AK31*D19)/AO39)*AP39 ->  | BJ56: =MIN((AA86+AK31*D19)/AK39,(AA87+AK31*D19)/AL39,(AA88+AK31*D19)/AM39,(AA89+AK31*D19)/AN39,(AA90+AK31*D19)/AO39)*AP39 ->  | BK56: =MIN((AB86+AK31*D19)/AK39,(AB87+AK31*D19)/AL39,(AB88+AK31*D19)/AM39,(AB89+AK31*D19)/AN39,(AB90+AK31*D19)/AO39)*AP39 ->  | BL56: =MIN((AC86+AK31*D19)/AK39,(AC87+AK31*D19)/AL39,(AC88+AK31*D19)/AM39,(AC89+AK31*D19)/AN39,(AC90+AK31*D19)/AO39)*AP39 ->  | BM56: =MIN((AD86+AK31*D19)/AK39,(AD87+AK31*D19)/AL39,(AD88+AK31*D19)/AM39,(AD89+AK31*D19)/AN39,(AD90+AK31*D19)/AO39)*AP39 ->  | BN56: =MIN((AE86+AK31*D19)/AK39,(AE87+AK31*D19)/AL39,(AE88+AK31*D19)/AM39,(AE89+AK31*D19)/AN39,(AE90+AK31*D19)/AO39)*AP39 ->  | BO56: =MIN((AF86+AK31*D19)/AK39,(AF87+AK31*D19)/AL39,(AF88+AK31*D19)/AM39,(AF89+AK31*D19)/AN39,(AF90+AK31*D19)/AO39)*AP39 ->  | BS56: =IF(E26=C31,F46,IF(E26=C32,I46,IF(E26=C33,L46,erreur))) -> 0.68115 | BU56: =IF(E26=C31,G46,IF(E26=C32,J46,IF(E26=C33,M46,erreur))) -> 0.68115 | BW56: =BS56+BU56 -> 1.3623
E57: 541 defensif | F57: 541 neutre | G57: 541 offensif | H57: 433 defensif | I57: 433 neutre | J57: 433 offensif | K57: 352 defensif | L57: 352 neutre | M57: 352 offensif | N57: 442 defensif | O57: 442 neutre | P57: 442 offensif | R57: =G11 ->  | S57: =Q9 -> kit 1 | T57: kit 2A | U57: kit 2B | V57: kit 4A | W57: kit 4B | X57: kit 5 | Y57: kit 6A | Z57: kit 6B | AA57: kit 7 | AB57: kit 8 | AC57: kit 9A | AD57: kit 9B | AE57: =AC9 -> kit 10 | AF57: =AD9 -> kit 11 | AK57: =MIN((S93+AJ31*D19)/AK38,(S94+AJ31*D19)/AL38,(S95+AJ31*D19)/AM38,(S96+AJ31*D19)/AN38,(S97+AJ31*D19)/AO38)*AP38 ->  | AL57: =MIN((T93+AJ31*D19)/AK38,(T94+AJ31*D19)/AL38,(T95+AJ31*D19)/AM38,(T96+AJ31*D19)/AN38,(T97+AJ31*D19)/AO38)*AP38 ->  | AM57: =MIN((U93+AJ31*D19)/AK38,(U94+AJ31*D19)/AL38,(U95+AJ31*D19)/AM38,(U96+AJ31*D19)/AN38,(U97+AJ31*D19)/AO38)*AP38 ->  | AN57: =MIN((V93+AJ31*D19)/AK38,(V94+AJ31*D19)/AL38,(V95+AJ31*D19)/AM38,(V96+AJ31*D19)/AN38,(V97+AJ31*D19)/AO38)*AP38 ->  | AO57: =MIN((W93+AJ31*D19)/AK38,(W94+AJ31*D19)/AL38,(W95+AJ31*D19)/AM38,(W96+AJ31*D19)/AN38,(W97+AJ31*D19)/AO38)*AP38 ->  | AP57: =MIN((X93+AJ31*D19)/AK38,(X94+AJ31*D19)/AL38,(X95+AJ31*D19)/AM38,(X96+AJ31*D19)/AN38,(X97+AJ31*D19)/AO38)*AP38 ->  | AQ57: =MIN((Y93+AJ31*D19)/AK38,(Y94+AJ31*D19)/AL38,(Y95+AJ31*D19)/AM38,(Y96+AJ31*D19)/AN38,(Y97+AJ31*D19)/AO38)*AP38 ->  | AR57: =MIN((Z93+AJ31*D19)/AK38,(Z94+AJ31*D19)/AL38,(Z95+AJ31*D19)/AM38,(Z96+AJ31*D19)/AN38,(Z97+AJ31*D19)/AO38)*AP38 ->  | AS57: =MIN((AA93+AJ31*D19)/AK38,(AA94+AJ31*D19)/AL38,(AA95+AJ31*D19)/AM38,(AA96+AJ31*D19)/AN38,(AA97+AJ31*D19)/AO38)*AP38 ->  | AT57: =MIN((AB93+AJ31*D19)/AK38,(AB94+AJ31*D19)/AL38,(AB95+AJ31*D19)/AM38,(AB96+AJ31*D19)/AN38,(AB97+AJ31*D19)/AO38)*AP38 ->  | AU57: =MIN((AC93+AJ31*D19)/AK38,(AC94+AJ31*D19)/AL38,(AC95+AJ31*D19)/AM38,(AC96+AJ31*D19)/AN38,(AC97+AJ31*D19)/AO38)*AP38 ->  | AV57: =MIN((AD93+AJ31*D19)/AK38,(AD94+AJ31*D19)/AL38,(AD95+AJ31*D19)/AM38,(AD96+AJ31*D19)/AN38,(AD97+AJ31*D19)/AO38)*AP38 ->  | AW57: =MIN((AE93+AJ31*D19)/AK38,(AE94+AJ31*D19)/AL38,(AE95+AJ31*D19)/AM38,(AE96+AJ31*D19)/AN38,(AE97+AJ31*D19)/AO38)*AP38 ->  | AX57: =MIN((AF93+AJ31*D19)/AK38,(AF94+AJ31*D19)/AL38,(AF95+AJ31*D19)/AM38,(AF96+AJ31*D19)/AN38,(AF97+AJ31*D19)/AO38)*AP38 ->  | BB57: =MIN((S93+AK31*D19)/AK39,(S94+AK31*D19)/AL39,(S95+AK31*D19)/AM39,(S96+AK31*D19)/AN39,(S97+AK31*D19)/AO39)*AP39 ->  | BC57: =MIN((T93+AK31*D19)/AK39,(T94+AK31*D19)/AL39,(T95+AK31*D19)/AM39,(T96+AK31*D19)/AN39,(T97+AK31*D19)/AO39)*AP39 ->  | BD57: =MIN((U93+AK31*D19)/AK39,(U94+AK31*D19)/AL39,(U95+AK31*D19)/AM39,(U96+AK31*D19)/AN39,(U97+AK31*D19)/AO39)*AP39 ->  | BE57: =MIN((V93+AK31*D19)/AK39,(V94+AK31*D19)/AL39,(V95+AK31*D19)/AM39,(V96+AK31*D19)/AN39,(V97+AK31*D19)/AO39)*AP39 ->  | BF57: =MIN((W93+AK31*D19)/AK39,(W94+AK31*D19)/AL39,(W95+AK31*D19)/AM39,(W96+AK31*D19)/AN39,(W97+AK31*D19)/AO39)*AP39 ->  | BG57: =MIN((X93+AK31*D19)/AK39,(X94+AK31*D19)/AL39,(X95+AK31*D19)/AM39,(X96+AK31*D19)/AN39,(X97+AK31*D19)/AO39)*AP39 ->  | BH57: =MIN((Y93+AK31*D19)/AK39,(Y94+AK31*D19)/AL39,(Y95+AK31*D19)/AM39,(Y96+AK31*D19)/AN39,(Y97+AK31*D19)/AO39)*AP39 ->  | BI57: =MIN((Z93+AK31*D19)/AK39,(Z94+AK31*D19)/AL39,(Z95+AK31*D19)/AM39,(Z96+AK31*D19)/AN39,(Z97+AK31*D19)/AO39)*AP39 ->  | BJ57: =MIN((AA93+AK31*D19)/AK39,(AA94+AK31*D19)/AL39,(AA95+AK31*D19)/AM39,(AA96+AK31*D19)/AN39,(AA97+AK31*D19)/AO39)*AP39 ->  | BK57: =MIN((AB93+AK31*D19)/AK39,(AB94+AK31*D19)/AL39,(AB95+AK31*D19)/AM39,(AB96+AK31*D19)/AN39,(AB97+AK31*D19)/AO39)*AP39 ->  | BL57: =MIN((AC93+AK31*D19)/AK39,(AC94+AK31*D19)/AL39,(AC95+AK31*D19)/AM39,(AC96+AK31*D19)/AN39,(AC97+AK31*D19)/AO39)*AP39 ->  | BM57: =MIN((AD93+AK31*D19)/AK39,(AD94+AK31*D19)/AL39,(AD95+AK31*D19)/AM39,(AD96+AK31*D19)/AN39,(AD97+AK31*D19)/AO39)*AP39 ->  | BN57: =MIN((AE93+AK31*D19)/AK39,(AE94+AK31*D19)/AL39,(AE95+AK31*D19)/AM39,(AE96+AK31*D19)/AN39,(AE97+AK31*D19)/AO39)*AP39 ->  | BO57: =MIN((AF93+AK31*D19)/AK39,(AF94+AK31*D19)/AL39,(AF95+AK31*D19)/AM39,(AF96+AK31*D19)/AN39,(AF97+AK31*D19)/AO39)*AP39 ->  | BS57: =IF(E26=C31,F47,IF(E26=C32,I47,IF(E26=C33,L47,erreur))) -> 0.68115 | BU57: =IF(E26=C31,G47,IF(E26=C32,J47,IF(E26=C33,M47,erreur))) -> 0.68115 | BW57: 1.3623
E58: =AND(E25=C26,E26=C31) -> FALSE | F58: =AND(E25=C26,E26=C32) -> FALSE | G58: =AND(E25=C26,E26=C33) -> FALSE | H58: =AND(E25=C27,E26=C31) -> TRUE | I58: =AND(E25=C27,E26=C32) -> FALSE | J58: =AND(E25=C27,E26=C33) -> FALSE | K58: =AND(E25=C28,E26=C31) -> FALSE | L58: =AND(E25=C28,E26=C32) -> FALSE | M58: =AND(E25=C28,E26=C33) -> FALSE | N58: =AND(E25=C29,E26=C31) -> FALSE | O58: =AND(E25=C29,E26=C32) -> FALSE | P58: =AND(E25=D29,E26=C33) -> FALSE | R58: =H11+AH39+D16+D17+D21+D19*AG8 ->  | S58: =Q10+R58 ->  | T58: =R58+R10 ->  | U58: =R58+S10 ->  | V58: =R58+T10 ->  | W58: =R58+U10 ->  | X58: =R58+V10 ->  | Y58: =R58+W10 ->  | Z58: =R58+X10 ->  | AA58: =R58+Y10 ->  | AB58: =R58+Z10 ->  | AC58: =R58+AA10 ->  | AD58: =R58+AB10 ->  | AE58: =R58+AC10 ->  | AF58: =R58+AD10 ->  | AK58: =MIN((S100+AJ31*D19)/AK38,(S101+AJ31*D19)/AL38,(S102+AJ31*D19)/AM38,(S103+AJ31*D19)/AN38,(S104+AJ31*D19)/AO38)*AP38 ->  | AL58: =MIN((T100+AJ31*D19)/AK38,(T101+AJ31*D19)/AL38,(T102+AJ31*D19)/AM38,(T103+AJ31*D19)/AN38,(T104+AJ31*D19)/AO38)*AP38 ->  | AM58: =MIN((U100+AJ31*D19)/AK38,(U101+AJ31*D19)/AL38,(U102+AJ31*D19)/AM38,(U103+AJ31*D19)/AN38,(U104+AJ31*D19)/AO38)*AP38 ->  | AN58: =MIN((V100+AJ31*D19)/AK38,(V101+AJ31*D19)/AL38,(V102+AJ31*D19)/AM38,(V103+AJ31*D19)/AN38,(V104+AJ31*D19)/AO38)*AP38 ->  | AO58: =MIN((W100+AJ31*D19)/AK38,(W101+AJ31*D19)/AL38,(W102+AJ31*D19)/AM38,(W103+AJ31*D19)/AN38,(W104+AJ31*D19)/AO38)*AP38 ->  | AP58: =MIN((X100+AJ31*D19)/AK38,(X101+AJ31*D19)/AL38,(X102+AJ31*D19)/AM38,(X103+AJ31*D19)/AN38,(X104+AJ31*D19)/AO38)*AP38 ->  | AQ58: =MIN((Y100+AJ31*D19)/AK38,(Y101+AJ31*D19)/AL38,(Y102+AJ31*D19)/AM38,(Y103+AJ31*D19)/AN38,(Y104+AJ31*D19)/AO38)*AP38 ->  | AR58: =MIN((Z100+AJ31*D19)/AK38,(Z101+AJ31*D19)/AL38,(Z102+AJ31*D19)/AM38,(Z103+AJ31*D19)/AN38,(Z104+AJ31*D19)/AO38)*AP38 ->  | AS58: =MIN((AA100+AJ31*D19)/AK38,(AA101+AJ31*D19)/AL38,(AA102+AJ31*D19)/AM38,(AA103+AJ31*D19)/AN38,(AA104+AJ31*D19)/AO38)*AP38 ->  | AT58: =MIN((AB100+AJ31*D19)/AK38,(AB101+AJ31*D19)/AL38,(AB102+AJ31*D19)/AM38,(AB103+AJ31*D19)/AN38,(AB104+AJ31*D19)/AO38)*AP38 ->  | AU58: =MIN((AC100+AJ31*D19)/AK38,(AC101+AJ31*D19)/AL38,(AC102+AJ31*D19)/AM38,(AC103+AJ31*D19)/AN38,(AC104+AJ31*D19)/AO38)*AP38 ->  | AV58: =MIN((AD100+AJ31*D19)/AK38,(AD101+AJ31*D19)/AL38,(AD102+AJ31*D19)/AM38,(AD103+AJ31*D19)/AN38,(AD104+AJ31*D19)/AO38)*AP38 ->  | AW58: =MIN((AE100+AJ31*D19)/AK38,(AE101+AJ31*D19)/AL38,(AE102+AJ31*D19)/AM38,(AE103+AJ31*D19)/AN38,(AE104+AJ31*D19)/AO38)*AP38 ->  | AX58: =MIN((AF100+AJ31*D19)/AK38,(AF101+AJ31*D19)/AL38,(AF102+AJ31*D19)/AM38,(AF103+AJ31*D19)/AN38,(AF104+AJ31*D19)/AO38)*AP38 ->  | BB58: =MIN((S100+AK31*D19)/AK39,(S101+AK31*D19)/AL39,(S102+AK31*D19)/AM39,(S103+AK31*D19)/AN39,(S104+AK31*D19)/AO39)*AP39 ->  | BC58: =MIN((T100+AK31*D19)/AK39,(T101+AK31*D19)/AL39,(T102+AK31*D19)/AM39,(T103+AK31*D19)/AN39,(T104+AK31*D19)/AO39)*AP39 ->  | BD58: =MIN((U100+AK31*D19)/AK39,(U101+AK31*D19)/AL39,(U102+AK31*D19)/AM39,(U103+AK31*D19)/AN39,(U104+AK31*D19)/AO39)*AP39 ->  | BE58: =MIN((V100+AK31*D19)/AK39,(V101+AK31*D19)/AL39,(V102+AK31*D19)/AM39,(V103+AK31*D19)/AN39,(V104+AK31*D19)/AO39)*AP39 ->  | BF58: =MIN((W100+AK31*D19)/AK39,(W101+AK31*D19)/AL39,(W102+AK31*D19)/AM39,(W103+AK31*D19)/AN39,(W104+AK31*D19)/AO39)*AP39 ->  | BG58: =MIN((X100+AK31*D19)/AK39,(X101+AK31*D19)/AL39,(X102+AK31*D19)/AM39,(X103+AK31*D19)/AN39,(X104+AK31*D19)/AO39)*AP39 ->  | BH58: =MIN((Y100+AK31*D19)/AK39,(Y101+AK31*D19)/AL39,(Y102+AK31*D19)/AM39,(Y103+AK31*D19)/AN39,(Y104+AK31*D19)/AO39)*AP39 ->  | BI58: =MIN((Z100+AK31*D19)/AK39,(Z101+AK31*D19)/AL39,(Z102+AK31*D19)/AM39,(Z103+AK31*D19)/AN39,(Z104+AK31*D19)/AO39)*AP39 ->  | BJ58: =MIN((AA100+AK31*D19)/AK39,(AA101+AK31*D19)/AL39,(AA102+AK31*D19)/AM39,(AA103+AK31*D19)/AN39,(AA104+AK31*D19)/AO39)*AP39 ->  | BK58: =MIN((AB100+AK31*D19)/AK39,(AB101+AK31*D19)/AL39,(AB102+AK31*D19)/AM39,(AB103+AK31*D19)/AN39,(AB104+AK31*D19)/AO39)*AP39 ->  | BL58: =MIN((AC100+AK31*D19)/AK39,(AC101+AK31*D19)/AL39,(AC102+AK31*D19)/AM39,(AC103+AK31*D19)/AN39,(AC104+AK31*D19)/AO39)*AP39 ->  | BM58: =MIN((AD100+AK31*D19)/AK39,(AD101+AK31*D19)/AL39,(AD102+AK31*D19)/AM39,(AD103+AK31*D19)/AN39,(AD104+AK31*D19)/AO39)*AP39 ->  | BN58: =MIN((AE100+AK31*D19)/AK39,(AE101+AK31*D19)/AL39,(AE102+AK31*D19)/AM39,(AE103+AK31*D19)/AN39,(AE104+AK31*D19)/AO39)*AP39 ->  | BO58: =MIN((AF100+AK31*D19)/AK39,(AF101+AK31*D19)/AL39,(AF102+AK31*D19)/AM39,(AF103+AK31*D19)/AN39,(AF104+AK31*D19)/AO39)*AP39 ->  | BS58: =IF(E26=C31,F48,IF(E26=C32,I48,IF(E26=C33,L48,erreur))) -> 0.18165 | BU58: =IF(E26=C31,G48,IF(E26=C32,J48,IF(E26=C33,M48,erreur))) -> 0.7266 | BW58: 0.90825
D59: coefficient stat brute pour 1% / tactique | R59: =I11+AH40+D15+D17+D21+D19*AG8 ->  | S59: =Q11+R59 ->  | T59: =R59+R11 ->  | U59: =R59+S11 ->  | V59: =R59+T11 ->  | W59: =R59+U11 ->  | X59: =R59+V11 ->  | Y59: =R59+W11 ->  | Z59: =R59+X11 ->  | AA59: =R59+Y11 ->  | AB59: =R59+Z11 ->  | AC59: =R59+AA11 ->  | AD59: =R59+AB11 ->  | AE59: =R59+AC11 ->  | AF59: =R59+AD11 ->  | AK59: =MIN((S107+AJ31*D19)/AK38,(S108+AJ31*D19)/AL38,(S109+AJ31*D19)/AM38,(S110+AJ31*D19)/AN38,(S111+AJ31*D19)/AO38)*AP38 ->  | AL59: =MIN((T107+AJ31*D19)/AK38,(T108+AJ31*D19)/AL38,(T109+AJ31*D19)/AM38,(T110+AJ31*D19)/AN38,(T111+AJ31*D19)/AO38)*AP38 ->  | AM59: =MIN((U107+AJ31*D19)/AK38,(U108+AJ31*D19)/AL38,(U109+AJ31*D19)/AM38,(U110+AJ31*D19)/AN38,(U111+AJ31*D19)/AO38)*AP38 ->  | AN59: =MIN((V107+AJ31*D19)/AK38,(V108+AJ31*D19)/AL38,(V109+AJ31*D19)/AM38,(V110+AJ31*D19)/AN38,(V111+AJ31*D19)/AO38)*AP38 ->  | AO59: =MIN((W107+AJ31*D19)/AK38,(W108+AJ31*D19)/AL38,(W109+AJ31*D19)/AM38,(W110+AJ31*D19)/AN38,(W111+AJ31*D19)/AO38)*AP38 ->  | AP59: =MIN((X107+AJ31*D19)/AK38,(X108+AJ31*D19)/AL38,(X109+AJ31*D19)/AM38,(X110+AJ31*D19)/AN38,(X111+AJ31*D19)/AO38)*AP38 ->  | AQ59: =MIN((Y107+AJ31*D19)/AK38,(Y108+AJ31*D19)/AL38,(Y109+AJ31*D19)/AM38,(Y110+AJ31*D19)/AN38,(Y111+AJ31*D19)/AO38)*AP38 ->  | AR59: =MIN((Z107+AJ31*D19)/AK38,(Z108+AJ31*D19)/AL38,(Z109+AJ31*D19)/AM38,(Z110+AJ31*D19)/AN38,(Z111+AJ31*D19)/AO38)*AP38 ->  | AS59: =MIN((AA107+AJ31*D19)/AK38,(AA108+AJ31*D19)/AL38,(AA109+AJ31*D19)/AM38,(AA110+AJ31*D19)/AN38,(AA111+AJ31*D19)/AO38)*AP38 ->  | AT59: =MIN((AB107+AJ31*D19)/AK38,(AB108+AJ31*D19)/AL38,(AB109+AJ31*D19)/AM38,(AB110+AJ31*D19)/AN38,(AB111+AJ31*D19)/AO38)*AP38 ->  | AU59: =MIN((AC107+AJ31*D19)/AK38,(AC108+AJ31*D19)/AL38,(AC109+AJ31*D19)/AM38,(AC110+AJ31*D19)/AN38,(AC111+AJ31*D19)/AO38)*AP38 ->  | AV59: =MIN((AD107+AJ31*D19)/AK38,(AD108+AJ31*D19)/AL38,(AD109+AJ31*D19)/AM38,(AD110+AJ31*D19)/AN38,(AD111+AJ31*D19)/AO38)*AP38 ->  | AW59: =MIN((AE107+AJ31*D19)/AK38,(AE108+AJ31*D19)/AL38,(AE109+AJ31*D19)/AM38,(AE110+AJ31*D19)/AN38,(AE111+AJ31*D19)/AO38)*AP38 ->  | AX59: =MIN((AF107+AJ31*D19)/AK38,(AF108+AJ31*D19)/AL38,(AF109+AJ31*D19)/AM38,(AF110+AJ31*D19)/AN38,(AF111+AJ31*D19)/AO38)*AP38 ->  | BB59: =MIN((S107+AK31*D19)/AK39,(S108+AK31*D19)/AL39,(S109+AK31*D19)/AM39,(S110+AK31*D19)/AN39,(S111+AK31*D19)/AO39)*AP39 ->  | BC59: =MIN((T107+AK31*D19)/AK39,(T108+AK31*D19)/AL39,(T109+AK31*D19)/AM39,(T110+AK31*D19)/AN39,(T111+AK31*D19)/AO39)*AP39 ->  | BD59: =MIN((U107+AK31*D19)/AK39,(U108+AK31*D19)/AL39,(U109+AK31*D19)/AM39,(U110+AK31*D19)/AN39,(U111+AK31*D19)/AO39)*AP39 ->  | BE59: =MIN((V107+AK31*D19)/AK39,(V108+AK31*D19)/AL39,(V109+AK31*D19)/AM39,(V110+AK31*D19)/AN39,(V111+AK31*D19)/AO39)*AP39 ->  | BF59: =MIN((W107+AK31*D19)/AK39,(W108+AK31*D19)/AL39,(W109+AK31*D19)/AM39,(W110+AK31*D19)/AN39,(W111+AK31*D19)/AO39)*AP39 ->  | BG59: =MIN((X107+AK31*D19)/AK39,(X108+AK31*D19)/AL39,(X109+AK31*D19)/AM39,(X110+AK31*D19)/AN39,(X111+AK31*D19)/AO39)*AP39 ->  | BH59: =MIN((Y107+AK31*D19)/AK39,(Y108+AK31*D19)/AL39,(Y109+AK31*D19)/AM39,(Y110+AK31*D19)/AN39,(Y111+AK31*D19)/AO39)*AP39 ->  | BI59: =MIN((Z107+AK31*D19)/AK39,(Z108+AK31*D19)/AL39,(Z109+AK31*D19)/AM39,(Z110+AK31*D19)/AN39,(Z111+AK31*D19)/AO39)*AP39 ->  | BJ59: =MIN((AA107+AK31*D19)/AK39,(AA108+AK31*D19)/AL39,(AA109+AK31*D19)/AM39,(AA110+AK31*D19)/AN39,(AA111+AK31*D19)/AO39)*AP39 ->  | BK59: =MIN((AB107+AK31*D19)/AK39,(AB108+AK31*D19)/AL39,(AB109+AK31*D19)/AM39,(AB110+AK31*D19)/AN39,(AB111+AK31*D19)/AO39)*AP39 ->  | BL59: =MIN((AC107+AK31*D19)/AK39,(AC108+AK31*D19)/AL39,(AC109+AK31*D19)/AM39,(AC110+AK31*D19)/AN39,(AC111+AK31*D19)/AO39)*AP39 ->  | BM59: =MIN((AD107+AK31*D19)/AK39,(AD108+AK31*D19)/AL39,(AD109+AK31*D19)/AM39,(AD110+AK31*D19)/AN39,(AD111+AK31*D19)/AO39)*AP39 ->  | BN59: =MIN((AE107+AK31*D19)/AK39,(AE108+AK31*D19)/AL39,(AE109+AK31*D19)/AM39,(AE110+AK31*D19)/AN39,(AE111+AK31*D19)/AO39)*AP39 ->  | BO59: =MIN((AF107+AK31*D19)/AK39,(AF108+AK31*D19)/AL39,(AF109+AK31*D19)/AM39,(AF110+AK31*D19)/AN39,(AF111+AK31*D19)/AO39)*AP39 ->  | BS59: =IF(E26=C31,F49,IF(E26=C32,I49,IF(E26=C33,L49,erreur))) -> 0.4087 | BU59: =IF(E26=C31,G49,IF(E26=C32,J49,IF(E26=C33,M49,erreur))) -> 0.95365 | BW59: 1.36235
E60: 541 défensif | H60: 433 défensif | K60: 352 défensif | N60: 442 défensif | R60: =J11+AH41+D15+D17+D21+D19*AG8 ->  | S60: =Q12+R60 ->  | T60: =R60+R12 ->  | U60: =R60+S12 ->  | V60: =R60+T12 ->  | W60: =R60+U12 ->  | X60: =R60+V12 ->  | Y60: =R60+W12 ->  | Z60: =R60+X12 ->  | AA60: =R60+Y12 ->  | AB60: =R60+Z12 ->  | AC60: =R60+AA12 ->  | AD60: =R60+AB12 ->  | AE60: =R60+AC12 ->  | AF60: =R60+AD12 ->  | AK60: =MIN((S114+AJ31*D19)/AK38,(S115+AJ31*D19)/AL38,(S116+AJ31*D19)/AM38,(S117+AJ31*D19)/AN38,(S118+AJ31*D19)/AO38)*AP38 ->  | AL60: =MIN((T114+AJ31*D19)/AK38,(T115+AJ31*D19)/AL38,(T116+AJ31*D19)/AM38,(T117+AJ31*D19)/AN38,(T118+AJ31*D19)/AO38)*AP38 ->  | AM60: =MIN((U114+AJ31*D19)/AK38,(U115+AJ31*D19)/AL38,(U116+AJ31*D19)/AM38,(U117+AJ31*D19)/AN38,(U118+AJ31*D19)/AO38)*AP38 ->  | AN60: =MIN((V114+AJ31*D19)/AK38,(V115+AJ31*D19)/AL38,(V116+AJ31*D19)/AM38,(V117+AJ31*D19)/AN38,(V118+AJ31*D19)/AO38)*AP38 ->  | AO60: =MIN((W114+AJ31*D19)/AK38,(W115+AJ31*D19)/AL38,(W116+AJ31*D19)/AM38,(W117+AJ31*D19)/AN38,(W118+AJ31*D19)/AO38)*AP38 ->  | AP60: =MIN((X114+AJ31*D19)/AK38,(X115+AJ31*D19)/AL38,(X116+AJ31*D19)/AM38,(X117+AJ31*D19)/AN38,(X118+AJ31*D19)/AO38)*AP38 ->  | AQ60: =MIN((Y114+AJ31*D19)/AK38,(Y115+AJ31*D19)/AL38,(Y116+AJ31*D19)/AM38,(Y117+AJ31*D19)/AN38,(Y118+AJ31*D19)/AO38)*AP38 ->  | AR60: =MIN((Z114+AJ31*D19)/AK38,(Z115+AJ31*D19)/AL38,(Z116+AJ31*D19)/AM38,(Z117+AJ31*D19)/AN38,(Z118+AJ31*D19)/AO38)*AP38 ->  | AS60: =MIN((AA114+AJ31*D19)/AK38,(AA115+AJ31*D19)/AL38,(AA116+AJ31*D19)/AM38,(AA117+AJ31*D19)/AN38,(AA118+AJ31*D19)/AO38)*AP38 ->  | AT60: =MIN((AB114+AJ31*D19)/AK38,(AB115+AJ31*D19)/AL38,(AB116+AJ31*D19)/AM38,(AB117+AJ31*D19)/AN38,(AB118+AJ31*D19)/AO38)*AP38 ->  | AU60: =MIN((AC114+AJ31*D19)/AK38,(AC115+AJ31*D19)/AL38,(AC116+AJ31*D19)/AM38,(AC117+AJ31*D19)/AN38,(AC118+AJ31*D19)/AO38)*AP38 ->  | AV60: =MIN((AD114+AJ31*D19)/AK38,(AD115+AJ31*D19)/AL38,(AD116+AJ31*D19)/AM38,(AD117+AJ31*D19)/AN38,(AD118+AJ31*D19)/AO38)*AP38 ->  | AW60: =MIN((AE114+AJ31*D19)/AK38,(AE115+AJ31*D19)/AL38,(AE116+AJ31*D19)/AM38,(AE117+AJ31*D19)/AN38,(AE118+AJ31*D19)/AO38)*AP38 ->  | AX60: =MIN((AF114+AJ31*D19)/AK38,(AF115+AJ31*D19)/AL38,(AF116+AJ31*D19)/AM38,(AF117+AJ31*D19)/AN38,(AF118+AJ31*D19)/AO38)*AP38 ->  | BB60: =MIN((S114+AK31*D19)/AK39,(S115+AK31*D19)/AL39,(S116+AK31*D19)/AM39,(S117+AK31*D19)/AN39,(S118+AK31*D19)/AO39)*AP39 ->  | BC60: =MIN((T114+AK31*D19)/AK39,(T115+AK31*D19)/AL39,(T116+AK31*D19)/AM39,(T117+AK31*D19)/AN39,(T118+AK31*D19)/AO39)*AP39 ->  | BD60: =MIN((U114+AK31*D19)/AK39,(U115+AK31*D19)/AL39,(U116+AK31*D19)/AM39,(U117+AK31*D19)/AN39,(U118+AK31*D19)/AO39)*AP39 ->  | BE60: =MIN((V114+AK31*D19)/AK39,(V115+AK31*D19)/AL39,(V116+AK31*D19)/AM39,(V117+AK31*D19)/AN39,(V118+AK31*D19)/AO39)*AP39 ->  | BF60: =MIN((W114+AK31*D19)/AK39,(W115+AK31*D19)/AL39,(W116+AK31*D19)/AM39,(W117+AK31*D19)/AN39,(W118+AK31*D19)/AO39)*AP39 ->  | BG60: =MIN((X114+AK31*D19)/AK39,(X115+AK31*D19)/AL39,(X116+AK31*D19)/AM39,(X117+AK31*D19)/AN39,(X118+AK31*D19)/AO39)*AP39 ->  | BH60: =MIN((Y114+AK31*D19)/AK39,(Y115+AK31*D19)/AL39,(Y116+AK31*D19)/AM39,(Y117+AK31*D19)/AN39,(Y118+AK31*D19)/AO39)*AP39 ->  | BI60: =MIN((Z114+AK31*D19)/AK39,(Z115+AK31*D19)/AL39,(Z116+AK31*D19)/AM39,(Z117+AK31*D19)/AN39,(Z118+AK31*D19)/AO39)*AP39 ->  | BJ60: =MIN((AA114+AK31*D19)/AK39,(AA115+AK31*D19)/AL39,(AA116+AK31*D19)/AM39,(AA117+AK31*D19)/AN39,(AA118+AK31*D19)/AO39)*AP39 ->  | BK60: =MIN((AB114+AK31*D19)/AK39,(AB115+AK31*D19)/AL39,(AB116+AK31*D19)/AM39,(AB117+AK31*D19)/AN39,(AB118+AK31*D19)/AO39)*AP39 ->  | BL60: =MIN((AC114+AK31*D19)/AK39,(AC115+AK31*D19)/AL39,(AC116+AK31*D19)/AM39,(AC117+AK31*D19)/AN39,(AC118+AK31*D19)/AO39)*AP39 ->  | BM60: =MIN((AD114+AK31*D19)/AK39,(AD115+AK31*D19)/AL39,(AD116+AK31*D19)/AM39,(AD117+AK31*D19)/AN39,(AD118+AK31*D19)/AO39)*AP39 ->  | BN60: =MIN((AE114+AK31*D19)/AK39,(AE115+AK31*D19)/AL39,(AE116+AK31*D19)/AM39,(AE117+AK31*D19)/AN39,(AE118+AK31*D19)/AO39)*AP39 ->  | BO60: =MIN((AF114+AK31*D19)/AK39,(AF115+AK31*D19)/AL39,(AF116+AK31*D19)/AM39,(AF117+AK31*D19)/AN39,(AF118+AK31*D19)/AO39)*AP39 ->  | BS60: =IF(E26=C31,F50,IF(E26=C32,I50,IF(E26=C33,L50,erreur))) -> 0.8174 | BU60: =IF(E26=C31,G50,IF(E26=C32,J50,IF(E26=C33,M50,erreur))) -> 0.54495 | BW60: 1.36235
E61: 1% attaque | F61: 1% defense | G61: 1% cumulé | H61: 1% attaque | I61: 1% defense | J61: 1% cumulé | K61: 1% attaque | L61: 1% defense | M61: 1% cumulé | N61: 1% attaque | O61: 1% defense | P61: 1% cumulé | R61: =K11+AH42+D16+D17+D21+D19*AG8 ->  | S61: =Q13+R61 ->  | T61: =R61+R13 ->  | U61: =R61+S13 ->  | V61: =R61+T13 ->  | W61: =R61+U13 ->  | X61: =R61+V13 ->  | Y61: =R61+W13 ->  | Z61: =R61+X13 ->  | AA61: =R61+Y13 ->  | AB61: =R61+Z13 ->  | AC61: =R61+AA13 ->  | AD61: =R61+AB13 ->  | AE61: =R61+AC13 ->  | AF61: =R61+AD13 ->  | AK61: =MIN((S121+AJ31*D19)/AK38,(S122+AJ31*D19)/AL38,(S123+AJ31*D19)/AM38,(S124+AJ31*D19)/AN38,(S125+AJ31*D19)/AO38)*AP38 ->  | AL61: =MIN((T121+AJ31*D19)/AK38,(T122+AJ31*D19)/AL38,(T123+AJ31*D19)/AM38,(T124+AJ31*D19)/AN38,(T125+AJ31*D19)/AO38)*AP38 ->  | AM61: =MIN((U121+AJ31*D19)/AK38,(U122+AJ31*D19)/AL38,(U123+AJ31*D19)/AM38,(U124+AJ31*D19)/AN38,(U125+AJ31*D19)/AO38)*AP38 ->  | AN61: =MIN((V121+AJ31*D19)/AK38,(V122+AJ31*D19)/AL38,(V123+AJ31*D19)/AM38,(V124+AJ31*D19)/AN38,(V125+AJ31*D19)/AO38)*AP38 ->  | AO61: =MIN((W121+AJ31*D19)/AK38,(W122+AJ31*D19)/AL38,(W123+AJ31*D19)/AM38,(W124+AJ31*D19)/AN38,(W125+AJ31*D19)/AO38)*AP38 ->  | AP61: =MIN((X121+AJ31*D19)/AK38,(X122+AJ31*D19)/AL38,(X123+AJ31*D19)/AM38,(X124+AJ31*D19)/AN38,(X125+AJ31*D19)/AO38)*AP38 ->  | AQ61: =MIN((Y121+AJ31*D19)/AK38,(Y122+AJ31*D19)/AL38,(Y123+AJ31*D19)/AM38,(Y124+AJ31*D19)/AN38,(Y125+AJ31*D19)/AO38)*AP38 ->  | AR61: =MIN((Z121+AJ31*D19)/AK38,(Z122+AJ31*D19)/AL38,(Z123+AJ31*D19)/AM38,(Z124+AJ31*D19)/AN38,(Z125+AJ31*D19)/AO38)*AP38 ->  | AS61: =MIN((AA121+AJ31*D19)/AK38,(AA122+AJ31*D19)/AL38,(AA123+AJ31*D19)/AM38,(AA124+AJ31*D19)/AN38,(AA125+AJ31*D19)/AO38)*AP38 ->  | AT61: =MIN((AB121+AJ31*D19)/AK38,(AB122+AJ31*D19)/AL38,(AB123+AJ31*D19)/AM38,(AB124+AJ31*D19)/AN38,(AB125+AJ31*D19)/AO38)*AP38 ->  | AU61: =MIN((AC121+AJ31*D19)/AK38,(AC122+AJ31*D19)/AL38,(AC123+AJ31*D19)/AM38,(AC124+AJ31*D19)/AN38,(AC125+AJ31*D19)/AO38)*AP38 ->  | AV61: =MIN((AD121+AJ31*D19)/AK38,(AD122+AJ31*D19)/AL38,(AD123+AJ31*D19)/AM38,(AD124+AJ31*D19)/AN38,(AD125+AJ31*D19)/AO38)*AP38 ->  | AW61: =MIN((AE121+AJ31*D19)/AK38,(AE122+AJ31*D19)/AL38,(AE123+AJ31*D19)/AM38,(AE124+AJ31*D19)/AN38,(AE125+AJ31*D19)/AO38)*AP38 ->  | AX61: =MIN((AF121+AJ31*D19)/AK38,(AF122+AJ31*D19)/AL38,(AF123+AJ31*D19)/AM38,(AF124+AJ31*D19)/AN38,(AF125+AJ31*D19)/AO38)*AP38 ->  | BB61: =MIN((S121+AK31*D19)/AK39,(S122+AK31*D19)/AL39,(S123+AK31*D19)/AM39,(S124+AK31*D19)/AN39,(S125+AK31*D19)/AO39)*AP39 ->  | BC61: =MIN((T121+AK31*D19)/AK39,(T122+AK31*D19)/AL39,(T123+AK31*D19)/AM39,(T124+AK31*D19)/AN39,(T125+AK31*D19)/AO39)*AP39 ->  | BD61: =MIN((U121+AK31*D19)/AK39,(U122+AK31*D19)/AL39,(U123+AK31*D19)/AM39,(U124+AK31*D19)/AN39,(U125+AK31*D19)/AO39)*AP39 ->  | BE61: =MIN((V121+AK31*D19)/AK39,(V122+AK31*D19)/AL39,(V123+AK31*D19)/AM39,(V124+AK31*D19)/AN39,(V125+AK31*D19)/AO39)*AP39 ->  | BF61: =MIN((W121+AK31*D19)/AK39,(W122+AK31*D19)/AL39,(W123+AK31*D19)/AM39,(W124+AK31*D19)/AN39,(W125+AK31*D19)/AO39)*AP39 ->  | BG61: =MIN((X121+AK31*D19)/AK39,(X122+AK31*D19)/AL39,(X123+AK31*D19)/AM39,(X124+AK31*D19)/AN39,(X125+AK31*D19)/AO39)*AP39 ->  | BH61: =MIN((Y121+AK31*D19)/AK39,(Y122+AK31*D19)/AL39,(Y123+AK31*D19)/AM39,(Y124+AK31*D19)/AN39,(Y125+AK31*D19)/AO39)*AP39 ->  | BI61: =MIN((Z121+AK31*D19)/AK39,(Z122+AK31*D19)/AL39,(Z123+AK31*D19)/AM39,(Z124+AK31*D19)/AN39,(Z125+AK31*D19)/AO39)*AP39 ->  | BJ61: =MIN((AA121+AK31*D19)/AK39,(AA122+AK31*D19)/AL39,(AA123+AK31*D19)/AM39,(AA124+AK31*D19)/AN39,(AA125+AK31*D19)/AO39)*AP39 ->  | BK61: =MIN((AB121+AK31*D19)/AK39,(AB122+AK31*D19)/AL39,(AB123+AK31*D19)/AM39,(AB124+AK31*D19)/AN39,(AB125+AK31*D19)/AO39)*AP39 ->  | BL61: =MIN((AC121+AK31*D19)/AK39,(AC122+AK31*D19)/AL39,(AC123+AK31*D19)/AM39,(AC124+AK31*D19)/AN39,(AC125+AK31*D19)/AO39)*AP39 ->  | BM61: =MIN((AD121+AK31*D19)/AK39,(AD122+AK31*D19)/AL39,(AD123+AK31*D19)/AM39,(AD124+AK31*D19)/AN39,(AD125+AK31*D19)/AO39)*AP39 ->  | BN61: =MIN((AE121+AK31*D19)/AK39,(AE122+AK31*D19)/AL39,(AE123+AK31*D19)/AM39,(AE124+AK31*D19)/AN39,(AE125+AK31*D19)/AO39)*AP39 ->  | BO61: =MIN((AF121+AK31*D19)/AK39,(AF122+AK31*D19)/AL39,(AF123+AK31*D19)/AM39,(AF124+AK31*D19)/AN39,(AF125+AK31*D19)/AO39)*AP39 ->  | BS61: =IF(E26=C31,F51,IF(E26=C32,I51,IF(E26=C33,L51,erreur))) -> 0.81415 | BU61: =IF(E26=C31,G51,IF(E26=C32,J51,IF(E26=C33,M51,erreur))) -> 0.54275 | BW61: 1.3569
E62: 0.05445 | F62: 2.67025 | G62: =E62+F62 -> 2.7247 | H62: 0.05445 | I62: 2.67025 | J62: =H62+I62 -> 2.7247 | K62: 0.05445 | L62: 2.67025 | M62: =K62+L62 -> 2.7247 | N62: 0.05445 | O62: 2.67025 | P62: =N62+O62 -> 2.7247 | R62: =L11+AH43+D15+D17+D21+D19*AG8 ->  | S62: =Q14+R62 ->  | T62: =R62+R14 ->  | U62: =R62+S14 ->  | V62: =R62+T14 ->  | W62: =R62+U14 ->  | X62: =R62+V14 ->  | Y62: =R62+W14 ->  | Z62: =R62+X14 ->  | AA62: =R62+Y14 ->  | AB62: =R62+Z14 ->  | AC62: =R62+AA14 ->  | AD62: =R62+AB14 ->  | AE62: =R62+AC14 ->  | AF62: =R62+AD14 ->  | AK62: =MIN((S128+AJ31*D19)/AK38,(S129+AJ31*D19)/AL38,(S130+AJ31*D19)/AM38,(S131+AJ31*D19)/AN38,(S132+AJ31*D19)/AO38)*AP38 ->  | AL62: =MIN((T128+AJ31*D19)/AK38,(T129+AJ31*D19)/AL38,(T130+AJ31*D19)/AM38,(T131+AJ31*D19)/AN38,(T132+AJ31*D19)/AO38)*AP38 ->  | AM62: =MIN((U128+AJ31*D19)/AK38,(U129+AJ31*D19)/AL38,(U130+AJ31*D19)/AM38,(U131+AJ31*D19)/AN38,(U132+AJ31*D19)/AO38)*AP38 ->  | AN62: =MIN((V128+AJ31*D19)/AK38,(V129+AJ31*D19)/AL38,(V130+AJ31*D19)/AM38,(V131+AJ31*D19)/AN38,(V132+AJ31*D19)/AO38)*AP38 ->  | AO62: =MIN((W128+AJ31*D19)/AK38,(W129+AJ31*D19)/AL38,(W130+AJ31*D19)/AM38,(W131+AJ31*D19)/AN38,(W132+AJ31*D19)/AO38)*AP38 ->  | AP62: =MIN((X128+AJ31*D19)/AK38,(X129+AJ31*D19)/AL38,(X130+AJ31*D19)/AM38,(X131+AJ31*D19)/AN38,(X132+AJ31*D19)/AO38)*AP38 ->  | AQ62: =MIN((Y128+AJ31*D19)/AK38,(Y129+AJ31*D19)/AL38,(Y130+AJ31*D19)/AM38,(Y131+AJ31*D19)/AN38,(Y132+AJ31*D19)/AO38)*AP38 ->  | AR62: =MIN((Z128+AJ31*D19)/AK38,(Z129+AJ31*D19)/AL38,(Z130+AJ31*D19)/AM38,(Z131+AJ31*D19)/AN38,(Z132+AJ31*D19)/AO38)*AP38 ->  | AS62: =MIN((AA128+AJ31*D19)/AK38,(AA129+AJ31*D19)/AL38,(AA130+AJ31*D19)/AM38,(AA131+AJ31*D19)/AN38,(AA132+AJ31*D19)/AO38)*AP38 ->  | AT62: =MIN((AB128+AJ31*D19)/AK38,(AB129+AJ31*D19)/AL38,(AB130+AJ31*D19)/AM38,(AB131+AJ31*D19)/AN38,(AB132+AJ31*D19)/AO38)*AP38 ->  | AU62: =MIN((AC128+AJ31*D19)/AK38,(AC129+AJ31*D19)/AL38,(AC130+AJ31*D19)/AM38,(AC131+AJ31*D19)/AN38,(AC132+AJ31*D19)/AO38)*AP38 ->  | AV62: =MIN((AD128+AJ31*D19)/AK38,(AD129+AJ31*D19)/AL38,(AD130+AJ31*D19)/AM38,(AD131+AJ31*D19)/AN38,(AD132+AJ31*D19)/AO38)*AP38 ->  | AW62: =MIN((AE128+AJ31*D19)/AK38,(AE129+AJ31*D19)/AL38,(AE130+AJ31*D19)/AM38,(AE131+AJ31*D19)/AN38,(AE132+AJ31*D19)/AO38)*AP38 ->  | AX62: =MIN((AF128+AJ31*D19)/AK38,(AF129+AJ31*D19)/AL38,(AF130+AJ31*D19)/AM38,(AF131+AJ31*D19)/AN38,(AF132+AJ31*D19)/AO38)*AP38 ->  | BB62: =MIN((S128+AK31*D19)/AK39,(S129+AK31*D19)/AL39,(S130+AK31*D19)/AM39,(S131+AK31*D19)/AN39,(S132+AK31*D19)/AO39)*AP39 ->  | BC62: =MIN((T128+AK31*D19)/AK39,(T129+AK31*D19)/AL39,(T130+AK31*D19)/AM39,(T131+AK31*D19)/AN39,(T132+AK31*D19)/AO39)*AP39 ->  | BD62: =MIN((U128+AK31*D19)/AK39,(U129+AK31*D19)/AL39,(U130+AK31*D19)/AM39,(U131+AK31*D19)/AN39,(U132+AK31*D19)/AO39)*AP39 ->  | BE62: =MIN((V128+AK31*D19)/AK39,(V129+AK31*D19)/AL39,(V130+AK31*D19)/AM39,(V131+AK31*D19)/AN39,(V132+AK31*D19)/AO39)*AP39 ->  | BF62: =MIN((W128+AK31*D19)/AK39,(W129+AK31*D19)/AL39,(W130+AK31*D19)/AM39,(W131+AK31*D19)/AN39,(W132+AK31*D19)/AO39)*AP39 ->  | BG62: =MIN((X128+AK31*D19)/AK39,(X129+AK31*D19)/AL39,(X130+AK31*D19)/AM39,(X131+AK31*D19)/AN39,(X132+AK31*D19)/AO39)*AP39 ->  | BH62: =MIN((Y128+AK31*D19)/AK39,(Y129+AK31*D19)/AL39,(Y130+AK31*D19)/AM39,(Y131+AK31*D19)/AN39,(Y132+AK31*D19)/AO39)*AP39 ->  | BI62: =MIN((Z128+AK31*D19)/AK39,(Z129+AK31*D19)/AL39,(Z130+AK31*D19)/AM39,(Z131+AK31*D19)/AN39,(Z132+AK31*D19)/AO39)*AP39 ->  | BJ62: =MIN((AA128+AK31*D19)/AK39,(AA129+AK31*D19)/AL39,(AA130+AK31*D19)/AM39,(AA131+AK31*D19)/AN39,(AA132+AK31*D19)/AO39)*AP39 ->  | BK62: =MIN((AB128+AK31*D19)/AK39,(AB129+AK31*D19)/AL39,(AB130+AK31*D19)/AM39,(AB131+AK31*D19)/AN39,(AB132+AK31*D19)/AO39)*AP39 ->  | BL62: =MIN((AC128+AK31*D19)/AK39,(AC129+AK31*D19)/AL39,(AC130+AK31*D19)/AM39,(AC131+AK31*D19)/AN39,(AC132+AK31*D19)/AO39)*AP39 ->  | BM62: =MIN((AD128+AK31*D19)/AK39,(AD129+AK31*D19)/AL39,(AD130+AK31*D19)/AM39,(AD131+AK31*D19)/AN39,(AD132+AK31*D19)/AO39)*AP39 ->  | BN62: =MIN((AE128+AK31*D19)/AK39,(AE129+AK31*D19)/AL39,(AE130+AK31*D19)/AM39,(AE131+AK31*D19)/AN39,(AE132+AK31*D19)/AO39)*AP39 ->  | BO62: =MIN((AF128+AK31*D19)/AK39,(AF129+AK31*D19)/AL39,(AF130+AK31*D19)/AM39,(AF131+AK31*D19)/AN39,(AF132+AK31*D19)/AO39)*AP39 ->  | BS62: =IF(E26=C31,F52,IF(E26=C32,I52,IF(E26=C33,L52,erreur))) -> 1.63485 | BU62: =IF(E26=C31,G52,IF(E26=C32,J52,IF(E26=C33,M52,erreur))) -> 1.0899 | BW62: 2.72475
E63: 0.27245 | F63: 1.0899 | G63: =E63+F63 -> 1.36235 | H63: 0.68115 | I63: 0.68115 | J63: 1.3623 | K63: 0.90825 | L63: 1.36235 | M63: =K63+L63 -> 2.2706 | N63: 0.4087 | O63: 0.95365 | P63: 1.36235 | AK63: =MIN((S135+AJ31*D19)/AK38,(S136+AJ31*D19)/AL38,(S137+AJ31*D19)/AM38,(S138+AJ31*D19)/AN38,(S139+AJ31*D19)/AO38)*AP38 ->  | AL63: =MIN((T135+AJ31*D19)/AK38,(T136+AJ31*D19)/AL38,(T137+AJ31*D19)/AM38,(T138+AJ31*D19)/AN38,(T139+AJ31*D19)/AO38)*AP38 ->  | AM63: =MIN((U135+AJ31*D19)/AK38,(U136+AJ31*D19)/AL38,(U137+AJ31*D19)/AM38,(U138+AJ31*D19)/AN38,(U139+AJ31*D19)/AO38)*AP38 ->  | AN63: =MIN((V135+AJ31*D19)/AK38,(V136+AJ31*D19)/AL38,(V137+AJ31*D19)/AM38,(V138+AJ31*D19)/AN38,(V139+AJ31*D19)/AO38)*AP38 ->  | AO63: =MIN((W135+AJ31*D19)/AK38,(W136+AJ31*D19)/AL38,(W137+AJ31*D19)/AM38,(W138+AJ31*D19)/AN38,(W139+AJ31*D19)/AO38)*AP38 ->  | AP63: =MIN((X135+AJ31*D19)/AK38,(X136+AJ31*D19)/AL38,(X137+AJ31*D19)/AM38,(X138+AJ31*D19)/AN38,(X139+AJ31*D19)/AO38)*AP38 ->  | AQ63: =MIN((Y135+AJ31*D19)/AK38,(Y136+AJ31*D19)/AL38,(Y137+AJ31*D19)/AM38,(Y138+AJ31*D19)/AN38,(Y139+AJ31*D19)/AO38)*AP38 ->  | AR63: =MIN((Z135+AJ31*D19)/AK38,(Z136+AJ31*D19)/AL38,(Z137+AJ31*D19)/AM38,(Z138+AJ31*D19)/AN38,(Z139+AJ31*D19)/AO38)*AP38 ->  | AS63: =MIN((AA135+AJ31*D19)/AK38,(AA136+AJ31*D19)/AL38,(AA137+AJ31*D19)/AM38,(AA138+AJ31*D19)/AN38,(AA139+AJ31*D19)/AO38)*AP38 ->  | AT63: =MIN((AB135+AJ31*D19)/AK38,(AB136+AJ31*D19)/AL38,(AB137+AJ31*D19)/AM38,(AB138+AJ31*D19)/AN38,(AB139+AJ31*D19)/AO38)*AP38 ->  | AU63: =MIN((AC135+AJ31*D19)/AK38,(AC136+AJ31*D19)/AL38,(AC137+AJ31*D19)/AM38,(AC138+AJ31*D19)/AN38,(AC139+AJ31*D19)/AO38)*AP38 ->  | AV63: =MIN((AD135+AJ31*D19)/AK38,(AD136+AJ31*D19)/AL38,(AD137+AJ31*D19)/AM38,(AD138+AJ31*D19)/AN38,(AD139+AJ31*D19)/AO38)*AP38 ->  | AW63: =MIN((AE135+AJ31*D19)/AK38,(AE136+AJ31*D19)/AL38,(AE137+AJ31*D19)/AM38,(AE138+AJ31*D19)/AN38,(AE139+AJ31*D19)/AO38)*AP38 ->  | AX63: =MIN((AF135+AJ31*D19)/AK38,(AF136+AJ31*D19)/AL38,(AF137+AJ31*D19)/AM38,(AF138+AJ31*D19)/AN38,(AF139+AJ31*D19)/AO38)*AP38 ->  | BB63: =MIN((S135+AK31*D19)/AK39,(S136+AK31*D19)/AL39,(S137+AK31*D19)/AM39,(S138+AK31*D19)/AN39,(S139+AK31*D19)/AO39)*AP39 ->  | BC63: =MIN((T135+AK31*D19)/AK39,(T136+AK31*D19)/AL39,(T137+AK31*D19)/AM39,(T138+AK31*D19)/AN39,(T139+AK31*D19)/AO39)*AP39 ->  | BD63: =MIN((U135+AK31*D19)/AK39,(U136+AK31*D19)/AL39,(U137+AK31*D19)/AM39,(U138+AK31*D19)/AN39,(U139+AK31*D19)/AO39)*AP39 ->  | BE63: =MIN((V135+AK31*D19)/AK39,(V136+AK31*D19)/AL39,(V137+AK31*D19)/AM39,(V138+AK31*D19)/AN39,(V139+AK31*D19)/AO39)*AP39 ->  | BF63: =MIN((W135+AK31*D19)/AK39,(W136+AK31*D19)/AL39,(W137+AK31*D19)/AM39,(W138+AK31*D19)/AN39,(W139+AK31*D19)/AO39)*AP39 ->  | BG63: =MIN((X135+AK31*D19)/AK39,(X136+AK31*D19)/AL39,(X137+AK31*D19)/AM39,(X138+AK31*D19)/AN39,(X139+AK31*D19)/AO39)*AP39 ->  | BH63: =MIN((Y135+AK31*D19)/AK39,(Y136+AK31*D19)/AL39,(Y137+AK31*D19)/AM39,(Y138+AK31*D19)/AN39,(Y139+AK31*D19)/AO39)*AP39 ->  | BI63: =MIN((Z135+AK31*D19)/AK39,(Z136+AK31*D19)/AL39,(Z137+AK31*D19)/AM39,(Z138+AK31*D19)/AN39,(Z139+AK31*D19)/AO39)*AP39 ->  | BJ63: =MIN((AA135+AK31*D19)/AK39,(AA136+AK31*D19)/AL39,(AA137+AK31*D19)/AM39,(AA138+AK31*D19)/AN39,(AA139+AK31*D19)/AO39)*AP39 ->  | BK63: =MIN((AB135+AK31*D19)/AK39,(AB136+AK31*D19)/AL39,(AB137+AK31*D19)/AM39,(AB138+AK31*D19)/AN39,(AB139+AK31*D19)/AO39)*AP39 ->  | BL63: =MIN((AC135+AK31*D19)/AK39,(AC136+AK31*D19)/AL39,(AC137+AK31*D19)/AM39,(AC138+AK31*D19)/AN39,(AC139+AK31*D19)/AO39)*AP39 ->  | BM63: =MIN((AD135+AK31*D19)/AK39,(AD136+AK31*D19)/AL39,(AD137+AK31*D19)/AM39,(AD138+AK31*D19)/AN39,(AD139+AK31*D19)/AO39)*AP39 ->  | BN63: =MIN((AE135+AK31*D19)/AK39,(AE136+AK31*D19)/AL39,(AE137+AK31*D19)/AM39,(AE138+AK31*D19)/AN39,(AE139+AK31*D19)/AO39)*AP39 ->  | BO63: =MIN((AF135+AK31*D19)/AK39,(AF136+AK31*D19)/AL39,(AF137+AK31*D19)/AM39,(AF138+AK31*D19)/AN39,(AF139+AK31*D19)/AO39)*AP39 ->  | BS63: =IF(E26=C31,F53,IF(E26=C32,I53,IF(E26=C33,L53,erreur))) -> 2.04355 | BU63: =IF(E26=C31,G53,IF(E26=C32,J53,IF(E26=C33,M53,erreur))) -> 0.22705 | BW63: 2.2706
E64: 0.27245 | F64: 1.0899 | G64: 1.36235 | H64: 0.68115 | I64: 0.68115 | J64: 1.3623 | K64: 0.68115 | L64: 1.58945 | M64: 2.2706 | N64: 0.4087 | O64: 0.95365 | P64: 1.36235 | R64: =G12 ->  | S64: =S57 -> kit 1 | T64: =T57 -> kit 2A | U64: kit 2B | V64: kit 4A | W64: kit 4B | X64: kit 5 | Y64: kit 6A | Z64: kit 6B | AA64: kit 7 | AB64: kit 8 | AC64: kit 9A | AD64: kit 9B | AE64: =AE57 -> kit 10 | AF64: =AF57 -> kit 11 | AK64: =MIN((S142+AJ31*D19)/AK38,(S143+AJ31*D19)/AL38,(S144+AJ31*D19)/AM38,(S145+AJ31*D19)/AN38,(S146+AJ31*D19)/AO38)*AP38 ->  | AL64: =MIN((T142+AJ31*D19)/AK38,(T143+AJ31*D19)/AL38,(T144+AJ31*D19)/AM38,(T145+AJ31*D19)/AN38,(T146+AJ31*D19)/AO38)*AP38 ->  | AM64: =MIN((U142+AJ31*D19)/AK38,(U143+AJ31*D19)/AL38,(U144+AJ31*D19)/AM38,(U145+AJ31*D19)/AN38,(U146+AJ31*D19)/AO38)*AP38 ->  | AN64: =MIN((V142+AJ31*D19)/AK38,(V143+AJ31*D19)/AL38,(V144+AJ31*D19)/AM38,(V145+AJ31*D19)/AN38,(V146+AJ31*D19)/AO38)*AP38 ->  | AO64: =MIN((W142+AJ31*D19)/AK38,(W143+AJ31*D19)/AL38,(W144+AJ31*D19)/AM38,(W145+AJ31*D19)/AN38,(W146+AJ31*D19)/AO38)*AP38 ->  | AP64: =MIN((X142+AJ31*D19)/AK38,(X143+AJ31*D19)/AL38,(X144+AJ31*D19)/AM38,(X145+AJ31*D19)/AN38,(X146+AJ31*D19)/AO38)*AP38 ->  | AQ64: =MIN((Y142+AJ31*D19)/AK38,(Y143+AJ31*D19)/AL38,(Y144+AJ31*D19)/AM38,(Y145+AJ31*D19)/AN38,(Y146+AJ31*D19)/AO38)*AP38 ->  | AR64: =MIN((Z142+AJ31*D19)/AK38,(Z143+AJ31*D19)/AL38,(Z144+AJ31*D19)/AM38,(Z145+AJ31*D19)/AN38,(Z146+AJ31*D19)/AO38)*AP38 ->  | AS64: =MIN((AA142+AJ31*D19)/AK38,(AA143+AJ31*D19)/AL38,(AA144+AJ31*D19)/AM38,(AA145+AJ31*D19)/AN38,(AA146+AJ31*D19)/AO38)*AP38 ->  | AT64: =MIN((AB142+AJ31*D19)/AK38,(AB143+AJ31*D19)/AL38,(AB144+AJ31*D19)/AM38,(AB145+AJ31*D19)/AN38,(AB146+AJ31*D19)/AO38)*AP38 ->  | AU64: =MIN((AC142+AJ31*D19)/AK38,(AC143+AJ31*D19)/AL38,(AC144+AJ31*D19)/AM38,(AC145+AJ31*D19)/AN38,(AC146+AJ31*D19)/AO38)*AP38 ->  | AV64: =MIN((AD142+AJ31*D19)/AK38,(AD143+AJ31*D19)/AL38,(AD144+AJ31*D19)/AM38,(AD145+AJ31*D19)/AN38,(AD146+AJ31*D19)/AO38)*AP38 ->  | AW64: =MIN((AE142+AJ31*D19)/AK38,(AE143+AJ31*D19)/AL38,(AE144+AJ31*D19)/AM38,(AE145+AJ31*D19)/AN38,(AE146+AJ31*D19)/AO38)*AP38 ->  | AX64: =MIN((AF142+AJ31*D19)/AK38,(AF143+AJ31*D19)/AL38,(AF144+AJ31*D19)/AM38,(AF145+AJ31*D19)/AN38,(AF146+AJ31*D19)/AO38)*AP38 ->  | BB64: =MIN((S142+AK31*D19)/AK39,(S143+AK31*D19)/AL39,(S144+AK31*D19)/AM39,(S145+AK31*D19)/AN39,(S146+AK31*D19)/AO39)*AP39 ->  | BC64: =MIN((T142+AK31*D19)/AK39,(T143+AK31*D19)/AL39,(T144+AK31*D19)/AM39,(T145+AK31*D19)/AN39,(T146+AK31*D19)/AO39)*AP39 ->  | BD64: =MIN((U142+AK31*D19)/AK39,(U143+AK31*D19)/AL39,(U144+AK31*D19)/AM39,(U145+AK31*D19)/AN39,(U146+AK31*D19)/AO39)*AP39 ->  | BE64: =MIN((V142+AK31*D19)/AK39,(V143+AK31*D19)/AL39,(V144+AK31*D19)/AM39,(V145+AK31*D19)/AN39,(V146+AK31*D19)/AO39)*AP39 ->  | BF64: =MIN((W142+AK31*D19)/AK39,(W143+AK31*D19)/AL39,(W144+AK31*D19)/AM39,(W145+AK31*D19)/AN39,(W146+AK31*D19)/AO39)*AP39 ->  | BG64: =MIN((X142+AK31*D19)/AK39,(X143+AK31*D19)/AL39,(X144+AK31*D19)/AM39,(X145+AK31*D19)/AN39,(X146+AK31*D19)/AO39)*AP39 ->  | BH64: =MIN((Y142+AK31*D19)/AK39,(Y143+AK31*D19)/AL39,(Y144+AK31*D19)/AM39,(Y145+AK31*D19)/AN39,(Y146+AK31*D19)/AO39)*AP39 ->  | BI64: =MIN((Z142+AK31*D19)/AK39,(Z143+AK31*D19)/AL39,(Z144+AK31*D19)/AM39,(Z145+AK31*D19)/AN39,(Z146+AK31*D19)/AO39)*AP39 ->  | BJ64: =MIN((AA142+AK31*D19)/AK39,(AA143+AK31*D19)/AL39,(AA144+AK31*D19)/AM39,(AA145+AK31*D19)/AN39,(AA146+AK31*D19)/AO39)*AP39 ->  | BK64: =MIN((AB142+AK31*D19)/AK39,(AB143+AK31*D19)/AL39,(AB144+AK31*D19)/AM39,(AB145+AK31*D19)/AN39,(AB146+AK31*D19)/AO39)*AP39 ->  | BL64: =MIN((AC142+AK31*D19)/AK39,(AC143+AK31*D19)/AL39,(AC144+AK31*D19)/AM39,(AC145+AK31*D19)/AN39,(AC146+AK31*D19)/AO39)*AP39 ->  | BM64: =MIN((AD142+AK31*D19)/AK39,(AD143+AK31*D19)/AL39,(AD144+AK31*D19)/AM39,(AD145+AK31*D19)/AN39,(AD146+AK31*D19)/AO39)*AP39 ->  | BN64: =MIN((AE142+AK31*D19)/AK39,(AE143+AK31*D19)/AL39,(AE144+AK31*D19)/AM39,(AE145+AK31*D19)/AN39,(AE146+AK31*D19)/AO39)*AP39 ->  | BO64: =MIN((AF142+AK31*D19)/AK39,(AF143+AK31*D19)/AL39,(AF144+AK31*D19)/AM39,(AF145+AK31*D19)/AN39,(AF146+AK31*D19)/AO39)*AP39 ->  | BS64: =IF(E26=C31,F54,IF(E26=C32,I54,IF(E26=C33,L54,erreur))) -> 1.0899 | BU64: =IF(E26=C31,G54,IF(E26=C32,J54,IF(E26=C33,M54,erreur))) -> 0.7266 | BW64: 1.8165
E65: 0.18165 | F65: 1.63485 | G65: 1.8165 | H65: 0.18165 | I65: 0.7266 | J65: 0.90825 | K65: 0.27245 | L65: 0.63575 | M65: 0.9082 | N65: 0.3633 | O65: 1.4532 | P65: 1.8165 | R65: =H12+AH39+D16+D17+D21+D19*AG9 ->  | S65: =R65+Q10 ->  | T65: =R65+R10 ->  | U65: =R65+S10 ->  | V65: =R65+T10 ->  | W65: =R65+U10 ->  | X65: =R65+V10 ->  | Y65: =R65+W10 ->  | Z65: =R65+X10 ->  | AA65: =R65+Y10 ->  | AB65: =R65+Z10 ->  | AC65: =R65+AA10 ->  | AD65: =R65+AB10 ->  | AE65: =R65+AC10 ->  | AF65: =R65+AD10 ->  | AK65: =MIN((S149+AJ31*D19)/AK38,(S150+AJ31*D19)/AL38,(S151+AJ31*D19)/AM38,(S152+AJ31*D19)/AN38,(S153+AJ31*D19)/AO38)*AP38 ->  | AL65: =MIN((T149+AJ31*D19)/AK38,(T150+AJ31*D19)/AL38,(T151+AJ31*D19)/AM38,(T152+AJ31*D19)/AN38,(T153+AJ31*D19)/AO38)*AP38 ->  | AM65: =MIN((U149+AJ31*D19)/AK38,(U150+AJ31*D19)/AL38,(U151+AJ31*D19)/AM38,(U152+AJ31*D19)/AN38,(U153+AJ31*D19)/AO38)*AP38 ->  | AN65: =MIN((V149+AJ31*D19)/AK38,(V150+AJ31*D19)/AL38,(V151+AJ31*D19)/AM38,(V152+AJ31*D19)/AN38,(V153+AJ31*D19)/AO38)*AP38 ->  | AO65: =MIN((W149+AJ31*D19)/AK38,(W150+AJ31*D19)/AL38,(W151+AJ31*D19)/AM38,(W152+AJ31*D19)/AN38,(W153+AJ31*D19)/AO38)*AP38 ->  | AP65: =MIN((X149+AJ31*D19)/AK38,(X150+AJ31*D19)/AL38,(X151+AJ31*D19)/AM38,(X152+AJ31*D19)/AN38,(X153+AJ31*D19)/AO38)*AP38 ->  | AQ65: =MIN((Y149+AJ31*D19)/AK38,(Y150+AJ31*D19)/AL38,(Y151+AJ31*D19)/AM38,(Y152+AJ31*D19)/AN38,(Y153+AJ31*D19)/AO38)*AP38 ->  | AR65: =MIN((Z149+AJ31*D19)/AK38,(Z150+AJ31*D19)/AL38,(Z151+AJ31*D19)/AM38,(Z152+AJ31*D19)/AN38,(Z153+AJ31*D19)/AO38)*AP38 ->  | AS65: =MIN((AA149+AJ31*D19)/AK38,(AA150+AJ31*D19)/AL38,(AA151+AJ31*D19)/AM38,(AA152+AJ31*D19)/AN38,(AA153+AJ31*D19)/AO38)*AP38 ->  | AT65: =MIN((AB149+AJ31*D19)/AK38,(AB150+AJ31*D19)/AL38,(AB151+AJ31*D19)/AM38,(AB152+AJ31*D19)/AN38,(AB153+AJ31*D19)/AO38)*AP38 ->  | AU65: =MIN((AC149+AJ31*D19)/AK38,(AC150+AJ31*D19)/AL38,(AC151+AJ31*D19)/AM38,(AC152+AJ31*D19)/AN38,(AC153+AJ31*D19)/AO38)*AP38 ->  | AV65: =MIN((AD149+AJ31*D19)/AK38,(AD150+AJ31*D19)/AL38,(AD151+AJ31*D19)/AM38,(AD152+AJ31*D19)/AN38,(AD153+AJ31*D19)/AO38)*AP38 ->  | AW65: =MIN((AE149+AJ31*D19)/AK38,(AE150+AJ31*D19)/AL38,(AE151+AJ31*D19)/AM38,(AE152+AJ31*D19)/AN38,(AE153+AJ31*D19)/AO38)*AP38 ->  | AX65: =MIN((AF149+AJ31*D19)/AK38,(AF150+AJ31*D19)/AL38,(AF151+AJ31*D19)/AM38,(AF152+AJ31*D19)/AN38,(AF153+AJ31*D19)/AO38)*AP38 ->  | BB65: =MIN((S149+AK31*D19)/AK39,(S150+AK31*D19)/AL39,(S151+AK31*D19)/AM39,(S152+AK31*D19)/AN39,(S153+AK31*D19)/AO39)*AP39 ->  | BC65: =MIN((T149+AK31*D19)/AK39,(T150+AK31*D19)/AL39,(T151+AK31*D19)/AM39,(T152+AK31*D19)/AN39,(T153+AK31*D19)/AO39)*AP39 ->  | BD65: =MIN((U149+AK31*D19)/AK39,(U150+AK31*D19)/AL39,(U151+AK31*D19)/AM39,(U152+AK31*D19)/AN39,(U153+AK31*D19)/AO39)*AP39 ->  | BE65: =MIN((V149+AK31*D19)/AK39,(V150+AK31*D19)/AL39,(V151+AK31*D19)/AM39,(V152+AK31*D19)/AN39,(V153+AK31*D19)/AO39)*AP39 ->  | BF65: =MIN((W149+AK31*D19)/AK39,(W150+AK31*D19)/AL39,(W151+AK31*D19)/AM39,(W152+AK31*D19)/AN39,(W153+AK31*D19)/AO39)*AP39 ->  | BG65: =MIN((X149+AK31*D19)/AK39,(X150+AK31*D19)/AL39,(X151+AK31*D19)/AM39,(X152+AK31*D19)/AN39,(X153+AK31*D19)/AO39)*AP39 ->  | BH65: =MIN((Y149+AK31*D19)/AK39,(Y150+AK31*D19)/AL39,(Y151+AK31*D19)/AM39,(Y152+AK31*D19)/AN39,(Y153+AK31*D19)/AO39)*AP39 ->  | BI65: =MIN((Z149+AK31*D19)/AK39,(Z150+AK31*D19)/AL39,(Z151+AK31*D19)/AM39,(Z152+AK31*D19)/AN39,(Z153+AK31*D19)/AO39)*AP39 ->  | BJ65: =MIN((AA149+AK31*D19)/AK39,(AA150+AK31*D19)/AL39,(AA151+AK31*D19)/AM39,(AA152+AK31*D19)/AN39,(AA153+AK31*D19)/AO39)*AP39 ->  | BK65: =MIN((AB149+AK31*D19)/AK39,(AB150+AK31*D19)/AL39,(AB151+AK31*D19)/AM39,(AB152+AK31*D19)/AN39,(AB153+AK31*D19)/AO39)*AP39 ->  | BL65: =MIN((AC149+AK31*D19)/AK39,(AC150+AK31*D19)/AL39,(AC151+AK31*D19)/AM39,(AC152+AK31*D19)/AN39,(AC153+AK31*D19)/AO39)*AP39 ->  | BM65: =MIN((AD149+AK31*D19)/AK39,(AD150+AK31*D19)/AL39,(AD151+AK31*D19)/AM39,(AD152+AK31*D19)/AN39,(AD153+AK31*D19)/AO39)*AP39 ->  | BN65: =MIN((AE149+AK31*D19)/AK39,(AE150+AK31*D19)/AL39,(AE151+AK31*D19)/AM39,(AE152+AK31*D19)/AN39,(AE153+AK31*D19)/AO39)*AP39 ->  | BO65: =MIN((AF149+AK31*D19)/AK39,(AF150+AK31*D19)/AL39,(AF151+AK31*D19)/AM39,(AF152+AK31*D19)/AN39,(AF153+AK31*D19)/AO39)*AP39 ->  | BS65: =IF(E26=C31,F55,IF(E26=C32,I55,IF(E26=C33,L55,erreur))) -> 1.63485 | BU65: =IF(E26=C31,G55,IF(E26=C32,J55,IF(E26=C33,M55,erreur))) -> 1.0899 | BW65: 2.72475
E66: 0.18165 | F66: 1.63485 | G66: 1.8165 | H66: 0.4087 | I66: 0.95365 | J66: 1.36235 | K66: 0.27245 | L66: 0.63575 | M66: 0.9082 | N66: 0.7266 | O66: 1.0899 | P66: 1.8165 | R66: =I12+AH40+D15+D17+D21+D19*AG9 ->  | S66: =R66+Q11 ->  | T66: =R66+R11 ->  | U66: =R66+S11 ->  | V66: =R66+T11 ->  | W66: =R66+U11 ->  | X66: =R66+V11 ->  | Y66: =R66+W11 ->  | Z66: =R66+X11 ->  | AA66: =R66+Y11 ->  | AB66: =R66+Z11 ->  | AC66: =R66+AA11 ->  | AD66: =R66+AB11 ->  | AE66: =R66+AC11 ->  | AF66: =R66+AD11 ->  | AK66: =MIN((S156+AJ31*D19)/AK38,(S157+AJ31*D19)/AL38,(S158+AJ31*D19)/AM38,(S159+AJ31*D19)/AN38,(S160+AJ31*D19)/AO38)*AP38 ->  | AL66: =MIN((T156+AJ31*D19)/AK38,(T157+AJ31*D19)/AL38,(T158+AJ31*D19)/AM38,(T159+AJ31*D19)/AN38,(T160+AJ31*D19)/AO38)*AP38 ->  | AM66: =MIN((U156+AJ31*D19)/AK38,(U157+AJ31*D19)/AL38,(U158+AJ31*D19)/AM38,(U159+AJ31*D19)/AN38,(U160+AJ31*D19)/AO38)*AP38 ->  | AN66: =MIN((V156+AJ31*D19)/AK38,(V157+AJ31*D19)/AL38,(V158+AJ31*D19)/AM38,(V159+AJ31*D19)/AN38,(V160+AJ31*D19)/AO38)*AP38 ->  | AO66: =MIN((W156+AJ31*D19)/AK38,(W157+AJ31*D19)/AL38,(W158+AJ31*D19)/AM38,(W159+AJ31*D19)/AN38,(W160+AJ31*D19)/AO38)*AP38 ->  | AP66: =MIN((X156+AJ31*D19)/AK38,(X157+AJ31*D19)/AL38,(X158+AJ31*D19)/AM38,(X159+AJ31*D19)/AN38,(X160+AJ31*D19)/AO38)*AP38 ->  | AQ66: =MIN((Y156+AJ31*D19)/AK38,(Y157+AJ31*D19)/AL38,(Y158+AJ31*D19)/AM38,(Y159+AJ31*D19)/AN38,(Y160+AJ31*D19)/AO38)*AP38 ->  | AR66: =MIN((Z156+AJ31*D19)/AK38,(Z157+AJ31*D19)/AL38,(Z158+AJ31*D19)/AM38,(Z159+AJ31*D19)/AN38,(Z160+AJ31*D19)/AO38)*AP38 ->  | AS66: =MIN((AA156+AJ31*D19)/AK38,(AA157+AJ31*D19)/AL38,(AA158+AJ31*D19)/AM38,(AA159+AJ31*D19)/AN38,(AA160+AJ31*D19)/AO38)*AP38 ->  | AT66: =MIN((AB156+AJ31*D19)/AK38,(AB157+AJ31*D19)/AL38,(AB158+AJ31*D19)/AM38,(AB159+AJ31*D19)/AN38,(AB160+AJ31*D19)/AO38)*AP38 ->  | AU66: =MIN((AC156+AJ31*D19)/AK38,(AC157+AJ31*D19)/AL38,(AC158+AJ31*D19)/AM38,(AC159+AJ31*D19)/AN38,(AC160+AJ31*D19)/AO38)*AP38 ->  | AV66: =MIN((AD156+AJ31*D19)/AK38,(AD157+AJ31*D19)/AL38,(AD158+AJ31*D19)/AM38,(AD159+AJ31*D19)/AN38,(AD160+AJ31*D19)/AO38)*AP38 ->  | AW66: =MIN((AE156+AJ31*D19)/AK38,(AE157+AJ31*D19)/AL38,(AE158+AJ31*D19)/AM38,(AE159+AJ31*D19)/AN38,(AE160+AJ31*D19)/AO38)*AP38 ->  | AX66: =MIN((AF156+AJ31*D19)/AK38,(AF157+AJ31*D19)/AL38,(AF158+AJ31*D19)/AM38,(AF159+AJ31*D19)/AN38,(AF160+AJ31*D19)/AO38)*AP38 ->  | BB66: =MIN((S156+AK31*D19)/AK39,(S157+AK31*D19)/AL39,(S158+AK31*D19)/AM39,(S159+AK31*D19)/AN39,(S160+AK31*D19)/AO39)*AP39 ->  | BC66: =MIN((T156+AK31*D19)/AK39,(T157+AK31*D19)/AL39,(T158+AK31*D19)/AM39,(T159+AK31*D19)/AN39,(T160+AK31*D19)/AO39)*AP39 ->  | BD66: =MIN((U156+AK31*D19)/AK39,(U157+AK31*D19)/AL39,(U158+AK31*D19)/AM39,(U159+AK31*D19)/AN39,(U160+AK31*D19)/AO39)*AP39 ->  | BE66: =MIN((V156+AK31*D19)/AK39,(V157+AK31*D19)/AL39,(V158+AK31*D19)/AM39,(V159+AK31*D19)/AN39,(V160+AK31*D19)/AO39)*AP39 ->  | BF66: =MIN((W156+AK31*D19)/AK39,(W157+AK31*D19)/AL39,(W158+AK31*D19)/AM39,(W159+AK31*D19)/AN39,(W160+AK31*D19)/AO39)*AP39 ->  | BG66: =MIN((X156+AK31*D19)/AK39,(X157+AK31*D19)/AL39,(X158+AK31*D19)/AM39,(X159+AK31*D19)/AN39,(X160+AK31*D19)/AO39)*AP39 ->  | BH66: =MIN((Y156+AK31*D19)/AK39,(Y157+AK31*D19)/AL39,(Y158+AK31*D19)/AM39,(Y159+AK31*D19)/AN39,(Y160+AK31*D19)/AO39)*AP39 ->  | BI66: =MIN((Z156+AK31*D19)/AK39,(Z157+AK31*D19)/AL39,(Z158+AK31*D19)/AM39,(Z159+AK31*D19)/AN39,(Z160+AK31*D19)/AO39)*AP39 ->  | BJ66: =MIN((AA156+AK31*D19)/AK39,(AA157+AK31*D19)/AL39,(AA158+AK31*D19)/AM39,(AA159+AK31*D19)/AN39,(AA160+AK31*D19)/AO39)*AP39 ->  | BK66: =MIN((AB156+AK31*D19)/AK39,(AB157+AK31*D19)/AL39,(AB158+AK31*D19)/AM39,(AB159+AK31*D19)/AN39,(AB160+AK31*D19)/AO39)*AP39 ->  | BL66: =MIN((AC156+AK31*D19)/AK39,(AC157+AK31*D19)/AL39,(AC158+AK31*D19)/AM39,(AC159+AK31*D19)/AN39,(AC160+AK31*D19)/AO39)*AP39 ->  | BM66: =MIN((AD156+AK31*D19)/AK39,(AD157+AK31*D19)/AL39,(AD158+AK31*D19)/AM39,(AD159+AK31*D19)/AN39,(AD160+AK31*D19)/AO39)*AP39 ->  | BN66: =MIN((AE156+AK31*D19)/AK39,(AE157+AK31*D19)/AL39,(AE158+AK31*D19)/AM39,(AE159+AK31*D19)/AN39,(AE160+AK31*D19)/AO39)*AP39 ->  | BO66: =MIN((AF156+AK31*D19)/AK39,(AF157+AK31*D19)/AL39,(AF158+AK31*D19)/AM39,(AF159+AK31*D19)/AN39,(AF160+AK31*D19)/AO39)*AP39 ->  | BR66: formule position | BU66: formule gain brut
E67: 0.4541 | F67: 1.8165 | G67: 2.2706 | H67: 0.8174 | I67: 0.54495 | J67: 1.36235 | K67: 0.7266 | L67: 1.0899 | M67: 1.8165 | N67: 0.7266 | O67: 1.0899 | P67: 1.8165 | R67: =J12+AH41+D15+D17+D21+D19*AG9 ->  | S67: =R67+Q12 ->  | T67: =R67+R12 ->  | U67: =R67+S12 ->  | V67: =R67+T12 ->  | W67: =R67+U12 ->  | X67: =R67+V12 ->  | Y67: =R67+W12 ->  | Z67: =R67+X12 ->  | AA67: =R67+Y12 ->  | AB67: =R67+Z12 ->  | AC67: =R67+AA12 ->  | AD67: =R67+AB12 ->  | AE67: =R67+AC12 ->  | AF67: =R67+AD12 ->  | AK67: =MIN((S163+AJ31*D19)/AK38,(S164+AJ31*D19)/AL38,(S165+AJ31*D19)/AM38,(S166+AJ31*D19)/AN38,(S167+AJ31*D19)/AO38)*AP38 ->  | AL67: =MIN((T163+AJ31*D19)/AK38,(T164+AJ31*D19)/AL38,(T165+AJ31*D19)/AM38,(T166+AJ31*D19)/AN38,(T167+AJ31*D19)/AO38)*AP38 ->  | AM67: =MIN((U163+AJ31*D19)/AK38,(U164+AJ31*D19)/AL38,(U165+AJ31*D19)/AM38,(U166+AJ31*D19)/AN38,(U167+AJ31*D19)/AO38)*AP38 ->  | AN67: =MIN((V163+AJ31*D19)/AK38,(V164+AJ31*D19)/AL38,(V165+AJ31*D19)/AM38,(V166+AJ31*D19)/AN38,(V167+AJ31*D19)/AO38)*AP38 ->  | AO67: =MIN((W163+AJ31*D19)/AK38,(W164+AJ31*D19)/AL38,(W165+AJ31*D19)/AM38,(W166+AJ31*D19)/AN38,(W167+AJ31*D19)/AO38)*AP38 ->  | AP67: =MIN((X163+AJ31*D19)/AK38,(X164+AJ31*D19)/AL38,(X165+AJ31*D19)/AM38,(X166+AJ31*D19)/AN38,(X167+AJ31*D19)/AO38)*AP38 ->  | AQ67: =MIN((Y163+AJ31*D19)/AK38,(Y164+AJ31*D19)/AL38,(Y165+AJ31*D19)/AM38,(Y166+AJ31*D19)/AN38,(Y167+AJ31*D19)/AO38)*AP38 ->  | AR67: =MIN((Z163+AJ31*D19)/AK38,(Z164+AJ31*D19)/AL38,(Z165+AJ31*D19)/AM38,(Z166+AJ31*D19)/AN38,(Z167+AJ31*D19)/AO38)*AP38 ->  | AS67: =MIN((AA163+AJ31*D19)/AK38,(AA164+AJ31*D19)/AL38,(AA165+AJ31*D19)/AM38,(AA166+AJ31*D19)/AN38,(AA167+AJ31*D19)/AO38)*AP38 ->  | AT67: =MIN((AB163+AJ31*D19)/AK38,(AB164+AJ31*D19)/AL38,(AB165+AJ31*D19)/AM38,(AB166+AJ31*D19)/AN38,(AB167+AJ31*D19)/AO38)*AP38 ->  | AU67: =MIN((AC163+AJ31*D19)/AK38,(AC164+AJ31*D19)/AL38,(AC165+AJ31*D19)/AM38,(AC166+AJ31*D19)/AN38,(AC167+AJ31*D19)/AO38)*AP38 ->  | AV67: =MIN((AD163+AJ31*D19)/AK38,(AD164+AJ31*D19)/AL38,(AD165+AJ31*D19)/AM38,(AD166+AJ31*D19)/AN38,(AD167+AJ31*D19)/AO38)*AP38 ->  | AW67: =MIN((AE163+AJ31*D19)/AK38,(AE164+AJ31*D19)/AL38,(AE165+AJ31*D19)/AM38,(AE166+AJ31*D19)/AN38,(AE167+AJ31*D19)/AO38)*AP38 ->  | AX67: =MIN((AF163+AJ31*D19)/AK38,(AF164+AJ31*D19)/AL38,(AF165+AJ31*D19)/AM38,(AF166+AJ31*D19)/AN38,(AF167+AJ31*D19)/AO38)*AP38 ->  | BB67: =MIN((S163+AK31*D19)/AK39,(S164+AK31*D19)/AL39,(S165+AK31*D19)/AM39,(S166+AK31*D19)/AN39,(S167+AK31*D19)/AO39)*AP39 ->  | BC67: =MIN((T163+AK31*D19)/AK39,(T164+AK31*D19)/AL39,(T165+AK31*D19)/AM39,(T166+AK31*D19)/AN39,(T167+AK31*D19)/AO39)*AP39 ->  | BD67: =MIN((U163+AK31*D19)/AK39,(U164+AK31*D19)/AL39,(U165+AK31*D19)/AM39,(U166+AK31*D19)/AN39,(U167+AK31*D19)/AO39)*AP39 ->  | BE67: =MIN((V163+AK31*D19)/AK39,(V164+AK31*D19)/AL39,(V165+AK31*D19)/AM39,(V166+AK31*D19)/AN39,(V167+AK31*D19)/AO39)*AP39 ->  | BF67: =MIN((W163+AK31*D19)/AK39,(W164+AK31*D19)/AL39,(W165+AK31*D19)/AM39,(W166+AK31*D19)/AN39,(W167+AK31*D19)/AO39)*AP39 ->  | BG67: =MIN((X163+AK31*D19)/AK39,(X164+AK31*D19)/AL39,(X165+AK31*D19)/AM39,(X166+AK31*D19)/AN39,(X167+AK31*D19)/AO39)*AP39 ->  | BH67: =MIN((Y163+AK31*D19)/AK39,(Y164+AK31*D19)/AL39,(Y165+AK31*D19)/AM39,(Y166+AK31*D19)/AN39,(Y167+AK31*D19)/AO39)*AP39 ->  | BI67: =MIN((Z163+AK31*D19)/AK39,(Z164+AK31*D19)/AL39,(Z165+AK31*D19)/AM39,(Z166+AK31*D19)/AN39,(Z167+AK31*D19)/AO39)*AP39 ->  | BJ67: =MIN((AA163+AK31*D19)/AK39,(AA164+AK31*D19)/AL39,(AA165+AK31*D19)/AM39,(AA166+AK31*D19)/AN39,(AA167+AK31*D19)/AO39)*AP39 ->  | BK67: =MIN((AB163+AK31*D19)/AK39,(AB164+AK31*D19)/AL39,(AB165+AK31*D19)/AM39,(AB166+AK31*D19)/AN39,(AB167+AK31*D19)/AO39)*AP39 ->  | BL67: =MIN((AC163+AK31*D19)/AK39,(AC164+AK31*D19)/AL39,(AC165+AK31*D19)/AM39,(AC166+AK31*D19)/AN39,(AC167+AK31*D19)/AO39)*AP39 ->  | BM67: =MIN((AD163+AK31*D19)/AK39,(AD164+AK31*D19)/AL39,(AD165+AK31*D19)/AM39,(AD166+AK31*D19)/AN39,(AD167+AK31*D19)/AO39)*AP39 ->  | BN67: =MIN((AE163+AK31*D19)/AK39,(AE164+AK31*D19)/AL39,(AE165+AK31*D19)/AM39,(AE166+AK31*D19)/AN39,(AE167+AK31*D19)/AO39)*AP39 ->  | BO67: =MIN((AF163+AK31*D19)/AK39,(AF164+AK31*D19)/AL39,(AF165+AK31*D19)/AM39,(AF166+AK31*D19)/AN39,(AF167+AK31*D19)/AO39)*AP39 ->  | BS67: =IF(AV24=1,AI24,IF(AV25=1,AI25,BS80)) -> attente | BT67: =IF(AV16=1,AI16,IF(AV17=1,AI17,IF(AV18=1,AI18,IF(AV19=1,AI19,IF(AV20=1,AI20,IF(AV21=1,AI21,IF(AV22=1,AI22,IF(AV23=1,AI23,BS67)))))))) -> attente | BU67: =IF(AV24=1,AY68,IF(AV25=1,AY69,0)) -> 0 | BV67: =IF(AV16=1,AY60,IF(AV17=1,AY61,IF(AV18=1,AY62,IF(AV19=1,AY63,IF(AV20=1,AY64,IF(AV21=1,AY65,IF(AV22=1,AY66,IF(AV23=1,AY67,BU67)))))))) -> 0 | BW67: =IF(AV8=1,AY52,IF(AV9=1,AY53,IF(AV10=1,AY54,IF(AV11=1,AY55,IF(AV12=1,AY56,IF(AV13=1,AY57,IF(AV14=1,AY58,IF(AV15=1,AY59,BV67)))))))) -> 
E68: 0.7266 | F68: 1.0899 | G68: 1.8165 | H68: 0.81415 | I68: 0.54275 | J68: 1.3569 | K68: 1.0899 | L68: 1.63485 | M68: 2.72475 | N68: 0.68115 | O68: 0.68115 | P68: 1.3623 | R68: =K12+AH42+D16+D17+D21+D19*AG9 ->  | S68: =R68+Q13 ->  | T68: =R68+R13 ->  | U68: =R68+S13 ->  | V68: =R68+T13 ->  | W68: =R68+U13 ->  | X68: =R68+V13 ->  | Y68: =R68+W13 ->  | Z68: =R68+X13 ->  | AA68: =R68+Y13 ->  | AB68: =R68+Z13 ->  | AC68: =R68+AA13 ->  | AD68: =R68+AB13 ->  | AE68: =R68+AC13 ->  | AF68: =R68+AD13 ->  | AK68: =MIN((S170+AJ31*D19)/AK38,(S171+AJ31*D19)/AL38,(S172+AJ31*D19)/AM38,(S173+AJ31*D19)/AN38,(S174+AJ31*D19)/AO38)*AP38 ->  | AL68: =MIN((T170+AJ31*D19)/AK38,(T171+AJ31*D19)/AL38,(T172+AJ31*D19)/AM38,(T173+AJ31*D19)/AN38,(T174+AJ31*D19)/AO38)*AP38 ->  | AM68: =MIN((U170+AJ31*D19)/AK38,(U171+AJ31*D19)/AL38,(U172+AJ31*D19)/AM38,(U173+AJ31*D19)/AN38,(U174+AJ31*D19)/AO38)*AP38 ->  | AN68: =MIN((V170+AJ31*D19)/AK38,(V171+AJ31*D19)/AL38,(V172+AJ31*D19)/AM38,(V173+AJ31*D19)/AN38,(V174+AJ31*D19)/AO38)*AP38 ->  | AO68: =MIN((W170+AJ31*D19)/AK38,(W171+AJ31*D19)/AL38,(W172+AJ31*D19)/AM38,(W173+AJ31*D19)/AN38,(W174+AJ31*D19)/AO38)*AP38 ->  | AP68: =MIN((X170+AJ31*D19)/AK38,(X171+AJ31*D19)/AL38,(X172+AJ31*D19)/AM38,(X173+AJ31*D19)/AN38,(X174+AJ31*D19)/AO38)*AP38 ->  | AQ68: =MIN((Y170+AJ31*D19)/AK38,(Y171+AJ31*D19)/AL38,(Y172+AJ31*D19)/AM38,(Y173+AJ31*D19)/AN38,(Y174+AJ31*D19)/AO38)*AP38 ->  | AR68: =MIN((Z170+AJ31*D19)/AK38,(Z171+AJ31*D19)/AL38,(Z172+AJ31*D19)/AM38,(Z173+AJ31*D19)/AN38,(Z174+AJ31*D19)/AO38)*AP38 ->  | AS68: =MIN((AA170+AJ31*D19)/AK38,(AA171+AJ31*D19)/AL38,(AA172+AJ31*D19)/AM38,(AA173+AJ31*D19)/AN38,(AA174+AJ31*D19)/AO38)*AP38 ->  | AT68: =MIN((AB170+AJ31*D19)/AK38,(AB171+AJ31*D19)/AL38,(AB172+AJ31*D19)/AM38,(AB173+AJ31*D19)/AN38,(AB174+AJ31*D19)/AO38)*AP38 ->  | AU68: =MIN((AC170+AJ31*D19)/AK38,(AC171+AJ31*D19)/AL38,(AC172+AJ31*D19)/AM38,(AC173+AJ31*D19)/AN38,(AC174+AJ31*D19)/AO38)*AP38 ->  | AV68: =MIN((AD170+AJ31*D19)/AK38,(AD171+AJ31*D19)/AL38,(AD172+AJ31*D19)/AM38,(AD173+AJ31*D19)/AN38,(AD174+AJ31*D19)/AO38)*AP38 ->  | AW68: =MIN((AE170+AJ31*D19)/AK38,(AE171+AJ31*D19)/AL38,(AE172+AJ31*D19)/AM38,(AE173+AJ31*D19)/AN38,(AE174+AJ31*D19)/AO38)*AP38 ->  | AX68: =MIN((AF170+AJ31*D19)/AK38,(AF171+AJ31*D19)/AL38,(AF172+AJ31*D19)/AM38,(AF173+AJ31*D19)/AN38,(AF174+AJ31*D19)/AO38)*AP38 ->  | BB68: =MIN((S170+AK31*D19)/AK39,(S171+AK31*D19)/AL39,(S172+AK31*D19)/AM39,(S173+AK31*D19)/AN39,(S174+AK31*D19)/AO39)*AP39 ->  | BC68: =MIN((T170+AK31*D19)/AK39,(T171+AK31*D19)/AL39,(T172+AK31*D19)/AM39,(T173+AK31*D19)/AN39,(T174+AK31*D19)/AO39)*AP39 ->  | BD68: =MIN((U170+AK31*D19)/AK39,(U171+AK31*D19)/AL39,(U172+AK31*D19)/AM39,(U173+AK31*D19)/AN39,(U174+AK31*D19)/AO39)*AP39 ->  | BE68: =MIN((V170+AK31*D19)/AK39,(V171+AK31*D19)/AL39,(V172+AK31*D19)/AM39,(V173+AK31*D19)/AN39,(V174+AK31*D19)/AO39)*AP39 ->  | BF68: =MIN((W170+AK31*D19)/AK39,(W171+AK31*D19)/AL39,(W172+AK31*D19)/AM39,(W173+AK31*D19)/AN39,(W174+AK31*D19)/AO39)*AP39 ->  | BG68: =MIN((X170+AK31*D19)/AK39,(X171+AK31*D19)/AL39,(X172+AK31*D19)/AM39,(X173+AK31*D19)/AN39,(X174+AK31*D19)/AO39)*AP39 ->  | BH68: =MIN((Y170+AK31*D19)/AK39,(Y171+AK31*D19)/AL39,(Y172+AK31*D19)/AM39,(Y173+AK31*D19)/AN39,(Y174+AK31*D19)/AO39)*AP39 ->  | BI68: =MIN((Z170+AK31*D19)/AK39,(Z171+AK31*D19)/AL39,(Z172+AK31*D19)/AM39,(Z173+AK31*D19)/AN39,(Z174+AK31*D19)/AO39)*AP39 ->  | BJ68: =MIN((AA170+AK31*D19)/AK39,(AA171+AK31*D19)/AL39,(AA172+AK31*D19)/AM39,(AA173+AK31*D19)/AN39,(AA174+AK31*D19)/AO39)*AP39 ->  | BK68: =MIN((AB170+AK31*D19)/AK39,(AB171+AK31*D19)/AL39,(AB172+AK31*D19)/AM39,(AB173+AK31*D19)/AN39,(AB174+AK31*D19)/AO39)*AP39 ->  | BL68: =MIN((AC170+AK31*D19)/AK39,(AC171+AK31*D19)/AL39,(AC172+AK31*D19)/AM39,(AC173+AK31*D19)/AN39,(AC174+AK31*D19)/AO39)*AP39 ->  | BM68: =MIN((AD170+AK31*D19)/AK39,(AD171+AK31*D19)/AL39,(AD172+AK31*D19)/AM39,(AD173+AK31*D19)/AN39,(AD174+AK31*D19)/AO39)*AP39 ->  | BN68: =MIN((AE170+AK31*D19)/AK39,(AE171+AK31*D19)/AL39,(AE172+AK31*D19)/AM39,(AE173+AK31*D19)/AN39,(AE174+AK31*D19)/AO39)*AP39 ->  | BO68: =MIN((AF170+AK31*D19)/AK39,(AF171+AK31*D19)/AL39,(AF172+AK31*D19)/AM39,(AF173+AK31*D19)/AN39,(AF174+AK31*D19)/AO39)*AP39 ->  | BS68: =IF(AV24=2,AI24,IF(AV25=2,AI25,BS80)) -> attente | BT68: =IF(AV16=2,AI16,IF(AV17=2,AI17,IF(AV18=2,AI18,IF(AV19=2,AI19,IF(AV20=2,AI20,IF(AV21=2,AI21,IF(AV22=2,AI22,IF(AV23=2,AI23,BS68)))))))) -> attente | BU68: =IF(AV24=2,BP68,IF(AV25=2,BP69,0)) -> 0 | BV68: =IF(AV16=2,BP60,IF(AV17=2,BP61,IF(AV18=2,BP62,IF(AV19=2,BP63,IF(AV20=2,BP64,IF(AV21=2,BP65,IF(AV22=2,BP66,IF(AV23=2,BP67,BU68)))))))) -> 0 | BW68: =IF(AV8=2,BP52,IF(AV9=2,BP53,IF(AV10=2,BP54,IF(AV11=2,BP55,IF(AV12=2,BP56,IF(AV13=2,BP57,IF(AV14=2,BP58,IF(AV15=2,BP59,BV68)))))))) -> 
E69: 0.68115 | F69: 0.68115 | G69: 1.3623 | H69: 1.63485 | I69: 1.0899 | J69: 2.72475 | K69: 0.68115 | L69: 0.68115 | M69: 1.3623 | N69: 0.68115 | O69: 0.68115 | P69: 1.3623 | R69: =L12+AH43+D15+D17+D21+D19*AG9 ->  | S69: =R69+Q14 ->  | T69: =R69+R14 ->  | U69: =R69+S14 ->  | V69: =R69+T14 ->  | W69: =R69+U14 ->  | X69: =R69+V14 ->  | Y69: =R69+W14 ->  | Z69: =R69+X14 ->  | AA69: =R69+Y14 ->  | AB69: =R69+Z14 ->  | AC69: =R69+AA14 ->  | AD69: =R69+AB14 ->  | AE69: =R69+AC14 ->  | AF69: =R69+AD14 ->  | AK69: =MIN((S177+AJ31*D19)/AK38,(S178+AJ31*D19)/AL38,(S179+AJ31*D19)/AM38,(S180+AJ31*D19)/AN38,(S181+AJ31*D19)/AO38)*AP38 ->  | AL69: =MIN((T177+AJ31*D19)/AK38,(T178+AJ31*D19)/AL38,(T179+AJ31*D19)/AM38,(T180+AJ31*D19)/AN38,(T181+AJ31*D19)/AO38)*AP38 ->  | AM69: =MIN((U177+AJ31*D19)/AK38,(U178+AJ31*D19)/AL38,(U179+AJ31*D19)/AM38,(U180+AJ31*D19)/AN38,(U181+AJ31*D19)/AO38)*AP38 ->  | AN69: =MIN((V177+AJ31*D19)/AK38,(V178+AJ31*D19)/AL38,(V179+AJ31*D19)/AM38,(V180+AJ31*D19)/AN38,(V181+AJ31*D19)/AO38)*AP38 ->  | AO69: =MIN((W177+AJ31*D19)/AK38,(W178+AJ31*D19)/AL38,(W179+AJ31*D19)/AM38,(W180+AJ31*D19)/AN38,(W181+AJ31*D19)/AO38)*AP38 ->  | AP69: =MIN((X177+AJ31*D19)/AK38,(X178+AJ31*D19)/AL38,(X179+AJ31*D19)/AM38,(X180+AJ31*D19)/AN38,(X181+AJ31*D19)/AO38)*AP38 ->  | AQ69: =MIN((Y177+AJ31*D19)/AK38,(Y178+AJ31*D19)/AL38,(Y179+AJ31*D19)/AM38,(Y180+AJ31*D19)/AN38,(Y181+AJ31*D19)/AO38)*AP38 ->  | AR69: =MIN((Z177+AJ31*D19)/AK38,(Z178+AJ31*D19)/AL38,(Z179+AJ31*D19)/AM38,(Z180+AJ31*D19)/AN38,(Z181+AJ31*D19)/AO38)*AP38 ->  | AS69: =MIN((AA177+AJ31*D19)/AK38,(AA178+AJ31*D19)/AL38,(AA179+AJ31*D19)/AM38,(AA180+AJ31*D19)/AN38,(AA181+AJ31*D19)/AO38)*AP38 ->  | AT69: =MIN((AB177+AJ31*D19)/AK38,(AB178+AJ31*D19)/AL38,(AB179+AJ31*D19)/AM38,(AB180+AJ31*D19)/AN38,(AB181+AJ31*D19)/AO38)*AP38 ->  | AU69: =MIN((AC177+AJ31*D19)/AK38,(AC178+AJ31*D19)/AL38,(AC179+AJ31*D19)/AM38,(AC180+AJ31*D19)/AN38,(AC181+AJ31*D19)/AO38)*AP38 ->  | AV69: =MIN((AD177+AJ31*D19)/AK38,(AD178+AJ31*D19)/AL38,(AD179+AJ31*D19)/AM38,(AD180+AJ31*D19)/AN38,(AD181+AJ31*D19)/AO38)*AP38 ->  | AW69: =MIN((AE177+AJ31*D19)/AK38,(AE178+AJ31*D19)/AL38,(AE179+AJ31*D19)/AM38,(AE180+AJ31*D19)/AN38,(AE181+AJ31*D19)/AO38)*AP38 ->  | AX69: =MIN((AF177+AJ31*D19)/AK38,(AF178+AJ31*D19)/AL38,(AF179+AJ31*D19)/AM38,(AF180+AJ31*D19)/AN38,(AF181+AJ31*D19)/AO38)*AP38 ->  | BB69: =MIN((S177+AK31*D19)/AK39,(S178+AK31*D19)/AL39,(S179+AK31*D19)/AM39,(S180+AK31*D19)/AN39,(S181+AK31*D19)/AO39)*AP39 ->  | BC69: =MIN((T177+AK31*D19)/AK39,(T178+AK31*D19)/AL39,(T179+AK31*D19)/AM39,(T180+AK31*D19)/AN39,(T181+AK31*D19)/AO39)*AP39 ->  | BD69: =MIN((U177+AK31*D19)/AK39,(U178+AK31*D19)/AL39,(U179+AK31*D19)/AM39,(U180+AK31*D19)/AN39,(U181+AK31*D19)/AO39)*AP39 ->  | BE69: =MIN((V177+AK31*D19)/AK39,(V178+AK31*D19)/AL39,(V179+AK31*D19)/AM39,(V180+AK31*D19)/AN39,(V181+AK31*D19)/AO39)*AP39 ->  | BF69: =MIN((W177+AK31*D19)/AK39,(W178+AK31*D19)/AL39,(W179+AK31*D19)/AM39,(W180+AK31*D19)/AN39,(W181+AK31*D19)/AO39)*AP39 ->  | BG69: =MIN((X177+AK31*D19)/AK39,(X178+AK31*D19)/AL39,(X179+AK31*D19)/AM39,(X180+AK31*D19)/AN39,(X181+AK31*D19)/AO39)*AP39 ->  | BH69: =MIN((Y177+AK31*D19)/AK39,(Y178+AK31*D19)/AL39,(Y179+AK31*D19)/AM39,(Y180+AK31*D19)/AN39,(Y181+AK31*D19)/AO39)*AP39 ->  | BI69: =MIN((Z177+AK31*D19)/AK39,(Z178+AK31*D19)/AL39,(Z179+AK31*D19)/AM39,(Z180+AK31*D19)/AN39,(Z181+AK31*D19)/AO39)*AP39 ->  | BJ69: =MIN((AA177+AK31*D19)/AK39,(AA178+AK31*D19)/AL39,(AA179+AK31*D19)/AM39,(AA180+AK31*D19)/AN39,(AA181+AK31*D19)/AO39)*AP39 ->  | BK69: =MIN((AB177+AK31*D19)/AK39,(AB178+AK31*D19)/AL39,(AB179+AK31*D19)/AM39,(AB180+AK31*D19)/AN39,(AB181+AK31*D19)/AO39)*AP39 ->  | BL69: =MIN((AC177+AK31*D19)/AK39,(AC178+AK31*D19)/AL39,(AC179+AK31*D19)/AM39,(AC180+AK31*D19)/AN39,(AC181+AK31*D19)/AO39)*AP39 ->  | BM69: =MIN((AD177+AK31*D19)/AK39,(AD178+AK31*D19)/AL39,(AD179+AK31*D19)/AM39,(AD180+AK31*D19)/AN39,(AD181+AK31*D19)/AO39)*AP39 ->  | BN69: =MIN((AE177+AK31*D19)/AK39,(AE178+AK31*D19)/AL39,(AE179+AK31*D19)/AM39,(AE180+AK31*D19)/AN39,(AE181+AK31*D19)/AO39)*AP39 ->  | BO69: =MIN((AF177+AK31*D19)/AK39,(AF178+AK31*D19)/AL39,(AF179+AK31*D19)/AM39,(AF180+AK31*D19)/AN39,(AF181+AK31*D19)/AO39)*AP39 ->  | BS69: =IF(AV24=3,AI24,IF(AV25=3,AI25,BS80)) -> attente | BT69: =IF(AV16=3,AI16,IF(AV17=3,AI17,IF(AV18=3,AI18,IF(AV19=3,AI19,IF(AV20=3,AI20,IF(AV21=3,AI21,IF(AV22=3,AI22,IF(AV23=3,AI23,BS69)))))))) -> attente | BU69: =IF(AV24=3,AY91,IF(AV25=3,AY92,0)) -> 0 | BV69: =IF(AV16=3,AY83,IF(AV17=3,AY84,IF(AV18=3,AY85,IF(AV19=3,AY86,IF(AV20=3,AY87,IF(AV21=3,AY88,IF(AV22=3,AY89,IF(AV23=3,AY90,BU69)))))))) -> 0 | BW69: =IF(AV8=3,AY75,IF(AV9=3,AY76,IF(AV10=3,AY77,IF(AV11=3,AY78,IF(AV12=3,AY79,IF(AV13=3,AY80,IF(AV14=3,AY81,IF(AV15=3,AY82,BV69)))))))) -> 
E70: 1.58945 | F70: 0.68115 | G70: 2.2706 | H70: 2.04355 | I70: 0.22705 | J70: 2.2706 | K70: 1.27155 | L70: 0.54495 | M70: 1.8165 | N70: 1.27155 | O70: 0.54495 | P70: 1.8165 | AJ70: 0 | AK70: =MIN((S184+AJ31*D19)/AK38,(S185+AJ31*D19)/AL38,(S186+AJ31*D19)/AM38,(S187+AJ31*D19)/AN38,(S188+AJ31*D19)/AO38)*AP38 ->  | AL70: =MIN((T184+AJ31*D19)/AK38,(T185+AJ31*D19)/AL38,(T186+AJ31*D19)/AM38,(T187+AJ31*D19)/AN38,(T188+AJ31*D19)/AO38)*AP38 ->  | AM70: =MIN((U184+AJ31*D19)/AK38,(U185+AJ31*D19)/AL38,(U186+AJ31*D19)/AM38,(U187+AJ31*D19)/AN38,(U188+AJ31*D19)/AO38)*AP38 ->  | AN70: =MIN((V184+AJ31*D19)/AK38,(V185+AJ31*D19)/AL38,(V186+AJ31*D19)/AM38,(V187+AJ31*D19)/AN38,(V188+AJ31*D19)/AO38)*AP38 ->  | AO70: =MIN((W184+AJ31*D19)/AK38,(W185+AJ31*D19)/AL38,(W186+AJ31*D19)/AM38,(W187+AJ31*D19)/AN38,(W188+AJ31*D19)/AO38)*AP38 ->  | AP70: =MIN((X184+AJ31*D19)/AK38,(X185+AJ31*D19)/AL38,(X186+AJ31*D19)/AM38,(X187+AJ31*D19)/AN38,(X188+AJ31*D19)/AO38)*AP38 ->  | AQ70: =MIN((Y184+AJ31*D19)/AK38,(Y185+AJ31*D19)/AL38,(Y186+AJ31*D19)/AM38,(Y187+AJ31*D19)/AN38,(Y188+AJ31*D19)/AO38)*AP38 ->  | AR70: =MIN((Z184+AJ31*D19)/AK38,(Z185+AJ31*D19)/AL38,(Z186+AJ31*D19)/AM38,(Z187+AJ31*D19)/AN38,(Z188+AJ31*D19)/AO38)*AP38 ->  | AS70: =MIN((AA184+AJ31*D19)/AK38,(AA185+AJ31*D19)/AL38,(AA186+AJ31*D19)/AM38,(AA187+AJ31*D19)/AN38,(AA188+AJ31*D19)/AO38)*AP38 ->  | AT70: =MIN((AB184+AJ31*D19)/AK38,(AB185+AJ31*D19)/AL38,(AB186+AJ31*D19)/AM38,(AB187+AJ31*D19)/AN38,(AB188+AJ31*D19)/AO38)*AP38 ->  | AU70: =MIN((AC184+AJ31*D19)/AK38,(AC185+AJ31*D19)/AL38,(AC186+AJ31*D19)/AM38,(AC187+AJ31*D19)/AN38,(AC188+AJ31*D19)/AO38)*AP38 ->  | AV70: =MIN((AD184+AJ31*D19)/AK38,(AD185+AJ31*D19)/AL38,(AD186+AJ31*D19)/AM38,(AD187+AJ31*D19)/AN38,(AD188+AJ31*D19)/AO38)*AP38 ->  | AW70: =MIN((AE184+AJ31*D19)/AK38,(AE185+AJ31*D19)/AL38,(AE186+AJ31*D19)/AM38,(AE187+AJ31*D19)/AN38,(AE188+AJ31*D19)/AO38)*AP38 ->  | AX70: =MIN((AF184+AJ31*D19)/AK38,(AF185+AJ31*D19)/AL38,(AF186+AJ31*D19)/AM38,(AF187+AJ31*D19)/AN38,(AF188+AJ31*D19)/AO38)*AP38 ->  | BA70: 0 | BB70: =MIN((S184+AK31*D19)/AK39,(S185+AK31*D19)/AL39,(S186+AK31*D19)/AM39,(S187+AK31*D19)/AN39,(S188+AK31*D19)/AO39)*AP39 ->  | BC70: =MIN((T184+AK31*D19)/AK39,(T185+AK31*D19)/AL39,(T186+AK31*D19)/AM39,(T187+AK31*D19)/AN39,(T188+AK31*D19)/AO39)*AP39 ->  | BD70: =MIN((U184+AK31*D19)/AK39,(U185+AK31*D19)/AL39,(U186+AK31*D19)/AM39,(U187+AK31*D19)/AN39,(U188+AK31*D19)/AO39)*AP39 ->  | BE70: =MIN((V184+AK31*D19)/AK39,(V185+AK31*D19)/AL39,(V186+AK31*D19)/AM39,(V187+AK31*D19)/AN39,(V188+AK31*D19)/AO39)*AP39 ->  | BF70: =MIN((W184+AK31*D19)/AK39,(W185+AK31*D19)/AL39,(W186+AK31*D19)/AM39,(W187+AK31*D19)/AN39,(W188+AK31*D19)/AO39)*AP39 ->  | BG70: =MIN((X184+AK31*D19)/AK39,(X185+AK31*D19)/AL39,(X186+AK31*D19)/AM39,(X187+AK31*D19)/AN39,(X188+AK31*D19)/AO39)*AP39 ->  | BH70: =MIN((Y184+AK31*D19)/AK39,(Y185+AK31*D19)/AL39,(Y186+AK31*D19)/AM39,(Y187+AK31*D19)/AN39,(Y188+AK31*D19)/AO39)*AP39 ->  | BI70: =MIN((Z184+AK31*D19)/AK39,(Z185+AK31*D19)/AL39,(Z186+AK31*D19)/AM39,(Z187+AK31*D19)/AN39,(Z188+AK31*D19)/AO39)*AP39 ->  | BJ70: =MIN((AA184+AK31*D19)/AK39,(AA185+AK31*D19)/AL39,(AA186+AK31*D19)/AM39,(AA187+AK31*D19)/AN39,(AA188+AK31*D19)/AO39)*AP39 ->  | BK70: =MIN((AB184+AK31*D19)/AK39,(AB185+AK31*D19)/AL39,(AB186+AK31*D19)/AM39,(AB187+AK31*D19)/AN39,(AB188+AK31*D19)/AO39)*AP39 ->  | BL70: =MIN((AC184+AK31*D19)/AK39,(AC185+AK31*D19)/AL39,(AC186+AK31*D19)/AM39,(AC187+AK31*D19)/AN39,(AC188+AK31*D19)/AO39)*AP39 ->  | BM70: =MIN((AD184+AK31*D19)/AK39,(AD185+AK31*D19)/AL39,(AD186+AK31*D19)/AM39,(AD187+AK31*D19)/AN39,(AD188+AK31*D19)/AO39)*AP39 ->  | BN70: =MIN((AE184+AK31*D19)/AK39,(AE185+AK31*D19)/AL39,(AE186+AK31*D19)/AM39,(AE187+AK31*D19)/AN39,(AE188+AK31*D19)/AO39)*AP39 ->  | BO70: =MIN((AF184+AK31*D19)/AK39,(AF185+AK31*D19)/AL39,(AF186+AK31*D19)/AM39,(AF187+AK31*D19)/AN39,(AF188+AK31*D19)/AO39)*AP39 ->  | BS70: =IF(AV24=4,AI24,IF(AV25=4,AI25,BS80)) -> attente | BT70: =IF(AV16=4,AI16,IF(AV17=4,AI17,IF(AV18=4,AI18,IF(AV19=4,AI19,IF(AV20=4,AI20,IF(AV21=4,AI21,IF(AV22=4,AI22,IF(AV23=4,AI23,BS70)))))))) -> attente | BU70: =IF(AV24=4,BP91,IF(AV25=4,BP92,0)) -> 0 | BV70: =IF(AV16=4,BP83,IF(AV17=4,BP84,IF(AV18=4,BP85,IF(AV19=4,BP86,IF(AV20=4,BP87,IF(AV21=4,BP88,IF(AV22=4,BP89,IF(AV23=4,BP90,BU70)))))))) -> 0 | BW70: =IF(AV8=4,BP75,IF(AV9=4,BP76,IF(AV10=4,BP77,IF(AV11=4,BP78,IF(AV12=4,BP79,IF(AV13=4,BP80,IF(AV14=4,BP81,IF(AV15=4,BP82,BV70)))))))) -> 
E71: 0.7266 | F71: 1.0899 | G71: 1.8165 | H71: 1.0899 | I71: 0.7266 | J71: 1.8165 | K71: 0.95365 | L71: 0.4087 | M71: 1.36235 | N71: 1.36235 | O71: 1.36235 | P71: 2.7247 | R71: =G13 ->  | S71: =S64 -> kit 1 | T71: =T64 -> kit 2A | U71: =U64 -> kit 2B | V71: =V64 -> kit 4A | W71: =W64 -> kit 4B | X71: kit 5 | Y71: kit 6A | Z71: kit 6B | AA71: kit 7 | AB71: kit 8 | AC71: kit 9A | AD71: kit 9B | AE71: =AE64 -> kit 10 | AF71: =AF64 -> kit 11 | AJ71: 0 | AK71: =MIN((S191+AJ31*D19)/AK38,(S192+AJ31*D19)/AL38,(S193+AJ31*D19)/AM38,(S194+AJ31*D19)/AN38,(S195+AJ31*D19)/AO38)*AP38 ->  | AL71: =MIN((T191+AJ31*D19)/AK38,(T192+AJ31*D19)/AL38,(T193+AJ31*D19)/AM38,(T194+AJ31*D19)/AN38,(T195+AJ31*D19)/AO38)*AP38 ->  | AM71: =MIN((U191+AJ31*D19)/AK38,(U192+AJ31*D19)/AL38,(U193+AJ31*D19)/AM38,(U194+AJ31*D19)/AN38,(U195+AJ31*D19)/AO38)*AP38 ->  | AN71: =MIN((V191+AJ31*D19)/AK38,(V192+AJ31*D19)/AL38,(V193+AJ31*D19)/AM38,(V194+AJ31*D19)/AN38,(V195+AJ31*D19)/AO38)*AP38 ->  | AO71: =MIN((W191+AJ31*D19)/AK38,(W192+AJ31*D19)/AL38,(W193+AJ31*D19)/AM38,(W194+AJ31*D19)/AN38,(W195+AJ31*D19)/AO38)*AP38 ->  | AP71: =MIN((X191+AJ31*D19)/AK38,(X192+AJ31*D19)/AL38,(X193+AJ31*D19)/AM38,(X194+AJ31*D19)/AN38,(X195+AJ31*D19)/AO38)*AP38 ->  | AQ71: =MIN((Y191+AJ31*D19)/AK38,(Y192+AJ31*D19)/AL38,(Y193+AJ31*D19)/AM38,(Y194+AJ31*D19)/AN38,(Y195+AJ31*D19)/AO38)*AP38 ->  | AR71: =MIN((Z191+AJ31*D19)/AK38,(Z192+AJ31*D19)/AL38,(Z193+AJ31*D19)/AM38,(Z194+AJ31*D19)/AN38,(Z195+AJ31*D19)/AO38)*AP38 ->  | AS71: =MIN((AA191+AJ31*D19)/AK38,(AA192+AJ31*D19)/AL38,(AA193+AJ31*D19)/AM38,(AA194+AJ31*D19)/AN38,(AA195+AJ31*D19)/AO38)*AP38 ->  | AT71: =MIN((AB191+AJ31*D19)/AK38,(AB192+AJ31*D19)/AL38,(AB193+AJ31*D19)/AM38,(AB194+AJ31*D19)/AN38,(AB195+AJ31*D19)/AO38)*AP38 ->  | AU71: =MIN((AC191+AJ31*D19)/AK38,(AC192+AJ31*D19)/AL38,(AC193+AJ31*D19)/AM38,(AC194+AJ31*D19)/AN38,(AC195+AJ31*D19)/AO38)*AP38 ->  | AV71: =MIN((AD191+AJ31*D19)/AK38,(AD192+AJ31*D19)/AL38,(AD193+AJ31*D19)/AM38,(AD194+AJ31*D19)/AN38,(AD195+AJ31*D19)/AO38)*AP38 ->  | AW71: =MIN((AE191+AJ31*D19)/AK38,(AE192+AJ31*D19)/AL38,(AE193+AJ31*D19)/AM38,(AE194+AJ31*D19)/AN38,(AE195+AJ31*D19)/AO38)*AP38 ->  | AX71: =MIN((AF191+AJ31*D19)/AK38,(AF192+AJ31*D19)/AL38,(AF193+AJ31*D19)/AM38,(AF194+AJ31*D19)/AN38,(AF195+AJ31*D19)/AO38)*AP38 ->  | BA71: 0 | BB71: =MIN((S191+AK31*D19)/AK39,(S192+AK31*D19)/AL39,(S193+AK31*D19)/AM39,(S194+AK31*D19)/AN39,(S195+AK31*D19)/AO39)*AP39 ->  | BC71: =MIN((T191+AK31*D19)/AK39,(T192+AK31*D19)/AL39,(T193+AK31*D19)/AM39,(T194+AK31*D19)/AN39,(T195+AK31*D19)/AO39)*AP39 ->  | BS71: =IF(AV24=5,AI24,IF(AV25=5,AI25,BS80)) -> attente | BT71: =IF(AV16=5,AI16,IF(AV17=5,AI17,IF(AV18=5,AI18,IF(AV19=5,AI19,IF(AV20=5,AI20,IF(AV21=5,AI21,IF(AV22=5,AI22,IF(AV23=5,AI23,BS71)))))))) -> attente | BU71: =IF(AV24=5,AY114,IF(AV25=5,AY115,0)) -> 0 | BV71: =IF(AV16=5,AY106,IF(AV17=5,AY107,IF(AV18=5,AY108,IF(AV19=5,AY109,IF(AV20=5,AY110,IF(AV21=5,AY111,IF(AV22=5,AY112,IF(AV23=5,AY113,BU71)))))))) -> 0 | BW71: =IF(AV8=5,AY98,IF(AV9=5,AY99,IF(AV10=5,AY100,IF(AV11=5,AY101,IF(AV12=5,AY102,IF(AV13=5,AY103,IF(AV14=5,AY104,IF(AV15=5,AY105,BV71)))))))) -> 
E72: 0.8174 | F72: 0.54495 | G72: 1.36235 | H72: 1.63485 | I72: 1.0899 | J72: 2.72475 | K72: 1.0899 | L72: 0.7266 | M72: 1.8165 | N72: 1.27155 | O72: 0.54495 | P72: 1.8165 | R72: =H13+AH39+D16+D17+D21+D19*AG10 ->  | S72: =R72+Q10 ->  | T72: =R72+R10 ->  | U72: =R72+S10 ->  | V72: =R72+T10 ->  | W72: =R72+U10 ->  | X72: =R72+V10 ->  | Y72: =R72+W10 ->  | Z72: =R72+X10 ->  | AA72: =R72+Y10 ->  | AB72: =R72+Z10 ->  | AC72: =R72+AA10 ->  | AD72: =R72+AB10 ->  | AE72: =R72+AC10 ->  | AF72: =R72+AD10 ->  | AJ72: 0 | AK72: =MIN((S198+AJ31*D19)/AK38,(S199+AJ31*D19)/AL38,(S200+AJ31*D19)/AM38,(S201+AJ31*D19)/AN38,(S202+AJ31*D19)/AO38)*AP38 ->  | AL72: =MIN((T198+AJ31*D19)/AK38,(T199+AJ31*D19)/AL38,(T200+AJ31*D19)/AM38,(T201+AJ31*D19)/AN38,(T202+AJ31*D19)/AO38)*AP38 ->  | AM72: =MIN((U198+AJ31*D19)/AK38,(U199+AJ31*D19)/AL38,(U200+AJ31*D19)/AM38,(U201+AJ31*D19)/AN38,(U202+AJ31*D19)/AO38)*AP38 ->  | AN72: =MIN((V198+AJ31*D19)/AK38,(V199+AJ31*D19)/AL38,(V200+AJ31*D19)/AM38,(V201+AJ31*D19)/AN38,(V202+AJ31*D19)/AO38)*AP38 ->  | AO72: =MIN((W198+AJ31*D19)/AK38,(W199+AJ31*D19)/AL38,(W200+AJ31*D19)/AM38,(W201+AJ31*D19)/AN38,(W202+AJ31*D19)/AO38)*AP38 ->  | AP72: =MIN((X198+AJ31*D19)/AK38,(X199+AJ31*D19)/AL38,(X200+AJ31*D19)/AM38,(X201+AJ31*D19)/AN38,(X202+AJ31*D19)/AO38)*AP38 ->  | AQ72: =MIN((Y198+AJ31*D19)/AK38,(Y199+AJ31*D19)/AL38,(Y200+AJ31*D19)/AM38,(Y201+AJ31*D19)/AN38,(Y202+AJ31*D19)/AO38)*AP38 ->  | AR72: =MIN((Z198+AJ31*D19)/AK38,(Z199+AJ31*D19)/AL38,(Z200+AJ31*D19)/AM38,(Z201+AJ31*D19)/AN38,(Z202+AJ31*D19)/AO38)*AP38 ->  | AS72: =MIN((AA198+AJ31*D19)/AK38,(AA199+AJ31*D19)/AL38,(AA200+AJ31*D19)/AM38,(AA201+AJ31*D19)/AN38,(AA202+AJ31*D19)/AO38)*AP38 ->  | AT72: =MIN((AB198+AJ31*D19)/AK38,(AB199+AJ31*D19)/AL38,(AB200+AJ31*D19)/AM38,(AB201+AJ31*D19)/AN38,(AB202+AJ31*D19)/AO38)*AP38 ->  | AU72: =MIN((AC198+AJ31*D19)/AK38,(AC199+AJ31*D19)/AL38,(AC200+AJ31*D19)/AM38,(AC201+AJ31*D19)/AN38,(AC202+AJ31*D19)/AO38)*AP38 ->  | AV72: =MIN((AD198+AJ31*D19)/AK38,(AD199+AJ31*D19)/AL38,(AD200+AJ31*D19)/AM38,(AD201+AJ31*D19)/AN38,(AD202+AJ31*D19)/AO38)*AP38 ->  | AW72: =MIN((AE198+AJ31*D19)/AK38,(AE199+AJ31*D19)/AL38,(AE200+AJ31*D19)/AM38,(AE201+AJ31*D19)/AN38,(AE202+AJ31*D19)/AO38)*AP38 ->  | AX72: =MIN((AF198+AJ31*D19)/AK38,(AF199+AJ31*D19)/AL38,(AF200+AJ31*D19)/AM38,(AF201+AJ31*D19)/AN38,(AF202+AJ31*D19)/AO38)*AP38 ->  | BA72: 0 | BP72: 0 | BS72: =IF(AV24=6,AI24,IF(AV25=6,AI25,BS80)) -> attente | BT72: =IF(AV16=6,AI16,IF(AV17=6,AI17,IF(AV18=6,AI18,IF(AV19=6,AI19,IF(AV20=6,AI20,IF(AV21=6,AI21,IF(AV22=6,AI22,IF(AV23=6,AI23,BS72)))))))) -> attente | BU72: =IF(AV24=6,BP114,IF(AV25=6,BP115,0)) -> 0 | BV72: =IF(AV16=6,BP106,IF(AV17=6,BP107,IF(AV18=6,BP108,IF(AV19=6,BP109,IF(AV20=6,BP110,IF(AV21=6,BP111,IF(AV22=6,BP112,IF(AV23=6,BP113,BU72)))))))) -> 0 | BW72: =IF(AV8=6,BP98,IF(AV9=6,BP99,IF(AV10=6,BP100,IF(AV11=6,BP101,IF(AV12=6,BP102,IF(AV13=6,BP103,IF(AV14=6,BP104,IF(AV15=6,BP105,BV72)))))))) -> 
G73: =SUM(G62:G72) -> 19.98125 | J73: =SUM(J62:J72) -> 19.97575 | M73: =SUM(M62:M72) -> 19.9812 | P73: =SUM(P62:P72) -> 19.9812 | R73: =I13+AH40+D15+D17+D21+D19*AG10 ->  | S73: =R73+Q11 ->  | T73: =R73+R11 ->  | U73: =R73+S11 ->  | V73: =R73+T11 ->  | W73: =R73+U11 ->  | X73: =R73+V11 ->  | Y73: =R73+W11 ->  | Z73: =R73+X11 ->  | AA73: =R73+Y11 ->  | AB73: =R73+Z11 ->  | AC73: =R73+AA11 ->  | AD73: =R73+AB11 ->  | AE73: =R73+AC11 ->  | AF73: =R73+AD11 ->  | BS73: =IF(AV24=7,AI24,IF(AV25=7,AI25,BS80)) -> attente | BT73: =IF(AV16=7,AI16,IF(AV17=7,AI17,IF(AV18=7,AI18,IF(AV19=7,AI19,IF(AV20=7,AI20,IF(AV21=7,AI21,IF(AV22=7,AI22,IF(AV23=7,AI23,BS73)))))))) -> attente | BU73: =IF(AV24=7,AY137,IF(AV25=7,AY138,0)) -> 0 | BV73: =IF(AV16=7,AY129,IF(AV17=7,AY130,IF(AV18=7,AY131,IF(AV19=7,AY132,IF(AV20=7,AY133,IF(AV21=7,AY134,IF(AV22=7,AY135,IF(AV23=7,AY136,BU73)))))))) -> 0 | BW73: =IF(AV8=7,AY121,IF(AV9=7,AY122,IF(AV10=7,AY123,IF(AV11=7,AY124,IF(AV12=7,AY125,IF(AV13=7,AY126,IF(AV14=7,AY127,IF(AV15=7,AY128,BV73)))))))) -> 
E74: 541 neutre | H74: 433 neutre | K74: 352 neutre | N74: 442 neutre | R74: =J13+AH41+D15+D17+D21+D19*AG10 ->  | S74: =R74+Q12 ->  | T74: =R74+R12 ->  | U74: =R74+S12 ->  | V74: =R74+T12 ->  | W74: =R74+U12 ->  | X74: =R74+V12 ->  | Y74: =R74+W12 ->  | Z74: =R74+X12 ->  | AA74: =R74+Y12 ->  | AB74: =R74+Z12 ->  | AC74: =R74+AA12 ->  | AD74: =R74+AB12 ->  | AE74: =R74+AC12 ->  | AF74: =R74+AD12 ->  | AJ74: 3 | AK74: =Q9 -> kit 1 | AL74: kit 2A | AM74: kit 2B | AN74: kit 4A | AO74: kit 4B | AP74: kit 5 | AQ74: kit 6A | AR74: kit 6B | AS74: kit 7 | AT74: kit 8 | AU74: kit 9A | AV74: kit 9B | AW74: kit 10 | AX74: kit 11 | AY74: MAX | BA74: 4 | BB74: =Q9 -> kit 1 | BC74: kit 2A | BD74: kit 2B | BE74: kit 4A | BF74: kit 4B | BG74: kit 5 | BH74: kit 6A | BI74: kit 6B | BJ74: kit 7 | BK74: kit 8 | BL74: kit 9A | BM74: kit 9B | BN74: kit 10 | BO74: kit 11 | BP74: MAX | BS74: =IF(AV24=8,AI24,IF(AV25=8,AI25,BS80)) -> attente | BT74: =IF(AV16=8,AI16,IF(AV17=8,AI17,IF(AV18=8,AI18,IF(AV19=8,AI19,IF(AV20=8,AI20,IF(AV21=8,AI21,IF(AV22=8,AI22,IF(AV23=8,AI23,BS74)))))))) -> attente | BU74: =IF(AV24=8,BP137,IF(AV25=8,BP138,0)) -> 0 | BV74: =IF(AV16=8,BP129,IF(AV17=8,BP130,IF(AV18=8,BP131,IF(AV19=8,BP132,IF(AV20=8,BP133,IF(AV21=8,BP134,IF(AV22=8,BP135,IF(AV23=8,BP136,BU74)))))))) -> 0 | BW74: =IF(AV8=8,BP121,IF(AV9=8,BP122,IF(AV10=8,BP123,IF(AV11=8,BP124,IF(AV12=8,BP125,IF(AV13=8,BP126,IF(AV14=8,BP127,IF(AV15=8,BP128,BV74)))))))) -> 
E75: 1% attaque | F75: 1% defense | G75: 1% cumulé | H75: 1% attaque | I75: 1% defense | J75: 1% cumulé | K75: 1% attaque | L75: 1% defense | M75: 1% cumulé | N75: 1% attaque | O75: 1% defense | P75: 1% cumulé | R75: =K13+AH42+D16+D17+D21+D19*AG10 ->  | S75: =R75+Q13 ->  | T75: =R75+R13 ->  | U75: =R75+S13 ->  | V75: =R75+T13 ->  | W75: =R75+U13 ->  | X75: =R75+V13 ->  | Y75: =R75+W13 ->  | Z75: =R75+X13 ->  | AA75: =R75+Y13 ->  | AB75: =R75+Z13 ->  | AC75: =R75+AA13 ->  | AD75: =R75+AB13 ->  | AE75: =R75+AC13 ->  | AF75: =R75+AD13 ->  | AJ75: =AJ167 ->  | AK75: =MIN((S58+AL31*D19)/AK40,(S59+AL31*D19)/AL40,(S60+AL31*D19)/AM40,(S61+AL31*D19)/AN40,(S62+AL31*D19)/AO40)*AP40 ->  | AL75: =MIN((T58+AL31*D19)/AK40,(T59+AL31*D19)/AL40,(T60+AL31*D19)/AM40,(T61+AL31*D19)/AN40,(T62+AL31*D19)/AO40)*AP40 ->  | AM75: =MIN((U58+AL31*D19)/AK40,(U59+AL31*D19)/AL40,(U60+AL31*D19)/AM40,(U61+AL31*D19)/AN40,(U62+AL31*D19)/AO40)*AP40 ->  | AN75: =MIN((V58+AL31*D19)/AK40,(V59+AL31*D19)/AL40,(V60+AL31*D19)/AM40,(V61+AL31*D19)/AN40,(V62+AL31*D19)/AO40)*AP40 ->  | AO75: =MIN((W58+AL31*D19)/AK40,(W59+AL31*D19)/AL40,(W60+AL31*D19)/AM40,(W61+AL31*D19)/AN40,(W62+AL31*D19)/AO40)*AP40 ->  | AP75: =MIN((X58+AL31*D19)/AK40,(X59+AL31*D19)/AL40,(X60+AL31*D19)/AM40,(X61+AL31*D19)/AN40,(X62+AL31*D19)/AO40)*AP40 ->  | AQ75: =MIN((Y58+AL31*D19)/AK40,(Y59+AL31*D19)/AL40,(Y60+AL31*D19)/AM40,(Y61+AL31*D19)/AN40,(Y62+AL31*D19)/AO40)*AP40 ->  | AR75: =MIN((Z58+AL31*D19)/AK40,(Z59+AL31*D19)/AL40,(Z60+AL31*D19)/AM40,(Z61+AL31*D19)/AN40,(Z62+AL31*D19)/AO40)*AP40 ->  | AS75: =MIN((AA58+AL31*D19)/AK40,(AA59+AL31*D19)/AL40,(AA60+AL31*D19)/AM40,(AA61+AL31*D19)/AN40,(AA62+AL31*D19)/AO40)*AP40 ->  | AT75: =MIN((AB58+AL31*D19)/AK40,(AB59+AL31*D19)/AL40,(AB60+AL31*D19)/AM40,(AB61+AL31*D19)/AN40,(AB62+AL31*D19)/AO40)*AP40 ->  | AU75: =MIN((AC58+AL31*D19)/AK40,(AC59+AL31*D19)/AL40,(AC60+AL31*D19)/AM40,(AC61+AL31*D19)/AN40,(AC62+AL31*D19)/AO40)*AP40 ->  | AV75: =MIN((AD58+AL31*D19)/AK40,(AD59+AL31*D19)/AL40,(AD60+AL31*D19)/AM40,(AD61+AL31*D19)/AN40,(AD62+AL31*D19)/AO40)*AP40 ->  | AW75: =MIN((AE58+AL31*D19)/AK40,(AE59+AL31*D19)/AL40,(AE60+AL31*D19)/AM40,(AE61+AL31*D19)/AN40,(AE62+AL31*D19)/AO40)*AP40 ->  | AX75: =MIN((AF58+AL31*D19)/AK40,(AF59+AL31*D19)/AL40,(AF60+AL31*D19)/AM40,(AF61+AL31*D19)/AN40,(AF62+AL31*D19)/AO40)*AP40 ->  | AY75: =MAX(AK75:AX75) ->  | BA75: =AJ167 ->  | BB75: =MIN((S58+AM31*D19)/AK41,(S59+AM31*D19)/AL41,(S60+AM31*D19)/AM41,(S61+AM31*D19)/AN41,(S62+AM31*D19)/AO41)*AP41 ->  | BC75: =MIN((T58+AM31*D19)/AK41,(T59+AM31*D19)/AL41,(T60+AM31*D19)/AM41,(T61+AM31*D19)/AN41,(T62+AM31*D19)/AO41)*AP41 ->  | BD75: =MIN((U58+AM31*D19)/AK41,(U59+AM31*D19)/AL41,(U60+AM31*D19)/AM41,(U61+AM31*D19)/AN41,(U62+AM31*D19)/AO41)*AP41 ->  | BE75: =MIN((V58+AM31*D19)/AK41,(V59+AM31*D19)/AL41,(V60+AM31*D19)/AM41,(V61+AM31*D19)/AN41,(V62+AM31*D19)/AO41)*AP41 ->  | BF75: =MIN((W58+AM31*D19)/AK41,(W59+AM31*D19)/AL41,(W60+AM31*D19)/AM41,(W61+AM31*D19)/AN41,(W62+AM31*D19)/AO41)*AP41 ->  | BG75: =MIN((X58+AM31*D19)/AK41,(X59+AM31*D19)/AL41,(X60+AM31*D19)/AM41,(X61+AM31*D19)/AN41,(X62+AM31*D19)/AO41)*AP41 ->  | BH75: =MIN((Y58+AM31*D19)/AK41,(Y59+AM31*D19)/AL41,(Y60+AM31*D19)/AM41,(Y61+AM31*D19)/AN41,(Y62+AM31*D19)/AO41)*AP41 ->  | BI75: =MIN((Z58+AM31*D19)/AK41,(Z59+AM31*D19)/AL41,(Z60+AM31*D19)/AM41,(Z61+AM31*D19)/AN41,(Z62+AM31*D19)/AO41)*AP41 ->  | BJ75: =MIN((AA58+AM31*D19)/AK41,(AA59+AM31*D19)/AL41,(AA60+AM31*D19)/AM41,(AA61+AM31*D19)/AN41,(AA62+AM31*D19)/AO41)*AP41 ->  | BK75: =MIN((AB58+AM31*D19)/AK41,(AB59+AM31*D19)/AL41,(AB60+AM31*D19)/AM41,(AB61+AM31*D19)/AN41,(AB62+AM31*D19)/AO41)*AP41 ->  | BL75: =MIN((AC58+AM31*D19)/AK41,(AC59+AM31*D19)/AL41,(AC60+AM31*D19)/AM41,(AC61+AM31*D19)/AN41,(AC62+AM31*D19)/AO41)*AP41 ->  | BM75: =MIN((AD58+AM31*D19)/AK41,(AD59+AM31*D19)/AL41,(AD60+AM31*D19)/AM41,(AD61+AM31*D19)/AN41,(AD62+AM31*D19)/AO41)*AP41 ->  | BN75: =MIN((AE58+AM31*D19)/AK41,(AE59+AM31*D19)/AL41,(AE60+AM31*D19)/AM41,(AE61+AM31*D19)/AN41,(AE62+AM31*D19)/AO41)*AP41 ->  | BO75: =MIN((AF58+AM31*D19)/AK41,(AF59+AM31*D19)/AL41,(AF60+AM31*D19)/AM41,(AF61+AM31*D19)/AN41,(AF62+AM31*D19)/AO41)*AP41 ->  | BP75: =MAX(BB75:BO75) ->  | BS75: =IF(AV24=9,AI24,IF(AV25=9,AI25,BS80)) -> attente | BT75: =IF(AV16=9,AI16,IF(AV17=9,AI17,IF(AV18=9,AI18,IF(AV19=9,AI19,IF(AV20=9,AI20,IF(AV21=9,AI21,IF(AV22=9,AI22,IF(AV23=9,AI23,BS75)))))))) ->  | BU75: =IF(AV24=9,AY160,IF(AV25=9,AY161,0)) -> 0 | BV75: =IF(AV16=9,AY152,IF(AV17=9,AY153,IF(AV18=9,AY154,IF(AV19=9,AY155,IF(AV20=9,AY156,IF(AV21=9,AY157,IF(AV22=9,AY158,IF(AV23=9,AY159,BU75)))))))) ->  | BW75: =IF(AV8=9,AY144,IF(AV9=9,AY145,IF(AV10=9,AY146,IF(AV11=9,AY147,IF(AV12=9,AY148,IF(AV13=9,AY149,IF(AV14=9,AY150,IF(AV15=9,AY151,BV75)))))))) -> 
E76: 0.05445 | F76: 2.67025 | G76: =E76+F76 -> 2.7247 | H76: 0.16345 | I76: 2.5613 | J76: =H76+I76 -> 2.72475 | K76: 0.05445 | L76: 2.67025 | M76: =K76+L76 -> 2.7247 | N76: 0.05445 | O76: 2.67025 | P76: =N76+O76 -> 2.7247 | R76: =L13+AH43+D15+D17+D21+D19*AG10 ->  | S76: =R76+Q14 ->  | T76: =R76+R14 ->  | U76: =R76+S14 ->  | V76: =R76+T14 ->  | W76: =R76+U14 ->  | X76: =R76+V14 ->  | Y76: =R76+W14 ->  | Z76: =R76+X14 ->  | AA76: =R76+Y14 ->  | AB76: =R76+Z14 ->  | AC76: =R76+AA14 ->  | AD76: =R76+AB14 ->  | AE76: =R76+AC14 ->  | AF76: =R76+AD14 ->  | AK76: =MIN((S65+AL31*D19)/AK40,(S66+AL31*D19)/AL40,(S67+AL31*D19)/AM40,(S68+AL31*D19)/AN40,(S69+AL31*D19)/AO40)*AP40 ->  | AL76: =MIN((T65+AL31*D19)/AK40,(T66+AL31*D19)/AL40,(T67+AL31*D19)/AM40,(T68+AL31*D19)/AN40,(T69+AL31*D19)/AO40)*AP40 ->  | AM76: =MIN((U65+AL31*D19)/AK40,(U66+AL31*D19)/AL40,(U67+AL31*D19)/AM40,(U68+AL31*D19)/AN40,(U69+AL31*D19)/AO40)*AP40 ->  | AN76: =MIN((V65+AL31*D19)/AK40,(V66+AL31*D19)/AL40,(V67+AL31*D19)/AM40,(V68+AL31*D19)/AN40,(V69+AL31*D19)/AO40)*AP40 ->  | AO76: =MIN((W65+AL31*D19)/AK40,(W66+AL31*D19)/AL40,(W67+AL31*D19)/AM40,(W68+AL31*D19)/AN40,(W69+AL31*D19)/AO40)*AP40 ->  | AP76: =MIN((X65+AL31*D19)/AK40,(X66+AL31*D19)/AL40,(X67+AL31*D19)/AM40,(X68+AL31*D19)/AN40,(X69+AL31*D19)/AO40)*AP40 ->  | AQ76: =MIN((Y65+AL31*D19)/AK40,(Y66+AL31*D19)/AL40,(Y67+AL31*D19)/AM40,(Y68+AL31*D19)/AN40,(Y69+AL31*D19)/AO40)*AP40 ->  | AR76: =MIN((Z65+AL31*D19)/AK40,(Z66+AL31*D19)/AL40,(Z67+AL31*D19)/AM40,(Z68+AL31*D19)/AN40,(Z69+AL31*D19)/AO40)*AP40 ->  | AS76: =MIN((AA65+AL31*D19)/AK40,(AA66+AL31*D19)/AL40,(AA67+AL31*D19)/AM40,(AA68+AL31*D19)/AN40,(AA69+AL31*D19)/AO40)*AP40 ->  | AT76: =MIN((AB65+AL31*D19)/AK40,(AB66+AL31*D19)/AL40,(AB67+AL31*D19)/AM40,(AB68+AL31*D19)/AN40,(AB69+AL31*D19)/AO40)*AP40 ->  | AU76: =MIN((AC65+AL31*D19)/AK40,(AC66+AL31*D19)/AL40,(AC67+AL31*D19)/AM40,(AC68+AL31*D19)/AN40,(AC69+AL31*D19)/AO40)*AP40 ->  | AV76: =MIN((AD65+AL31*D19)/AK40,(AD66+AL31*D19)/AL40,(AD67+AL31*D19)/AM40,(AD68+AL31*D19)/AN40,(AD69+AL31*D19)/AO40)*AP40 ->  | AW76: =MIN((AE65+AL31*D19)/AK40,(AE66+AL31*D19)/AL40,(AE67+AL31*D19)/AM40,(AE68+AL31*D19)/AN40,(AE69+AL31*D19)/AO40)*AP40 ->  | AX76: =MIN((AF65+AL31*D19)/AK40,(AF66+AL31*D19)/AL40,(AF67+AL31*D19)/AM40,(AF68+AL31*D19)/AN40,(AF69+AL31*D19)/AO40)*AP40 ->  | BB76: =MIN((S65+AM31*D19)/AK41,(S66+AM31*D19)/AL41,(S67+AM31*D19)/AM41,(S68+AM31*D19)/AN41,(S69+AM31*D19)/AO41)*AP41 ->  | BC76: =MIN((T65+AM31*D19)/AK41,(T66+AM31*D19)/AL41,(T67+AM31*D19)/AM41,(T68+AM31*D19)/AN41,(T69+AM31*D19)/AO41)*AP41 ->  | BD76: =MIN((U65+AM31*D19)/AK41,(U66+AM31*D19)/AL41,(U67+AM31*D19)/AM41,(U68+AM31*D19)/AN41,(U69+AM31*D19)/AO41)*AP41 ->  | BE76: =MIN((V65+AM31*D19)/AK41,(V66+AM31*D19)/AL41,(V67+AM31*D19)/AM41,(V68+AM31*D19)/AN41,(V69+AM31*D19)/AO41)*AP41 ->  | BF76: =MIN((W65+AM31*D19)/AK41,(W66+AM31*D19)/AL41,(W67+AM31*D19)/AM41,(W68+AM31*D19)/AN41,(W69+AM31*D19)/AO41)*AP41 ->  | BG76: =MIN((X65+AM31*D19)/AK41,(X66+AM31*D19)/AL41,(X67+AM31*D19)/AM41,(X68+AM31*D19)/AN41,(X69+AM31*D19)/AO41)*AP41 ->  | BH76: =MIN((Y65+AM31*D19)/AK41,(Y66+AM31*D19)/AL41,(Y67+AM31*D19)/AM41,(Y68+AM31*D19)/AN41,(Y69+AM31*D19)/AO41)*AP41 ->  | BI76: =MIN((Z65+AM31*D19)/AK41,(Z66+AM31*D19)/AL41,(Z67+AM31*D19)/AM41,(Z68+AM31*D19)/AN41,(Z69+AM31*D19)/AO41)*AP41 ->  | BJ76: =MIN((AA65+AM31*D19)/AK41,(AA66+AM31*D19)/AL41,(AA67+AM31*D19)/AM41,(AA68+AM31*D19)/AN41,(AA69+AM31*D19)/AO41)*AP41 ->  | BK76: =MIN((AB65+AM31*D19)/AK41,(AB66+AM31*D19)/AL41,(AB67+AM31*D19)/AM41,(AB68+AM31*D19)/AN41,(AB69+AM31*D19)/AO41)*AP41 ->  | BL76: =MIN((AC65+AM31*D19)/AK41,(AC66+AM31*D19)/AL41,(AC67+AM31*D19)/AM41,(AC68+AM31*D19)/AN41,(AC69+AM31*D19)/AO41)*AP41 ->  | BM76: =MIN((AD65+AM31*D19)/AK41,(AD66+AM31*D19)/AL41,(AD67+AM31*D19)/AM41,(AD68+AM31*D19)/AN41,(AD69+AM31*D19)/AO41)*AP41 ->  | BN76: =MIN((AE65+AM31*D19)/AK41,(AE66+AM31*D19)/AL41,(AE67+AM31*D19)/AM41,(AE68+AM31*D19)/AN41,(AE69+AM31*D19)/AO41)*AP41 ->  | BO76: =MIN((AF65+AM31*D19)/AK41,(AF66+AM31*D19)/AL41,(AF67+AM31*D19)/AM41,(AF68+AM31*D19)/AN41,(AF69+AM31*D19)/AO41)*AP41 ->  | BP76: =MAX(BB76:BO76) ->  | BS76: =IF(AV24=10,AI24,IF(AV25=10,AI25,BS80)) -> attente | BT76: =IF(AV16=10,AI16,IF(AV17=10,AI17,IF(AV18=10,AI18,IF(AV19=10,AI19,IF(AV20=10,AI20,IF(AV21=10,AI21,IF(AV22=10,AI22,IF(AV23=10,AI23,BS76)))))))) ->  | BU76: =IF(AV24=10,BP160,IF(AV25=10,BP161,0)) -> 0 | BV76: =IF(AV16=10,BP152,IF(AV17=10,BP153,IF(AV18=10,BP154,IF(AV19=10,BP155,IF(AV20=10,BP156,IF(AV21=10,BP157,IF(AV22=10,BP158,IF(AV23=10,BP159,BU76)))))))) ->  | BW76: =IF(AV8=10,BP144,IF(AV9=10,BP145,IF(AV10=10,BP146,IF(AV11=10,BP147,IF(AV12=10,BP148,IF(AV13=10,BP149,IF(AV14=10,BP150,IF(AV15=10,BP151,BV76)))))))) -> 
E77: 0.4087 | F77: 0.95365 | G77: =E77+F77 -> 1.36235 | H77: 0.8174 | I77: 0.54495 | J77: 1.36235 | K77: 1.1353 | L77: 1.1353 | M77: =K77+L77 -> 2.2706 | N77: 0.54495 | O77: 0.8174 | P77: =N77+O77 -> 1.36235 | AK77: =MIN((S72+AL31*D19)/AK40,(S73+AL31*D19)/AL40,(S74+AL31*D19)/AM40,(S75+AL31*D19)/AN40,(S76+AL31*D19)/AO40)*AP40 ->  | AL77: =MIN((T72+AL31*D19)/AK40,(T73+AL31*D19)/AL40,(T74+AL31*D19)/AM40,(T75+AL31*D19)/AN40,(T76+AL31*D19)/AO40)*AP40 ->  | AM77: =MIN((U72+AL31*D19)/AK40,(U73+AL31*D19)/AL40,(U74+AL31*D19)/AM40,(U75+AL31*D19)/AN40,(U76+AL31*D19)/AO40)*AP40 ->  | AN77: =MIN((V72+AL31*D19)/AK40,(V73+AL31*D19)/AL40,(V74+AL31*D19)/AM40,(V75+AL31*D19)/AN40,(V76+AL31*D19)/AO40)*AP40 ->  | AO77: =MIN((W72+AL31*D19)/AK40,(W73+AL31*D19)/AL40,(W74+AL31*D19)/AM40,(W75+AL31*D19)/AN40,(W76+AL31*D19)/AO40)*AP40 ->  | AP77: =MIN((X72+AL31*D19)/AK40,(X73+AL31*D19)/AL40,(X74+AL31*D19)/AM40,(X75+AL31*D19)/AN40,(X76+AL31*D19)/AO40)*AP40 ->  | AQ77: =MIN((Y72+AL31*D19)/AK40,(Y73+AL31*D19)/AL40,(Y74+AL31*D19)/AM40,(Y75+AL31*D19)/AN40,(Y76+AL31*D19)/AO40)*AP40 ->  | AR77: =MIN((Z72+AL31*D19)/AK40,(Z73+AL31*D19)/AL40,(Z74+AL31*D19)/AM40,(Z75+AL31*D19)/AN40,(Z76+AL31*D19)/AO40)*AP40 ->  | AS77: =MIN((AA72+AL31*D19)/AK40,(AA73+AL31*D19)/AL40,(AA74+AL31*D19)/AM40,(AA75+AL31*D19)/AN40,(AA76+AL31*D19)/AO40)*AP40 ->  | AT77: =MIN((AB72+AL31*D19)/AK40,(AB73+AL31*D19)/AL40,(AB74+AL31*D19)/AM40,(AB75+AL31*D19)/AN40,(AB76+AL31*D19)/AO40)*AP40 ->  | AU77: =MIN((AC72+AL31*D19)/AK40,(AC73+AL31*D19)/AL40,(AC74+AL31*D19)/AM40,(AC75+AL31*D19)/AN40,(AC76+AL31*D19)/AO40)*AP40 ->  | AV77: =MIN((AD72+AL31*D19)/AK40,(AD73+AL31*D19)/AL40,(AD74+AL31*D19)/AM40,(AD75+AL31*D19)/AN40,(AD76+AL31*D19)/AO40)*AP40 ->  | AW77: =MIN((AE72+AL31*D19)/AK40,(AE73+AL31*D19)/AL40,(AE74+AL31*D19)/AM40,(AE75+AL31*D19)/AN40,(AE76+AL31*D19)/AO40)*AP40 ->  | AX77: =MIN((AF72+AL31*D19)/AK40,(AF73+AL31*D19)/AL40,(AF74+AL31*D19)/AM40,(AF75+AL31*D19)/AN40,(AF76+AL31*D19)/AO40)*AP40 ->  | BB77: =MIN((S72+AM31*D19)/AK41,(S73+AM31*D19)/AL41,(S74+AM31*D19)/AM41,(S75+AM31*D19)/AN41,(S76+AM31*D19)/AO41)*AP41 ->  | BC77: =MIN((T72+AM31*D19)/AK41,(T73+AM31*D19)/AL41,(T74+AM31*D19)/AM41,(T75+AM31*D19)/AN41,(T76+AM31*D19)/AO41)*AP41 ->  | BD77: =MIN((U72+AM31*D19)/AK41,(U73+AM31*D19)/AL41,(U74+AM31*D19)/AM41,(U75+AM31*D19)/AN41,(U76+AM31*D19)/AO41)*AP41 ->  | BE77: =MIN((V72+AM31*D19)/AK41,(V73+AM31*D19)/AL41,(V74+AM31*D19)/AM41,(V75+AM31*D19)/AN41,(V76+AM31*D19)/AO41)*AP41 ->  | BF77: =MIN((W72+AM31*D19)/AK41,(W73+AM31*D19)/AL41,(W74+AM31*D19)/AM41,(W75+AM31*D19)/AN41,(W76+AM31*D19)/AO41)*AP41 ->  | BG77: =MIN((X72+AM31*D19)/AK41,(X73+AM31*D19)/AL41,(X74+AM31*D19)/AM41,(X75+AM31*D19)/AN41,(X76+AM31*D19)/AO41)*AP41 ->  | BH77: =MIN((Y72+AM31*D19)/AK41,(Y73+AM31*D19)/AL41,(Y74+AM31*D19)/AM41,(Y75+AM31*D19)/AN41,(Y76+AM31*D19)/AO41)*AP41 ->  | BI77: =MIN((Z72+AM31*D19)/AK41,(Z73+AM31*D19)/AL41,(Z74+AM31*D19)/AM41,(Z75+AM31*D19)/AN41,(Z76+AM31*D19)/AO41)*AP41 ->  | BJ77: =MIN((AA72+AM31*D19)/AK41,(AA73+AM31*D19)/AL41,(AA74+AM31*D19)/AM41,(AA75+AM31*D19)/AN41,(AA76+AM31*D19)/AO41)*AP41 ->  | BK77: =MIN((AB72+AM31*D19)/AK41,(AB73+AM31*D19)/AL41,(AB74+AM31*D19)/AM41,(AB75+AM31*D19)/AN41,(AB76+AM31*D19)/AO41)*AP41 ->  | BL77: =MIN((AC72+AM31*D19)/AK41,(AC73+AM31*D19)/AL41,(AC74+AM31*D19)/AM41,(AC75+AM31*D19)/AN41,(AC76+AM31*D19)/AO41)*AP41 ->  | BM77: =MIN((AD72+AM31*D19)/AK41,(AD73+AM31*D19)/AL41,(AD74+AM31*D19)/AM41,(AD75+AM31*D19)/AN41,(AD76+AM31*D19)/AO41)*AP41 ->  | BN77: =MIN((AE72+AM31*D19)/AK41,(AE73+AM31*D19)/AL41,(AE74+AM31*D19)/AM41,(AE75+AM31*D19)/AN41,(AE76+AM31*D19)/AO41)*AP41 ->  | BO77: =MIN((AF72+AM31*D19)/AK41,(AF73+AM31*D19)/AL41,(AF74+AM31*D19)/AM41,(AF75+AM31*D19)/AN41,(AF76+AM31*D19)/AO41)*AP41 ->  | BS77: =IF(AV24=11,AI24,IF(AV25=11,AI25,BS80)) -> attente | BT77: =IF(AV16=11,AI16,IF(AV17=11,AI17,IF(AV18=11,AI18,IF(AV19=11,AI19,IF(AV20=11,AI20,IF(AV21=11,AI21,IF(AV22=11,AI22,IF(AV23=11,AI23,BS77)))))))) ->  | BU77: =IF(AV24=11,AY183,IF(AV25=11,AY184,0)) -> 0 | BV77: =IF(AV16=11,AY175,IF(AV17=11,AY176,IF(AV18=11,AY177,IF(AV19=11,AY178,IF(AV20=11,AY179,IF(AV21=11,AY180,IF(AV22=11,AY181,IF(AV23=11,AY182,BU77)))))))) ->  | BW77: =IF(AV8=11,AY167,IF(AV9=11,AY168,IF(AV10=11,AY169,IF(AV11=11,AY170,IF(AV12=11,AY171,IF(AV13=11,AY172,IF(AV14=11,AY173,IF(AV15=11,AY174,BV77)))))))) -> 
E78: 0.4087 | F78: 0.95365 | G78: 1.36235 | H78: 0.8174 | I78: 0.54495 | J78: 1.36235 | K78: 1.1353 | L78: 1.1353 | M78: 2.2706 | N78: 0.54495 | O78: 0.8174 | P78: 1.36235 | R78: =G14 ->  | S78: =S71 -> kit 1 | T78: =T71 -> kit 2A | U78: kit 2B | V78: kit 4A | W78: kit 4B | X78: kit 5 | Y78: kit 6A | Z78: kit 6B | AA78: kit 7 | AB78: kit 8 | AC78: kit 9A | AD78: kit 9B | AE78: =AE71 -> kit 10 | AF78: =AF71 -> kit 11 | AK78: =MIN((S79+AL31*D19)/AK40,(S80+AL31*D19)/AL40,(S81+AL31*D19)/AM40,(S82+AL31*D19)/AN40,(S83+AL31*D19)/AO40)*AP40 ->  | AL78: =MIN((T79+AL31*D19)/AK40,(T80+AL31*D19)/AL40,(T81+AL31*D19)/AM40,(T82+AL31*D19)/AN40,(T83+AL31*D19)/AO40)*AP40 ->  | AM78: =MIN((U79+AL31*D19)/AK40,(U80+AL31*D19)/AL40,(U81+AL31*D19)/AM40,(U82+AL31*D19)/AN40,(U83+AL31*D19)/AO40)*AP40 ->  | AN78: =MIN((V79+AL31*D19)/AK40,(V80+AL31*D19)/AL40,(V81+AL31*D19)/AM40,(V82+AL31*D19)/AN40,(V83+AL31*D19)/AO40)*AP40 ->  | AO78: =MIN((W79+AL31*D19)/AK40,(W80+AL31*D19)/AL40,(W81+AL31*D19)/AM40,(W82+AL31*D19)/AN40,(W83+AL31*D19)/AO40)*AP40 ->  | AP78: =MIN((X79+AL31*D19)/AK40,(X80+AL31*D19)/AL40,(X81+AL31*D19)/AM40,(X82+AL31*D19)/AN40,(X83+AL31*D19)/AO40)*AP40 ->  | AQ78: =MIN((Y79+AL31*D19)/AK40,(Y80+AL31*D19)/AL40,(Y81+AL31*D19)/AM40,(Y82+AL31*D19)/AN40,(Y83+AL31*D19)/AO40)*AP40 ->  | AR78: =MIN((Z79+AL31*D19)/AK40,(Z80+AL31*D19)/AL40,(Z81+AL31*D19)/AM40,(Z82+AL31*D19)/AN40,(Z83+AL31*D19)/AO40)*AP40 ->  | AS78: =MIN((AA79+AL31*D19)/AK40,(AA80+AL31*D19)/AL40,(AA81+AL31*D19)/AM40,(AA82+AL31*D19)/AN40,(AA83+AL31*D19)/AO40)*AP40 ->  | AT78: =MIN((AB79+AL31*D19)/AK40,(AB80+AL31*D19)/AL40,(AB81+AL31*D19)/AM40,(AB82+AL31*D19)/AN40,(AB83+AL31*D19)/AO40)*AP40 ->  | AU78: =MIN((AC79+AL31*D19)/AK40,(AC80+AL31*D19)/AL40,(AC81+AL31*D19)/AM40,(AC82+AL31*D19)/AN40,(AC83+AL31*D19)/AO40)*AP40 ->  | AV78: =MIN((AD79+AL31*D19)/AK40,(AD80+AL31*D19)/AL40,(AD81+AL31*D19)/AM40,(AD82+AL31*D19)/AN40,(AD83+AL31*D19)/AO40)*AP40 ->  | AW78: =MIN((AE79+AL31*D19)/AK40,(AE80+AL31*D19)/AL40,(AE81+AL31*D19)/AM40,(AE82+AL31*D19)/AN40,(AE83+AL31*D19)/AO40)*AP40 ->  | AX78: =MIN((AF79+AL31*D19)/AK40,(AF80+AL31*D19)/AL40,(AF81+AL31*D19)/AM40,(AF82+AL31*D19)/AN40,(AF83+AL31*D19)/AO40)*AP40 ->  | BB78: =MIN((S79+AM31*D19)/AK41,(S80+AM31*D19)/AL41,(S81+AM31*D19)/AM41,(S82+AM31*D19)/AN41,(S83+AM31*D19)/AO41)*AP41 ->  | BC78: =MIN((T79+AM31*D19)/AK41,(T80+AM31*D19)/AL41,(T81+AM31*D19)/AM41,(T82+AM31*D19)/AN41,(T83+AM31*D19)/AO41)*AP41 ->  | BD78: =MIN((U79+AM31*D19)/AK41,(U80+AM31*D19)/AL41,(U81+AM31*D19)/AM41,(U82+AM31*D19)/AN41,(U83+AM31*D19)/AO41)*AP41 ->  | BE78: =MIN((V79+AM31*D19)/AK41,(V80+AM31*D19)/AL41,(V81+AM31*D19)/AM41,(V82+AM31*D19)/AN41,(V83+AM31*D19)/AO41)*AP41 ->  | BF78: =MIN((W79+AM31*D19)/AK41,(W80+AM31*D19)/AL41,(W81+AM31*D19)/AM41,(W82+AM31*D19)/AN41,(W83+AM31*D19)/AO41)*AP41 ->  | BG78: =MIN((X79+AM31*D19)/AK41,(X80+AM31*D19)/AL41,(X81+AM31*D19)/AM41,(X82+AM31*D19)/AN41,(X83+AM31*D19)/AO41)*AP41 ->  | BH78: =MIN((Y79+AM31*D19)/AK41,(Y80+AM31*D19)/AL41,(Y81+AM31*D19)/AM41,(Y82+AM31*D19)/AN41,(Y83+AM31*D19)/AO41)*AP41 ->  | BI78: =MIN((Z79+AM31*D19)/AK41,(Z80+AM31*D19)/AL41,(Z81+AM31*D19)/AM41,(Z82+AM31*D19)/AN41,(Z83+AM31*D19)/AO41)*AP41 ->  | BJ78: =MIN((AA79+AM31*D19)/AK41,(AA80+AM31*D19)/AL41,(AA81+AM31*D19)/AM41,(AA82+AM31*D19)/AN41,(AA83+AM31*D19)/AO41)*AP41 ->  | BK78: =MIN((AB79+AM31*D19)/AK41,(AB80+AM31*D19)/AL41,(AB81+AM31*D19)/AM41,(AB82+AM31*D19)/AN41,(AB83+AM31*D19)/AO41)*AP41 ->  | BL78: =MIN((AC79+AM31*D19)/AK41,(AC80+AM31*D19)/AL41,(AC81+AM31*D19)/AM41,(AC82+AM31*D19)/AN41,(AC83+AM31*D19)/AO41)*AP41 ->  | BM78: =MIN((AD79+AM31*D19)/AK41,(AD80+AM31*D19)/AL41,(AD81+AM31*D19)/AM41,(AD82+AM31*D19)/AN41,(AD83+AM31*D19)/AO41)*AP41 ->  | BN78: =MIN((AE79+AM31*D19)/AK41,(AE80+AM31*D19)/AL41,(AE81+AM31*D19)/AM41,(AE82+AM31*D19)/AN41,(AE83+AM31*D19)/AO41)*AP41 ->  | BO78: =MIN((AF79+AM31*D19)/AK41,(AF80+AM31*D19)/AL41,(AF81+AM31*D19)/AM41,(AF82+AM31*D19)/AN41,(AF83+AM31*D19)/AO41)*AP41 -> 
E79: 0.3633 | F79: 1.4532 | G79: 1.8165 | H79: 0.27245 | I79: 0.63575 | J79: 0.9082 | K79: 0.27245 | L79: 0.63575 | M79: 0.9082 | N79: 0.54495 | O79: 1.27155 | P79: 1.8165 | R79: =H14+AH39+D16+D17+D21+D19*AG11 ->  | S79: =R79+Q10 ->  | T79: =R79+R10 ->  | U79: =R79+S10 ->  | V79: =R79+T10 ->  | W79: =R79+U10 ->  | X79: =R79+V10 ->  | Y79: =R79+W10 ->  | Z79: =R79+X10 ->  | AA79: =R79+Y10 ->  | AB79: =R79+Z10 ->  | AC79: =R79+AA10 ->  | AD79: =R79+AB10 ->  | AE79: =R79+AC10 ->  | AF79: =R79+AD10 ->  | AK79: =MIN((S86+AL31*D19)/AK40,(S87+AL31*D19)/AL40,(S88+AL31*D19)/AM40,(S89+AL31*D19)/AN40,(S90+AL31*D19)/AO40)*AP40 ->  | AL79: =MIN((T86+AL31*D19)/AK40,(T87+AL31*D19)/AL40,(T88+AL31*D19)/AM40,(T89+AL31*D19)/AN40,(T90+AL31*D19)/AO40)*AP40 ->  | AM79: =MIN((U86+AL31*D19)/AK40,(U87+AL31*D19)/AL40,(U88+AL31*D19)/AM40,(U89+AL31*D19)/AN40,(U90+AL31*D19)/AO40)*AP40 ->  | AN79: =MIN((V86+AL31*D19)/AK40,(V87+AL31*D19)/AL40,(V88+AL31*D19)/AM40,(V89+AL31*D19)/AN40,(V90+AL31*D19)/AO40)*AP40 ->  | AO79: =MIN((W86+AL31*D19)/AK40,(W87+AL31*D19)/AL40,(W88+AL31*D19)/AM40,(W89+AL31*D19)/AN40,(W90+AL31*D19)/AO40)*AP40 ->  | AP79: =MIN((X86+AL31*D19)/AK40,(X87+AL31*D19)/AL40,(X88+AL31*D19)/AM40,(X89+AL31*D19)/AN40,(X90+AL31*D19)/AO40)*AP40 ->  | AQ79: =MIN((Y86+AL31*D19)/AK40,(Y87+AL31*D19)/AL40,(Y88+AL31*D19)/AM40,(Y89+AL31*D19)/AN40,(Y90+AL31*D19)/AO40)*AP40 ->  | AR79: =MIN((Z86+AL31*D19)/AK40,(Z87+AL31*D19)/AL40,(Z88+AL31*D19)/AM40,(Z89+AL31*D19)/AN40,(Z90+AL31*D19)/AO40)*AP40 ->  | AS79: =MIN((AA86+AL31*D19)/AK40,(AA87+AL31*D19)/AL40,(AA88+AL31*D19)/AM40,(AA89+AL31*D19)/AN40,(AA90+AL31*D19)/AO40)*AP40 ->  | AT79: =MIN((AB86+AL31*D19)/AK40,(AB87+AL31*D19)/AL40,(AB88+AL31*D19)/AM40,(AB89+AL31*D19)/AN40,(AB90+AL31*D19)/AO40)*AP40 ->  | AU79: =MIN((AC86+AL31*D19)/AK40,(AC87+AL31*D19)/AL40,(AC88+AL31*D19)/AM40,(AC89+AL31*D19)/AN40,(AC90+AL31*D19)/AO40)*AP40 ->  | AV79: =MIN((AD86+AL31*D19)/AK40,(AD87+AL31*D19)/AL40,(AD88+AL31*D19)/AM40,(AD89+AL31*D19)/AN40,(AD90+AL31*D19)/AO40)*AP40 ->  | AW79: =MIN((AE86+AL31*D19)/AK40,(AE87+AL31*D19)/AL40,(AE88+AL31*D19)/AM40,(AE89+AL31*D19)/AN40,(AE90+AL31*D19)/AO40)*AP40 ->  | AX79: =MIN((AF86+AL31*D19)/AK40,(AF87+AL31*D19)/AL40,(AF88+AL31*D19)/AM40,(AF89+AL31*D19)/AN40,(AF90+AL31*D19)/AO40)*AP40 ->  | BB79: =MIN((S86+AM31*D19)/AK41,(S87+AM31*D19)/AL41,(S88+AM31*D19)/AM41,(S89+AM31*D19)/AN41,(S90+AM31*D19)/AO41)*AP41 ->  | BC79: =MIN((T86+AM31*D19)/AK41,(T87+AM31*D19)/AL41,(T88+AM31*D19)/AM41,(T89+AM31*D19)/AN41,(T90+AM31*D19)/AO41)*AP41 ->  | BD79: =MIN((U86+AM31*D19)/AK41,(U87+AM31*D19)/AL41,(U88+AM31*D19)/AM41,(U89+AM31*D19)/AN41,(U90+AM31*D19)/AO41)*AP41 ->  | BE79: =MIN((V86+AM31*D19)/AK41,(V87+AM31*D19)/AL41,(V88+AM31*D19)/AM41,(V89+AM31*D19)/AN41,(V90+AM31*D19)/AO41)*AP41 ->  | BF79: =MIN((W86+AM31*D19)/AK41,(W87+AM31*D19)/AL41,(W88+AM31*D19)/AM41,(W89+AM31*D19)/AN41,(W90+AM31*D19)/AO41)*AP41 ->  | BG79: =MIN((X86+AM31*D19)/AK41,(X87+AM31*D19)/AL41,(X88+AM31*D19)/AM41,(X89+AM31*D19)/AN41,(X90+AM31*D19)/AO41)*AP41 ->  | BH79: =MIN((Y86+AM31*D19)/AK41,(Y87+AM31*D19)/AL41,(Y88+AM31*D19)/AM41,(Y89+AM31*D19)/AN41,(Y90+AM31*D19)/AO41)*AP41 ->  | BI79: =MIN((Z86+AM31*D19)/AK41,(Z87+AM31*D19)/AL41,(Z88+AM31*D19)/AM41,(Z89+AM31*D19)/AN41,(Z90+AM31*D19)/AO41)*AP41 ->  | BJ79: =MIN((AA86+AM31*D19)/AK41,(AA87+AM31*D19)/AL41,(AA88+AM31*D19)/AM41,(AA89+AM31*D19)/AN41,(AA90+AM31*D19)/AO41)*AP41 ->  | BK79: =MIN((AB86+AM31*D19)/AK41,(AB87+AM31*D19)/AL41,(AB88+AM31*D19)/AM41,(AB89+AM31*D19)/AN41,(AB90+AM31*D19)/AO41)*AP41 ->  | BL79: =MIN((AC86+AM31*D19)/AK41,(AC87+AM31*D19)/AL41,(AC88+AM31*D19)/AM41,(AC89+AM31*D19)/AN41,(AC90+AM31*D19)/AO41)*AP41 ->  | BM79: =MIN((AD86+AM31*D19)/AK41,(AD87+AM31*D19)/AL41,(AD88+AM31*D19)/AM41,(AD89+AM31*D19)/AN41,(AD90+AM31*D19)/AO41)*AP41 ->  | BN79: =MIN((AE86+AM31*D19)/AK41,(AE87+AM31*D19)/AL41,(AE88+AM31*D19)/AM41,(AE89+AM31*D19)/AN41,(AE90+AM31*D19)/AO41)*AP41 ->  | BO79: =MIN((AF86+AM31*D19)/AK41,(AF87+AM31*D19)/AL41,(AF88+AM31*D19)/AM41,(AF89+AM31*D19)/AN41,(AF90+AM31*D19)/AO41)*AP41 -> 
E80: 0.3633 | F80: 1.4532 | G80: 1.8165 | H80: 0.68115 | I80: 0.68115 | J80: 1.3623 | K80: 0.3633 | L80: 0.54495 | M80: 0.90825 | N80: 0.90825 | O80: 0.90825 | P80: 1.8165 | R80: =I14+AH40+D15+D17+D21+D19*AG11 ->  | S80: =R80+Q11 ->  | T80: =R80+R11 ->  | U80: =R80+S11 ->  | V80: =R80+T11 ->  | W80: =R80+U11 ->  | X80: =R80+V11 ->  | Y80: =R80+W11 ->  | Z80: =R80+X11 ->  | AA80: =R80+Y11 ->  | AB80: =R80+Z11 ->  | AC80: =R80+AA11 ->  | AD80: =R80+AB11 ->  | AE80: =R80+AC11 ->  | AF80: =R80+AD11 ->  | AK80: =MIN((S93+AL31*D19)/AK40,(S94+AL31*D19)/AL40,(S95+AL31*D19)/AM40,(S96+AL31*D19)/AN40,(S97+AL31*D19)/AO40)*AP40 ->  | AL80: =MIN((T93+AL31*D19)/AK40,(T94+AL31*D19)/AL40,(T95+AL31*D19)/AM40,(T96+AL31*D19)/AN40,(T97+AL31*D19)/AO40)*AP40 ->  | AM80: =MIN((U93+AL31*D19)/AK40,(U94+AL31*D19)/AL40,(U95+AL31*D19)/AM40,(U96+AL31*D19)/AN40,(U97+AL31*D19)/AO40)*AP40 ->  | AN80: =MIN((V93+AL31*D19)/AK40,(V94+AL31*D19)/AL40,(V95+AL31*D19)/AM40,(V96+AL31*D19)/AN40,(V97+AL31*D19)/AO40)*AP40 ->  | AO80: =MIN((W93+AL31*D19)/AK40,(W94+AL31*D19)/AL40,(W95+AL31*D19)/AM40,(W96+AL31*D19)/AN40,(W97+AL31*D19)/AO40)*AP40 ->  | AP80: =MIN((X93+AL31*D19)/AK40,(X94+AL31*D19)/AL40,(X95+AL31*D19)/AM40,(X96+AL31*D19)/AN40,(X97+AL31*D19)/AO40)*AP40 ->  | AQ80: =MIN((Y93+AL31*D19)/AK40,(Y94+AL31*D19)/AL40,(Y95+AL31*D19)/AM40,(Y96+AL31*D19)/AN40,(Y97+AL31*D19)/AO40)*AP40 ->  | AR80: =MIN((Z93+AL31*D19)/AK40,(Z94+AL31*D19)/AL40,(Z95+AL31*D19)/AM40,(Z96+AL31*D19)/AN40,(Z97+AL31*D19)/AO40)*AP40 ->  | AS80: =MIN((AA93+AL31*D19)/AK40,(AA94+AL31*D19)/AL40,(AA95+AL31*D19)/AM40,(AA96+AL31*D19)/AN40,(AA97+AL31*D19)/AO40)*AP40 ->  | AT80: =MIN((AB93+AL31*D19)/AK40,(AB94+AL31*D19)/AL40,(AB95+AL31*D19)/AM40,(AB96+AL31*D19)/AN40,(AB97+AL31*D19)/AO40)*AP40 ->  | AU80: =MIN((AC93+AL31*D19)/AK40,(AC94+AL31*D19)/AL40,(AC95+AL31*D19)/AM40,(AC96+AL31*D19)/AN40,(AC97+AL31*D19)/AO40)*AP40 ->  | AV80: =MIN((AD93+AL31*D19)/AK40,(AD94+AL31*D19)/AL40,(AD95+AL31*D19)/AM40,(AD96+AL31*D19)/AN40,(AD97+AL31*D19)/AO40)*AP40 ->  | AW80: =MIN((AE93+AL31*D19)/AK40,(AE94+AL31*D19)/AL40,(AE95+AL31*D19)/AM40,(AE96+AL31*D19)/AN40,(AE97+AL31*D19)/AO40)*AP40 ->  | AX80: =MIN((AF93+AL31*D19)/AK40,(AF94+AL31*D19)/AL40,(AF95+AL31*D19)/AM40,(AF96+AL31*D19)/AN40,(AF97+AL31*D19)/AO40)*AP40 ->  | BB80: =MIN((S93+AM31*D19)/AK41,(S94+AM31*D19)/AL41,(S95+AM31*D19)/AM41,(S96+AM31*D19)/AN41,(S97+AM31*D19)/AO41)*AP41 ->  | BC80: =MIN((T93+AM31*D19)/AK41,(T94+AM31*D19)/AL41,(T95+AM31*D19)/AM41,(T96+AM31*D19)/AN41,(T97+AM31*D19)/AO41)*AP41 ->  | BD80: =MIN((U93+AM31*D19)/AK41,(U94+AM31*D19)/AL41,(U95+AM31*D19)/AM41,(U96+AM31*D19)/AN41,(U97+AM31*D19)/AO41)*AP41 ->  | BE80: =MIN((V93+AM31*D19)/AK41,(V94+AM31*D19)/AL41,(V95+AM31*D19)/AM41,(V96+AM31*D19)/AN41,(V97+AM31*D19)/AO41)*AP41 ->  | BF80: =MIN((W93+AM31*D19)/AK41,(W94+AM31*D19)/AL41,(W95+AM31*D19)/AM41,(W96+AM31*D19)/AN41,(W97+AM31*D19)/AO41)*AP41 ->  | BG80: =MIN((X93+AM31*D19)/AK41,(X94+AM31*D19)/AL41,(X95+AM31*D19)/AM41,(X96+AM31*D19)/AN41,(X97+AM31*D19)/AO41)*AP41 ->  | BH80: =MIN((Y93+AM31*D19)/AK41,(Y94+AM31*D19)/AL41,(Y95+AM31*D19)/AM41,(Y96+AM31*D19)/AN41,(Y97+AM31*D19)/AO41)*AP41 ->  | BI80: =MIN((Z93+AM31*D19)/AK41,(Z94+AM31*D19)/AL41,(Z95+AM31*D19)/AM41,(Z96+AM31*D19)/AN41,(Z97+AM31*D19)/AO41)*AP41 ->  | BJ80: =MIN((AA93+AM31*D19)/AK41,(AA94+AM31*D19)/AL41,(AA95+AM31*D19)/AM41,(AA96+AM31*D19)/AN41,(AA97+AM31*D19)/AO41)*AP41 ->  | BK80: =MIN((AB93+AM31*D19)/AK41,(AB94+AM31*D19)/AL41,(AB95+AM31*D19)/AM41,(AB96+AM31*D19)/AN41,(AB97+AM31*D19)/AO41)*AP41 ->  | BL80: =MIN((AC93+AM31*D19)/AK41,(AC94+AM31*D19)/AL41,(AC95+AM31*D19)/AM41,(AC96+AM31*D19)/AN41,(AC97+AM31*D19)/AO41)*AP41 ->  | BM80: =MIN((AD93+AM31*D19)/AK41,(AD94+AM31*D19)/AL41,(AD95+AM31*D19)/AM41,(AD96+AM31*D19)/AN41,(AD97+AM31*D19)/AO41)*AP41 ->  | BN80: =MIN((AE93+AM31*D19)/AK41,(AE94+AM31*D19)/AL41,(AE95+AM31*D19)/AM41,(AE96+AM31*D19)/AN41,(AE97+AM31*D19)/AO41)*AP41 ->  | BO80: =MIN((AF93+AM31*D19)/AK41,(AF94+AM31*D19)/AL41,(AF95+AM31*D19)/AM41,(AF96+AM31*D19)/AN41,(AF97+AM31*D19)/AO41)*AP41 ->  | BS80: attente
E81: 0.68115 | F81: 1.58945 | G81: 2.2706 | H81: 0.95365 | I81: 0.4087 | J81: 1.36235 | K81: 0.90825 | L81: 0.90825 | M81: 1.8165 | N81: 0.90825 | O81: 0.90825 | P81: 1.8165 | R81: =J14+AH41+D15+D17+D21+D19*AG11 ->  | S81: =R81+Q12 ->  | T81: =R81+R12 ->  | U81: =R81+S12 ->  | V81: =R81+T12 ->  | W81: =R81+U12 ->  | X81: =R81+V12 ->  | Y81: =R81+W12 ->  | Z81: =R81+X12 ->  | AA81: =R81+Y12 ->  | AB81: =R81+Z12 ->  | AC81: =R81+AA12 ->  | AD81: =R81+AB12 ->  | AE81: =R81+AC12 ->  | AF81: =R81+AD12 ->  | AK81: =MIN((S100+AL31*D19)/AK40,(S101+AL31*D19)/AL40,(S102+AL31*D19)/AM40,(S103+AL31*D19)/AN40,(S104+AL31*D19)/AO40)*AP40 ->  | AL81: =MIN((T100+AL31*D19)/AK40,(T101+AL31*D19)/AL40,(T102+AL31*D19)/AM40,(T103+AL31*D19)/AN40,(T104+AL31*D19)/AO40)*AP40 ->  | AM81: =MIN((U100+AL31*D19)/AK40,(U101+AL31*D19)/AL40,(U102+AL31*D19)/AM40,(U103+AL31*D19)/AN40,(U104+AL31*D19)/AO40)*AP40 ->  | AN81: =MIN((V100+AL31*D19)/AK40,(V101+AL31*D19)/AL40,(V102+AL31*D19)/AM40,(V103+AL31*D19)/AN40,(V104+AL31*D19)/AO40)*AP40 ->  | AO81: =MIN((W100+AL31*D19)/AK40,(W101+AL31*D19)/AL40,(W102+AL31*D19)/AM40,(W103+AL31*D19)/AN40,(W104+AL31*D19)/AO40)*AP40 ->  | AP81: =MIN((X100+AL31*D19)/AK40,(X101+AL31*D19)/AL40,(X102+AL31*D19)/AM40,(X103+AL31*D19)/AN40,(X104+AL31*D19)/AO40)*AP40 ->  | AQ81: =MIN((Y100+AL31*D19)/AK40,(Y101+AL31*D19)/AL40,(Y102+AL31*D19)/AM40,(Y103+AL31*D19)/AN40,(Y104+AL31*D19)/AO40)*AP40 ->  | AR81: =MIN((Z100+AL31*D19)/AK40,(Z101+AL31*D19)/AL40,(Z102+AL31*D19)/AM40,(Z103+AL31*D19)/AN40,(Z104+AL31*D19)/AO40)*AP40 ->  | AS81: =MIN((AA100+AL31*D19)/AK40,(AA101+AL31*D19)/AL40,(AA102+AL31*D19)/AM40,(AA103+AL31*D19)/AN40,(AA104+AL31*D19)/AO40)*AP40 ->  | AT81: =MIN((AB100+AL31*D19)/AK40,(AB101+AL31*D19)/AL40,(AB102+AL31*D19)/AM40,(AB103+AL31*D19)/AN40,(AB104+AL31*D19)/AO40)*AP40 ->  | AU81: =MIN((AC100+AL31*D19)/AK40,(AC101+AL31*D19)/AL40,(AC102+AL31*D19)/AM40,(AC103+AL31*D19)/AN40,(AC104+AL31*D19)/AO40)*AP40 ->  | AV81: =MIN((AD100+AL31*D19)/AK40,(AD101+AL31*D19)/AL40,(AD102+AL31*D19)/AM40,(AD103+AL31*D19)/AN40,(AD104+AL31*D19)/AO40)*AP40 ->  | AW81: =MIN((AE100+AL31*D19)/AK40,(AE101+AL31*D19)/AL40,(AE102+AL31*D19)/AM40,(AE103+AL31*D19)/AN40,(AE104+AL31*D19)/AO40)*AP40 ->  | AX81: =MIN((AF100+AL31*D19)/AK40,(AF101+AL31*D19)/AL40,(AF102+AL31*D19)/AM40,(AF103+AL31*D19)/AN40,(AF104+AL31*D19)/AO40)*AP40 ->  | BB81: =MIN((S100+AM31*D19)/AK41,(S101+AM31*D19)/AL41,(S102+AM31*D19)/AM41,(S103+AM31*D19)/AN41,(S104+AM31*D19)/AO41)*AP41 ->  | BC81: =MIN((T100+AM31*D19)/AK41,(T101+AM31*D19)/AL41,(T102+AM31*D19)/AM41,(T103+AM31*D19)/AN41,(T104+AM31*D19)/AO41)*AP41 ->  | BD81: =MIN((U100+AM31*D19)/AK41,(U101+AM31*D19)/AL41,(U102+AM31*D19)/AM41,(U103+AM31*D19)/AN41,(U104+AM31*D19)/AO41)*AP41 ->  | BE81: =MIN((V100+AM31*D19)/AK41,(V101+AM31*D19)/AL41,(V102+AM31*D19)/AM41,(V103+AM31*D19)/AN41,(V104+AM31*D19)/AO41)*AP41 ->  | BF81: =MIN((W100+AM31*D19)/AK41,(W101+AM31*D19)/AL41,(W102+AM31*D19)/AM41,(W103+AM31*D19)/AN41,(W104+AM31*D19)/AO41)*AP41 ->  | BG81: =MIN((X100+AM31*D19)/AK41,(X101+AM31*D19)/AL41,(X102+AM31*D19)/AM41,(X103+AM31*D19)/AN41,(X104+AM31*D19)/AO41)*AP41 ->  | BH81: =MIN((Y100+AM31*D19)/AK41,(Y101+AM31*D19)/AL41,(Y102+AM31*D19)/AM41,(Y103+AM31*D19)/AN41,(Y104+AM31*D19)/AO41)*AP41 ->  | BI81: =MIN((Z100+AM31*D19)/AK41,(Z101+AM31*D19)/AL41,(Z102+AM31*D19)/AM41,(Z103+AM31*D19)/AN41,(Z104+AM31*D19)/AO41)*AP41 ->  | BJ81: =MIN((AA100+AM31*D19)/AK41,(AA101+AM31*D19)/AL41,(AA102+AM31*D19)/AM41,(AA103+AM31*D19)/AN41,(AA104+AM31*D19)/AO41)*AP41 ->  | BK81: =MIN((AB100+AM31*D19)/AK41,(AB101+AM31*D19)/AL41,(AB102+AM31*D19)/AM41,(AB103+AM31*D19)/AN41,(AB104+AM31*D19)/AO41)*AP41 ->  | BL81: =MIN((AC100+AM31*D19)/AK41,(AC101+AM31*D19)/AL41,(AC102+AM31*D19)/AM41,(AC103+AM31*D19)/AN41,(AC104+AM31*D19)/AO41)*AP41 ->  | BM81: =MIN((AD100+AM31*D19)/AK41,(AD101+AM31*D19)/AL41,(AD102+AM31*D19)/AM41,(AD103+AM31*D19)/AN41,(AD104+AM31*D19)/AO41)*AP41 ->  | BN81: =MIN((AE100+AM31*D19)/AK41,(AE101+AM31*D19)/AL41,(AE102+AM31*D19)/AM41,(AE103+AM31*D19)/AN41,(AE104+AM31*D19)/AO41)*AP41 ->  | BO81: =MIN((AF100+AM31*D19)/AK41,(AF101+AM31*D19)/AL41,(AF102+AM31*D19)/AM41,(AF103+AM31*D19)/AN41,(AF104+AM31*D19)/AO41)*AP41 -> 
E82: 0.90825 | F82: 0.90825 | G82: 1.8165 | H82: 0.94985 | I82: 0.40705 | J82: 1.3569 | K82: 1.63485 | L82: 1.0899 | M82: 2.72475 | N82: 0.8174 | O82: 0.54495 | P82: 1.36235 | R82: =K14+AH42+D16+D17+D21+D19*AG11 ->  | S82: =R82+Q13 ->  | T82: =R82+R13 ->  | U82: =R82+S13 ->  | V82: =R82+T13 ->  | W82: =R82+U13 ->  | X82: =R82+V13 ->  | Y82: =R82+W13 ->  | Z82: =R82+X13 ->  | AA82: =R82+Y13 ->  | AB82: =R82+Z13 ->  | AC82: =R82+AA13 ->  | AD82: =R82+AB13 ->  | AE82: =R82+AC13 ->  | AF82: =R82+AD13 ->  | AK82: =MIN((S107+AL31*D19)/AK40,(S108+AL31*D19)/AL40,(S109+AL31*D19)/AM40,(S110+AL31*D19)/AN40,(S111+AL31*D19)/AO40)*AP40 ->  | AL82: =MIN((T107+AL31*D19)/AK40,(T108+AL31*D19)/AL40,(T109+AL31*D19)/AM40,(T110+AL31*D19)/AN40,(T111+AL31*D19)/AO40)*AP40 ->  | AM82: =MIN((U107+AL31*D19)/AK40,(U108+AL31*D19)/AL40,(U109+AL31*D19)/AM40,(U110+AL31*D19)/AN40,(U111+AL31*D19)/AO40)*AP40 ->  | AN82: =MIN((V107+AL31*D19)/AK40,(V108+AL31*D19)/AL40,(V109+AL31*D19)/AM40,(V110+AL31*D19)/AN40,(V111+AL31*D19)/AO40)*AP40 ->  | AO82: =MIN((W107+AL31*D19)/AK40,(W108+AL31*D19)/AL40,(W109+AL31*D19)/AM40,(W110+AL31*D19)/AN40,(W111+AL31*D19)/AO40)*AP40 ->  | AP82: =MIN((X107+AL31*D19)/AK40,(X108+AL31*D19)/AL40,(X109+AL31*D19)/AM40,(X110+AL31*D19)/AN40,(X111+AL31*D19)/AO40)*AP40 ->  | AQ82: =MIN((Y107+AL31*D19)/AK40,(Y108+AL31*D19)/AL40,(Y109+AL31*D19)/AM40,(Y110+AL31*D19)/AN40,(Y111+AL31*D19)/AO40)*AP40 ->  | AR82: =MIN((Z107+AL31*D19)/AK40,(Z108+AL31*D19)/AL40,(Z109+AL31*D19)/AM40,(Z110+AL31*D19)/AN40,(Z111+AL31*D19)/AO40)*AP40 ->  | AS82: =MIN((AA107+AL31*D19)/AK40,(AA108+AL31*D19)/AL40,(AA109+AL31*D19)/AM40,(AA110+AL31*D19)/AN40,(AA111+AL31*D19)/AO40)*AP40 ->  | AT82: =MIN((AB107+AL31*D19)/AK40,(AB108+AL31*D19)/AL40,(AB109+AL31*D19)/AM40,(AB110+AL31*D19)/AN40,(AB111+AL31*D19)/AO40)*AP40 ->  | AU82: =MIN((AC107+AL31*D19)/AK40,(AC108+AL31*D19)/AL40,(AC109+AL31*D19)/AM40,(AC110+AL31*D19)/AN40,(AC111+AL31*D19)/AO40)*AP40 ->  | AV82: =MIN((AD107+AL31*D19)/AK40,(AD108+AL31*D19)/AL40,(AD109+AL31*D19)/AM40,(AD110+AL31*D19)/AN40,(AD111+AL31*D19)/AO40)*AP40 ->  | AW82: =MIN((AE107+AL31*D19)/AK40,(AE108+AL31*D19)/AL40,(AE109+AL31*D19)/AM40,(AE110+AL31*D19)/AN40,(AE111+AL31*D19)/AO40)*AP40 ->  | AX82: =MIN((AF107+AL31*D19)/AK40,(AF108+AL31*D19)/AL40,(AF109+AL31*D19)/AM40,(AF110+AL31*D19)/AN40,(AF111+AL31*D19)/AO40)*AP40 ->  | BB82: =MIN((S107+AM31*D19)/AK41,(S108+AM31*D19)/AL41,(S109+AM31*D19)/AM41,(S110+AM31*D19)/AN41,(S111+AM31*D19)/AO41)*AP41 ->  | BC82: =MIN((T107+AM31*D19)/AK41,(T108+AM31*D19)/AL41,(T109+AM31*D19)/AM41,(T110+AM31*D19)/AN41,(T111+AM31*D19)/AO41)*AP41 ->  | BD82: =MIN((U107+AM31*D19)/AK41,(U108+AM31*D19)/AL41,(U109+AM31*D19)/AM41,(U110+AM31*D19)/AN41,(U111+AM31*D19)/AO41)*AP41 ->  | BE82: =MIN((V107+AM31*D19)/AK41,(V108+AM31*D19)/AL41,(V109+AM31*D19)/AM41,(V110+AM31*D19)/AN41,(V111+AM31*D19)/AO41)*AP41 ->  | BF82: =MIN((W107+AM31*D19)/AK41,(W108+AM31*D19)/AL41,(W109+AM31*D19)/AM41,(W110+AM31*D19)/AN41,(W111+AM31*D19)/AO41)*AP41 ->  | BG82: =MIN((X107+AM31*D19)/AK41,(X108+AM31*D19)/AL41,(X109+AM31*D19)/AM41,(X110+AM31*D19)/AN41,(X111+AM31*D19)/AO41)*AP41 ->  | BH82: =MIN((Y107+AM31*D19)/AK41,(Y108+AM31*D19)/AL41,(Y109+AM31*D19)/AM41,(Y110+AM31*D19)/AN41,(Y111+AM31*D19)/AO41)*AP41 ->  | BI82: =MIN((Z107+AM31*D19)/AK41,(Z108+AM31*D19)/AL41,(Z109+AM31*D19)/AM41,(Z110+AM31*D19)/AN41,(Z111+AM31*D19)/AO41)*AP41 ->  | BJ82: =MIN((AA107+AM31*D19)/AK41,(AA108+AM31*D19)/AL41,(AA109+AM31*D19)/AM41,(AA110+AM31*D19)/AN41,(AA111+AM31*D19)/AO41)*AP41 ->  | BK82: =MIN((AB107+AM31*D19)/AK41,(AB108+AM31*D19)/AL41,(AB109+AM31*D19)/AM41,(AB110+AM31*D19)/AN41,(AB111+AM31*D19)/AO41)*AP41 ->  | BL82: =MIN((AC107+AM31*D19)/AK41,(AC108+AM31*D19)/AL41,(AC109+AM31*D19)/AM41,(AC110+AM31*D19)/AN41,(AC111+AM31*D19)/AO41)*AP41 ->  | BM82: =MIN((AD107+AM31*D19)/AK41,(AD108+AM31*D19)/AL41,(AD109+AM31*D19)/AM41,(AD110+AM31*D19)/AN41,(AD111+AM31*D19)/AO41)*AP41 ->  | BN82: =MIN((AE107+AM31*D19)/AK41,(AE108+AM31*D19)/AL41,(AE109+AM31*D19)/AM41,(AE110+AM31*D19)/AN41,(AE111+AM31*D19)/AO41)*AP41 ->  | BO82: =MIN((AF107+AM31*D19)/AK41,(AF108+AM31*D19)/AL41,(AF109+AM31*D19)/AM41,(AF110+AM31*D19)/AN41,(AF111+AM31*D19)/AO41)*AP41 ->  | BQ82: constante kit
E83: 0.8174 | F83: 0.54495 | G83: 1.36235 | H83: 1.90735 | I83: 0.8174 | J83: 2.72475 | K83: 0.8174 | L83: 0.54495 | M83: 1.36235 | N83: 0.81415 | O83: 0.54275 | P83: 1.3569 | R83: =L14+AH43+D15+D17+D21+D19*AG11 ->  | S83: =R83+Q14 ->  | T83: =R83+R14 ->  | U83: =R83+S14 ->  | V83: =R83+T14 ->  | W83: =R83+U14 ->  | X83: =R83+V14 ->  | Y83: =R83+W14 ->  | Z83: =R83+X14 ->  | AA83: =R83+Y14 ->  | AB83: =R83+Z14 ->  | AC83: =R83+AA14 ->  | AD83: =R83+AB14 ->  | AE83: =R83+AC14 ->  | AF83: =R83+AD14 ->  | AK83: =MIN((S114+AL31*D19)/AK40,(S115+AL31*D19)/AL40,(S116+AL31*D19)/AM40,(S117+AL31*D19)/AN40,(S118+AL31*D19)/AO40)*AP40 ->  | AL83: =MIN((T114+AL31*D19)/AK40,(T115+AL31*D19)/AL40,(T116+AL31*D19)/AM40,(T117+AL31*D19)/AN40,(T118+AL31*D19)/AO40)*AP40 ->  | AM83: =MIN((U114+AL31*D19)/AK40,(U115+AL31*D19)/AL40,(U116+AL31*D19)/AM40,(U117+AL31*D19)/AN40,(U118+AL31*D19)/AO40)*AP40 ->  | AN83: =MIN((V114+AL31*D19)/AK40,(V115+AL31*D19)/AL40,(V116+AL31*D19)/AM40,(V117+AL31*D19)/AN40,(V118+AL31*D19)/AO40)*AP40 ->  | AO83: =MIN((W114+AL31*D19)/AK40,(W115+AL31*D19)/AL40,(W116+AL31*D19)/AM40,(W117+AL31*D19)/AN40,(W118+AL31*D19)/AO40)*AP40 ->  | AP83: =MIN((X114+AL31*D19)/AK40,(X115+AL31*D19)/AL40,(X116+AL31*D19)/AM40,(X117+AL31*D19)/AN40,(X118+AL31*D19)/AO40)*AP40 ->  | AQ83: =MIN((Y114+AL31*D19)/AK40,(Y115+AL31*D19)/AL40,(Y116+AL31*D19)/AM40,(Y117+AL31*D19)/AN40,(Y118+AL31*D19)/AO40)*AP40 ->  | AR83: =MIN((Z114+AL31*D19)/AK40,(Z115+AL31*D19)/AL40,(Z116+AL31*D19)/AM40,(Z117+AL31*D19)/AN40,(Z118+AL31*D19)/AO40)*AP40 ->  | AS83: =MIN((AA114+AL31*D19)/AK40,(AA115+AL31*D19)/AL40,(AA116+AL31*D19)/AM40,(AA117+AL31*D19)/AN40,(AA118+AL31*D19)/AO40)*AP40 ->  | AT83: =MIN((AB114+AL31*D19)/AK40,(AB115+AL31*D19)/AL40,(AB116+AL31*D19)/AM40,(AB117+AL31*D19)/AN40,(AB118+AL31*D19)/AO40)*AP40 ->  | AU83: =MIN((AC114+AL31*D19)/AK40,(AC115+AL31*D19)/AL40,(AC116+AL31*D19)/AM40,(AC117+AL31*D19)/AN40,(AC118+AL31*D19)/AO40)*AP40 ->  | AV83: =MIN((AD114+AL31*D19)/AK40,(AD115+AL31*D19)/AL40,(AD116+AL31*D19)/AM40,(AD117+AL31*D19)/AN40,(AD118+AL31*D19)/AO40)*AP40 ->  | AW83: =MIN((AE114+AL31*D19)/AK40,(AE115+AL31*D19)/AL40,(AE116+AL31*D19)/AM40,(AE117+AL31*D19)/AN40,(AE118+AL31*D19)/AO40)*AP40 ->  | AX83: =MIN((AF114+AL31*D19)/AK40,(AF115+AL31*D19)/AL40,(AF116+AL31*D19)/AM40,(AF117+AL31*D19)/AN40,(AF118+AL31*D19)/AO40)*AP40 ->  | BB83: =MIN((S114+AM31*D19)/AK41,(S115+AM31*D19)/AL41,(S116+AM31*D19)/AM41,(S117+AM31*D19)/AN41,(S118+AM31*D19)/AO41)*AP41 ->  | BC83: =MIN((T114+AM31*D19)/AK41,(T115+AM31*D19)/AL41,(T116+AM31*D19)/AM41,(T117+AM31*D19)/AN41,(T118+AM31*D19)/AO41)*AP41 ->  | BD83: =MIN((U114+AM31*D19)/AK41,(U115+AM31*D19)/AL41,(U116+AM31*D19)/AM41,(U117+AM31*D19)/AN41,(U118+AM31*D19)/AO41)*AP41 ->  | BE83: =MIN((V114+AM31*D19)/AK41,(V115+AM31*D19)/AL41,(V116+AM31*D19)/AM41,(V117+AM31*D19)/AN41,(V118+AM31*D19)/AO41)*AP41 ->  | BF83: =MIN((W114+AM31*D19)/AK41,(W115+AM31*D19)/AL41,(W116+AM31*D19)/AM41,(W117+AM31*D19)/AN41,(W118+AM31*D19)/AO41)*AP41 ->  | BG83: =MIN((X114+AM31*D19)/AK41,(X115+AM31*D19)/AL41,(X116+AM31*D19)/AM41,(X117+AM31*D19)/AN41,(X118+AM31*D19)/AO41)*AP41 ->  | BH83: =MIN((Y114+AM31*D19)/AK41,(Y115+AM31*D19)/AL41,(Y116+AM31*D19)/AM41,(Y117+AM31*D19)/AN41,(Y118+AM31*D19)/AO41)*AP41 ->  | BI83: =MIN((Z114+AM31*D19)/AK41,(Z115+AM31*D19)/AL41,(Z116+AM31*D19)/AM41,(Z117+AM31*D19)/AN41,(Z118+AM31*D19)/AO41)*AP41 ->  | BJ83: =MIN((AA114+AM31*D19)/AK41,(AA115+AM31*D19)/AL41,(AA116+AM31*D19)/AM41,(AA117+AM31*D19)/AN41,(AA118+AM31*D19)/AO41)*AP41 ->  | BK83: =MIN((AB114+AM31*D19)/AK41,(AB115+AM31*D19)/AL41,(AB116+AM31*D19)/AM41,(AB117+AM31*D19)/AN41,(AB118+AM31*D19)/AO41)*AP41 ->  | BL83: =MIN((AC114+AM31*D19)/AK41,(AC115+AM31*D19)/AL41,(AC116+AM31*D19)/AM41,(AC117+AM31*D19)/AN41,(AC118+AM31*D19)/AO41)*AP41 ->  | BM83: =MIN((AD114+AM31*D19)/AK41,(AD115+AM31*D19)/AL41,(AD116+AM31*D19)/AM41,(AD117+AM31*D19)/AN41,(AD118+AM31*D19)/AO41)*AP41 ->  | BN83: =MIN((AE114+AM31*D19)/AK41,(AE115+AM31*D19)/AL41,(AE116+AM31*D19)/AM41,(AE117+AM31*D19)/AN41,(AE118+AM31*D19)/AO41)*AP41 ->  | BO83: =MIN((AF114+AM31*D19)/AK41,(AF115+AM31*D19)/AL41,(AF116+AM31*D19)/AM41,(AF117+AM31*D19)/AN41,(AF118+AM31*D19)/AO41)*AP41 ->  | BR83: =BB97 -> kit 1 | BS83: kit 2A | BT83: kit 2B | BU83: kit 4A | BV83: kit 4B | BW83: kit 5 | BX83: kit 6A | BY83: kit 6B | BZ83: kit 7 | CA83: kit 8 | CB83: kit 9A | CC83: kit 9B | CD83: kit 10 | CE83: kit 11
E84: 1.8165 | F84: 0.4541 | G84: 2.2706 | H84: 2.04355 | I84: 0.22705 | J84: 2.2706 | K84: 1.4532 | L84: 0.3633 | M84: 1.8165 | N84: 1.63485 | O84: 0.18165 | P84: 1.8165 | AK84: =MIN((S121+AL31*D19)/AK40,(S122+AL31*D19)/AL40,(S123+AL31*D19)/AM40,(S124+AL31*D19)/AN40,(S125+AL31*D19)/AO40)*AP40 ->  | AL84: =MIN((T121+AL31*D19)/AK40,(T122+AL31*D19)/AL40,(T123+AL31*D19)/AM40,(T124+AL31*D19)/AN40,(T125+AL31*D19)/AO40)*AP40 ->  | AM84: =MIN((U121+AL31*D19)/AK40,(U122+AL31*D19)/AL40,(U123+AL31*D19)/AM40,(U124+AL31*D19)/AN40,(U125+AL31*D19)/AO40)*AP40 ->  | AN84: =MIN((V121+AL31*D19)/AK40,(V122+AL31*D19)/AL40,(V123+AL31*D19)/AM40,(V124+AL31*D19)/AN40,(V125+AL31*D19)/AO40)*AP40 ->  | AO84: =MIN((W121+AL31*D19)/AK40,(W122+AL31*D19)/AL40,(W123+AL31*D19)/AM40,(W124+AL31*D19)/AN40,(W125+AL31*D19)/AO40)*AP40 ->  | AP84: =MIN((X121+AL31*D19)/AK40,(X122+AL31*D19)/AL40,(X123+AL31*D19)/AM40,(X124+AL31*D19)/AN40,(X125+AL31*D19)/AO40)*AP40 ->  | AQ84: =MIN((Y121+AL31*D19)/AK40,(Y122+AL31*D19)/AL40,(Y123+AL31*D19)/AM40,(Y124+AL31*D19)/AN40,(Y125+AL31*D19)/AO40)*AP40 ->  | AR84: =MIN((Z121+AL31*D19)/AK40,(Z122+AL31*D19)/AL40,(Z123+AL31*D19)/AM40,(Z124+AL31*D19)/AN40,(Z125+AL31*D19)/AO40)*AP40 ->  | AS84: =MIN((AA121+AL31*D19)/AK40,(AA122+AL31*D19)/AL40,(AA123+AL31*D19)/AM40,(AA124+AL31*D19)/AN40,(AA125+AL31*D19)/AO40)*AP40 ->  | AT84: =MIN((AB121+AL31*D19)/AK40,(AB122+AL31*D19)/AL40,(AB123+AL31*D19)/AM40,(AB124+AL31*D19)/AN40,(AB125+AL31*D19)/AO40)*AP40 ->  | AU84: =MIN((AC121+AL31*D19)/AK40,(AC122+AL31*D19)/AL40,(AC123+AL31*D19)/AM40,(AC124+AL31*D19)/AN40,(AC125+AL31*D19)/AO40)*AP40 ->  | AV84: =MIN((AD121+AL31*D19)/AK40,(AD122+AL31*D19)/AL40,(AD123+AL31*D19)/AM40,(AD124+AL31*D19)/AN40,(AD125+AL31*D19)/AO40)*AP40 ->  | AW84: =MIN((AE121+AL31*D19)/AK40,(AE122+AL31*D19)/AL40,(AE123+AL31*D19)/AM40,(AE124+AL31*D19)/AN40,(AE125+AL31*D19)/AO40)*AP40 ->  | AX84: =MIN((AF121+AL31*D19)/AK40,(AF122+AL31*D19)/AL40,(AF123+AL31*D19)/AM40,(AF124+AL31*D19)/AN40,(AF125+AL31*D19)/AO40)*AP40 ->  | BB84: =MIN((S121+AM31*D19)/AK41,(S122+AM31*D19)/AL41,(S123+AM31*D19)/AM41,(S124+AM31*D19)/AN41,(S125+AM31*D19)/AO41)*AP41 ->  | BC84: =MIN((T121+AM31*D19)/AK41,(T122+AM31*D19)/AL41,(T123+AM31*D19)/AM41,(T124+AM31*D19)/AN41,(T125+AM31*D19)/AO41)*AP41 ->  | BD84: =MIN((U121+AM31*D19)/AK41,(U122+AM31*D19)/AL41,(U123+AM31*D19)/AM41,(U124+AM31*D19)/AN41,(U125+AM31*D19)/AO41)*AP41 ->  | BE84: =MIN((V121+AM31*D19)/AK41,(V122+AM31*D19)/AL41,(V123+AM31*D19)/AM41,(V124+AM31*D19)/AN41,(V125+AM31*D19)/AO41)*AP41 ->  | BF84: =MIN((W121+AM31*D19)/AK41,(W122+AM31*D19)/AL41,(W123+AM31*D19)/AM41,(W124+AM31*D19)/AN41,(W125+AM31*D19)/AO41)*AP41 ->  | BG84: =MIN((X121+AM31*D19)/AK41,(X122+AM31*D19)/AL41,(X123+AM31*D19)/AM41,(X124+AM31*D19)/AN41,(X125+AM31*D19)/AO41)*AP41 ->  | BH84: =MIN((Y121+AM31*D19)/AK41,(Y122+AM31*D19)/AL41,(Y123+AM31*D19)/AM41,(Y124+AM31*D19)/AN41,(Y125+AM31*D19)/AO41)*AP41 ->  | BI84: =MIN((Z121+AM31*D19)/AK41,(Z122+AM31*D19)/AL41,(Z123+AM31*D19)/AM41,(Z124+AM31*D19)/AN41,(Z125+AM31*D19)/AO41)*AP41 ->  | BJ84: =MIN((AA121+AM31*D19)/AK41,(AA122+AM31*D19)/AL41,(AA123+AM31*D19)/AM41,(AA124+AM31*D19)/AN41,(AA125+AM31*D19)/AO41)*AP41 ->  | BK84: =MIN((AB121+AM31*D19)/AK41,(AB122+AM31*D19)/AL41,(AB123+AM31*D19)/AM41,(AB124+AM31*D19)/AN41,(AB125+AM31*D19)/AO41)*AP41 ->  | BL84: =MIN((AC121+AM31*D19)/AK41,(AC122+AM31*D19)/AL41,(AC123+AM31*D19)/AM41,(AC124+AM31*D19)/AN41,(AC125+AM31*D19)/AO41)*AP41 ->  | BM84: =MIN((AD121+AM31*D19)/AK41,(AD122+AM31*D19)/AL41,(AD123+AM31*D19)/AM41,(AD124+AM31*D19)/AN41,(AD125+AM31*D19)/AO41)*AP41 ->  | BN84: =MIN((AE121+AM31*D19)/AK41,(AE122+AM31*D19)/AL41,(AE123+AM31*D19)/AM41,(AE124+AM31*D19)/AN41,(AE125+AM31*D19)/AO41)*AP41 ->  | BO84: =MIN((AF121+AM31*D19)/AK41,(AF122+AM31*D19)/AL41,(AF123+AM31*D19)/AM41,(AF124+AM31*D19)/AN41,(AF125+AM31*D19)/AO41)*AP41 ->  | BR84: =BB97 -> kit 1 | BS84: kit 2A | BT84: kit 2B | BU84: kit 4A | BV84: kit 4B | BW84: kit 5 | BX84: kit 6A | BY84: kit 6B | BZ84: kit 7 | CA84: kit 8 | CB84: kit 9A | CC84: kit 9B | CD84: kit 10 | CE84: kit 11
E85: 1.27155 | F85: 0.54495 | G85: 1.8165 | H85: 1.4532 | I85: 0.3633 | J85: 1.8165 | K85: 0.95365 | L85: 0.4087 | M85: 1.36235 | N85: 1.90735 | O85: 0.8174 | P85: 2.72475 | R85: =G15 ->  | S85: =S78 -> kit 1 | T85: =T78 -> kit 2A | U85: kit 2B | V85: kit 4A | W85: kit 4B | X85: kit 5 | Y85: kit 6A | Z85: kit 6B | AA85: kit 7 | AB85: kit 8 | AC85: kit 9A | AD85: kit 9B | AE85: =AE78 -> kit 10 | AF85: =AF78 -> kit 11 | AK85: =MIN((S128+AL31*D19)/AK40,(S129+AL31*D19)/AL40,(S130+AL31*D19)/AM40,(S131+AL31*D19)/AN40,(S132+AL31*D19)/AO40)*AP40 ->  | AL85: =MIN((T128+AL31*D19)/AK40,(T129+AL31*D19)/AL40,(T130+AL31*D19)/AM40,(T131+AL31*D19)/AN40,(T132+AL31*D19)/AO40)*AP40 ->  | AM85: =MIN((U128+AL31*D19)/AK40,(U129+AL31*D19)/AL40,(U130+AL31*D19)/AM40,(U131+AL31*D19)/AN40,(U132+AL31*D19)/AO40)*AP40 ->  | AN85: =MIN((V128+AL31*D19)/AK40,(V129+AL31*D19)/AL40,(V130+AL31*D19)/AM40,(V131+AL31*D19)/AN40,(V132+AL31*D19)/AO40)*AP40 ->  | AO85: =MIN((W128+AL31*D19)/AK40,(W129+AL31*D19)/AL40,(W130+AL31*D19)/AM40,(W131+AL31*D19)/AN40,(W132+AL31*D19)/AO40)*AP40 ->  | AP85: =MIN((X128+AL31*D19)/AK40,(X129+AL31*D19)/AL40,(X130+AL31*D19)/AM40,(X131+AL31*D19)/AN40,(X132+AL31*D19)/AO40)*AP40 ->  | AQ85: =MIN((Y128+AL31*D19)/AK40,(Y129+AL31*D19)/AL40,(Y130+AL31*D19)/AM40,(Y131+AL31*D19)/AN40,(Y132+AL31*D19)/AO40)*AP40 ->  | AR85: =MIN((Z128+AL31*D19)/AK40,(Z129+AL31*D19)/AL40,(Z130+AL31*D19)/AM40,(Z131+AL31*D19)/AN40,(Z132+AL31*D19)/AO40)*AP40 ->  | AS85: =MIN((AA128+AL31*D19)/AK40,(AA129+AL31*D19)/AL40,(AA130+AL31*D19)/AM40,(AA131+AL31*D19)/AN40,(AA132+AL31*D19)/AO40)*AP40 ->  | AT85: =MIN((AB128+AL31*D19)/AK40,(AB129+AL31*D19)/AL40,(AB130+AL31*D19)/AM40,(AB131+AL31*D19)/AN40,(AB132+AL31*D19)/AO40)*AP40 ->  | AU85: =MIN((AC128+AL31*D19)/AK40,(AC129+AL31*D19)/AL40,(AC130+AL31*D19)/AM40,(AC131+AL31*D19)/AN40,(AC132+AL31*D19)/AO40)*AP40 ->  | AV85: =MIN((AD128+AL31*D19)/AK40,(AD129+AL31*D19)/AL40,(AD130+AL31*D19)/AM40,(AD131+AL31*D19)/AN40,(AD132+AL31*D19)/AO40)*AP40 ->  | AW85: =MIN((AE128+AL31*D19)/AK40,(AE129+AL31*D19)/AL40,(AE130+AL31*D19)/AM40,(AE131+AL31*D19)/AN40,(AE132+AL31*D19)/AO40)*AP40 ->  | AX85: =MIN((AF128+AL31*D19)/AK40,(AF129+AL31*D19)/AL40,(AF130+AL31*D19)/AM40,(AF131+AL31*D19)/AN40,(AF132+AL31*D19)/AO40)*AP40 ->  | BB85: =MIN((S128+AM31*D19)/AK41,(S129+AM31*D19)/AL41,(S130+AM31*D19)/AM41,(S131+AM31*D19)/AN41,(S132+AM31*D19)/AO41)*AP41 ->  | BC85: =MIN((T128+AM31*D19)/AK41,(T129+AM31*D19)/AL41,(T130+AM31*D19)/AM41,(T131+AM31*D19)/AN41,(T132+AM31*D19)/AO41)*AP41 ->  | BD85: =MIN((U128+AM31*D19)/AK41,(U129+AM31*D19)/AL41,(U130+AM31*D19)/AM41,(U131+AM31*D19)/AN41,(U132+AM31*D19)/AO41)*AP41 ->  | BE85: =MIN((V128+AM31*D19)/AK41,(V129+AM31*D19)/AL41,(V130+AM31*D19)/AM41,(V131+AM31*D19)/AN41,(V132+AM31*D19)/AO41)*AP41 ->  | BF85: =MIN((W128+AM31*D19)/AK41,(W129+AM31*D19)/AL41,(W130+AM31*D19)/AM41,(W131+AM31*D19)/AN41,(W132+AM31*D19)/AO41)*AP41 ->  | BG85: =MIN((X128+AM31*D19)/AK41,(X129+AM31*D19)/AL41,(X130+AM31*D19)/AM41,(X131+AM31*D19)/AN41,(X132+AM31*D19)/AO41)*AP41 ->  | BH85: =MIN((Y128+AM31*D19)/AK41,(Y129+AM31*D19)/AL41,(Y130+AM31*D19)/AM41,(Y131+AM31*D19)/AN41,(Y132+AM31*D19)/AO41)*AP41 ->  | BI85: =MIN((Z128+AM31*D19)/AK41,(Z129+AM31*D19)/AL41,(Z130+AM31*D19)/AM41,(Z131+AM31*D19)/AN41,(Z132+AM31*D19)/AO41)*AP41 ->  | BJ85: =MIN((AA128+AM31*D19)/AK41,(AA129+AM31*D19)/AL41,(AA130+AM31*D19)/AM41,(AA131+AM31*D19)/AN41,(AA132+AM31*D19)/AO41)*AP41 ->  | BK85: =MIN((AB128+AM31*D19)/AK41,(AB129+AM31*D19)/AL41,(AB130+AM31*D19)/AM41,(AB131+AM31*D19)/AN41,(AB132+AM31*D19)/AO41)*AP41 ->  | BL85: =MIN((AC128+AM31*D19)/AK41,(AC129+AM31*D19)/AL41,(AC130+AM31*D19)/AM41,(AC131+AM31*D19)/AN41,(AC132+AM31*D19)/AO41)*AP41 ->  | BM85: =MIN((AD128+AM31*D19)/AK41,(AD129+AM31*D19)/AL41,(AD130+AM31*D19)/AM41,(AD131+AM31*D19)/AN41,(AD132+AM31*D19)/AO41)*AP41 ->  | BN85: =MIN((AE128+AM31*D19)/AK41,(AE129+AM31*D19)/AL41,(AE130+AM31*D19)/AM41,(AE131+AM31*D19)/AN41,(AE132+AM31*D19)/AO41)*AP41 ->  | BO85: =MIN((AF128+AM31*D19)/AK41,(AF129+AM31*D19)/AL41,(AF130+AM31*D19)/AM41,(AF131+AM31*D19)/AN41,(AF132+AM31*D19)/AO41)*AP41 ->  | BR85: =BB97 -> kit 1 | BS85: kit 2A | BT85: kit 2B | BU85: kit 4A | BV85: kit 4B | BW85: kit 5 | BX85: kit 6A | BY85: kit 6B | BZ85: kit 7 | CA85: kit 8 | CB85: kit 9A | CC85: kit 9B | CD85: kit 10 | CE85: kit 11
E86: 0.95365 | F86: 0.4087 | G86: 1.36235 | H86: 1.90735 | I86: 0.8174 | J86: 2.72475 | K86: 1.27155 | L86: 0.54495 | M86: 1.8165 | N86: 1.27155 | O86: 0.54495 | P86: 1.8165 | R86: =H15+AH39+D16+D17+D21+D19*AG12 ->  | S86: =R86+Q10 ->  | T86: =R86+R10 ->  | U86: =R86+S10 ->  | V86: =R86+T10 ->  | W86: =R86+U10 ->  | X86: =R86+V10 ->  | Y86: =R86+W10 ->  | Z86: =R86+X10 ->  | AA86: =R86+Y10 ->  | AB86: =R86+Z10 ->  | AC86: =R86+AA10 ->  | AD86: =R86+AB10 ->  | AE86: =R86+AC10 ->  | AF86: =R86+AD10 ->  | AK86: =MIN((S135+AL31*D19)/AK40,(S136+AL31*D19)/AL40,(S137+AL31*D19)/AM40,(S138+AL31*D19)/AN40,(S139+AL31*D19)/AO40)*AP40 ->  | AL86: =MIN((T135+AL31*D19)/AK40,(T136+AL31*D19)/AL40,(T137+AL31*D19)/AM40,(T138+AL31*D19)/AN40,(T139+AL31*D19)/AO40)*AP40 ->  | AM86: =MIN((U135+AL31*D19)/AK40,(U136+AL31*D19)/AL40,(U137+AL31*D19)/AM40,(U138+AL31*D19)/AN40,(U139+AL31*D19)/AO40)*AP40 ->  | AN86: =MIN((V135+AL31*D19)/AK40,(V136+AL31*D19)/AL40,(V137+AL31*D19)/AM40,(V138+AL31*D19)/AN40,(V139+AL31*D19)/AO40)*AP40 ->  | AO86: =MIN((W135+AL31*D19)/AK40,(W136+AL31*D19)/AL40,(W137+AL31*D19)/AM40,(W138+AL31*D19)/AN40,(W139+AL31*D19)/AO40)*AP40 ->  | AP86: =MIN((X135+AL31*D19)/AK40,(X136+AL31*D19)/AL40,(X137+AL31*D19)/AM40,(X138+AL31*D19)/AN40,(X139+AL31*D19)/AO40)*AP40 ->  | AQ86: =MIN((Y135+AL31*D19)/AK40,(Y136+AL31*D19)/AL40,(Y137+AL31*D19)/AM40,(Y138+AL31*D19)/AN40,(Y139+AL31*D19)/AO40)*AP40 ->  | AR86: =MIN((Z135+AL31*D19)/AK40,(Z136+AL31*D19)/AL40,(Z137+AL31*D19)/AM40,(Z138+AL31*D19)/AN40,(Z139+AL31*D19)/AO40)*AP40 ->  | AS86: =MIN((AA135+AL31*D19)/AK40,(AA136+AL31*D19)/AL40,(AA137+AL31*D19)/AM40,(AA138+AL31*D19)/AN40,(AA139+AL31*D19)/AO40)*AP40 ->  | AT86: =MIN((AB135+AL31*D19)/AK40,(AB136+AL31*D19)/AL40,(AB137+AL31*D19)/AM40,(AB138+AL31*D19)/AN40,(AB139+AL31*D19)/AO40)*AP40 ->  | AU86: =MIN((AC135+AL31*D19)/AK40,(AC136+AL31*D19)/AL40,(AC137+AL31*D19)/AM40,(AC138+AL31*D19)/AN40,(AC139+AL31*D19)/AO40)*AP40 ->  | AV86: =MIN((AD135+AL31*D19)/AK40,(AD136+AL31*D19)/AL40,(AD137+AL31*D19)/AM40,(AD138+AL31*D19)/AN40,(AD139+AL31*D19)/AO40)*AP40 ->  | AW86: =MIN((AE135+AL31*D19)/AK40,(AE136+AL31*D19)/AL40,(AE137+AL31*D19)/AM40,(AE138+AL31*D19)/AN40,(AE139+AL31*D19)/AO40)*AP40 ->  | AX86: =MIN((AF135+AL31*D19)/AK40,(AF136+AL31*D19)/AL40,(AF137+AL31*D19)/AM40,(AF138+AL31*D19)/AN40,(AF139+AL31*D19)/AO40)*AP40 ->  | BB86: =MIN((S135+AM31*D19)/AK41,(S136+AM31*D19)/AL41,(S137+AM31*D19)/AM41,(S138+AM31*D19)/AN41,(S139+AM31*D19)/AO41)*AP41 ->  | BC86: =MIN((T135+AM31*D19)/AK41,(T136+AM31*D19)/AL41,(T137+AM31*D19)/AM41,(T138+AM31*D19)/AN41,(T139+AM31*D19)/AO41)*AP41 ->  | BD86: =MIN((U135+AM31*D19)/AK41,(U136+AM31*D19)/AL41,(U137+AM31*D19)/AM41,(U138+AM31*D19)/AN41,(U139+AM31*D19)/AO41)*AP41 ->  | BE86: =MIN((V135+AM31*D19)/AK41,(V136+AM31*D19)/AL41,(V137+AM31*D19)/AM41,(V138+AM31*D19)/AN41,(V139+AM31*D19)/AO41)*AP41 ->  | BF86: =MIN((W135+AM31*D19)/AK41,(W136+AM31*D19)/AL41,(W137+AM31*D19)/AM41,(W138+AM31*D19)/AN41,(W139+AM31*D19)/AO41)*AP41 ->  | BG86: =MIN((X135+AM31*D19)/AK41,(X136+AM31*D19)/AL41,(X137+AM31*D19)/AM41,(X138+AM31*D19)/AN41,(X139+AM31*D19)/AO41)*AP41 ->  | BH86: =MIN((Y135+AM31*D19)/AK41,(Y136+AM31*D19)/AL41,(Y137+AM31*D19)/AM41,(Y138+AM31*D19)/AN41,(Y139+AM31*D19)/AO41)*AP41 ->  | BI86: =MIN((Z135+AM31*D19)/AK41,(Z136+AM31*D19)/AL41,(Z137+AM31*D19)/AM41,(Z138+AM31*D19)/AN41,(Z139+AM31*D19)/AO41)*AP41 ->  | BJ86: =MIN((AA135+AM31*D19)/AK41,(AA136+AM31*D19)/AL41,(AA137+AM31*D19)/AM41,(AA138+AM31*D19)/AN41,(AA139+AM31*D19)/AO41)*AP41 ->  | BK86: =MIN((AB135+AM31*D19)/AK41,(AB136+AM31*D19)/AL41,(AB137+AM31*D19)/AM41,(AB138+AM31*D19)/AN41,(AB139+AM31*D19)/AO41)*AP41 ->  | BL86: =MIN((AC135+AM31*D19)/AK41,(AC136+AM31*D19)/AL41,(AC137+AM31*D19)/AM41,(AC138+AM31*D19)/AN41,(AC139+AM31*D19)/AO41)*AP41 ->  | BM86: =MIN((AD135+AM31*D19)/AK41,(AD136+AM31*D19)/AL41,(AD137+AM31*D19)/AM41,(AD138+AM31*D19)/AN41,(AD139+AM31*D19)/AO41)*AP41 ->  | BN86: =MIN((AE135+AM31*D19)/AK41,(AE136+AM31*D19)/AL41,(AE137+AM31*D19)/AM41,(AE138+AM31*D19)/AN41,(AE139+AM31*D19)/AO41)*AP41 ->  | BO86: =MIN((AF135+AM31*D19)/AK41,(AF136+AM31*D19)/AL41,(AF137+AM31*D19)/AM41,(AF138+AM31*D19)/AN41,(AF139+AM31*D19)/AO41)*AP41 ->  | BR86: =BB97 -> kit 1 | BS86: kit 2A | BT86: kit 2B | BU86: kit 4A | BV86: kit 4B | BW86: kit 5 | BX86: kit 6A | BY86: kit 6B | BZ86: kit 7 | CA86: kit 8 | CB86: kit 9A | CC86: kit 9B | CD86: kit 10 | CE86: kit 11
G87: =SUM(G76:G86) -> 19.9813 | J87: =SUM(J76:J86) -> 19.9758 | M87: =SUM(M76:M86) -> 19.9813 | P87: =SUM(P76:P86) -> 19.9759 | R87: =I15+AH40+D15+D17+D21+D19*AG12 ->  | S87: =R87+Q11 ->  | T87: =R87+R11 ->  | U87: =R87+S11 ->  | V87: =R87+T11 ->  | W87: =R87+U11 ->  | X87: =R87+V11 ->  | Y87: =R87+W11 ->  | Z87: =R87+X11 ->  | AA87: =R87+Y11 ->  | AB87: =R87+Z11 ->  | AC87: =R87+AA11 ->  | AD87: =R87+AB11 ->  | AE87: =R87+AC11 ->  | AF87: =R87+AD11 ->  | AK87: =MIN((S142+AL31*D19)/AK40,(S143+AL31*D19)/AL40,(S144+AL31*D19)/AM40,(S145+AL31*D19)/AN40,(S146+AL31*D19)/AO40)*AP40 ->  | AL87: =MIN((T142+AL31*D19)/AK40,(T143+AL31*D19)/AL40,(T144+AL31*D19)/AM40,(T145+AL31*D19)/AN40,(T146+AL31*D19)/AO40)*AP40 ->  | AM87: =MIN((U142+AL31*D19)/AK40,(U143+AL31*D19)/AL40,(U144+AL31*D19)/AM40,(U145+AL31*D19)/AN40,(U146+AL31*D19)/AO40)*AP40 ->  | AN87: =MIN((V142+AL31*D19)/AK40,(V143+AL31*D19)/AL40,(V144+AL31*D19)/AM40,(V145+AL31*D19)/AN40,(V146+AL31*D19)/AO40)*AP40 ->  | AO87: =MIN((W142+AL31*D19)/AK40,(W143+AL31*D19)/AL40,(W144+AL31*D19)/AM40,(W145+AL31*D19)/AN40,(W146+AL31*D19)/AO40)*AP40 ->  | AP87: =MIN((X142+AL31*D19)/AK40,(X143+AL31*D19)/AL40,(X144+AL31*D19)/AM40,(X145+AL31*D19)/AN40,(X146+AL31*D19)/AO40)*AP40 ->  | AQ87: =MIN((Y142+AL31*D19)/AK40,(Y143+AL31*D19)/AL40,(Y144+AL31*D19)/AM40,(Y145+AL31*D19)/AN40,(Y146+AL31*D19)/AO40)*AP40 ->  | AR87: =MIN((Z142+AL31*D19)/AK40,(Z143+AL31*D19)/AL40,(Z144+AL31*D19)/AM40,(Z145+AL31*D19)/AN40,(Z146+AL31*D19)/AO40)*AP40 ->  | AS87: =MIN((AA142+AL31*D19)/AK40,(AA143+AL31*D19)/AL40,(AA144+AL31*D19)/AM40,(AA145+AL31*D19)/AN40,(AA146+AL31*D19)/AO40)*AP40 ->  | AT87: =MIN((AB142+AL31*D19)/AK40,(AB143+AL31*D19)/AL40,(AB144+AL31*D19)/AM40,(AB145+AL31*D19)/AN40,(AB146+AL31*D19)/AO40)*AP40 ->  | AU87: =MIN((AC142+AL31*D19)/AK40,(AC143+AL31*D19)/AL40,(AC144+AL31*D19)/AM40,(AC145+AL31*D19)/AN40,(AC146+AL31*D19)/AO40)*AP40 ->  | AV87: =MIN((AD142+AL31*D19)/AK40,(AD143+AL31*D19)/AL40,(AD144+AL31*D19)/AM40,(AD145+AL31*D19)/AN40,(AD146+AL31*D19)/AO40)*AP40 ->  | AW87: =MIN((AE142+AL31*D19)/AK40,(AE143+AL31*D19)/AL40,(AE144+AL31*D19)/AM40,(AE145+AL31*D19)/AN40,(AE146+AL31*D19)/AO40)*AP40 ->  | AX87: =MIN((AF142+AL31*D19)/AK40,(AF143+AL31*D19)/AL40,(AF144+AL31*D19)/AM40,(AF145+AL31*D19)/AN40,(AF146+AL31*D19)/AO40)*AP40 ->  | BB87: =MIN((S142+AM31*D19)/AK41,(S143+AM31*D19)/AL41,(S144+AM31*D19)/AM41,(S145+AM31*D19)/AN41,(S146+AM31*D19)/AO41)*AP41 ->  | BC87: =MIN((T142+AM31*D19)/AK41,(T143+AM31*D19)/AL41,(T144+AM31*D19)/AM41,(T145+AM31*D19)/AN41,(T146+AM31*D19)/AO41)*AP41 ->  | BD87: =MIN((U142+AM31*D19)/AK41,(U143+AM31*D19)/AL41,(U144+AM31*D19)/AM41,(U145+AM31*D19)/AN41,(U146+AM31*D19)/AO41)*AP41 ->  | BE87: =MIN((V142+AM31*D19)/AK41,(V143+AM31*D19)/AL41,(V144+AM31*D19)/AM41,(V145+AM31*D19)/AN41,(V146+AM31*D19)/AO41)*AP41 ->  | BF87: =MIN((W142+AM31*D19)/AK41,(W143+AM31*D19)/AL41,(W144+AM31*D19)/AM41,(W145+AM31*D19)/AN41,(W146+AM31*D19)/AO41)*AP41 ->  | BG87: =MIN((X142+AM31*D19)/AK41,(X143+AM31*D19)/AL41,(X144+AM31*D19)/AM41,(X145+AM31*D19)/AN41,(X146+AM31*D19)/AO41)*AP41 ->  | BH87: =MIN((Y142+AM31*D19)/AK41,(Y143+AM31*D19)/AL41,(Y144+AM31*D19)/AM41,(Y145+AM31*D19)/AN41,(Y146+AM31*D19)/AO41)*AP41 ->  | BI87: =MIN((Z142+AM31*D19)/AK41,(Z143+AM31*D19)/AL41,(Z144+AM31*D19)/AM41,(Z145+AM31*D19)/AN41,(Z146+AM31*D19)/AO41)*AP41 ->  | BJ87: =MIN((AA142+AM31*D19)/AK41,(AA143+AM31*D19)/AL41,(AA144+AM31*D19)/AM41,(AA145+AM31*D19)/AN41,(AA146+AM31*D19)/AO41)*AP41 ->  | BK87: =MIN((AB142+AM31*D19)/AK41,(AB143+AM31*D19)/AL41,(AB144+AM31*D19)/AM41,(AB145+AM31*D19)/AN41,(AB146+AM31*D19)/AO41)*AP41 ->  | BL87: =MIN((AC142+AM31*D19)/AK41,(AC143+AM31*D19)/AL41,(AC144+AM31*D19)/AM41,(AC145+AM31*D19)/AN41,(AC146+AM31*D19)/AO41)*AP41 ->  | BM87: =MIN((AD142+AM31*D19)/AK41,(AD143+AM31*D19)/AL41,(AD144+AM31*D19)/AM41,(AD145+AM31*D19)/AN41,(AD146+AM31*D19)/AO41)*AP41 ->  | BN87: =MIN((AE142+AM31*D19)/AK41,(AE143+AM31*D19)/AL41,(AE144+AM31*D19)/AM41,(AE145+AM31*D19)/AN41,(AE146+AM31*D19)/AO41)*AP41 ->  | BO87: =MIN((AF142+AM31*D19)/AK41,(AF143+AM31*D19)/AL41,(AF144+AM31*D19)/AM41,(AF145+AM31*D19)/AN41,(AF146+AM31*D19)/AO41)*AP41 ->  | BR87: =BB97 -> kit 1 | BS87: kit 2A | BT87: kit 2B | BU87: kit 4A | BV87: kit 4B | BW87: kit 5 | BX87: kit 6A | BY87: kit 6B | BZ87: kit 7 | CA87: kit 8 | CB87: kit 9A | CC87: kit 9B | CD87: kit 10 | CE87: kit 11
E88: 541 offensif | H88: 433 offensif | K88: 352 offensif | N88: 442 offensif | R88: =J15+AH41+D15+D17+D21+D19*AG12 ->  | S88: =R88+Q12 ->  | T88: =R88+R12 ->  | U88: =R88+S12 ->  | V88: =R88+T12 ->  | W88: =R88+U12 ->  | X88: =R88+V12 ->  | Y88: =R88+W12 ->  | Z88: =R88+X12 ->  | AA88: =R88+Y12 ->  | AB88: =R88+Z12 ->  | AC88: =R88+AA12 ->  | AD88: =R88+AB12 ->  | AE88: =R88+AC12 ->  | AF88: =R88+AD12 ->  | AK88: =MIN((S149+AL31*D19)/AK40,(S150+AL31*D19)/AL40,(S151+AL31*D19)/AM40,(S152+AL31*D19)/AN40,(S153+AL31*D19)/AO40)*AP40 ->  | AL88: =MIN((T149+AL31*D19)/AK40,(T150+AL31*D19)/AL40,(T151+AL31*D19)/AM40,(T152+AL31*D19)/AN40,(T153+AL31*D19)/AO40)*AP40 ->  | AM88: =MIN((U149+AL31*D19)/AK40,(U150+AL31*D19)/AL40,(U151+AL31*D19)/AM40,(U152+AL31*D19)/AN40,(U153+AL31*D19)/AO40)*AP40 ->  | AN88: =MIN((V149+AL31*D19)/AK40,(V150+AL31*D19)/AL40,(V151+AL31*D19)/AM40,(V152+AL31*D19)/AN40,(V153+AL31*D19)/AO40)*AP40 ->  | AO88: =MIN((W149+AL31*D19)/AK40,(W150+AL31*D19)/AL40,(W151+AL31*D19)/AM40,(W152+AL31*D19)/AN40,(W153+AL31*D19)/AO40)*AP40 ->  | AP88: =MIN((X149+AL31*D19)/AK40,(X150+AL31*D19)/AL40,(X151+AL31*D19)/AM40,(X152+AL31*D19)/AN40,(X153+AL31*D19)/AO40)*AP40 ->  | AQ88: =MIN((Y149+AL31*D19)/AK40,(Y150+AL31*D19)/AL40,(Y151+AL31*D19)/AM40,(Y152+AL31*D19)/AN40,(Y153+AL31*D19)/AO40)*AP40 ->  | AR88: =MIN((Z149+AL31*D19)/AK40,(Z150+AL31*D19)/AL40,(Z151+AL31*D19)/AM40,(Z152+AL31*D19)/AN40,(Z153+AL31*D19)/AO40)*AP40 ->  | AS88: =MIN((AA149+AL31*D19)/AK40,(AA150+AL31*D19)/AL40,(AA151+AL31*D19)/AM40,(AA152+AL31*D19)/AN40,(AA153+AL31*D19)/AO40)*AP40 ->  | AT88: =MIN((AB149+AL31*D19)/AK40,(AB150+AL31*D19)/AL40,(AB151+AL31*D19)/AM40,(AB152+AL31*D19)/AN40,(AB153+AL31*D19)/AO40)*AP40 ->  | AU88: =MIN((AC149+AL31*D19)/AK40,(AC150+AL31*D19)/AL40,(AC151+AL31*D19)/AM40,(AC152+AL31*D19)/AN40,(AC153+AL31*D19)/AO40)*AP40 ->  | AV88: =MIN((AD149+AL31*D19)/AK40,(AD150+AL31*D19)/AL40,(AD151+AL31*D19)/AM40,(AD152+AL31*D19)/AN40,(AD153+AL31*D19)/AO40)*AP40 ->  | AW88: =MIN((AE149+AL31*D19)/AK40,(AE150+AL31*D19)/AL40,(AE151+AL31*D19)/AM40,(AE152+AL31*D19)/AN40,(AE153+AL31*D19)/AO40)*AP40 ->  | AX88: =MIN((AF149+AL31*D19)/AK40,(AF150+AL31*D19)/AL40,(AF151+AL31*D19)/AM40,(AF152+AL31*D19)/AN40,(AF153+AL31*D19)/AO40)*AP40 ->  | BB88: =MIN((S149+AM31*D19)/AK41,(S150+AM31*D19)/AL41,(S151+AM31*D19)/AM41,(S152+AM31*D19)/AN41,(S153+AM31*D19)/AO41)*AP41 ->  | BC88: =MIN((T149+AM31*D19)/AK41,(T150+AM31*D19)/AL41,(T151+AM31*D19)/AM41,(T152+AM31*D19)/AN41,(T153+AM31*D19)/AO41)*AP41 ->  | BD88: =MIN((U149+AM31*D19)/AK41,(U150+AM31*D19)/AL41,(U151+AM31*D19)/AM41,(U152+AM31*D19)/AN41,(U153+AM31*D19)/AO41)*AP41 ->  | BE88: =MIN((V149+AM31*D19)/AK41,(V150+AM31*D19)/AL41,(V151+AM31*D19)/AM41,(V152+AM31*D19)/AN41,(V153+AM31*D19)/AO41)*AP41 ->  | BF88: =MIN((W149+AM31*D19)/AK41,(W150+AM31*D19)/AL41,(W151+AM31*D19)/AM41,(W152+AM31*D19)/AN41,(W153+AM31*D19)/AO41)*AP41 ->  | BG88: =MIN((X149+AM31*D19)/AK41,(X150+AM31*D19)/AL41,(X151+AM31*D19)/AM41,(X152+AM31*D19)/AN41,(X153+AM31*D19)/AO41)*AP41 ->  | BH88: =MIN((Y149+AM31*D19)/AK41,(Y150+AM31*D19)/AL41,(Y151+AM31*D19)/AM41,(Y152+AM31*D19)/AN41,(Y153+AM31*D19)/AO41)*AP41 ->  | BI88: =MIN((Z149+AM31*D19)/AK41,(Z150+AM31*D19)/AL41,(Z151+AM31*D19)/AM41,(Z152+AM31*D19)/AN41,(Z153+AM31*D19)/AO41)*AP41 ->  | BJ88: =MIN((AA149+AM31*D19)/AK41,(AA150+AM31*D19)/AL41,(AA151+AM31*D19)/AM41,(AA152+AM31*D19)/AN41,(AA153+AM31*D19)/AO41)*AP41 ->  | BK88: =MIN((AB149+AM31*D19)/AK41,(AB150+AM31*D19)/AL41,(AB151+AM31*D19)/AM41,(AB152+AM31*D19)/AN41,(AB153+AM31*D19)/AO41)*AP41 ->  | BL88: =MIN((AC149+AM31*D19)/AK41,(AC150+AM31*D19)/AL41,(AC151+AM31*D19)/AM41,(AC152+AM31*D19)/AN41,(AC153+AM31*D19)/AO41)*AP41 ->  | BM88: =MIN((AD149+AM31*D19)/AK41,(AD150+AM31*D19)/AL41,(AD151+AM31*D19)/AM41,(AD152+AM31*D19)/AN41,(AD153+AM31*D19)/AO41)*AP41 ->  | BN88: =MIN((AE149+AM31*D19)/AK41,(AE150+AM31*D19)/AL41,(AE151+AM31*D19)/AM41,(AE152+AM31*D19)/AN41,(AE153+AM31*D19)/AO41)*AP41 ->  | BO88: =MIN((AF149+AM31*D19)/AK41,(AF150+AM31*D19)/AL41,(AF151+AM31*D19)/AM41,(AF152+AM31*D19)/AN41,(AF153+AM31*D19)/AO41)*AP41 ->  | BR88: =BB97 -> kit 1 | BS88: kit 2A | BT88: kit 2B | BU88: kit 4A | BV88: kit 4B | BW88: kit 5 | BX88: kit 6A | BY88: kit 6B | BZ88: kit 7 | CA88: kit 8 | CB88: kit 9A | CC88: kit 9B | CD88: kit 10 | CE88: kit 11
E89: 1% attaque | F89: 1% defense | G89: 1% cumulé | H89: 1% attaque | I89: 1% defense | J89: 1% cumulé | K89: 1% attaque | L89: 1% defense | M89: 1% cumulé | N89: 1% attaque | O89: 1% defense | P89: 1% cumulé | R89: =K15+AH42+D16+D17+D21+D19*AG12 ->  | S89: =R89+Q13 ->  | T89: =R89+R13 ->  | U89: =R89+S13 ->  | V89: =R89+T13 ->  | W89: =R89+U13 ->  | X89: =R89+V13 ->  | Y89: =R89+W13 ->  | Z89: =R89+X13 ->  | AA89: =R89+Y13 ->  | AB89: =R89+Z13 ->  | AC89: =R89+AA13 ->  | AD89: =R89+AB13 ->  | AE89: =R89+AC13 ->  | AF89: =R89+AD13 ->  | AK89: =MIN((S156+AL31*D19)/AK40,(S157+AL31*D19)/AL40,(S158+AL31*D19)/AM40,(S159+AL31*D19)/AN40,(S160+AL31*D19)/AO40)*AP40 ->  | AL89: =MIN((T156+AL31*D19)/AK40,(T157+AL31*D19)/AL40,(T158+AL31*D19)/AM40,(T159+AL31*D19)/AN40,(T160+AL31*D19)/AO40)*AP40 ->  | AM89: =MIN((U156+AL31*D19)/AK40,(U157+AL31*D19)/AL40,(U158+AL31*D19)/AM40,(U159+AL31*D19)/AN40,(U160+AL31*D19)/AO40)*AP40 ->  | AN89: =MIN((V156+AL31*D19)/AK40,(V157+AL31*D19)/AL40,(V158+AL31*D19)/AM40,(V159+AL31*D19)/AN40,(V160+AL31*D19)/AO40)*AP40 ->  | AO89: =MIN((W156+AL31*D19)/AK40,(W157+AL31*D19)/AL40,(W158+AL31*D19)/AM40,(W159+AL31*D19)/AN40,(W160+AL31*D19)/AO40)*AP40 ->  | AP89: =MIN((X156+AL31*D19)/AK40,(X157+AL31*D19)/AL40,(X158+AL31*D19)/AM40,(X159+AL31*D19)/AN40,(X160+AL31*D19)/AO40)*AP40 ->  | AQ89: =MIN((Y156+AL31*D19)/AK40,(Y157+AL31*D19)/AL40,(Y158+AL31*D19)/AM40,(Y159+AL31*D19)/AN40,(Y160+AL31*D19)/AO40)*AP40 ->  | AR89: =MIN((Z156+AL31*D19)/AK40,(Z157+AL31*D19)/AL40,(Z158+AL31*D19)/AM40,(Z159+AL31*D19)/AN40,(Z160+AL31*D19)/AO40)*AP40 ->  | AS89: =MIN((AA156+AL31*D19)/AK40,(AA157+AL31*D19)/AL40,(AA158+AL31*D19)/AM40,(AA159+AL31*D19)/AN40,(AA160+AL31*D19)/AO40)*AP40 ->  | AT89: =MIN((AB156+AL31*D19)/AK40,(AB157+AL31*D19)/AL40,(AB158+AL31*D19)/AM40,(AB159+AL31*D19)/AN40,(AB160+AL31*D19)/AO40)*AP40 ->  | AU89: =MIN((AC156+AL31*D19)/AK40,(AC157+AL31*D19)/AL40,(AC158+AL31*D19)/AM40,(AC159+AL31*D19)/AN40,(AC160+AL31*D19)/AO40)*AP40 ->  | AV89: =MIN((AD156+AL31*D19)/AK40,(AD157+AL31*D19)/AL40,(AD158+AL31*D19)/AM40,(AD159+AL31*D19)/AN40,(AD160+AL31*D19)/AO40)*AP40 ->  | AW89: =MIN((AE156+AL31*D19)/AK40,(AE157+AL31*D19)/AL40,(AE158+AL31*D19)/AM40,(AE159+AL31*D19)/AN40,(AE160+AL31*D19)/AO40)*AP40 ->  | AX89: =MIN((AF156+AL31*D19)/AK40,(AF157+AL31*D19)/AL40,(AF158+AL31*D19)/AM40,(AF159+AL31*D19)/AN40,(AF160+AL31*D19)/AO40)*AP40 ->  | BB89: =MIN((S156+AM31*D19)/AK41,(S157+AM31*D19)/AL41,(S158+AM31*D19)/AM41,(S159+AM31*D19)/AN41,(S160+AM31*D19)/AO41)*AP41 ->  | BC89: =MIN((T156+AM31*D19)/AK41,(T157+AM31*D19)/AL41,(T158+AM31*D19)/AM41,(T159+AM31*D19)/AN41,(T160+AM31*D19)/AO41)*AP41 ->  | BD89: =MIN((U156+AM31*D19)/AK41,(U157+AM31*D19)/AL41,(U158+AM31*D19)/AM41,(U159+AM31*D19)/AN41,(U160+AM31*D19)/AO41)*AP41 ->  | BE89: =MIN((V156+AM31*D19)/AK41,(V157+AM31*D19)/AL41,(V158+AM31*D19)/AM41,(V159+AM31*D19)/AN41,(V160+AM31*D19)/AO41)*AP41 ->  | BF89: =MIN((W156+AM31*D19)/AK41,(W157+AM31*D19)/AL41,(W158+AM31*D19)/AM41,(W159+AM31*D19)/AN41,(W160+AM31*D19)/AO41)*AP41 ->  | BG89: =MIN((X156+AM31*D19)/AK41,(X157+AM31*D19)/AL41,(X158+AM31*D19)/AM41,(X159+AM31*D19)/AN41,(X160+AM31*D19)/AO41)*AP41 ->  | BH89: =MIN((Y156+AM31*D19)/AK41,(Y157+AM31*D19)/AL41,(Y158+AM31*D19)/AM41,(Y159+AM31*D19)/AN41,(Y160+AM31*D19)/AO41)*AP41 ->  | BI89: =MIN((Z156+AM31*D19)/AK41,(Z157+AM31*D19)/AL41,(Z158+AM31*D19)/AM41,(Z159+AM31*D19)/AN41,(Z160+AM31*D19)/AO41)*AP41 ->  | BJ89: =MIN((AA156+AM31*D19)/AK41,(AA157+AM31*D19)/AL41,(AA158+AM31*D19)/AM41,(AA159+AM31*D19)/AN41,(AA160+AM31*D19)/AO41)*AP41 ->  | BK89: =MIN((AB156+AM31*D19)/AK41,(AB157+AM31*D19)/AL41,(AB158+AM31*D19)/AM41,(AB159+AM31*D19)/AN41,(AB160+AM31*D19)/AO41)*AP41 ->  | BL89: =MIN((AC156+AM31*D19)/AK41,(AC157+AM31*D19)/AL41,(AC158+AM31*D19)/AM41,(AC159+AM31*D19)/AN41,(AC160+AM31*D19)/AO41)*AP41 ->  | BM89: =MIN((AD156+AM31*D19)/AK41,(AD157+AM31*D19)/AL41,(AD158+AM31*D19)/AM41,(AD159+AM31*D19)/AN41,(AD160+AM31*D19)/AO41)*AP41 ->  | BN89: =MIN((AE156+AM31*D19)/AK41,(AE157+AM31*D19)/AL41,(AE158+AM31*D19)/AM41,(AE159+AM31*D19)/AN41,(AE160+AM31*D19)/AO41)*AP41 ->  | BO89: =MIN((AF156+AM31*D19)/AK41,(AF157+AM31*D19)/AL41,(AF158+AM31*D19)/AM41,(AF159+AM31*D19)/AN41,(AF160+AM31*D19)/AO41)*AP41 ->  | BR89: =BB97 -> kit 1 | BS89: kit 2A | BT89: kit 2B | BU89: kit 4A | BV89: kit 4B | BW89: kit 5 | BX89: kit 6A | BY89: kit 6B | BZ89: kit 7 | CA89: kit 8 | CB89: kit 9A | CC89: kit 9B | CD89: kit 10 | CE89: kit 11
E90: 0.05445 | F90: 2.67025 | G90: =E90+F90 -> 2.7247 | H90: 0.27245 | I90: 2.4523 | J90: =H90+I90 -> 2.72475 | K90: 0.05445 | L90: 2.67025 | M90: =K90+L90 -> 2.7247 | N90: 0.05445 | O90: 2.67025 | P90: =N90+O90 -> 2.7247 | R90: =L15+AH43+D15+D17+D21+D19*AG12 ->  | S90: =R90+Q14 ->  | T90: =R90+R14 ->  | U90: =R90+S14 ->  | V90: =R90+T14 ->  | W90: =R90+U14 ->  | X90: =R90+V14 ->  | Y90: =R90+W14 ->  | Z90: =R90+X14 ->  | AA90: =R90+Y14 ->  | AB90: =R90+Z14 ->  | AC90: =R90+AA14 ->  | AD90: =R90+AB14 ->  | AE90: =R90+AC14 ->  | AF90: =R90+AD14 ->  | AK90: =MIN((S163+AL31*D19)/AK40,(S164+AL31*D19)/AL40,(S165+AL31*D19)/AM40,(S166+AL31*D19)/AN40,(S167+AL31*D19)/AO40)*AP40 ->  | AL90: =MIN((T163+AL31*D19)/AK40,(T164+AL31*D19)/AL40,(T165+AL31*D19)/AM40,(T166+AL31*D19)/AN40,(T167+AL31*D19)/AO40)*AP40 ->  | AM90: =MIN((U163+AL31*D19)/AK40,(U164+AL31*D19)/AL40,(U165+AL31*D19)/AM40,(U166+AL31*D19)/AN40,(U167+AL31*D19)/AO40)*AP40 ->  | AN90: =MIN((V163+AL31*D19)/AK40,(V164+AL31*D19)/AL40,(V165+AL31*D19)/AM40,(V166+AL31*D19)/AN40,(V167+AL31*D19)/AO40)*AP40 ->  | AO90: =MIN((W163+AL31*D19)/AK40,(W164+AL31*D19)/AL40,(W165+AL31*D19)/AM40,(W166+AL31*D19)/AN40,(W167+AL31*D19)/AO40)*AP40 ->  | AP90: =MIN((X163+AL31*D19)/AK40,(X164+AL31*D19)/AL40,(X165+AL31*D19)/AM40,(X166+AL31*D19)/AN40,(X167+AL31*D19)/AO40)*AP40 ->  | AQ90: =MIN((Y163+AL31*D19)/AK40,(Y164+AL31*D19)/AL40,(Y165+AL31*D19)/AM40,(Y166+AL31*D19)/AN40,(Y167+AL31*D19)/AO40)*AP40 ->  | AR90: =MIN((Z163+AL31*D19)/AK40,(Z164+AL31*D19)/AL40,(Z165+AL31*D19)/AM40,(Z166+AL31*D19)/AN40,(Z167+AL31*D19)/AO40)*AP40 ->  | AS90: =MIN((AA163+AL31*D19)/AK40,(AA164+AL31*D19)/AL40,(AA165+AL31*D19)/AM40,(AA166+AL31*D19)/AN40,(AA167+AL31*D19)/AO40)*AP40 ->  | AT90: =MIN((AB163+AL31*D19)/AK40,(AB164+AL31*D19)/AL40,(AB165+AL31*D19)/AM40,(AB166+AL31*D19)/AN40,(AB167+AL31*D19)/AO40)*AP40 ->  | AU90: =MIN((AC163+AL31*D19)/AK40,(AC164+AL31*D19)/AL40,(AC165+AL31*D19)/AM40,(AC166+AL31*D19)/AN40,(AC167+AL31*D19)/AO40)*AP40 ->  | AV90: =MIN((AD163+AL31*D19)/AK40,(AD164+AL31*D19)/AL40,(AD165+AL31*D19)/AM40,(AD166+AL31*D19)/AN40,(AD167+AL31*D19)/AO40)*AP40 ->  | AW90: =MIN((AE163+AL31*D19)/AK40,(AE164+AL31*D19)/AL40,(AE165+AL31*D19)/AM40,(AE166+AL31*D19)/AN40,(AE167+AL31*D19)/AO40)*AP40 ->  | AX90: =MIN((AF163+AL31*D19)/AK40,(AF164+AL31*D19)/AL40,(AF165+AL31*D19)/AM40,(AF166+AL31*D19)/AN40,(AF167+AL31*D19)/AO40)*AP40 ->  | BB90: =MIN((S163+AM31*D19)/AK41,(S164+AM31*D19)/AL41,(S165+AM31*D19)/AM41,(S166+AM31*D19)/AN41,(S167+AM31*D19)/AO41)*AP41 ->  | BC90: =MIN((T163+AM31*D19)/AK41,(T164+AM31*D19)/AL41,(T165+AM31*D19)/AM41,(T166+AM31*D19)/AN41,(T167+AM31*D19)/AO41)*AP41 ->  | BD90: =MIN((U163+AM31*D19)/AK41,(U164+AM31*D19)/AL41,(U165+AM31*D19)/AM41,(U166+AM31*D19)/AN41,(U167+AM31*D19)/AO41)*AP41 ->  | BE90: =MIN((V163+AM31*D19)/AK41,(V164+AM31*D19)/AL41,(V165+AM31*D19)/AM41,(V166+AM31*D19)/AN41,(V167+AM31*D19)/AO41)*AP41 ->  | BF90: =MIN((W163+AM31*D19)/AK41,(W164+AM31*D19)/AL41,(W165+AM31*D19)/AM41,(W166+AM31*D19)/AN41,(W167+AM31*D19)/AO41)*AP41 ->  | BG90: =MIN((X163+AM31*D19)/AK41,(X164+AM31*D19)/AL41,(X165+AM31*D19)/AM41,(X166+AM31*D19)/AN41,(X167+AM31*D19)/AO41)*AP41 ->  | BH90: =MIN((Y163+AM31*D19)/AK41,(Y164+AM31*D19)/AL41,(Y165+AM31*D19)/AM41,(Y166+AM31*D19)/AN41,(Y167+AM31*D19)/AO41)*AP41 ->  | BI90: =MIN((Z163+AM31*D19)/AK41,(Z164+AM31*D19)/AL41,(Z165+AM31*D19)/AM41,(Z166+AM31*D19)/AN41,(Z167+AM31*D19)/AO41)*AP41 ->  | BJ90: =MIN((AA163+AM31*D19)/AK41,(AA164+AM31*D19)/AL41,(AA165+AM31*D19)/AM41,(AA166+AM31*D19)/AN41,(AA167+AM31*D19)/AO41)*AP41 ->  | BK90: =MIN((AB163+AM31*D19)/AK41,(AB164+AM31*D19)/AL41,(AB165+AM31*D19)/AM41,(AB166+AM31*D19)/AN41,(AB167+AM31*D19)/AO41)*AP41 ->  | BL90: =MIN((AC163+AM31*D19)/AK41,(AC164+AM31*D19)/AL41,(AC165+AM31*D19)/AM41,(AC166+AM31*D19)/AN41,(AC167+AM31*D19)/AO41)*AP41 ->  | BM90: =MIN((AD163+AM31*D19)/AK41,(AD164+AM31*D19)/AL41,(AD165+AM31*D19)/AM41,(AD166+AM31*D19)/AN41,(AD167+AM31*D19)/AO41)*AP41 ->  | BN90: =MIN((AE163+AM31*D19)/AK41,(AE164+AM31*D19)/AL41,(AE165+AM31*D19)/AM41,(AE166+AM31*D19)/AN41,(AE167+AM31*D19)/AO41)*AP41 ->  | BO90: =MIN((AF163+AM31*D19)/AK41,(AF164+AM31*D19)/AL41,(AF165+AM31*D19)/AM41,(AF166+AM31*D19)/AN41,(AF167+AM31*D19)/AO41)*AP41 ->  | BR90: =BB97 -> kit 1 | BS90: kit 2A | BT90: kit 2B | BU90: kit 4A | BV90: kit 4B | BW90: kit 5 | BX90: kit 6A | BY90: kit 6B | BZ90: kit 7 | CA90: kit 8 | CB90: kit 9A | CC90: kit 9B | CD90: kit 10 | CE90: kit 11
E91: 0.4087 | F91: 0.95365 | G91: =E91+F91 -> 1.36235 | H91: 0.95365 | I91: 0.4087 | J91: 1.36235 | K91: 1.36235 | L91: 0.90825 | M91: =K91+L91 -> 2.2706 | N91: 0.8174 | O91: 0.54495 | P91: =N91+O91 -> 1.36235 | AK91: =MIN((S170+AL31*D19)/AK40,(S171+AL31*D19)/AL40,(S172+AL31*D19)/AM40,(S173+AL31*D19)/AN40,(S174+AL31*D19)/AO40)*AP40 ->  | AL91: =MIN((T170+AL31*D19)/AK40,(T171+AL31*D19)/AL40,(T172+AL31*D19)/AM40,(T173+AL31*D19)/AN40,(T174+AL31*D19)/AO40)*AP40 ->  | AM91: =MIN((U170+AL31*D19)/AK40,(U171+AL31*D19)/AL40,(U172+AL31*D19)/AM40,(U173+AL31*D19)/AN40,(U174+AL31*D19)/AO40)*AP40 ->  | AN91: =MIN((V170+AL31*D19)/AK40,(V171+AL31*D19)/AL40,(V172+AL31*D19)/AM40,(V173+AL31*D19)/AN40,(V174+AL31*D19)/AO40)*AP40 ->  | AO91: =MIN((W170+AL31*D19)/AK40,(W171+AL31*D19)/AL40,(W172+AL31*D19)/AM40,(W173+AL31*D19)/AN40,(W174+AL31*D19)/AO40)*AP40 ->  | AP91: =MIN((X170+AL31*D19)/AK40,(X171+AL31*D19)/AL40,(X172+AL31*D19)/AM40,(X173+AL31*D19)/AN40,(X174+AL31*D19)/AO40)*AP40 ->  | AQ91: =MIN((Y170+AL31*D19)/AK40,(Y171+AL31*D19)/AL40,(Y172+AL31*D19)/AM40,(Y173+AL31*D19)/AN40,(Y174+AL31*D19)/AO40)*AP40 ->  | AR91: =MIN((Z170+AL31*D19)/AK40,(Z171+AL31*D19)/AL40,(Z172+AL31*D19)/AM40,(Z173+AL31*D19)/AN40,(Z174+AL31*D19)/AO40)*AP40 ->  | AS91: =MIN((AA170+AL31*D19)/AK40,(AA171+AL31*D19)/AL40,(AA172+AL31*D19)/AM40,(AA173+AL31*D19)/AN40,(AA174+AL31*D19)/AO40)*AP40 ->  | AT91: =MIN((AB170+AL31*D19)/AK40,(AB171+AL31*D19)/AL40,(AB172+AL31*D19)/AM40,(AB173+AL31*D19)/AN40,(AB174+AL31*D19)/AO40)*AP40 ->  | AU91: =MIN((AC170+AL31*D19)/AK40,(AC171+AL31*D19)/AL40,(AC172+AL31*D19)/AM40,(AC173+AL31*D19)/AN40,(AC174+AL31*D19)/AO40)*AP40 ->  | AV91: =MIN((AD170+AL31*D19)/AK40,(AD171+AL31*D19)/AL40,(AD172+AL31*D19)/AM40,(AD173+AL31*D19)/AN40,(AD174+AL31*D19)/AO40)*AP40 ->  | AW91: =MIN((AE170+AL31*D19)/AK40,(AE171+AL31*D19)/AL40,(AE172+AL31*D19)/AM40,(AE173+AL31*D19)/AN40,(AE174+AL31*D19)/AO40)*AP40 ->  | AX91: =MIN((AF170+AL31*D19)/AK40,(AF171+AL31*D19)/AL40,(AF172+AL31*D19)/AM40,(AF173+AL31*D19)/AN40,(AF174+AL31*D19)/AO40)*AP40 ->  | BB91: =MIN((S170+AM31*D19)/AK41,(S171+AM31*D19)/AL41,(S172+AM31*D19)/AM41,(S173+AM31*D19)/AN41,(S174+AM31*D19)/AO41)*AP41 ->  | BC91: =MIN((T170+AM31*D19)/AK41,(T171+AM31*D19)/AL41,(T172+AM31*D19)/AM41,(T173+AM31*D19)/AN41,(T174+AM31*D19)/AO41)*AP41 ->  | BD91: =MIN((U170+AM31*D19)/AK41,(U171+AM31*D19)/AL41,(U172+AM31*D19)/AM41,(U173+AM31*D19)/AN41,(U174+AM31*D19)/AO41)*AP41 ->  | BE91: =MIN((V170+AM31*D19)/AK41,(V171+AM31*D19)/AL41,(V172+AM31*D19)/AM41,(V173+AM31*D19)/AN41,(V174+AM31*D19)/AO41)*AP41 ->  | BF91: =MIN((W170+AM31*D19)/AK41,(W171+AM31*D19)/AL41,(W172+AM31*D19)/AM41,(W173+AM31*D19)/AN41,(W174+AM31*D19)/AO41)*AP41 ->  | BG91: =MIN((X170+AM31*D19)/AK41,(X171+AM31*D19)/AL41,(X172+AM31*D19)/AM41,(X173+AM31*D19)/AN41,(X174+AM31*D19)/AO41)*AP41 ->  | BH91: =MIN((Y170+AM31*D19)/AK41,(Y171+AM31*D19)/AL41,(Y172+AM31*D19)/AM41,(Y173+AM31*D19)/AN41,(Y174+AM31*D19)/AO41)*AP41 ->  | BI91: =MIN((Z170+AM31*D19)/AK41,(Z171+AM31*D19)/AL41,(Z172+AM31*D19)/AM41,(Z173+AM31*D19)/AN41,(Z174+AM31*D19)/AO41)*AP41 ->  | BJ91: =MIN((AA170+AM31*D19)/AK41,(AA171+AM31*D19)/AL41,(AA172+AM31*D19)/AM41,(AA173+AM31*D19)/AN41,(AA174+AM31*D19)/AO41)*AP41 ->  | BK91: =MIN((AB170+AM31*D19)/AK41,(AB171+AM31*D19)/AL41,(AB172+AM31*D19)/AM41,(AB173+AM31*D19)/AN41,(AB174+AM31*D19)/AO41)*AP41 ->  | BL91: =MIN((AC170+AM31*D19)/AK41,(AC171+AM31*D19)/AL41,(AC172+AM31*D19)/AM41,(AC173+AM31*D19)/AN41,(AC174+AM31*D19)/AO41)*AP41 ->  | BM91: =MIN((AD170+AM31*D19)/AK41,(AD171+AM31*D19)/AL41,(AD172+AM31*D19)/AM41,(AD173+AM31*D19)/AN41,(AD174+AM31*D19)/AO41)*AP41 ->  | BN91: =MIN((AE170+AM31*D19)/AK41,(AE171+AM31*D19)/AL41,(AE172+AM31*D19)/AM41,(AE173+AM31*D19)/AN41,(AE174+AM31*D19)/AO41)*AP41 ->  | BO91: =MIN((AF170+AM31*D19)/AK41,(AF171+AM31*D19)/AL41,(AF172+AM31*D19)/AM41,(AF173+AM31*D19)/AN41,(AF174+AM31*D19)/AO41)*AP41 ->  | BR91: =BB97 -> kit 1 | BS91: kit 2A | BT91: kit 2B | BU91: kit 4A | BV91: kit 4B | BW91: kit 5 | BX91: kit 6A | BY91: kit 6B | BZ91: kit 7 | CA91: kit 8 | CB91: kit 9A | CC91: kit 9B | CD91: kit 10 | CE91: kit 11
E92: 0.4087 | F92: 0.95365 | G92: 1.36235 | H92: 0.95365 | I92: 0.4087 | J92: 1.36235 | K92: 1.36235 | L92: 0.90825 | M92: 2.2706 | N92: 0.8174 | O92: 0.54495 | P92: 1.36235 | R92: =G16 ->  | S92: =S85 -> kit 1 | T92: =T85 -> kit 2A | U92: kit 2B | V92: kit 4A | W92: kit 4B | X92: kit 5 | Y92: kit 6A | Z92: kit 6B | AA92: kit 7 | AB92: kit 8 | AC92: kit 9A | AD92: kit 9B | AE92: =AE85 -> kit 10 | AF92: =AF85 -> kit 11 | AK92: =MIN((S177+AL31*D19)/AK40,(S178+AL31*D19)/AL40,(S179+AL31*D19)/AM40,(S180+AL31*D19)/AN40,(S181+AL31*D19)/AO40)*AP40 ->  | AL92: =MIN((T177+AL31*D19)/AK40,(T178+AL31*D19)/AL40,(T179+AL31*D19)/AM40,(T180+AL31*D19)/AN40,(T181+AL31*D19)/AO40)*AP40 ->  | AM92: =MIN((U177+AL31*D19)/AK40,(U178+AL31*D19)/AL40,(U179+AL31*D19)/AM40,(U180+AL31*D19)/AN40,(U181+AL31*D19)/AO40)*AP40 ->  | AN92: =MIN((V177+AL31*D19)/AK40,(V178+AL31*D19)/AL40,(V179+AL31*D19)/AM40,(V180+AL31*D19)/AN40,(V181+AL31*D19)/AO40)*AP40 ->  | AO92: =MIN((W177+AL31*D19)/AK40,(W178+AL31*D19)/AL40,(W179+AL31*D19)/AM40,(W180+AL31*D19)/AN40,(W181+AL31*D19)/AO40)*AP40 ->  | AP92: =MIN((X177+AL31*D19)/AK40,(X178+AL31*D19)/AL40,(X179+AL31*D19)/AM40,(X180+AL31*D19)/AN40,(X181+AL31*D19)/AO40)*AP40 ->  | AQ92: =MIN((Y177+AL31*D19)/AK40,(Y178+AL31*D19)/AL40,(Y179+AL31*D19)/AM40,(Y180+AL31*D19)/AN40,(Y181+AL31*D19)/AO40)*AP40 ->  | AR92: =MIN((Z177+AL31*D19)/AK40,(Z178+AL31*D19)/AL40,(Z179+AL31*D19)/AM40,(Z180+AL31*D19)/AN40,(Z181+AL31*D19)/AO40)*AP40 ->  | AS92: =MIN((AA177+AL31*D19)/AK40,(AA178+AL31*D19)/AL40,(AA179+AL31*D19)/AM40,(AA180+AL31*D19)/AN40,(AA181+AL31*D19)/AO40)*AP40 ->  | AT92: =MIN((AB177+AL31*D19)/AK40,(AB178+AL31*D19)/AL40,(AB179+AL31*D19)/AM40,(AB180+AL31*D19)/AN40,(AB181+AL31*D19)/AO40)*AP40 ->  | AU92: =MIN((AC177+AL31*D19)/AK40,(AC178+AL31*D19)/AL40,(AC179+AL31*D19)/AM40,(AC180+AL31*D19)/AN40,(AC181+AL31*D19)/AO40)*AP40 ->  | AV92: =MIN((AD177+AL31*D19)/AK40,(AD178+AL31*D19)/AL40,(AD179+AL31*D19)/AM40,(AD180+AL31*D19)/AN40,(AD181+AL31*D19)/AO40)*AP40 ->  | AW92: =MIN((AE177+AL31*D19)/AK40,(AE178+AL31*D19)/AL40,(AE179+AL31*D19)/AM40,(AE180+AL31*D19)/AN40,(AE181+AL31*D19)/AO40)*AP40 ->  | AX92: =MIN((AF177+AL31*D19)/AK40,(AF178+AL31*D19)/AL40,(AF179+AL31*D19)/AM40,(AF180+AL31*D19)/AN40,(AF181+AL31*D19)/AO40)*AP40 ->  | BB92: =MIN((S177+AM31*D19)/AK41,(S178+AM31*D19)/AL41,(S179+AM31*D19)/AM41,(S180+AM31*D19)/AN41,(S181+AM31*D19)/AO41)*AP41 ->  | BC92: =MIN((T177+AM31*D19)/AK41,(T178+AM31*D19)/AL41,(T179+AM31*D19)/AM41,(T180+AM31*D19)/AN41,(T181+AM31*D19)/AO41)*AP41 ->  | BD92: =MIN((U177+AM31*D19)/AK41,(U178+AM31*D19)/AL41,(U179+AM31*D19)/AM41,(U180+AM31*D19)/AN41,(U181+AM31*D19)/AO41)*AP41 ->  | BE92: =MIN((V177+AM31*D19)/AK41,(V178+AM31*D19)/AL41,(V179+AM31*D19)/AM41,(V180+AM31*D19)/AN41,(V181+AM31*D19)/AO41)*AP41 ->  | BF92: =MIN((W177+AM31*D19)/AK41,(W178+AM31*D19)/AL41,(W179+AM31*D19)/AM41,(W180+AM31*D19)/AN41,(W181+AM31*D19)/AO41)*AP41 ->  | BG92: =MIN((X177+AM31*D19)/AK41,(X178+AM31*D19)/AL41,(X179+AM31*D19)/AM41,(X180+AM31*D19)/AN41,(X181+AM31*D19)/AO41)*AP41 ->  | BH92: =MIN((Y177+AM31*D19)/AK41,(Y178+AM31*D19)/AL41,(Y179+AM31*D19)/AM41,(Y180+AM31*D19)/AN41,(Y181+AM31*D19)/AO41)*AP41 ->  | BI92: =MIN((Z177+AM31*D19)/AK41,(Z178+AM31*D19)/AL41,(Z179+AM31*D19)/AM41,(Z180+AM31*D19)/AN41,(Z181+AM31*D19)/AO41)*AP41 ->  | BJ92: =MIN((AA177+AM31*D19)/AK41,(AA178+AM31*D19)/AL41,(AA179+AM31*D19)/AM41,(AA180+AM31*D19)/AN41,(AA181+AM31*D19)/AO41)*AP41 ->  | BK92: =MIN((AB177+AM31*D19)/AK41,(AB178+AM31*D19)/AL41,(AB179+AM31*D19)/AM41,(AB180+AM31*D19)/AN41,(AB181+AM31*D19)/AO41)*AP41 ->  | BL92: =MIN((AC177+AM31*D19)/AK41,(AC178+AM31*D19)/AL41,(AC179+AM31*D19)/AM41,(AC180+AM31*D19)/AN41,(AC181+AM31*D19)/AO41)*AP41 ->  | BM92: =MIN((AD177+AM31*D19)/AK41,(AD178+AM31*D19)/AL41,(AD179+AM31*D19)/AM41,(AD180+AM31*D19)/AN41,(AD181+AM31*D19)/AO41)*AP41 ->  | BN92: =MIN((AE177+AM31*D19)/AK41,(AE178+AM31*D19)/AL41,(AE179+AM31*D19)/AM41,(AE180+AM31*D19)/AN41,(AE181+AM31*D19)/AO41)*AP41 ->  | BO92: =MIN((AF177+AM31*D19)/AK41,(AF178+AM31*D19)/AL41,(AF179+AM31*D19)/AM41,(AF180+AM31*D19)/AN41,(AF181+AM31*D19)/AO41)*AP41 ->  | BR92: =BB97 -> kit 1 | BS92: kit 2A | BT92: kit 2B | BU92: kit 4A | BV92: kit 4B | BW92: kit 5 | BX92: kit 6A | BY92: kit 6B | BZ92: kit 7 | CA92: kit 8 | CB92: kit 9A | CC92: kit 9B | CD92: kit 10 | CE92: kit 11
E93: 0.7266 | F93: 1.0899 | G93: 1.8165 | H93: 0.3633 | I93: 0.54495 | J93: 0.90825 | K93: 0.4541 | L93: 0.4541 | M93: 0.9082 | N93: 0.90825 | O93: 0.90825 | P93: 1.8165 | R93: =H16+AH39+D16+D17+D21+D19*AG13 ->  | S93: =R93+Q10 ->  | T93: =R93+R10 ->  | U93: =R93+S10 ->  | V93: =R93+T10 ->  | W93: =R93+U10 ->  | X93: =R93+V10 ->  | Y93: =R93+W10 ->  | Z93: =R93+X10 ->  | AA93: =R93+Y10 ->  | AB93: =R93+Z10 ->  | AC93: =R93+AA10 ->  | AD93: =R93+AB10 ->  | AE93: =R93+AC10 ->  | AF93: =R93+AD10 ->  | AJ93: 0 | AK93: =MIN((S184+AL31*D19)/AK40,(S185+AL31*D19)/AL40,(S186+AL31*D19)/AM40,(S187+AL31*D19)/AN40,(S188+AL31*D19)/AO40)*AP40 ->  | AL93: =MIN((T184+AL31*D19)/AK40,(T185+AL31*D19)/AL40,(T186+AL31*D19)/AM40,(T187+AL31*D19)/AN40,(T188+AL31*D19)/AO40)*AP40 ->  | AM93: =MIN((U184+AL31*D19)/AK40,(U185+AL31*D19)/AL40,(U186+AL31*D19)/AM40,(U187+AL31*D19)/AN40,(U188+AL31*D19)/AO40)*AP40 ->  | AN93: =MIN((V184+AL31*D19)/AK40,(V185+AL31*D19)/AL40,(V186+AL31*D19)/AM40,(V187+AL31*D19)/AN40,(V188+AL31*D19)/AO40)*AP40 ->  | AO93: =MIN((W184+AL31*D19)/AK40,(W185+AL31*D19)/AL40,(W186+AL31*D19)/AM40,(W187+AL31*D19)/AN40,(W188+AL31*D19)/AO40)*AP40 ->  | AP93: =MIN((X184+AL31*D19)/AK40,(X185+AL31*D19)/AL40,(X186+AL31*D19)/AM40,(X187+AL31*D19)/AN40,(X188+AL31*D19)/AO40)*AP40 ->  | AQ93: =MIN((Y184+AL31*D19)/AK40,(Y185+AL31*D19)/AL40,(Y186+AL31*D19)/AM40,(Y187+AL31*D19)/AN40,(Y188+AL31*D19)/AO40)*AP40 ->  | AR93: =MIN((Z184+AL31*D19)/AK40,(Z185+AL31*D19)/AL40,(Z186+AL31*D19)/AM40,(Z187+AL31*D19)/AN40,(Z188+AL31*D19)/AO40)*AP40 ->  | AS93: =MIN((AA184+AL31*D19)/AK40,(AA185+AL31*D19)/AL40,(AA186+AL31*D19)/AM40,(AA187+AL31*D19)/AN40,(AA188+AL31*D19)/AO40)*AP40 ->  | AT93: =MIN((AB184+AL31*D19)/AK40,(AB185+AL31*D19)/AL40,(AB186+AL31*D19)/AM40,(AB187+AL31*D19)/AN40,(AB188+AL31*D19)/AO40)*AP40 ->  | AU93: =MIN((AC184+AL31*D19)/AK40,(AC185+AL31*D19)/AL40,(AC186+AL31*D19)/AM40,(AC187+AL31*D19)/AN40,(AC188+AL31*D19)/AO40)*AP40 ->  | AV93: =MIN((AD184+AL31*D19)/AK40,(AD185+AL31*D19)/AL40,(AD186+AL31*D19)/AM40,(AD187+AL31*D19)/AN40,(AD188+AL31*D19)/AO40)*AP40 ->  | AW93: =MIN((AE184+AL31*D19)/AK40,(AE185+AL31*D19)/AL40,(AE186+AL31*D19)/AM40,(AE187+AL31*D19)/AN40,(AE188+AL31*D19)/AO40)*AP40 ->  | AX93: =MIN((AF184+AL31*D19)/AK40,(AF185+AL31*D19)/AL40,(AF186+AL31*D19)/AM40,(AF187+AL31*D19)/AN40,(AF188+AL31*D19)/AO40)*AP40 ->  | BA93: 0 | BB93: =MIN((S184+AM31*D19)/AK41,(S185+AM31*D19)/AL41,(S186+AM31*D19)/AM41,(S187+AM31*D19)/AN41,(S188+AM31*D19)/AO41)*AP41 ->  | BC93: =MIN((T184+AM31*D19)/AK41,(T185+AM31*D19)/AL41,(T186+AM31*D19)/AM41,(T187+AM31*D19)/AN41,(T188+AM31*D19)/AO41)*AP41 ->  | BD93: =MIN((U184+AM31*D19)/AK41,(U185+AM31*D19)/AL41,(U186+AM31*D19)/AM41,(U187+AM31*D19)/AN41,(U188+AM31*D19)/AO41)*AP41 ->  | BE93: =MIN((V184+AM31*D19)/AK41,(V185+AM31*D19)/AL41,(V186+AM31*D19)/AM41,(V187+AM31*D19)/AN41,(V188+AM31*D19)/AO41)*AP41 ->  | BF93: =MIN((W184+AM31*D19)/AK41,(W185+AM31*D19)/AL41,(W186+AM31*D19)/AM41,(W187+AM31*D19)/AN41,(W188+AM31*D19)/AO41)*AP41 ->  | BG93: =MIN((X184+AM31*D19)/AK41,(X185+AM31*D19)/AL41,(X186+AM31*D19)/AM41,(X187+AM31*D19)/AN41,(X188+AM31*D19)/AO41)*AP41 ->  | BH93: =MIN((Y184+AM31*D19)/AK41,(Y185+AM31*D19)/AL41,(Y186+AM31*D19)/AM41,(Y187+AM31*D19)/AN41,(Y188+AM31*D19)/AO41)*AP41 ->  | BI93: =MIN((Z184+AM31*D19)/AK41,(Z185+AM31*D19)/AL41,(Z186+AM31*D19)/AM41,(Z187+AM31*D19)/AN41,(Z188+AM31*D19)/AO41)*AP41 ->  | BJ93: =MIN((AA184+AM31*D19)/AK41,(AA185+AM31*D19)/AL41,(AA186+AM31*D19)/AM41,(AA187+AM31*D19)/AN41,(AA188+AM31*D19)/AO41)*AP41 ->  | BK93: =MIN((AB184+AM31*D19)/AK41,(AB185+AM31*D19)/AL41,(AB186+AM31*D19)/AM41,(AB187+AM31*D19)/AN41,(AB188+AM31*D19)/AO41)*AP41 ->  | BL93: =MIN((AC184+AM31*D19)/AK41,(AC185+AM31*D19)/AL41,(AC186+AM31*D19)/AM41,(AC187+AM31*D19)/AN41,(AC188+AM31*D19)/AO41)*AP41 ->  | BM93: =MIN((AD184+AM31*D19)/AK41,(AD185+AM31*D19)/AL41,(AD186+AM31*D19)/AM41,(AD187+AM31*D19)/AN41,(AD188+AM31*D19)/AO41)*AP41 ->  | BN93: =MIN((AE184+AM31*D19)/AK41,(AE185+AM31*D19)/AL41,(AE186+AM31*D19)/AM41,(AE187+AM31*D19)/AN41,(AE188+AM31*D19)/AO41)*AP41 ->  | BO93: =MIN((AF184+AM31*D19)/AK41,(AF185+AM31*D19)/AL41,(AF186+AM31*D19)/AM41,(AF187+AM31*D19)/AN41,(AF188+AM31*D19)/AO41)*AP41 ->  | BR93: =BB97 -> kit 1 | BS93: kit 2A | BT93: kit 2B | BU93: kit 4A | BV93: kit 4B | BW93: kit 5 | BX93: kit 6A | BY93: kit 6B | BZ93: kit 7 | CA93: kit 8 | CB93: kit 9A | CC93: kit 9B | CD93: kit 10 | CE93: kit 11
E94: 0.7266 | F94: 1.0899 | G94: 1.8165 | H94: 0.95365 | I94: 0.4087 | J94: 1.36235 | K94: 0.4541 | L94: 0.4541 | M94: 0.9082 | N94: 1.0899 | O94: 0.7266 | P94: 1.8165 | R94: =I16+AH40+D15+D17+D21+D19*AG13 ->  | S94: =R94+Q11 ->  | T94: =R94+R11 ->  | U94: =R94+S11 ->  | V94: =R94+T11 ->  | W94: =R94+U11 ->  | X94: =R94+V11 ->  | Y94: =R94+W11 ->  | Z94: =R94+X11 ->  | AA94: =R94+Y11 ->  | AB94: =R94+Z11 ->  | AC94: =R94+AA11 ->  | AD94: =R94+AB11 ->  | AE94: =R94+AC11 ->  | AF94: =R94+AD11 ->  | AJ94: 0 | AY94: 0 | BA94: 0 | BP94: 0 | BR94: =BB97 -> kit 1 | BS94: kit 2A | BT94: kit 2B | BU94: kit 4A | BV94: kit 4B | BW94: kit 5 | BX94: kit 6A | BY94: kit 6B | BZ94: kit 7 | CA94: kit 8 | CB94: kit 9A | CC94: kit 9B | CD94: kit 10 | CE94: kit 11
E95: 0.90825 | F95: 1.36235 | G95: 2.2706 | H95: 0.95365 | I95: 0.4087 | J95: 1.36235 | K95: 1.0899 | L95: 0.7266 | M95: 1.8165 | N95: 1.0899 | O95: 0.7266 | P95: 1.8165 | R95: =J16+AH41+D15+D17+D21+D19*AG13 ->  | S95: =R95+Q12 ->  | T95: =R95+R12 ->  | U95: =R95+S12 ->  | V95: =R95+T12 ->  | W95: =R95+U12 ->  | X95: =R95+V12 ->  | Y95: =R95+W12 ->  | Z95: =R95+X12 ->  | AA95: =R95+Y12 ->  | AB95: =R95+Z12 ->  | AC95: =R95+AA12 ->  | AD95: =R95+AB12 ->  | AE95: =R95+AC12 ->  | AF95: =R95+AD12 ->  | AJ95: 0 | AY95: 0 | BA95: 0 | BP95: 0 | BR95: =BB97 -> kit 1 | BS95: kit 2A | BT95: kit 2B | BU95: kit 4A | BV95: kit 4B | BW95: kit 5 | BX95: kit 6A | BY95: kit 6B | BZ95: kit 7 | CA95: kit 8 | CB95: kit 9A | CC95: kit 9B | CD95: kit 10 | CE95: kit 11
E96: 1.0899 | F96: 0.7266 | G96: 1.8165 | H96: 0.94985 | I96: 0.40705 | J96: 1.3569 | K96: 1.90735 | L96: 0.8174 | M96: 2.72475 | N96: 1.0899 | O96: 0.27245 | P96: 1.36235 | R96: =K16+AH42+D16+D17+D21+D19*AG13 ->  | S96: =R96+Q13 ->  | T96: =R96+R13 ->  | U96: =R96+S13 ->  | V96: =R96+T13 ->  | W96: =R96+U13 ->  | X96: =R96+V13 ->  | Y96: =R96+W13 ->  | Z96: =R96+X13 ->  | AA96: =R96+Y13 ->  | AB96: =R96+Z13 ->  | AC96: =R96+AA13 ->  | AD96: =R96+AB13 ->  | AE96: =R96+AC13 ->  | AF96: =R96+AD13 ->  | BR96: =BB97 -> kit 1 | BS96: kit 2A | BT96: kit 2B | BU96: kit 4A | BV96: kit 4B | BW96: kit 5 | BX96: kit 6A | BY96: kit 6B | BZ96: kit 7 | CA96: kit 8 | CB96: kit 9A | CC96: kit 9B | CD96: kit 10 | CE96: kit 11
E97: 0.95365 | F97: 0.4087 | G97: 1.36235 | H97: 2.4523 | I97: 0.27245 | J97: 2.72475 | K97: 1.0899 | L97: 0.27245 | M97: 1.36235 | N97: 1.0899 | O97: 0.27245 | P97: 1.36235 | R97: =L16+AH43+D15+D17+D21+D19*AG13 ->  | S97: =R97+Q14 ->  | T97: =R97+R14 ->  | U97: =R97+S14 ->  | V97: =R97+T14 ->  | W97: =R97+U14 ->  | X97: =R97+V14 ->  | Y97: =R97+W14 ->  | Z97: =R97+X14 ->  | AA97: =R97+Y14 ->  | AB97: =R97+Z14 ->  | AC97: =R97+AA14 ->  | AD97: =R97+AB14 ->  | AE97: =R97+AC14 ->  | AF97: =R97+AD14 ->  | AJ97: 5 | AK97: =Q9 -> kit 1 | AL97: kit 2A | AM97: kit 2B | AN97: kit 4A | AO97: kit 4B | AP97: kit 5 | AQ97: kit 6A | AR97: kit 6B | AS97: kit 7 | AT97: kit 8 | AU97: kit 9A | AV97: kit 9B | AW97: kit 10 | AX97: kit 11 | AY97: MAX | BA97: 6 | BB97: =Q9 -> kit 1 | BC97: kit 2A | BD97: kit 2B | BE97: kit 4A | BF97: kit 4B | BG97: kit 5 | BH97: kit 6A | BI97: kit 6B | BJ97: kit 7 | BK97: kit 8 | BL97: kit 9A | BM97: kit 9B | BN97: kit 10 | BO97: kit 11 | BP97: MAX | BR97: =BB97 -> kit 1 | BS97: kit 2A | BT97: kit 2B | BU97: kit 4A | BV97: kit 4B | BW97: kit 5 | BX97: kit 6A | BY97: kit 6B | BZ97: kit 7 | CA97: kit 8 | CB97: kit 9A | CC97: kit 9B | CD97: kit 10 | CE97: kit 11
E98: 2.24795 | F98: 0.0227 | G98: 2.27065 | H98: 2.04355 | I98: 0.22705 | J98: 2.2706 | K98: 1.63485 | L98: 0.18165 | M98: 1.8165 | N98: 1.63485 | O98: 0.18165 | P98: 1.8165 | AJ98: =AJ167 ->  | AK98: =MIN((S58+AN31*D19)/AK42,(S59+AN31*D19)/AL42,(S60+AN31*D19)/AM42,(S61+AN31*D19)/AN42,(S62+AN31*D19)/AO42)*AP42 ->  | AL98: =MIN((T58+AN31*D19)/AK42,(T59+AN31*D19)/AL42,(T60+AN31*D19)/AM42,(T61+AN31*D19)/AN42,(T62+AN31*D19)/AO42)*AP42 ->  | AM98: =MIN((U58+AN31*D19)/AK42,(U59+AN31*D19)/AL42,(U60+AN31*D19)/AM42,(U61+AN31*D19)/AN42,(U62+AN31*D19)/AO42)*AP42 ->  | AN98: =MIN((V58+AN31*D19)/AK42,(V59+AN31*D19)/AL42,(V60+AN31*D19)/AM42,(V61+AN31*D19)/AN42,(V62+AN31*D19)/AO42)*AP42 ->  | AO98: =MIN((W58+AN31*D19)/AK42,(W59+AN31*D19)/AL42,(W60+AN31*D19)/AM42,(W61+AN31*D19)/AN42,(W62+AN31*D19)/AO42)*AP42 ->  | AP98: =MIN((X58+AN31*D19)/AK42,(X59+AN31*D19)/AL42,(X60+AN31*D19)/AM42,(X61+AN31*D19)/AN42,(X62+AN31*D19)/AO42)*AP42 ->  | AQ98: =MIN((Y58+AN31*D19)/AK42,(Y59+AN31*D19)/AL42,(Y60+AN31*D19)/AM42,(Y61+AN31*D19)/AN42,(Y62+AN31*D19)/AO42)*AP42 ->  | AR98: =MIN((Z58+AN31*D19)/AK42,(Z59+AN31*D19)/AL42,(Z60+AN31*D19)/AM42,(Z61+AN31*D19)/AN42,(Z62+AN31*D19)/AO42)*AP42 ->  | AS98: =MIN((AA58+AN31*D19)/AK42,(AA59+AN31*D19)/AL42,(AA60+AN31*D19)/AM42,(AA61+AN31*D19)/AN42,(AA62+AN31*D19)/AO42)*AP42 ->  | AT98: =MIN((AB58+AN31*D19)/AK42,(AB59+AN31*D19)/AL42,(AB60+AN31*D19)/AM42,(AB61+AN31*D19)/AN42,(AB62+AN31*D19)/AO42)*AP42 ->  | AU98: =MIN((AC58+AN31*D19)/AK42,(AC59+AN31*D19)/AL42,(AC60+AN31*D19)/AM42,(AC61+AN31*D19)/AN42,(AC62+AN31*D19)/AO42)*AP42 ->  | AV98: , | AW98: =MIN((AE58+AN31*D19)/AK42,(AE59+AN31*D19)/AL42,(AE60+AN31*D19)/AM42,(AE61+AN31*D19)/AN42,(AE62+AN31*D19)/AO42)*AP42 ->  | AX98: =MIN((AF58+AN31*D19)/AK42,(AF59+AN31*D19)/AL42,(AF60+AN31*D19)/AM42,(AF61+AN31*D19)/AN42,(AF62+AN31*D19)/AO42)*AP42 ->  | AY98: =MAX(AK98:AX98) ->  | BA98: =AJ167 ->  | BB98: =MIN((S58+AO31*D19)/AK43,(S59+AO31*D19)/AL43,(S60+AO31*D19)/AM43,(S61+AO31*D19)/AN43,(S62+AO31*D19)/AO43)*AP43 ->  | BC98: =MIN((T58+AO31*D19)/AK43,(T59+AO31*D19)/AL43,(T60+AO31*D19)/AM43,(T61+AO31*D19)/AN43,(T62+AO31*D19)/AO43)*AP43 ->  | BD98: =MIN((U58+AO31*D19)/AK43,(U59+AO31*D19)/AL43,(U60+AO31*D19)/AM43,(U61+AO31*D19)/AN43,(U62+AO31*D19)/AO43)*AP43 ->  | BE98: =MIN((V58+AO31*D19)/AK43,(V59+AO31*D19)/AL43,(V60+AO31*D19)/AM43,(V61+AO31*D19)/AN43,(V62+AO31*D19)/AO43)*AP43 ->  | BF98: =MIN((W58+AO31*D19)/AK43,(W59+AO31*D19)/AL43,(W60+AO31*D19)/AM43,(W61+AO31*D19)/AN43,(W62+AO31*D19)/AO43)*AP43 ->  | BG98: =MIN((X58+AO31*D19)/AK43,(X59+AO31*D19)/AL43,(X60+AO31*D19)/AM43,(X61+AO31*D19)/AN43,(X62+AO31*D19)/AO43)*AP43 ->  | BH98: =MIN((Y58+AO31*D19)/AK43,(Y59+AO31*D19)/AL43,(Y60+AO31*D19)/AM43,(Y61+AO31*D19)/AN43,(Y62+AO31*D19)/AO43)*AP43 ->  | BI98: =MIN((Z58+AO31*D19)/AK43,(Z59+AO31*D19)/AL43,(Z60+AO31*D19)/AM43,(Z61+AO31*D19)/AN43,(Z62+AO31*D19)/AO43)*AP43 ->  | BJ98: =MIN((AA58+AO31*D19)/AK43,(AA59+AO31*D19)/AL43,(AA60+AO31*D19)/AM43,(AA61+AO31*D19)/AN43,(AA62+AO31*D19)/AO43)*AP43 ->  | BK98: =MIN((AB58+AO31*D19)/AK43,(AB59+AO31*D19)/AL43,(AB60+AO31*D19)/AM43,(AB61+AO31*D19)/AN43,(AB62+AO31*D19)/AO43)*AP43 ->  | BL98: =MIN((AC58+AO31*D19)/AK43,(AC59+AO31*D19)/AL43,(AC60+AO31*D19)/AM43,(AC61+AO31*D19)/AN43,(AC62+AO31*D19)/AO43)*AP43 ->  | BM98: =MIN((AD58+AO31*D19)/AK43,(AD59+AO31*D19)/AL43,(AD60+AO31*D19)/AM43,(AD61+AO31*D19)/AN43,(AD62+AO31*D19)/AO43)*AP43 ->  | BN98: =MIN((AE58+AO31*D19)/AK43,(AE59+AO31*D19)/AL43,(AE60+AO31*D19)/AM43,(AE61+AO31*D19)/AN43,(AE62+AO31*D19)/AO43)*AP43 ->  | BO98: =MIN((AF58+AO31*D19)/AK43,(AF59+AO31*D19)/AL43,(AF60+AO31*D19)/AM43,(AF61+AO31*D19)/AN43,(AF62+AO31*D19)/AO43)*AP43 ->  | BP98: =MAX(BB98:BO98) ->  | BR98: =BB97 -> kit 1 | BS98: kit 2A | BT98: kit 2B | BU98: kit 4A | BV98: kit 4B | BW98: kit 5 | BX98: kit 6A | BY98: kit 6B | BZ98: kit 7 | CA98: kit 8 | CB98: kit 9A | CC98: kit 9B | CD98: kit 10 | CE98: kit 11
E99: 1.4532 | F99: 0.3633 | G99: 1.8165 | H99: 1.63485 | I99: 0.18165 | J99: 1.8165 | K99: 1.0899 | L99: 0.27245 | M99: 1.36235 | N99: 1.90735 | O99: 0.8174 | P99: 2.72475 | R99: =G17 ->  | S99: =S92 -> kit 1 | T99: =T92 -> kit 2A | U99: kit 2B | V99: kit 4A | W99: kit 4B | X99: kit 5 | Y99: kit 6A | Z99: kit 6B | AA99: kit 7 | AB99: kit 8 | AC99: kit 9A | AD99: kit 9B | AE99: =AE92 -> kit 10 | AF99: =AF92 -> kit 11 | AK99: =MIN((S65+AN31*D19)/AK42,(S66+AN31*D19)/AL42,(S67+AN31*D19)/AM42,(S68+AN31*D19)/AN42,(S69+AN31*D19)/AO42)*AP42 ->  | AL99: =MIN((T65+AN31*D19)/AK42,(T66+AN31*D19)/AL42,(T67+AN31*D19)/AM42,(T68+AN31*D19)/AN42,(T69+AN31*D19)/AO42)*AP42 ->  | AM99: =MIN((U65+AN31*D19)/AK42,(U66+AN31*D19)/AL42,(U67+AN31*D19)/AM42,(U68+AN31*D19)/AN42,(U69+AN31*D19)/AO42)*AP42 ->  | AN99: =MIN((V65+AN31*D19)/AK42,(V66+AN31*D19)/AL42,(V67+AN31*D19)/AM42,(V68+AN31*D19)/AN42,(V69+AN31*D19)/AO42)*AP42 ->  | AO99: =MIN((W65+AN31*D19)/AK42,(W66+AN31*D19)/AL42,(W67+AN31*D19)/AM42,(W68+AN31*D19)/AN42,(W69+AN31*D19)/AO42)*AP42 ->  | AP99: =MIN((X65+AN31*D19)/AK42,(X66+AN31*D19)/AL42,(X67+AN31*D19)/AM42,(X68+AN31*D19)/AN42,(X69+AN31*D19)/AO42)*AP42 ->  | AQ99: =MIN((Y65+AN31*D19)/AK42,(Y66+AN31*D19)/AL42,(Y67+AN31*D19)/AM42,(Y68+AN31*D19)/AN42,(Y69+AN31*D19)/AO42)*AP42 ->  | AR99: =MIN((Z65+AN31*D19)/AK42,(Z66+AN31*D19)/AL42,(Z67+AN31*D19)/AM42,(Z68+AN31*D19)/AN42,(Z69+AN31*D19)/AO42)*AP42 ->  | AS99: =MIN((AA65+AN31*D19)/AK42,(AA66+AN31*D19)/AL42,(AA67+AN31*D19)/AM42,(AA68+AN31*D19)/AN42,(AA69+AN31*D19)/AO42)*AP42 ->  | AT99: =MIN((AB65+AN31*D19)/AK42,(AB66+AN31*D19)/AL42,(AB67+AN31*D19)/AM42,(AB68+AN31*D19)/AN42,(AB69+AN31*D19)/AO42)*AP42 ->  | AU99: =MIN((AC65+AN31*D19)/AK42,(AC66+AN31*D19)/AL42,(AC67+AN31*D19)/AM42,(AC68+AN31*D19)/AN42,(AC69+AN31*D19)/AO42)*AP42 ->  | AV99: =MIN((AD65+AN31*D19)/AK42,(AD66+AN31*D19)/AL42,(AD67+AN31*D19)/AM42,(AD68+AN31*D19)/AN42,(AD69+AN31*D19)/AO42)*AP42 ->  | AW99: =MIN((AE65+AN31*D19)/AK42,(AE66+AN31*D19)/AL42,(AE67+AN31*D19)/AM42,(AE68+AN31*D19)/AN42,(AE69+AN31*D19)/AO42)*AP42 ->  | AX99: =MIN((AF65+AN31*D19)/AK42,(AF66+AN31*D19)/AL42,(AF67+AN31*D19)/AM42,(AF68+AN31*D19)/AN42,(AF69+AN31*D19)/AO42)*AP42 ->  | AY99: =MAX(AK99:AX99) ->  | BB99: =MIN((S65+AO31*D19)/AK43,(S66+AO31*D19)/AL43,(S67+AO31*D19)/AM43,(S68+AO31*D19)/AN43,(S69+AO31*D19)/AO43)*AP43 ->  | BC99: =MIN((T65+AO31*D19)/AK43,(T66+AO31*D19)/AL43,(T67+AO31*D19)/AM43,(T68+AO31*D19)/AN43,(T69+AO31*D19)/AO43)*AP43 ->  | BD99: =MIN((U65+AO31*D19)/AK43,(U66+AO31*D19)/AL43,(U67+AO31*D19)/AM43,(U68+AO31*D19)/AN43,(U69+AO31*D19)/AO43)*AP43 ->  | BE99: =MIN((V65+AO31*D19)/AK43,(V66+AO31*D19)/AL43,(V67+AO31*D19)/AM43,(V68+AO31*D19)/AN43,(V69+AO31*D19)/AO43)*AP43 ->  | BF99: =MIN((W65+AO31*D19)/AK43,(W66+AO31*D19)/AL43,(W67+AO31*D19)/AM43,(W68+AO31*D19)/AN43,(W69+AO31*D19)/AO43)*AP43 ->  | BG99: =MIN((X65+AO31*D19)/AK43,(X66+AO31*D19)/AL43,(X67+AO31*D19)/AM43,(X68+AO31*D19)/AN43,(X69+AO31*D19)/AO43)*AP43 ->  | BH99: =MIN((Y65+AO31*D19)/AK43,(Y66+AO31*D19)/AL43,(Y67+AO31*D19)/AM43,(Y68+AO31*D19)/AN43,(Y69+AO31*D19)/AO43)*AP43 ->  | BI99: =MIN((Z65+AO31*D19)/AK43,(Z66+AO31*D19)/AL43,(Z67+AO31*D19)/AM43,(Z68+AO31*D19)/AN43,(Z69+AO31*D19)/AO43)*AP43 ->  | BJ99: =MIN((AA65+AO31*D19)/AK43,(AA66+AO31*D19)/AL43,(AA67+AO31*D19)/AM43,(AA68+AO31*D19)/AN43,(AA69+AO31*D19)/AO43)*AP43 ->  | BK99: =MIN((AB65+AO31*D19)/AK43,(AB66+AO31*D19)/AL43,(AB67+AO31*D19)/AM43,(AB68+AO31*D19)/AN43,(AB69+AO31*D19)/AO43)*AP43 ->  | BL99: =MIN((AC65+AO31*D19)/AK43,(AC66+AO31*D19)/AL43,(AC67+AO31*D19)/AM43,(AC68+AO31*D19)/AN43,(AC69+AO31*D19)/AO43)*AP43 ->  | BM99: =MIN((AD65+AO31*D19)/AK43,(AD66+AO31*D19)/AL43,(AD67+AO31*D19)/AM43,(AD68+AO31*D19)/AN43,(AD69+AO31*D19)/AO43)*AP43 ->  | BN99: =MIN((AE65+AO31*D19)/AK43,(AE66+AO31*D19)/AL43,(AE67+AO31*D19)/AM43,(AE68+AO31*D19)/AN43,(AE69+AO31*D19)/AO43)*AP43 ->  | BO99: =MIN((AF65+AO31*D19)/AK43,(AF66+AO31*D19)/AL43,(AF67+AO31*D19)/AM43,(AF68+AO31*D19)/AN43,(AF69+AO31*D19)/AO43)*AP43 ->  | BP99: =MAX(BB99:BO99) ->  | BR99: =BB97 -> kit 1 | BS99: kit 2A | BT99: kit 2B | BU99: kit 4A | BV99: kit 4B | BW99: kit 5 | BX99: kit 6A | BY99: kit 6B | BZ99: kit 7 | CA99: kit 8 | CB99: kit 9A | CC99: kit 9B | CD99: kit 10 | CE99: kit 11
E100: 0.95365 | F100: 0.4087 | G100: 1.36235 | H100: 2.4523 | I100: 0.27245 | J100: 2.72475 | K100: 1.4532 | L100: 0.3633 | M100: 1.8165 | N100: 1.4532 | O100: 0.3633 | P100: 1.8165 | R100: =H17+AH39+D16+D17+D21+D19*AG14 ->  | S100: =R100+Q10 ->  | T100: =R100+R10 ->  | U100: =R100+S10 ->  | V100: =R100+T10 ->  | W100: =R100+U10 ->  | X100: =R100+V10 ->  | Y100: =R100+W10 ->  | Z100: =R100+X10 ->  | AA100: =R100+Y10 ->  | AB100: =R100+Z10 ->  | AC100: =R100+AA10 ->  | AD100: =R100+AB10 ->  | AE100: =R100+AC10 ->  | AF100: =R100+AD10 ->  | AK100: =MIN((S72+AN31*D19)/AK42,(S73+AN31*D19)/AL42,(S74+AN31*D19)/AM42,(S75+AN31*D19)/AN42,(S76+AN31*D19)/AO42)*AP42 ->  | AL100: =MIN((T72+AN31*D19)/AK42,(T73+AN31*D19)/AL42,(T74+AN31*D19)/AM42,(T75+AN31*D19)/AN42,(T76+AN31*D19)/AO42)*AP42 ->  | AM100: =MIN((U72+AN31*D19)/AK42,(U73+AN31*D19)/AL42,(U74+AN31*D19)/AM42,(U75+AN31*D19)/AN42,(U76+AN31*D19)/AO42)*AP42 ->  | AN100: =MIN((V72+AN31*D19)/AK42,(V73+AN31*D19)/AL42,(V74+AN31*D19)/AM42,(V75+AN31*D19)/AN42,(V76+AN31*D19)/AO42)*AP42 ->  | AO100: =MIN((W72+AN31*D19)/AK42,(W73+AN31*D19)/AL42,(W74+AN31*D19)/AM42,(W75+AN31*D19)/AN42,(W76+AN31*D19)/AO42)*AP42 ->  | AP100: =MIN((X72+AN31*D19)/AK42,(X73+AN31*D19)/AL42,(X74+AN31*D19)/AM42,(X75+AN31*D19)/AN42,(X76+AN31*D19)/AO42)*AP42 ->  | AQ100: =MIN((Y72+AN31*D19)/AK42,(Y73+AN31*D19)/AL42,(Y74+AN31*D19)/AM42,(Y75+AN31*D19)/AN42,(Y76+AN31*D19)/AO42)*AP42 ->  | AR100: =MIN((Z72+AN31*D19)/AK42,(Z73+AN31*D19)/AL42,(Z74+AN31*D19)/AM42,(Z75+AN31*D19)/AN42,(Z76+AN31*D19)/AO42)*AP42 ->  | AS100: =MIN((AA72+AN31*D19)/AK42,(AA73+AN31*D19)/AL42,(AA74+AN31*D19)/AM42,(AA75+AN31*D19)/AN42,(AA76+AN31*D19)/AO42)*AP42 ->  | AT100: =MIN((AB72+AN31*D19)/AK42,(AB73+AN31*D19)/AL42,(AB74+AN31*D19)/AM42,(AB75+AN31*D19)/AN42,(AB76+AN31*D19)/AO42)*AP42 ->  | AU100: =MIN((AC72+AN31*D19)/AK42,(AC73+AN31*D19)/AL42,(AC74+AN31*D19)/AM42,(AC75+AN31*D19)/AN42,(AC76+AN31*D19)/AO42)*AP42 ->  | AV100: =MIN((AD72+AN31*D19)/AK42,(AD73+AN31*D19)/AL42,(AD74+AN31*D19)/AM42,(AD75+AN31*D19)/AN42,(AD76+AN31*D19)/AO42)*AP42 ->  | AW100: =MIN((AE72+AN31*D19)/AK42,(AE73+AN31*D19)/AL42,(AE74+AN31*D19)/AM42,(AE75+AN31*D19)/AN42,(AE76+AN31*D19)/AO42)*AP42 ->  | AX100: =MIN((AF72+AN31*D19)/AK42,(AF73+AN31*D19)/AL42,(AF74+AN31*D19)/AM42,(AF75+AN31*D19)/AN42,(AF76+AN31*D19)/AO42)*AP42 ->  | BB100: =MIN((S72+AO31*D19)/AK43,(S73+AO31*D19)/AL43,(S74+AO31*D19)/AM43,(S75+AO31*D19)/AN43,(S76+AO31*D19)/AO43)*AP43 ->  | BC100: =MIN((T72+AO31*D19)/AK43,(T73+AO31*D19)/AL43,(T74+AO31*D19)/AM43,(T75+AO31*D19)/AN43,(T76+AO31*D19)/AO43)*AP43 ->  | BD100: =MIN((U72+AO31*D19)/AK43,(U73+AO31*D19)/AL43,(U74+AO31*D19)/AM43,(U75+AO31*D19)/AN43,(U76+AO31*D19)/AO43)*AP43 ->  | BE100: =MIN((V72+AO31*D19)/AK43,(V73+AO31*D19)/AL43,(V74+AO31*D19)/AM43,(V75+AO31*D19)/AN43,(V76+AO31*D19)/AO43)*AP43 ->  | BF100: =MIN((W72+AO31*D19)/AK43,(W73+AO31*D19)/AL43,(W74+AO31*D19)/AM43,(W75+AO31*D19)/AN43,(W76+AO31*D19)/AO43)*AP43 ->  | BG100: =MIN((X72+AO31*D19)/AK43,(X73+AO31*D19)/AL43,(X74+AO31*D19)/AM43,(X75+AO31*D19)/AN43,(X76+AO31*D19)/AO43)*AP43 ->  | BH100: =MIN((Y72+AO31*D19)/AK43,(Y73+AO31*D19)/AL43,(Y74+AO31*D19)/AM43,(Y75+AO31*D19)/AN43,(Y76+AO31*D19)/AO43)*AP43 ->  | BI100: =MIN((Z72+AO31*D19)/AK43,(Z73+AO31*D19)/AL43,(Z74+AO31*D19)/AM43,(Z75+AO31*D19)/AN43,(Z76+AO31*D19)/AO43)*AP43 ->  | BJ100: =MIN((AA72+AO31*D19)/AK43,(AA73+AO31*D19)/AL43,(AA74+AO31*D19)/AM43,(AA75+AO31*D19)/AN43,(AA76+AO31*D19)/AO43)*AP43 ->  | BK100: =MIN((AB72+AO31*D19)/AK43,(AB73+AO31*D19)/AL43,(AB74+AO31*D19)/AM43,(AB75+AO31*D19)/AN43,(AB76+AO31*D19)/AO43)*AP43 ->  | BL100: =MIN((AC72+AO31*D19)/AK43,(AC73+AO31*D19)/AL43,(AC74+AO31*D19)/AM43,(AC75+AO31*D19)/AN43,(AC76+AO31*D19)/AO43)*AP43 ->  | BM100: =MIN((AD72+AO31*D19)/AK43,(AD73+AO31*D19)/AL43,(AD74+AO31*D19)/AM43,(AD75+AO31*D19)/AN43,(AD76+AO31*D19)/AO43)*AP43 ->  | BN100: =MIN((AE72+AO31*D19)/AK43,(AE73+AO31*D19)/AL43,(AE74+AO31*D19)/AM43,(AE75+AO31*D19)/AN43,(AE76+AO31*D19)/AO43)*AP43 ->  | BO100: =MIN((AF72+AO31*D19)/AK43,(AF73+AO31*D19)/AL43,(AF74+AO31*D19)/AM43,(AF75+AO31*D19)/AN43,(AF76+AO31*D19)/AO43)*AP43 ->  | BR100: =BB97 -> kit 1 | BS100: kit 2A | BT100: kit 2B | BU100: kit 4A | BV100: kit 4B | BW100: kit 5 | BX100: kit 6A | BY100: kit 6B | BZ100: kit 7 | CA100: kit 8 | CB100: kit 9A | CC100: kit 9B | CD100: kit 10 | CE100: kit 11
G101: =SUM(G90:G100) -> 19.98135 | J101: =SUM(J90:J100) -> 19.9759 | M101: =SUM(M90:M100) -> 19.98125 | P101: =SUM(P90:P100) -> 19.98135 | R101: =I17+AH40+D15+D17+D21+D19*AG14 ->  | S101: =R101+Q11 ->  | T101: =R101+R11 ->  | U101: =R101+S11 ->  | V101: =R101+T11 ->  | W101: =R101+U11 ->  | X101: =R101+V11 ->  | Y101: =R101+W11 ->  | Z101: =R101+X11 ->  | AA101: =R101+Y11 ->  | AB101: =R101+Z11 ->  | AC101: =R101+AA11 ->  | AD101: =R101+AB11 ->  | AE101: =R101+AC11 ->  | AF101: =R101+AD11 ->  | AK101: =MIN((S79+AN31*D19)/AK42,(S80+AN31*D19)/AL42,(S81+AN31*D19)/AM42,(S82+AN31*D19)/AN42,(S83+AN31*D19)/AO42)*AP42 ->  | AL101: =MIN((T79+AN31*D19)/AK42,(T80+AN31*D19)/AL42,(T81+AN31*D19)/AM42,(T82+AN31*D19)/AN42,(T83+AN31*D19)/AO42)*AP42 ->  | AM101: =MIN((U79+AN31*D19)/AK42,(U80+AN31*D19)/AL42,(U81+AN31*D19)/AM42,(U82+AN31*D19)/AN42,(U83+AN31*D19)/AO42)*AP42 ->  | AN101: =MIN((V79+AN31*D19)/AK42,(V80+AN31*D19)/AL42,(V81+AN31*D19)/AM42,(V82+AN31*D19)/AN42,(V83+AN31*D19)/AO42)*AP42 ->  | AO101: =MIN((W79+AN31*D19)/AK42,(W80+AN31*D19)/AL42,(W81+AN31*D19)/AM42,(W82+AN31*D19)/AN42,(W83+AN31*D19)/AO42)*AP42 ->  | AP101: =MIN((X79+AN31*D19)/AK42,(X80+AN31*D19)/AL42,(X81+AN31*D19)/AM42,(X82+AN31*D19)/AN42,(X83+AN31*D19)/AO42)*AP42 ->  | AQ101: =MIN((Y79+AN31*D19)/AK42,(Y80+AN31*D19)/AL42,(Y81+AN31*D19)/AM42,(Y82+AN31*D19)/AN42,(Y83+AN31*D19)/AO42)*AP42 ->  | AR101: =MIN((Z79+AN31*D19)/AK42,(Z80+AN31*D19)/AL42,(Z81+AN31*D19)/AM42,(Z82+AN31*D19)/AN42,(Z83+AN31*D19)/AO42)*AP42 ->  | AS101: =MIN((AA79+AN31*D19)/AK42,(AA80+AN31*D19)/AL42,(AA81+AN31*D19)/AM42,(AA82+AN31*D19)/AN42,(AA83+AN31*D19)/AO42)*AP42 ->  | AT101: =MIN((AB79+AN31*D19)/AK42,(AB80+AN31*D19)/AL42,(AB81+AN31*D19)/AM42,(AB82+AN31*D19)/AN42,(AB83+AN31*D19)/AO42)*AP42 ->  | AU101: =MIN((AC79+AN31*D19)/AK42,(AC80+AN31*D19)/AL42,(AC81+AN31*D19)/AM42,(AC82+AN31*D19)/AN42,(AC83+AN31*D19)/AO42)*AP42 ->  | AV101: =MIN((AD79+AN31*D19)/AK42,(AD80+AN31*D19)/AL42,(AD81+AN31*D19)/AM42,(AD82+AN31*D19)/AN42,(AD83+AN31*D19)/AO42)*AP42 ->  | AW101: =MIN((AE79+AN31*D19)/AK42,(AE80+AN31*D19)/AL42,(AE81+AN31*D19)/AM42,(AE82+AN31*D19)/AN42,(AE83+AN31*D19)/AO42)*AP42 ->  | AX101: =MIN((AF79+AN31*D19)/AK42,(AF80+AN31*D19)/AL42,(AF81+AN31*D19)/AM42,(AF82+AN31*D19)/AN42,(AF83+AN31*D19)/AO42)*AP42 ->  | BB101: =MIN((S79+AO31*D19)/AK43,(S80+AO31*D19)/AL43,(S81+AO31*D19)/AM43,(S82+AO31*D19)/AN43,(S83+AO31*D19)/AO43)*AP43 ->  | BC101: =MIN((T79+AO31*D19)/AK43,(T80+AO31*D19)/AL43,(T81+AO31*D19)/AM43,(T82+AO31*D19)/AN43,(T83+AO31*D19)/AO43)*AP43 ->  | BD101: =MIN((U79+AO31*D19)/AK43,(U80+AO31*D19)/AL43,(U81+AO31*D19)/AM43,(U82+AO31*D19)/AN43,(U83+AO31*D19)/AO43)*AP43 ->  | BE101: =MIN((V79+AO31*D19)/AK43,(V80+AO31*D19)/AL43,(V81+AO31*D19)/AM43,(V82+AO31*D19)/AN43,(V83+AO31*D19)/AO43)*AP43 ->  | BF101: =MIN((W79+AO31*D19)/AK43,(W80+AO31*D19)/AL43,(W81+AO31*D19)/AM43,(W82+AO31*D19)/AN43,(W83+AO31*D19)/AO43)*AP43 ->  | BG101: =MIN((X79+AO31*D19)/AK43,(X80+AO31*D19)/AL43,(X81+AO31*D19)/AM43,(X82+AO31*D19)/AN43,(X83+AO31*D19)/AO43)*AP43 ->  | BH101: =MIN((Y79+AO31*D19)/AK43,(Y80+AO31*D19)/AL43,(Y81+AO31*D19)/AM43,(Y82+AO31*D19)/AN43,(Y83+AO31*D19)/AO43)*AP43 ->  | BI101: =MIN((Z79+AO31*D19)/AK43,(Z80+AO31*D19)/AL43,(Z81+AO31*D19)/AM43,(Z82+AO31*D19)/AN43,(Z83+AO31*D19)/AO43)*AP43 ->  | BJ101: =MIN((AA79+AO31*D19)/AK43,(AA80+AO31*D19)/AL43,(AA81+AO31*D19)/AM43,(AA82+AO31*D19)/AN43,(AA83+AO31*D19)/AO43)*AP43 ->  | BK101: =MIN((AB79+AO31*D19)/AK43,(AB80+AO31*D19)/AL43,(AB81+AO31*D19)/AM43,(AB82+AO31*D19)/AN43,(AB83+AO31*D19)/AO43)*AP43 ->  | BL101: =MIN((AC79+AO31*D19)/AK43,(AC80+AO31*D19)/AL43,(AC81+AO31*D19)/AM43,(AC82+AO31*D19)/AN43,(AC83+AO31*D19)/AO43)*AP43 ->  | BM101: =MIN((AD79+AO31*D19)/AK43,(AD80+AO31*D19)/AL43,(AD81+AO31*D19)/AM43,(AD82+AO31*D19)/AN43,(AD83+AO31*D19)/AO43)*AP43 ->  | BN101: =MIN((AE79+AO31*D19)/AK43,(AE80+AO31*D19)/AL43,(AE81+AO31*D19)/AM43,(AE82+AO31*D19)/AN43,(AE83+AO31*D19)/AO43)*AP43 ->  | BO101: =MIN((AF79+AO31*D19)/AK43,(AF80+AO31*D19)/AL43,(AF81+AO31*D19)/AM43,(AF82+AO31*D19)/AN43,(AF83+AO31*D19)/AO43)*AP43 ->  | BQ101: meilleur kit par poste / joueur
R102: =J17+AH41+D15+D17+D21+D19*AG14 ->  | S102: =R102+Q12 ->  | T102: =R102+R12 ->  | U102: =R102+S12 ->  | V102: =R102+T12 ->  | W102: =R102+U12 ->  | X102: =R102+V12 ->  | Y102: =R102+W12 ->  | Z102: =R102+X12 ->  | AA102: =R102+Y12 ->  | AB102: =R102+Z12 ->  | AC102: =R102+AA12 ->  | AD102: =R102+AB12 ->  | AE102: =R102+AC12 ->  | AF102: =R102+AD12 ->  | AK102: =MIN((S86+AN31*D19)/AK42,(S87+AN31*D19)/AL42,(S88+AN31*D19)/AM42,(S89+AN31*D19)/AN42,(S90+AN31*D19)/AO42)*AP42 ->  | AL102: =MIN((T86+AN31*D19)/AK42,(T87+AN31*D19)/AL42,(T88+AN31*D19)/AM42,(T89+AN31*D19)/AN42,(T90+AN31*D19)/AO42)*AP42 ->  | AM102: =MIN((U86+AN31*D19)/AK42,(U87+AN31*D19)/AL42,(U88+AN31*D19)/AM42,(U89+AN31*D19)/AN42,(U90+AN31*D19)/AO42)*AP42 ->  | AN102: =MIN((V86+AN31*D19)/AK42,(V87+AN31*D19)/AL42,(V88+AN31*D19)/AM42,(V89+AN31*D19)/AN42,(V90+AN31*D19)/AO42)*AP42 ->  | AO102: =MIN((W86+AN31*D19)/AK42,(W87+AN31*D19)/AL42,(W88+AN31*D19)/AM42,(W89+AN31*D19)/AN42,(W90+AN31*D19)/AO42)*AP42 ->  | AP102: =MIN((X86+AN31*D19)/AK42,(X87+AN31*D19)/AL42,(X88+AN31*D19)/AM42,(X89+AN31*D19)/AN42,(X90+AN31*D19)/AO42)*AP42 ->  | AQ102: =MIN((Y86+AN31*D19)/AK42,(Y87+AN31*D19)/AL42,(Y88+AN31*D19)/AM42,(Y89+AN31*D19)/AN42,(Y90+AN31*D19)/AO42)*AP42 ->  | AR102: =MIN((Z86+AN31*D19)/AK42,(Z87+AN31*D19)/AL42,(Z88+AN31*D19)/AM42,(Z89+AN31*D19)/AN42,(Z90+AN31*D19)/AO42)*AP42 ->  | AS102: =MIN((AA86+AN31*D19)/AK42,(AA87+AN31*D19)/AL42,(AA88+AN31*D19)/AM42,(AA89+AN31*D19)/AN42,(AA90+AN31*D19)/AO42)*AP42 ->  | AT102: =MIN((AB86+AN31*D19)/AK42,(AB87+AN31*D19)/AL42,(AB88+AN31*D19)/AM42,(AB89+AN31*D19)/AN42,(AB90+AN31*D19)/AO42)*AP42 ->  | AU102: =MIN((AC86+AN31*D19)/AK42,(AC87+AN31*D19)/AL42,(AC88+AN31*D19)/AM42,(AC89+AN31*D19)/AN42,(AC90+AN31*D19)/AO42)*AP42 ->  | AV102: =MIN((AD86+AN31*D19)/AK42,(AD87+AN31*D19)/AL42,(AD88+AN31*D19)/AM42,(AD89+AN31*D19)/AN42,(AD90+AN31*D19)/AO42)*AP42 ->  | AW102: =MIN((AE86+AN31*D19)/AK42,(AE87+AN31*D19)/AL42,(AE88+AN31*D19)/AM42,(AE89+AN31*D19)/AN42,(AE90+AN31*D19)/AO42)*AP42 ->  | AX102: =MIN((AF86+AN31*D19)/AK42,(AF87+AN31*D19)/AL42,(AF88+AN31*D19)/AM42,(AF89+AN31*D19)/AN42,(AF90+AN31*D19)/AO42)*AP42 ->  | BB102: =MIN((S86+AO31*D19)/AK43,(S87+AO31*D19)/AL43,(S88+AO31*D19)/AM43,(S89+AO31*D19)/AN43,(S90+AO31*D19)/AO43)*AP43 ->  | BC102: =MIN((T86+AO31*D19)/AK43,(T87+AO31*D19)/AL43,(T88+AO31*D19)/AM43,(T89+AO31*D19)/AN43,(T90+AO31*D19)/AO43)*AP43 ->  | BD102: =MIN((U86+AO31*D19)/AK43,(U87+AO31*D19)/AL43,(U88+AO31*D19)/AM43,(U89+AO31*D19)/AN43,(U90+AO31*D19)/AO43)*AP43 ->  | BE102: =MIN((V86+AO31*D19)/AK43,(V87+AO31*D19)/AL43,(V88+AO31*D19)/AM43,(V89+AO31*D19)/AN43,(V90+AO31*D19)/AO43)*AP43 ->  | BF102: =MIN((W86+AO31*D19)/AK43,(W87+AO31*D19)/AL43,(W88+AO31*D19)/AM43,(W89+AO31*D19)/AN43,(W90+AO31*D19)/AO43)*AP43 ->  | BG102: =MIN((X86+AO31*D19)/AK43,(X87+AO31*D19)/AL43,(X88+AO31*D19)/AM43,(X89+AO31*D19)/AN43,(X90+AO31*D19)/AO43)*AP43 ->  | BH102: =MIN((Y86+AO31*D19)/AK43,(Y87+AO31*D19)/AL43,(Y88+AO31*D19)/AM43,(Y89+AO31*D19)/AN43,(Y90+AO31*D19)/AO43)*AP43 ->  | BI102: =MIN((Z86+AO31*D19)/AK43,(Z87+AO31*D19)/AL43,(Z88+AO31*D19)/AM43,(Z89+AO31*D19)/AN43,(Z90+AO31*D19)/AO43)*AP43 ->  | BJ102: =MIN((AA86+AO31*D19)/AK43,(AA87+AO31*D19)/AL43,(AA88+AO31*D19)/AM43,(AA89+AO31*D19)/AN43,(AA90+AO31*D19)/AO43)*AP43 ->  | BK102: =MIN((AB86+AO31*D19)/AK43,(AB87+AO31*D19)/AL43,(AB88+AO31*D19)/AM43,(AB89+AO31*D19)/AN43,(AB90+AO31*D19)/AO43)*AP43 ->  | BL102: =MIN((AC86+AO31*D19)/AK43,(AC87+AO31*D19)/AL43,(AC88+AO31*D19)/AM43,(AC89+AO31*D19)/AN43,(AC90+AO31*D19)/AO43)*AP43 ->  | BM102: =MIN((AD86+AO31*D19)/AK43,(AD87+AO31*D19)/AL43,(AD88+AO31*D19)/AM43,(AD89+AO31*D19)/AN43,(AD90+AO31*D19)/AO43)*AP43 ->  | BN102: =MIN((AE86+AO31*D19)/AK43,(AE87+AO31*D19)/AL43,(AE88+AO31*D19)/AM43,(AE89+AO31*D19)/AN43,(AE90+AO31*D19)/AO43)*AP43 ->  | BO102: =MIN((AF86+AO31*D19)/AK43,(AF87+AO31*D19)/AL43,(AF88+AO31*D19)/AM43,(AF89+AO31*D19)/AN43,(AF90+AO31*D19)/AO43)*AP43 ->  | BS102: 1 | BU102: 2 | BW102: 3 | BY102: 4 | CA102: 5 | CC102: 6 | CE102: 7 | CG102: 8 | CI102: 9 | CK102: 10 | CM102: 11
D103: Calcul du capitaine | G103: ss kit ss vitamine | H103: kit ss vit | I103: kit + vit | R103: =K17+AH42+D16+D17+D21+D19*AG14 ->  | S103: =R103+Q13 ->  | T103: =R103+R13 ->  | U103: =R103+S13 ->  | V103: =R103+T13 ->  | W103: =R103+U13 ->  | X103: =R103+V13 ->  | Y103: =R103+W13 ->  | Z103: =R103+X13 ->  | AA103: =R103+Y13 ->  | AB103: =R103+Z13 ->  | AC103: =R103+AA13 ->  | AD103: =R103+AB13 ->  | AE103: =R103+AC13 ->  | AF103: =R103+AD13 ->  | AK103: =MIN((S93+AN31*D19)/AK42,(S94+AN31*D19)/AL42,(S95+AN31*D19)/AM42,(S96+AN31*D19)/AN42,(S97+AN31*D19)/AO42)*AP42 ->  | AL103: =MIN((T93+AN31*D19)/AK42,(T94+AN31*D19)/AL42,(T95+AN31*D19)/AM42,(T96+AN31*D19)/AN42,(T97+AN31*D19)/AO42)*AP42 ->  | AM103: =MIN((U93+AN31*D19)/AK42,(U94+AN31*D19)/AL42,(U95+AN31*D19)/AM42,(U96+AN31*D19)/AN42,(U97+AN31*D19)/AO42)*AP42 ->  | AN103: =MIN((V93+AN31*D19)/AK42,(V94+AN31*D19)/AL42,(V95+AN31*D19)/AM42,(V96+AN31*D19)/AN42,(V97+AN31*D19)/AO42)*AP42 ->  | AO103: =MIN((W93+AN31*D19)/AK42,(W94+AN31*D19)/AL42,(W95+AN31*D19)/AM42,(W96+AN31*D19)/AN42,(W97+AN31*D19)/AO42)*AP42 ->  | AP103: =MIN((X93+AN31*D19)/AK42,(X94+AN31*D19)/AL42,(X95+AN31*D19)/AM42,(X96+AN31*D19)/AN42,(X97+AN31*D19)/AO42)*AP42 ->  | AQ103: =MIN((Y93+AN31*D19)/AK42,(Y94+AN31*D19)/AL42,(Y95+AN31*D19)/AM42,(Y96+AN31*D19)/AN42,(Y97+AN31*D19)/AO42)*AP42 ->  | AR103: =MIN((Z93+AN31*D19)/AK42,(Z94+AN31*D19)/AL42,(Z95+AN31*D19)/AM42,(Z96+AN31*D19)/AN42,(Z97+AN31*D19)/AO42)*AP42 ->  | AS103: =MIN((AA93+AN31*D19)/AK42,(AA94+AN31*D19)/AL42,(AA95+AN31*D19)/AM42,(AA96+AN31*D19)/AN42,(AA97+AN31*D19)/AO42)*AP42 ->  | AT103: =MIN((AB93+AN31*D19)/AK42,(AB94+AN31*D19)/AL42,(AB95+AN31*D19)/AM42,(AB96+AN31*D19)/AN42,(AB97+AN31*D19)/AO42)*AP42 ->  | AU103: =MIN((AC93+AN31*D19)/AK42,(AC94+AN31*D19)/AL42,(AC95+AN31*D19)/AM42,(AC96+AN31*D19)/AN42,(AC97+AN31*D19)/AO42)*AP42 ->  | AV103: =MIN((AD93+AN31*D19)/AK42,(AD94+AN31*D19)/AL42,(AD95+AN31*D19)/AM42,(AD96+AN31*D19)/AN42,(AD97+AN31*D19)/AO42)*AP42 ->  | AW103: =MIN((AE93+AN31*D19)/AK42,(AE94+AN31*D19)/AL42,(AE95+AN31*D19)/AM42,(AE96+AN31*D19)/AN42,(AE97+AN31*D19)/AO42)*AP42 ->  | AX103: =MIN((AF93+AN31*D19)/AK42,(AF94+AN31*D19)/AL42,(AF95+AN31*D19)/AM42,(AF96+AN31*D19)/AN42,(AF97+AN31*D19)/AO42)*AP42 ->  | BB103: =MIN((S93+AO31*D19)/AK43,(S94+AO31*D19)/AL43,(S95+AO31*D19)/AM43,(S96+AO31*D19)/AN43,(S97+AO31*D19)/AO43)*AP43 ->  | BC103: =MIN((T93+AO31*D19)/AK43,(T94+AO31*D19)/AL43,(T95+AO31*D19)/AM43,(T96+AO31*D19)/AN43,(T97+AO31*D19)/AO43)*AP43 ->  | BD103: =MIN((U93+AO31*D19)/AK43,(U94+AO31*D19)/AL43,(U95+AO31*D19)/AM43,(U96+AO31*D19)/AN43,(U97+AO31*D19)/AO43)*AP43 ->  | BE103: =MIN((V93+AO31*D19)/AK43,(V94+AO31*D19)/AL43,(V95+AO31*D19)/AM43,(V96+AO31*D19)/AN43,(V97+AO31*D19)/AO43)*AP43 ->  | BF103: =MIN((W93+AO31*D19)/AK43,(W94+AO31*D19)/AL43,(W95+AO31*D19)/AM43,(W96+AO31*D19)/AN43,(W97+AO31*D19)/AO43)*AP43 ->  | BG103: =MIN((X93+AO31*D19)/AK43,(X94+AO31*D19)/AL43,(X95+AO31*D19)/AM43,(X96+AO31*D19)/AN43,(X97+AO31*D19)/AO43)*AP43 ->  | BH103: =MIN((Y93+AO31*D19)/AK43,(Y94+AO31*D19)/AL43,(Y95+AO31*D19)/AM43,(Y96+AO31*D19)/AN43,(Y97+AO31*D19)/AO43)*AP43 ->  | BI103: =MIN((Z93+AO31*D19)/AK43,(Z94+AO31*D19)/AL43,(Z95+AO31*D19)/AM43,(Z96+AO31*D19)/AN43,(Z97+AO31*D19)/AO43)*AP43 ->  | BJ103: =MIN((AA93+AO31*D19)/AK43,(AA94+AO31*D19)/AL43,(AA95+AO31*D19)/AM43,(AA96+AO31*D19)/AN43,(AA97+AO31*D19)/AO43)*AP43 ->  | BK103: =MIN((AB93+AO31*D19)/AK43,(AB94+AO31*D19)/AL43,(AB95+AO31*D19)/AM43,(AB96+AO31*D19)/AN43,(AB97+AO31*D19)/AO43)*AP43 ->  | BL103: =MIN((AC93+AO31*D19)/AK43,(AC94+AO31*D19)/AL43,(AC95+AO31*D19)/AM43,(AC96+AO31*D19)/AN43,(AC97+AO31*D19)/AO43)*AP43 ->  | BM103: =MIN((AD93+AO31*D19)/AK43,(AD94+AO31*D19)/AL43,(AD95+AO31*D19)/AM43,(AD96+AO31*D19)/AN43,(AD97+AO31*D19)/AO43)*AP43 ->  | BN103: =MIN((AE93+AO31*D19)/AK43,(AE94+AO31*D19)/AL43,(AE95+AO31*D19)/AM43,(AE96+AO31*D19)/AN43,(AE97+AO31*D19)/AO43)*AP43 ->  | BO103: =MIN((AF93+AO31*D19)/AK43,(AF94+AO31*D19)/AL43,(AF95+AO31*D19)/AM43,(AF96+AO31*D19)/AN43,(AF97+AO31*D19)/AO43)*AP43 ->  | BR103: =BA98 ->  | BS103: =IF(AY52=AK52,BR83,IF(AY52=AL52,BS83,IF(AY52=AM52,BT83,IF(AY52=AN52,BU83,IF(AY52=AO52,BV83,IF(AY52=AP52,BW83,IF(AY52=AQ52,BX83,IF(AY52=AR52,BY83,BT103)))))))) ->  | BT103: =IF(AY52=AS52,BZ83,IF(AY52=AT52,CA83,IF(AY52=AU52,CB83,IF(AY52=AV52,CC83,IF(AY52=AW52,CD83,IF(AY52=AX52,CE83,CO103)))))) ->  | BU103: =IF(BP52=BB52,BR83,IF(BP52=BC52,BS83,IF(BP52=BD52,BT83,IF(BP52=BE52,BU83,IF(BP52=BF52,BV83,IF(BP52=BG52,BW83,IF(BP52=BH52,BX83,IF(BP52=BI52,BY83,BV103)))))))) ->  | BV103: =IF(BP52=BJ52,BZ83,IF(BP52=BK52,CA83,IF(BP52=BL52,CB83,IF(BP52=BM52,CC83,IF(BP52=BN52,CD83,IF(BP52=BO52,CE83,CO103)))))) ->  | BW103: =IF(AY75=AK75,BR83,IF(AY75=AL75,BS83,IF(AY75=AM75,BT83,IF(AY75=AN75,BU83,IF(AY75=AO75,BV83,IF(AY75=AP75,BW83,IF(AY75=AQ75,BX83,IF(AY75=AR75,BY83,BX103)))))))) ->  | BX103: =IF(AY75=AS75,BZ83,IF(AY75=AT75,CA83,IF(AY75=AU75,CB83,IF(AY75=AV75,CC83,IF(AY75=AW75,CD83,IF(AY75=AX75,CE83,CO103)))))) ->  | BY103: =IF(BP75=BB75,BR83,IF(BP75=BC75,BS83,IF(BP75=BD75,BT83,IF(BP75=BE75,BU83,IF(BP75=BF75,BV83,IF(BP75=BG75,BW83,IF(BP75=BH75,BX83,IF(BP75=BI75,BY83,BZ103)))))))) ->  | BZ103: =IF(BP75=BJ75,BZ83,IF(BP75=BK75,CA83,IF(BP75=BL75,CB83,IF(BP75=BM75,CC83,IF(BP75=BN75,CD83,IF(BP75=BO75,CE83,CO103)))))) ->  | CA103: =IF(AY98=AK98,BR83,IF(AY98=AL98,BS83,IF(AY98=AM98,BT83,IF(AY98=AN98,BU83,IF(AY98=AO98,BV83,IF(AY98=AP98,BW83,IF(AY98=AQ98,BX83,IF(AY98=AR98,BY83,CB103)))))))) ->  | CB103: =IF(AY98=AS98,BZ83,IF(AY98=AT98,CA83,IF(AY98=AU98,CB83,IF(AY98=AV98,CC83,IF(AY98=AW98,CD83,IF(AY98=AX98,CE83,CO103)))))) ->  | CC103: =IF(BP98=BB98,BR83,IF(BP98=BC98,BS83,IF(BP98=BD98,BT83,IF(BP98=BE98,BU83,IF(BP98=BF98,BV83,IF(BP98=BG98,BW83,IF(BP98=BH98,BX83,IF(BP98=BI98,BY83,CD103)))))))) ->  | CD103: =IF(BP98=BJ98,BZ83,IF(BP98=BK98,CA83,IF(BP98=BL98,CB83,IF(BP98=BM98,CC83,IF(BP98=BN98,CD83,IF(BP98=BO98,CE83,CO103)))))) ->  | CE103: =IF(AY121=AK121,BR83,IF(AY121=AL121,BS83,IF(AY121=AM121,BT83,IF(AY121=AN121,BU83,IF(AY121=AO121,BV83,IF(AY121=AP121,BW83,IF(AY121=AQ121,BX83,IF(AY121=AR121,BY83,CF103)))))))) ->  | CF103: =IF(AY121=AS121,BZ83,IF(AY121=AT121,CA83,IF(AY121=AU121,CB83,IF(AY121=AV121,CC83,IF(AY121=AW121,CD83,IF(AY121=AX121,CE83,CO103)))))) ->  | CG103: =IF(BP121=BB121,BR83,IF(BP121=BC121,BS83,IF(BP121=BD121,BT83,IF(BP121=BE121,BU83,IF(BP121=BF121,BV83,IF(BP121=BG121,BW83,IF(BP121=BH121,BX83,IF(BP121=BI121,BY83,CH103)))))))) ->  | CH103: =IF(BP121=BJ121,BZ83,IF(BP121=BK121,CA83,IF(BP121=BL121,CB83,IF(BP121=BM121,CC83,IF(BP121=BN121,CD83,IF(BP121=BO121,CE83,CO103)))))) ->  | CI103: =IF(AY144=AK144,BR83,IF(AY144=AL144,BS83,IF(AY144=AM144,BT83,IF(AY144=AN144,BU83,IF(AY144=AO144,BV83,IF(AY144=AP144,BW83,IF(AY144=AQ144,BX83,IF(AY144=AR144,BY83,CJ103)))))))) ->  | CJ103: =IF(AY144=AS144,BZ83,IF(AY144=AT144,CA83,IF(AY144=AU144,CB83,IF(AY144=AV144,CC83,IF(AY144=AW144,CD83,IF(AY144=AX144,CE83,CO103)))))) ->  | CK103: =IF(BP144=BB144,BR83,IF(BP144=BC144,BS83,IF(BP144=BD144,BT83,IF(BP144=BE144,BU83,IF(BP144=BF144,BV83,IF(BP144=BG144,BW83,IF(BP144=BH144,BX83,IF(BP144=BI144,BY83,CL103)))))))) ->  | CL103: =IF(BP144=BJ144,BZ83,IF(BP144=BK144,CA83,IF(BP144=BL144,CB83,IF(BP144=BM144,CC83,IF(BP144=BN144,CD83,IF(BP144=BO144,CE83,CO103)))))) ->  | CM103: =IF(AY167=AK167,BR83,IF(AY167=AL167,BS83,IF(AY167=AM167,BT83,IF(AY167=AN167,BU83,IF(AY167=AO167,BV83,IF(AY167=AP167,BW83,IF(AY167=AQ167,BX83,IF(AY167=AR167,BY83,CN103)))))))) ->  | CN103: =IF(AY167=AS167,BZ83,IF(AY167=AT167,CA83,IF(AY167=AU167,CB83,IF(AY167=AV167,CC83,IF(AY167=AW167,CD83,IF(AY167=AX167,CE83,CO103)))))) ->  | CO103: -
D104: =IF(MAX($I$104:$I$121)=I104,"CAP","") ->  | E104: =IF(G11<>"",G11,"") ->  | F104: =VLOOKUP(E104,$AI$8:$AV$25,14,FALSE) -> 1 | G104: =IF(G11<>"",(R62/100+M11/500)/100,"") ->  | H104: =IF(G11<>"",IF(ISNA(IF(VLOOKUP(G11,$AI$8:$AV$25,14,FALSE)="","",(HLOOKUP(VLOOKUP(G11,$BA$10:$BB$20,2,FALSE),S57:AF62,6,FALSE)/100+M11/500)/100)),G104,IF(VLOOKUP(G11,$AI$8:$AV$25,14,FALSE)="","",(HLOOKUP(VLOOKUP(G11,$BA$10:$BB$20,2,FALSE),S57:AF62,6,FALSE)/100+M11/500)/100)),"") ->  | I104: =IF(G11<>"",IF(ISNA(IF(VLOOKUP(G11,$AI$8:$AV$25,14,FALSE)="","",((HLOOKUP(VLOOKUP(G11,$BA$10:$BB$20,2,FALSE),$S$57:$AF$62,6,FALSE)+IF(HLOOKUP(F104,$AJ$7:$AT$31,21,FALSE)=1,D19,0))/100+M11/500)/100)),H104,IF(VLOOKUP(G11,$AI$8:$AV$25,14,FALSE)="","",((HLOOKUP(VLOOKUP(G11,$BA$10:$BB$20,2,FALSE),$S$57:$AF$62,6,FALSE)+IF(HLOOKUP(F104,$AJ$7:$AT$31,21,FALSE)=1,D19,0))/100+M11/500)/100)),"") ->  | R104: =L17+AH43+D15+D17+D21+D19*AG14 ->  | S104: =R104+Q14 ->  | T104: =R104+R14 ->  | U104: =R104+S14 ->  | V104: =R104+T14 ->  | W104: =R104+U14 ->  | X104: =R104+V14 ->  | Y104: =R104+W14 ->  | Z104: =R104+X14 ->  | AA104: =R104+Y14 ->  | AB104: =R104+Z14 ->  | AC104: =R104+AA14 ->  | AD104: =R104+AB14 ->  | AE104: =R104+AC14 ->  | AF104: =R104+AD14 ->  | AK104: =MIN((S100+AN31*D19)/AK42,(S101+AN31*D19)/AL42,(S102+AN31*D19)/AM42,(S103+AN31*D19)/AN42,(S104+AN31*D19)/AO42)*AP42 ->  | AL104: =MIN((T100+AN31*D19)/AK42,(T101+AN31*D19)/AL42,(T102+AN31*D19)/AM42,(T103+AN31*D19)/AN42,(T104+AN31*D19)/AO42)*AP42 ->  | AM104: =MIN((U100+AN31*D19)/AK42,(U101+AN31*D19)/AL42,(U102+AN31*D19)/AM42,(U103+AN31*D19)/AN42,(U104+AN31*D19)/AO42)*AP42 ->  | AN104: =MIN((V100+AN31*D19)/AK42,(V101+AN31*D19)/AL42,(V102+AN31*D19)/AM42,(V103+AN31*D19)/AN42,(V104+AN31*D19)/AO42)*AP42 ->  | AO104: =MIN((W100+AN31*D19)/AK42,(W101+AN31*D19)/AL42,(W102+AN31*D19)/AM42,(W103+AN31*D19)/AN42,(W104+AN31*D19)/AO42)*AP42 ->  | AP104: =MIN((X100+AN31*D19)/AK42,(X101+AN31*D19)/AL42,(X102+AN31*D19)/AM42,(X103+AN31*D19)/AN42,(X104+AN31*D19)/AO42)*AP42 ->  | AQ104: =MIN((Y100+AN31*D19)/AK42,(Y101+AN31*D19)/AL42,(Y102+AN31*D19)/AM42,(Y103+AN31*D19)/AN42,(Y104+AN31*D19)/AO42)*AP42 ->  | AR104: =MIN((Z100+AN31*D19)/AK42,(Z101+AN31*D19)/AL42,(Z102+AN31*D19)/AM42,(Z103+AN31*D19)/AN42,(Z104+AN31*D19)/AO42)*AP42 ->  | AS104: =MIN((AA100+AN31*D19)/AK42,(AA101+AN31*D19)/AL42,(AA102+AN31*D19)/AM42,(AA103+AN31*D19)/AN42,(AA104+AN31*D19)/AO42)*AP42 ->  | AT104: =MIN((AB100+AN31*D19)/AK42,(AB101+AN31*D19)/AL42,(AB102+AN31*D19)/AM42,(AB103+AN31*D19)/AN42,(AB104+AN31*D19)/AO42)*AP42 ->  | AU104: =MIN((AC100+AN31*D19)/AK42,(AC101+AN31*D19)/AL42,(AC102+AN31*D19)/AM42,(AC103+AN31*D19)/AN42,(AC104+AN31*D19)/AO42)*AP42 ->  | AV104: =MIN((AD100+AN31*D19)/AK42,(AD101+AN31*D19)/AL42,(AD102+AN31*D19)/AM42,(AD103+AN31*D19)/AN42,(AD104+AN31*D19)/AO42)*AP42 ->  | AW104: =MIN((AE100+AN31*D19)/AK42,(AE101+AN31*D19)/AL42,(AE102+AN31*D19)/AM42,(AE103+AN31*D19)/AN42,(AE104+AN31*D19)/AO42)*AP42 ->  | AX104: =MIN((AF100+AN31*D19)/AK42,(AF101+AN31*D19)/AL42,(AF102+AN31*D19)/AM42,(AF103+AN31*D19)/AN42,(AF104+AN31*D19)/AO42)*AP42 ->  | BB104: =MIN((S100+AO31*D19)/AK43,(S101+AO31*D19)/AL43,(S102+AO31*D19)/AM43,(S103+AO31*D19)/AN43,(S104+AO31*D19)/AO43)*AP43 ->  | BC104: =MIN((T100+AO31*D19)/AK43,(T101+AO31*D19)/AL43,(T102+AO31*D19)/AM43,(T103+AO31*D19)/AN43,(T104+AO31*D19)/AO43)*AP43 ->  | BD104: =MIN((U100+AO31*D19)/AK43,(U101+AO31*D19)/AL43,(U102+AO31*D19)/AM43,(U103+AO31*D19)/AN43,(U104+AO31*D19)/AO43)*AP43 ->  | BE104: =MIN((V100+AO31*D19)/AK43,(V101+AO31*D19)/AL43,(V102+AO31*D19)/AM43,(V103+AO31*D19)/AN43,(V104+AO31*D19)/AO43)*AP43 ->  | BF104: =MIN((W100+AO31*D19)/AK43,(W101+AO31*D19)/AL43,(W102+AO31*D19)/AM43,(W103+AO31*D19)/AN43,(W104+AO31*D19)/AO43)*AP43 ->  | BG104: =MIN((X100+AO31*D19)/AK43,(X101+AO31*D19)/AL43,(X102+AO31*D19)/AM43,(X103+AO31*D19)/AN43,(X104+AO31*D19)/AO43)*AP43 ->  | BH104: =MIN((Y100+AO31*D19)/AK43,(Y101+AO31*D19)/AL43,(Y102+AO31*D19)/AM43,(Y103+AO31*D19)/AN43,(Y104+AO31*D19)/AO43)*AP43 ->  | BI104: =MIN((Z100+AO31*D19)/AK43,(Z101+AO31*D19)/AL43,(Z102+AO31*D19)/AM43,(Z103+AO31*D19)/AN43,(Z104+AO31*D19)/AO43)*AP43 ->  | BJ104: =MIN((AA100+AO31*D19)/AK43,(AA101+AO31*D19)/AL43,(AA102+AO31*D19)/AM43,(AA103+AO31*D19)/AN43,(AA104+AO31*D19)/AO43)*AP43 ->  | BK104: =MIN((AB100+AO31*D19)/AK43,(AB101+AO31*D19)/AL43,(AB102+AO31*D19)/AM43,(AB103+AO31*D19)/AN43,(AB104+AO31*D19)/AO43)*AP43 ->  | BL104: =MIN((AC100+AO31*D19)/AK43,(AC101+AO31*D19)/AL43,(AC102+AO31*D19)/AM43,(AC103+AO31*D19)/AN43,(AC104+AO31*D19)/AO43)*AP43 ->  | BM104: =MIN((AD100+AO31*D19)/AK43,(AD101+AO31*D19)/AL43,(AD102+AO31*D19)/AM43,(AD103+AO31*D19)/AN43,(AD104+AO31*D19)/AO43)*AP43 ->  | BN104: =MIN((AE100+AO31*D19)/AK43,(AE101+AO31*D19)/AL43,(AE102+AO31*D19)/AM43,(AE103+AO31*D19)/AN43,(AE104+AO31*D19)/AO43)*AP43 ->  | BO104: =MIN((AF100+AO31*D19)/AK43,(AF101+AO31*D19)/AL43,(AF102+AO31*D19)/AM43,(AF103+AO31*D19)/AN43,(AF104+AO31*D19)/AO43)*AP43 ->  | CO104: -
E105: =IF(G12<>"",G12,"") ->  | F105: 1 | G105: =IF(G12<>"",(R69/100+M12/500)/100,"") ->  | H105: =IF(G12<>"",IF(ISNA(IF(VLOOKUP(G12,$AI$8:$AV$25,14,FALSE)="","",(HLOOKUP(VLOOKUP(G12,$BA$10:$BB$20,2,FALSE),S64:AF69,6,FALSE)/100+M12/500)/100)),G105,IF(VLOOKUP(G12,$AI$8:$AV$25,14,FALSE)="","",(HLOOKUP(VLOOKUP(G12,$BA$10:$BB$20,2,FALSE),S64:AF69,6,FALSE)/100+M12/500)/100)),"") ->  | I105: =IF(G12<>"",IF(ISNA(IF(VLOOKUP(G12,$AI$8:$AV$25,14,FALSE)="","",((HLOOKUP(VLOOKUP(G12,$BA$10:$BB$20,2,FALSE),$S$64:$AF$69,6,FALSE)+IF(HLOOKUP(F105,$AJ$7:$AT$31,21,FALSE)=1,D19,0))/100+M12/500)/100)),H105,IF(VLOOKUP(G12,$AI$8:$AV$25,14,FALSE)="","",((HLOOKUP(VLOOKUP(G12,$BA$10:$BB$20,2,FALSE),$S$64:$AF$69,6,FALSE)+IF(HLOOKUP(F105,$AJ$7:$AT$31,21,FALSE)=1,D19,0))/100+M12/500)/100)),"") ->  | AK105: =MIN((S107+AN31*D19)/AK42,(S108+AN31*D19)/AL42,(S109+AN31*D19)/AM42,(S110+AN31*D19)/AN42,(S111+AN31*D19)/AO42)*AP42 ->  | AL105: =MIN((T107+AN31*D19)/AK42,(T108+AN31*D19)/AL42,(T109+AN31*D19)/AM42,(T110+AN31*D19)/AN42,(T111+AN31*D19)/AO42)*AP42 ->  | AM105: =MIN((U107+AN31*D19)/AK42,(U108+AN31*D19)/AL42,(U109+AN31*D19)/AM42,(U110+AN31*D19)/AN42,(U111+AN31*D19)/AO42)*AP42 ->  | AN105: =MIN((V107+AN31*D19)/AK42,(V108+AN31*D19)/AL42,(V109+AN31*D19)/AM42,(V110+AN31*D19)/AN42,(V111+AN31*D19)/AO42)*AP42 ->  | AO105: =MIN((W107+AN31*D19)/AK42,(W108+AN31*D19)/AL42,(W109+AN31*D19)/AM42,(W110+AN31*D19)/AN42,(W111+AN31*D19)/AO42)*AP42 ->  | AP105: =MIN((X107+AN31*D19)/AK42,(X108+AN31*D19)/AL42,(X109+AN31*D19)/AM42,(X110+AN31*D19)/AN42,(X111+AN31*D19)/AO42)*AP42 ->  | AQ105: =MIN((Y107+AN31*D19)/AK42,(Y108+AN31*D19)/AL42,(Y109+AN31*D19)/AM42,(Y110+AN31*D19)/AN42,(Y111+AN31*D19)/AO42)*AP42 ->  | AR105: =MIN((Z107+AN31*D19)/AK42,(Z108+AN31*D19)/AL42,(Z109+AN31*D19)/AM42,(Z110+AN31*D19)/AN42,(Z111+AN31*D19)/AO42)*AP42 ->  | AS105: =MIN((AA107+AN31*D19)/AK42,(AA108+AN31*D19)/AL42,(AA109+AN31*D19)/AM42,(AA110+AN31*D19)/AN42,(AA111+AN31*D19)/AO42)*AP42 ->  | AT105: =MIN((AB107+AN31*D19)/AK42,(AB108+AN31*D19)/AL42,(AB109+AN31*D19)/AM42,(AB110+AN31*D19)/AN42,(AB111+AN31*D19)/AO42)*AP42 ->  | AU105: =MIN((AC107+AN31*D19)/AK42,(AC108+AN31*D19)/AL42,(AC109+AN31*D19)/AM42,(AC110+AN31*D19)/AN42,(AC111+AN31*D19)/AO42)*AP42 ->  | AV105: =MIN((AD107+AN31*D19)/AK42,(AD108+AN31*D19)/AL42,(AD109+AN31*D19)/AM42,(AD110+AN31*D19)/AN42,(AD111+AN31*D19)/AO42)*AP42 ->  | AW105: =MIN((AE107+AN31*D19)/AK42,(AE108+AN31*D19)/AL42,(AE109+AN31*D19)/AM42,(AE110+AN31*D19)/AN42,(AE111+AN31*D19)/AO42)*AP42 ->  | AX105: =MIN((AF107+AN31*D19)/AK42,(AF108+AN31*D19)/AL42,(AF109+AN31*D19)/AM42,(AF110+AN31*D19)/AN42,(AF111+AN31*D19)/AO42)*AP42 ->  | BB105: =MIN((S107+AO31*D19)/AK43,(S108+AO31*D19)/AL43,(S109+AO31*D19)/AM43,(S110+AO31*D19)/AN43,(S111+AO31*D19)/AO43)*AP43 ->  | BC105: =MIN((T107+AO31*D19)/AK43,(T108+AO31*D19)/AL43,(T109+AO31*D19)/AM43,(T110+AO31*D19)/AN43,(T111+AO31*D19)/AO43)*AP43 ->  | BD105: =MIN((U107+AO31*D19)/AK43,(U108+AO31*D19)/AL43,(U109+AO31*D19)/AM43,(U110+AO31*D19)/AN43,(U111+AO31*D19)/AO43)*AP43 ->  | BE105: =MIN((V107+AO31*D19)/AK43,(V108+AO31*D19)/AL43,(V109+AO31*D19)/AM43,(V110+AO31*D19)/AN43,(V111+AO31*D19)/AO43)*AP43 ->  | BF105: =MIN((W107+AO31*D19)/AK43,(W108+AO31*D19)/AL43,(W109+AO31*D19)/AM43,(W110+AO31*D19)/AN43,(W111+AO31*D19)/AO43)*AP43 ->  | BG105: =MIN((X107+AO31*D19)/AK43,(X108+AO31*D19)/AL43,(X109+AO31*D19)/AM43,(X110+AO31*D19)/AN43,(X111+AO31*D19)/AO43)*AP43 ->  | BH105: =MIN((Y107+AO31*D19)/AK43,(Y108+AO31*D19)/AL43,(Y109+AO31*D19)/AM43,(Y110+AO31*D19)/AN43,(Y111+AO31*D19)/AO43)*AP43 ->  | BI105: =MIN((Z107+AO31*D19)/AK43,(Z108+AO31*D19)/AL43,(Z109+AO31*D19)/AM43,(Z110+AO31*D19)/AN43,(Z111+AO31*D19)/AO43)*AP43 ->  | BJ105: =MIN((AA107+AO31*D19)/AK43,(AA108+AO31*D19)/AL43,(AA109+AO31*D19)/AM43,(AA110+AO31*D19)/AN43,(AA111+AO31*D19)/AO43)*AP43 ->  | BK105: =MIN((AB107+AO31*D19)/AK43,(AB108+AO31*D19)/AL43,(AB109+AO31*D19)/AM43,(AB110+AO31*D19)/AN43,(AB111+AO31*D19)/AO43)*AP43 ->  | BL105: =MIN((AC107+AO31*D19)/AK43,(AC108+AO31*D19)/AL43,(AC109+AO31*D19)/AM43,(AC110+AO31*D19)/AN43,(AC111+AO31*D19)/AO43)*AP43 ->  | BM105: =MIN((AD107+AO31*D19)/AK43,(AD108+AO31*D19)/AL43,(AD109+AO31*D19)/AM43,(AD110+AO31*D19)/AN43,(AD111+AO31*D19)/AO43)*AP43 ->  | BN105: =MIN((AE107+AO31*D19)/AK43,(AE108+AO31*D19)/AL43,(AE109+AO31*D19)/AM43,(AE110+AO31*D19)/AN43,(AE111+AO31*D19)/AO43)*AP43 ->  | BO105: =MIN((AF107+AO31*D19)/AK43,(AF108+AO31*D19)/AL43,(AF109+AO31*D19)/AM43,(AF110+AO31*D19)/AN43,(AF111+AO31*D19)/AO43)*AP43 ->  | CO105: -
F106: 1 | G106: =IF(G13<>"",(R76/100+M13/500)/100,"") ->  | H106: =IF(G13<>"",IF(ISNA(IF(VLOOKUP(G13,$AI$8:$AV$25,14,FALSE)="","",(HLOOKUP(VLOOKUP(G13,$BA$10:$BB$20,2,FALSE),S71:AF76,6,FALSE)/100+M13/500)/100)),G106,IF(VLOOKUP(G13,$AI$8:$AV$25,14,FALSE)="","",(HLOOKUP(VLOOKUP(G13,$BA$10:$BB$20,2,FALSE),S71:AF76,6,FALSE)/100+M13/500)/100)),"") ->  | I106: =IF(G13<>"",IF(ISNA(IF(VLOOKUP(G13,$AI$8:$AV$25,14,FALSE)="","",((HLOOKUP(VLOOKUP(G13,$BA$10:$BB$20,2,FALSE),$S$71:$AF$76,6,FALSE)+IF(HLOOKUP(F106,$AJ$7:$AT$31,21,FALSE)=1,D19,0))/100+M13/500)/100)),H106,IF(VLOOKUP(G13,$AI$8:$AV$25,14,FALSE)="","",((HLOOKUP(VLOOKUP(G13,$BA$10:$BB$20,2,FALSE),$S$71:$AF$76,6,FALSE)+IF(HLOOKUP(F106,$AJ$7:$AT$31,21,FALSE)=1,D19,0))/100+M13/500)/100)),"") ->  | R106: =G18 ->  | S106: =S99 -> kit 1 | T106: =T99 -> kit 2A | U106: kit 2B | V106: kit 4A | W106: kit 4B | X106: kit 5 | Y106: kit 6A | Z106: kit 6B | AA106: kit 7 | AB106: kit 8 | AC106: kit 9A | AD106: kit 9B | AE106: =AE99 -> kit 10 | AF106: =AF99 -> kit 11 | AK106: =MIN((S114+AN31*D19)/AK42,(S115+AN31*D19)/AL42,(S116+AN31*D19)/AM42,(S117+AN31*D19)/AN42,(S118+AN31*D19)/AO42)*AP42 ->  | AL106: =MIN((T114+AN31*D19)/AK42,(T115+AN31*D19)/AL42,(T116+AN31*D19)/AM42,(T117+AN31*D19)/AN42,(T118+AN31*D19)/AO42)*AP42 ->  | AM106: =MIN((U114+AN31*D19)/AK42,(U115+AN31*D19)/AL42,(U116+AN31*D19)/AM42,(U117+AN31*D19)/AN42,(U118+AN31*D19)/AO42)*AP42 ->  | AN106: =MIN((V114+AN31*D19)/AK42,(V115+AN31*D19)/AL42,(V116+AN31*D19)/AM42,(V117+AN31*D19)/AN42,(V118+AN31*D19)/AO42)*AP42 ->  | AO106: =MIN((W114+AN31*D19)/AK42,(W115+AN31*D19)/AL42,(W116+AN31*D19)/AM42,(W117+AN31*D19)/AN42,(W118+AN31*D19)/AO42)*AP42 ->  | AP106: =MIN((X114+AN31*D19)/AK42,(X115+AN31*D19)/AL42,(X116+AN31*D19)/AM42,(X117+AN31*D19)/AN42,(X118+AN31*D19)/AO42)*AP42 ->  | AQ106: =MIN((Y114+AN31*D19)/AK42,(Y115+AN31*D19)/AL42,(Y116+AN31*D19)/AM42,(Y117+AN31*D19)/AN42,(Y118+AN31*D19)/AO42)*AP42 ->  | AR106: =MIN((Z114+AN31*D19)/AK42,(Z115+AN31*D19)/AL42,(Z116+AN31*D19)/AM42,(Z117+AN31*D19)/AN42,(Z118+AN31*D19)/AO42)*AP42 ->  | AS106: =MIN((AA114+AN31*D19)/AK42,(AA115+AN31*D19)/AL42,(AA116+AN31*D19)/AM42,(AA117+AN31*D19)/AN42,(AA118+AN31*D19)/AO42)*AP42 ->  | AT106: =MIN((AB114+AN31*D19)/AK42,(AB115+AN31*D19)/AL42,(AB116+AN31*D19)/AM42,(AB117+AN31*D19)/AN42,(AB118+AN31*D19)/AO42)*AP42 ->  | AU106: =MIN((AC114+AN31*D19)/AK42,(AC115+AN31*D19)/AL42,(AC116+AN31*D19)/AM42,(AC117+AN31*D19)/AN42,(AC118+AN31*D19)/AO42)*AP42 ->  | AV106: =MIN((AD114+AN31*D19)/AK42,(AD115+AN31*D19)/AL42,(AD116+AN31*D19)/AM42,(AD117+AN31*D19)/AN42,(AD118+AN31*D19)/AO42)*AP42 ->  | AW106: =MIN((AE114+AN31*D19)/AK42,(AE115+AN31*D19)/AL42,(AE116+AN31*D19)/AM42,(AE117+AN31*D19)/AN42,(AE118+AN31*D19)/AO42)*AP42 ->  | AX106: =MIN((AF114+AN31*D19)/AK42,(AF115+AN31*D19)/AL42,(AF116+AN31*D19)/AM42,(AF117+AN31*D19)/AN42,(AF118+AN31*D19)/AO42)*AP42 ->  | BB106: =MIN((S114+AO31*D19)/AK43,(S115+AO31*D19)/AL43,(S116+AO31*D19)/AM43,(S117+AO31*D19)/AN43,(S118+AO31*D19)/AO43)*AP43 ->  | BC106: =MIN((T114+AO31*D19)/AK43,(T115+AO31*D19)/AL43,(T116+AO31*D19)/AM43,(T117+AO31*D19)/AN43,(T118+AO31*D19)/AO43)*AP43 ->  | BD106: =MIN((U114+AO31*D19)/AK43,(U115+AO31*D19)/AL43,(U116+AO31*D19)/AM43,(U117+AO31*D19)/AN43,(U118+AO31*D19)/AO43)*AP43 ->  | BE106: =MIN((V114+AO31*D19)/AK43,(V115+AO31*D19)/AL43,(V116+AO31*D19)/AM43,(V117+AO31*D19)/AN43,(V118+AO31*D19)/AO43)*AP43 ->  | BF106: =MIN((W114+AO31*D19)/AK43,(W115+AO31*D19)/AL43,(W116+AO31*D19)/AM43,(W117+AO31*D19)/AN43,(W118+AO31*D19)/AO43)*AP43 ->  | BG106: =MIN((X114+AO31*D19)/AK43,(X115+AO31*D19)/AL43,(X116+AO31*D19)/AM43,(X117+AO31*D19)/AN43,(X118+AO31*D19)/AO43)*AP43 ->  | BH106: =MIN((Y114+AO31*D19)/AK43,(Y115+AO31*D19)/AL43,(Y116+AO31*D19)/AM43,(Y117+AO31*D19)/AN43,(Y118+AO31*D19)/AO43)*AP43 ->  | BI106: =MIN((Z114+AO31*D19)/AK43,(Z115+AO31*D19)/AL43,(Z116+AO31*D19)/AM43,(Z117+AO31*D19)/AN43,(Z118+AO31*D19)/AO43)*AP43 ->  | BJ106: =MIN((AA114+AO31*D19)/AK43,(AA115+AO31*D19)/AL43,(AA116+AO31*D19)/AM43,(AA117+AO31*D19)/AN43,(AA118+AO31*D19)/AO43)*AP43 ->  | BK106: =MIN((AB114+AO31*D19)/AK43,(AB115+AO31*D19)/AL43,(AB116+AO31*D19)/AM43,(AB117+AO31*D19)/AN43,(AB118+AO31*D19)/AO43)*AP43 ->  | BL106: =MIN((AC114+AO31*D19)/AK43,(AC115+AO31*D19)/AL43,(AC116+AO31*D19)/AM43,(AC117+AO31*D19)/AN43,(AC118+AO31*D19)/AO43)*AP43 ->  | BM106: =MIN((AD114+AO31*D19)/AK43,(AD115+AO31*D19)/AL43,(AD116+AO31*D19)/AM43,(AD117+AO31*D19)/AN43,(AD118+AO31*D19)/AO43)*AP43 ->  | BN106: =MIN((AE114+AO31*D19)/AK43,(AE115+AO31*D19)/AL43,(AE116+AO31*D19)/AM43,(AE117+AO31*D19)/AN43,(AE118+AO31*D19)/AO43)*AP43 ->  | BO106: =MIN((AF114+AO31*D19)/AK43,(AF115+AO31*D19)/AL43,(AF116+AO31*D19)/AM43,(AF117+AO31*D19)/AN43,(AF118+AO31*D19)/AO43)*AP43 ->  | CO106: -
F107: 1 | G107: =IF(G14<>"",(R83/100+M14/500)/100,"") ->  | H107: =IF(G14<>"",IF(ISNA(IF(VLOOKUP(G14,$AI$8:$AV$25,14,FALSE)="","",(HLOOKUP(VLOOKUP(G14,$BA$10:$BB$20,2,FALSE),S78:AF83,6,FALSE)/100+M14/500)/100)),G107,IF(VLOOKUP(G14,$AI$8:$AV$25,14,FALSE)="","",(HLOOKUP(VLOOKUP(G14,$BA$10:$BB$20,2,FALSE),S78:AF83,6,FALSE)/100+M14/500)/100)),"") ->  | I107: =IF(G14<>"",IF(ISNA(IF(VLOOKUP(G14,$AI$8:$AV$25,14,FALSE)="","",((HLOOKUP(VLOOKUP(G14,$BA$10:$BB$20,2,FALSE),$S$78:$AF$83,6,FALSE)+IF(HLOOKUP(F107,$AJ$7:$AT$31,21,FALSE)=1,D19,0))/100+M14/500)/100)),H107,IF(VLOOKUP(G14,$AI$8:$AV$25,14,FALSE)="","",((HLOOKUP(VLOOKUP(G14,$BA$10:$BB$20,2,FALSE),$S$78:$AF$83,6,FALSE)+IF(HLOOKUP(F107,$AJ$7:$AT$31,21,FALSE)=1,D19,0))/100+M14/500)/100)),"") ->  | R107: =H18+AH39+D16+D17+D21+D19*AG15 ->  | S107: =R107+Q10 ->  | T107: =R107+R10 ->  | U107: =R107+S10 ->  | V107: =R107+T10 ->  | W107: =R107+U10 ->  | X107: =R107+V10 ->  | Y107: =R107+W10 ->  | Z107: =R107+X10 ->  | AA107: =R107+Y10 ->  | AB107: =R107+Z10 ->  | AC107: =R107+AA10 ->  | AD107: =R107+AB10 ->  | AE107: =R107+AC10 ->  | AF107: =R107+AD10 ->  | AK107: =MIN((S121+AN31*D19)/AK42,(S122+AN31*D19)/AL42,(S123+AN31*D19)/AM42,(S124+AN31*D19)/AN42,(S125+AN31*D19)/AO42)*AP42 ->  | AL107: =MIN((T121+AN31*D19)/AK42,(T122+AN31*D19)/AL42,(T123+AN31*D19)/AM42,(T124+AN31*D19)/AN42,(T125+AN31*D19)/AO42)*AP42 ->  | AM107: =MIN((U121+AN31*D19)/AK42,(U122+AN31*D19)/AL42,(U123+AN31*D19)/AM42,(U124+AN31*D19)/AN42,(U125+AN31*D19)/AO42)*AP42 ->  | AN107: =MIN((V121+AN31*D19)/AK42,(V122+AN31*D19)/AL42,(V123+AN31*D19)/AM42,(V124+AN31*D19)/AN42,(V125+AN31*D19)/AO42)*AP42 ->  | AO107: =MIN((W121+AN31*D19)/AK42,(W122+AN31*D19)/AL42,(W123+AN31*D19)/AM42,(W124+AN31*D19)/AN42,(W125+AN31*D19)/AO42)*AP42 ->  | AP107: =MIN((X121+AN31*D19)/AK42,(X122+AN31*D19)/AL42,(X123+AN31*D19)/AM42,(X124+AN31*D19)/AN42,(X125+AN31*D19)/AO42)*AP42 ->  | AQ107: =MIN((Y121+AN31*D19)/AK42,(Y122+AN31*D19)/AL42,(Y123+AN31*D19)/AM42,(Y124+AN31*D19)/AN42,(Y125+AN31*D19)/AO42)*AP42 ->  | AR107: =MIN((Z121+AN31*D19)/AK42,(Z122+AN31*D19)/AL42,(Z123+AN31*D19)/AM42,(Z124+AN31*D19)/AN42,(Z125+AN31*D19)/AO42)*AP42 ->  | AS107: =MIN((AA121+AN31*D19)/AK42,(AA122+AN31*D19)/AL42,(AA123+AN31*D19)/AM42,(AA124+AN31*D19)/AN42,(AA125+AN31*D19)/AO42)*AP42 ->  | AT107: =MIN((AB121+AN31*D19)/AK42,(AB122+AN31*D19)/AL42,(AB123+AN31*D19)/AM42,(AB124+AN31*D19)/AN42,(AB125+AN31*D19)/AO42)*AP42 ->  | AU107: =MIN((AC121+AN31*D19)/AK42,(AC122+AN31*D19)/AL42,(AC123+AN31*D19)/AM42,(AC124+AN31*D19)/AN42,(AC125+AN31*D19)/AO42)*AP42 ->  | AV107: =MIN((AD121+AN31*D19)/AK42,(AD122+AN31*D19)/AL42,(AD123+AN31*D19)/AM42,(AD124+AN31*D19)/AN42,(AD125+AN31*D19)/AO42)*AP42 ->  | AW107: =MIN((AE121+AN31*D19)/AK42,(AE122+AN31*D19)/AL42,(AE123+AN31*D19)/AM42,(AE124+AN31*D19)/AN42,(AE125+AN31*D19)/AO42)*AP42 ->  | AX107: =MIN((AF121+AN31*D19)/AK42,(AF122+AN31*D19)/AL42,(AF123+AN31*D19)/AM42,(AF124+AN31*D19)/AN42,(AF125+AN31*D19)/AO42)*AP42 ->  | BB107: =MIN((S121+AO31*D19)/AK43,(S122+AO31*D19)/AL43,(S123+AO31*D19)/AM43,(S124+AO31*D19)/AN43,(S125+AO31*D19)/AO43)*AP43 ->  | BC107: =MIN((T121+AO31*D19)/AK43,(T122+AO31*D19)/AL43,(T123+AO31*D19)/AM43,(T124+AO31*D19)/AN43,(T125+AO31*D19)/AO43)*AP43 ->  | BD107: =MIN((U121+AO31*D19)/AK43,(U122+AO31*D19)/AL43,(U123+AO31*D19)/AM43,(U124+AO31*D19)/AN43,(U125+AO31*D19)/AO43)*AP43 ->  | BE107: =MIN((V121+AO31*D19)/AK43,(V122+AO31*D19)/AL43,(V123+AO31*D19)/AM43,(V124+AO31*D19)/AN43,(V125+AO31*D19)/AO43)*AP43 ->  | BF107: =MIN((W121+AO31*D19)/AK43,(W122+AO31*D19)/AL43,(W123+AO31*D19)/AM43,(W124+AO31*D19)/AN43,(W125+AO31*D19)/AO43)*AP43 ->  | BG107: =MIN((X121+AO31*D19)/AK43,(X122+AO31*D19)/AL43,(X123+AO31*D19)/AM43,(X124+AO31*D19)/AN43,(X125+AO31*D19)/AO43)*AP43 ->  | BH107: =MIN((Y121+AO31*D19)/AK43,(Y122+AO31*D19)/AL43,(Y123+AO31*D19)/AM43,(Y124+AO31*D19)/AN43,(Y125+AO31*D19)/AO43)*AP43 ->  | BI107: =MIN((Z121+AO31*D19)/AK43,(Z122+AO31*D19)/AL43,(Z123+AO31*D19)/AM43,(Z124+AO31*D19)/AN43,(Z125+AO31*D19)/AO43)*AP43 ->  | BJ107: =MIN((AA121+AO31*D19)/AK43,(AA122+AO31*D19)/AL43,(AA123+AO31*D19)/AM43,(AA124+AO31*D19)/AN43,(AA125+AO31*D19)/AO43)*AP43 ->  | BK107: =MIN((AB121+AO31*D19)/AK43,(AB122+AO31*D19)/AL43,(AB123+AO31*D19)/AM43,(AB124+AO31*D19)/AN43,(AB125+AO31*D19)/AO43)*AP43 ->  | BL107: =MIN((AC121+AO31*D19)/AK43,(AC122+AO31*D19)/AL43,(AC123+AO31*D19)/AM43,(AC124+AO31*D19)/AN43,(AC125+AO31*D19)/AO43)*AP43 ->  | BM107: =MIN((AD121+AO31*D19)/AK43,(AD122+AO31*D19)/AL43,(AD123+AO31*D19)/AM43,(AD124+AO31*D19)/AN43,(AD125+AO31*D19)/AO43)*AP43 ->  | BN107: =MIN((AE121+AO31*D19)/AK43,(AE122+AO31*D19)/AL43,(AE123+AO31*D19)/AM43,(AE124+AO31*D19)/AN43,(AE125+AO31*D19)/AO43)*AP43 ->  | BO107: =MIN((AF121+AO31*D19)/AK43,(AF122+AO31*D19)/AL43,(AF123+AO31*D19)/AM43,(AF124+AO31*D19)/AN43,(AF125+AO31*D19)/AO43)*AP43 ->  | CO107: -
F108: 1 | G108: =IF(G15<>"",(R90/100+M15/500)/100,"") ->  | H108: =IF(G15<>"",IF(ISNA(IF(VLOOKUP(G15,$AI$8:$AV$25,14,FALSE)="","",(HLOOKUP(VLOOKUP(G15,$BA$10:$BB$20,2,FALSE),S85:AF90,6,FALSE)/100+M15/500)/100)),G108,IF(VLOOKUP(G15,$AI$8:$AV$25,14,FALSE)="","",(HLOOKUP(VLOOKUP(G15,$BA$10:$BB$20,2,FALSE),S85:AF90,6,FALSE)/100+M15/500)/100)),"") ->  | I108: =IF(G15<>"",IF(ISNA(IF(VLOOKUP(G15,$AI$8:$AV$25,14,FALSE)="","",((HLOOKUP(VLOOKUP(G15,$BA$10:$BB$20,2,FALSE),$S$85:$AF$90,6,FALSE)+IF(HLOOKUP(F108,$AJ$7:$AT$31,21,FALSE)=1,D19,0))/100+M15/500)/100)),H108,IF(VLOOKUP(G15,$AI$8:$AV$25,14,FALSE)="","",((HLOOKUP(VLOOKUP(G15,$BA$10:$BB$20,2,FALSE),$S$85:$AF$90,6,FALSE)+IF(HLOOKUP(F108,$AJ$7:$AT$31,21,FALSE)=1,D19,0))/100+M15/500)/100)),"") ->  | R108: =I18+AH40+D15+D17+D21+D19*AG15 ->  | S108: =R108+Q11 ->  | T108: =R108+R11 ->  | U108: =R108+S11 ->  | V108: =R108+T11 ->  | W108: =R108+U11 ->  | X108: =R108+V11 ->  | Y108: =R108+W11 ->  | Z108: =R108+X11 ->  | AA108: =R108+Y11 ->  | AB108: =R108+Z11 ->  | AC108: =R108+AA11 ->  | AD108: =R108+AB11 ->  | AE108: =R108+AC11 ->  | AF108: =R108+AD11 ->  | AK108: =MIN((S128+AN31*D19)/AK42,(S129+AN31*D19)/AL42,(S130+AN31*D19)/AM42,(S131+AN31*D19)/AN42,(S132+AN31*D19)/AO42)*AP42 ->  | AL108: =MIN((T128+AN31*D19)/AK42,(T129+AN31*D19)/AL42,(T130+AN31*D19)/AM42,(T131+AN31*D19)/AN42,(T132+AN31*D19)/AO42)*AP42 ->  | AM108: =MIN((U128+AN31*D19)/AK42,(U129+AN31*D19)/AL42,(U130+AN31*D19)/AM42,(U131+AN31*D19)/AN42,(U132+AN31*D19)/AO42)*AP42 ->  | AN108: =MIN((V128+AN31*D19)/AK42,(V129+AN31*D19)/AL42,(V130+AN31*D19)/AM42,(V131+AN31*D19)/AN42,(V132+AN31*D19)/AO42)*AP42 ->  | AO108: =MIN((W128+AN31*D19)/AK42,(W129+AN31*D19)/AL42,(W130+AN31*D19)/AM42,(W131+AN31*D19)/AN42,(W132+AN31*D19)/AO42)*AP42 ->  | AP108: =MIN((X128+AN31*D19)/AK42,(X129+AN31*D19)/AL42,(X130+AN31*D19)/AM42,(X131+AN31*D19)/AN42,(X132+AN31*D19)/AO42)*AP42 ->  | AQ108: =MIN((Y128+AN31*D19)/AK42,(Y129+AN31*D19)/AL42,(Y130+AN31*D19)/AM42,(Y131+AN31*D19)/AN42,(Y132+AN31*D19)/AO42)*AP42 ->  | AR108: =MIN((Z128+AN31*D19)/AK42,(Z129+AN31*D19)/AL42,(Z130+AN31*D19)/AM42,(Z131+AN31*D19)/AN42,(Z132+AN31*D19)/AO42)*AP42 ->  | AS108: =MIN((AA128+AN31*D19)/AK42,(AA129+AN31*D19)/AL42,(AA130+AN31*D19)/AM42,(AA131+AN31*D19)/AN42,(AA132+AN31*D19)/AO42)*AP42 ->  | AT108: =MIN((AB128+AN31*D19)/AK42,(AB129+AN31*D19)/AL42,(AB130+AN31*D19)/AM42,(AB131+AN31*D19)/AN42,(AB132+AN31*D19)/AO42)*AP42 ->  | AU108: =MIN((AC128+AN31*D19)/AK42,(AC129+AN31*D19)/AL42,(AC130+AN31*D19)/AM42,(AC131+AN31*D19)/AN42,(AC132+AN31*D19)/AO42)*AP42 ->  | AV108: =MIN((AD128+AN31*D19)/AK42,(AD129+AN31*D19)/AL42,(AD130+AN31*D19)/AM42,(AD131+AN31*D19)/AN42,(AD132+AN31*D19)/AO42)*AP42 ->  | AW108: =MIN((AE128+AN31*D19)/AK42,(AE129+AN31*D19)/AL42,(AE130+AN31*D19)/AM42,(AE131+AN31*D19)/AN42,(AE132+AN31*D19)/AO42)*AP42 ->  | AX108: =MIN((AF128+AN31*D19)/AK42,(AF129+AN31*D19)/AL42,(AF130+AN31*D19)/AM42,(AF131+AN31*D19)/AN42,(AF132+AN31*D19)/AO42)*AP42 ->  | BB108: =MIN((S128+AO31*D19)/AK43,(S129+AO31*D19)/AL43,(S130+AO31*D19)/AM43,(S131+AO31*D19)/AN43,(S132+AO31*D19)/AO43)*AP43 ->  | BC108: =MIN((T128+AO31*D19)/AK43,(T129+AO31*D19)/AL43,(T130+AO31*D19)/AM43,(T131+AO31*D19)/AN43,(T132+AO31*D19)/AO43)*AP43 ->  | BD108: =MIN((U128+AO31*D19)/AK43,(U129+AO31*D19)/AL43,(U130+AO31*D19)/AM43,(U131+AO31*D19)/AN43,(U132+AO31*D19)/AO43)*AP43 ->  | BE108: =MIN((V128+AO31*D19)/AK43,(V129+AO31*D19)/AL43,(V130+AO31*D19)/AM43,(V131+AO31*D19)/AN43,(V132+AO31*D19)/AO43)*AP43 ->  | BF108: =MIN((W128+AO31*D19)/AK43,(W129+AO31*D19)/AL43,(W130+AO31*D19)/AM43,(W131+AO31*D19)/AN43,(W132+AO31*D19)/AO43)*AP43 ->  | BG108: =MIN((X128+AO31*D19)/AK43,(X129+AO31*D19)/AL43,(X130+AO31*D19)/AM43,(X131+AO31*D19)/AN43,(X132+AO31*D19)/AO43)*AP43 ->  | BH108: =MIN((Y128+AO31*D19)/AK43,(Y129+AO31*D19)/AL43,(Y130+AO31*D19)/AM43,(Y131+AO31*D19)/AN43,(Y132+AO31*D19)/AO43)*AP43 ->  | BI108: =MIN((Z128+AO31*D19)/AK43,(Z129+AO31*D19)/AL43,(Z130+AO31*D19)/AM43,(Z131+AO31*D19)/AN43,(Z132+AO31*D19)/AO43)*AP43 ->  | BJ108: =MIN((AA128+AO31*D19)/AK43,(AA129+AO31*D19)/AL43,(AA130+AO31*D19)/AM43,(AA131+AO31*D19)/AN43,(AA132+AO31*D19)/AO43)*AP43 ->  | BK108: =MIN((AB128+AO31*D19)/AK43,(AB129+AO31*D19)/AL43,(AB130+AO31*D19)/AM43,(AB131+AO31*D19)/AN43,(AB132+AO31*D19)/AO43)*AP43 ->  | BL108: =MIN((AC128+AO31*D19)/AK43,(AC129+AO31*D19)/AL43,(AC130+AO31*D19)/AM43,(AC131+AO31*D19)/AN43,(AC132+AO31*D19)/AO43)*AP43 ->  | BM108: =MIN((AD128+AO31*D19)/AK43,(AD129+AO31*D19)/AL43,(AD130+AO31*D19)/AM43,(AD131+AO31*D19)/AN43,(AD132+AO31*D19)/AO43)*AP43 ->  | BN108: =MIN((AE128+AO31*D19)/AK43,(AE129+AO31*D19)/AL43,(AE130+AO31*D19)/AM43,(AE131+AO31*D19)/AN43,(AE132+AO31*D19)/AO43)*AP43 ->  | BO108: =MIN((AF128+AO31*D19)/AK43,(AF129+AO31*D19)/AL43,(AF130+AO31*D19)/AM43,(AF131+AO31*D19)/AN43,(AF132+AO31*D19)/AO43)*AP43 ->  | CO108: -
F109: 1 | G109: =IF(G16<>"",(R97/100+M16/500)/100,"") ->  | H109: =IF(G16<>"",IF(ISNA(IF(VLOOKUP(G16,$AI$8:$AV$25,14,FALSE)="","",(HLOOKUP(VLOOKUP(G16,$BA$10:$BB$20,2,FALSE),S92:AF97,6,FALSE)/100+M16/500)/100)),G109,IF(VLOOKUP(G16,$AI$8:$AV$25,14,FALSE)="","",(HLOOKUP(VLOOKUP(G16,$BA$10:$BB$20,2,FALSE),S92:AF97,6,FALSE)/100+M16/500)/100)),"") ->  | I109: =IF(G16<>"",IF(ISNA(IF(VLOOKUP(G16,$AI$8:$AV$25,14,FALSE)="","",((HLOOKUP(VLOOKUP(G16,$BA$10:$BB$20,2,FALSE),$S$92:$AF$97,6,FALSE)+IF(HLOOKUP(F109,$AJ$7:$AT$31,21,FALSE)=1,D19,0))/100+M16/500)/100)),H109,IF(VLOOKUP(G16,$AI$8:$AV$25,14,FALSE)="","",((HLOOKUP(VLOOKUP(G16,$BA$10:$BB$20,2,FALSE),$S$92:$AF$97,6,FALSE)+IF(HLOOKUP(F109,$AJ$7:$AT$31,21,FALSE)=1,D19,0))/100+M16/500)/100)),"") ->  | R109: =J18+AH41+D15+D17+D21+D19*AG15 ->  | S109: =R109+Q12 ->  | T109: =R109+R12 ->  | U109: =R109+S12 ->  | V109: =R109+T12 ->  | W109: =R109+U12 ->  | X109: =R109+V12 ->  | Y109: =R109+W12 ->  | Z109: =R109+X12 ->  | AA109: =R109+Y12 ->  | AB109: =R109+Z12 ->  | AC109: =R109+AA12 ->  | AD109: =R109+AB12 ->  | AE109: =R109+AC12 ->  | AF109: =R109+AD12 ->  | AK109: =MIN((S135+AN31*D19)/AK42,(S136+AN31*D19)/AL42,(S137+AN31*D19)/AM42,(S138+AN31*D19)/AN42,(S139+AN31*D19)/AO42)*AP42 ->  | AL109: =MIN((T135+AN31*D19)/AK42,(T136+AN31*D19)/AL42,(T137+AN31*D19)/AM42,(T138+AN31*D19)/AN42,(T139+AN31*D19)/AO42)*AP42 ->  | AM109: =MIN((U135+AN31*D19)/AK42,(U136+AN31*D19)/AL42,(U137+AN31*D19)/AM42,(U138+AN31*D19)/AN42,(U139+AN31*D19)/AO42)*AP42 ->  | AN109: =MIN((V135+AN31*D19)/AK42,(V136+AN31*D19)/AL42,(V137+AN31*D19)/AM42,(V138+AN31*D19)/AN42,(V139+AN31*D19)/AO42)*AP42 ->  | AO109: =MIN((W135+AN31*D19)/AK42,(W136+AN31*D19)/AL42,(W137+AN31*D19)/AM42,(W138+AN31*D19)/AN42,(W139+AN31*D19)/AO42)*AP42 ->  | AP109: =MIN((X135+AN31*D19)/AK42,(X136+AN31*D19)/AL42,(X137+AN31*D19)/AM42,(X138+AN31*D19)/AN42,(X139+AN31*D19)/AO42)*AP42 ->  | AQ109: =MIN((Y135+AN31*D19)/AK42,(Y136+AN31*D19)/AL42,(Y137+AN31*D19)/AM42,(Y138+AN31*D19)/AN42,(Y139+AN31*D19)/AO42)*AP42 ->  | AR109: =MIN((Z135+AN31*D19)/AK42,(Z136+AN31*D19)/AL42,(Z137+AN31*D19)/AM42,(Z138+AN31*D19)/AN42,(Z139+AN31*D19)/AO42)*AP42 ->  | AS109: =MIN((AA135+AN31*D19)/AK42,(AA136+AN31*D19)/AL42,(AA137+AN31*D19)/AM42,(AA138+AN31*D19)/AN42,(AA139+AN31*D19)/AO42)*AP42 ->  | AT109: =MIN((AB135+AN31*D19)/AK42,(AB136+AN31*D19)/AL42,(AB137+AN31*D19)/AM42,(AB138+AN31*D19)/AN42,(AB139+AN31*D19)/AO42)*AP42 ->  | AU109: =MIN((AC135+AN31*D19)/AK42,(AC136+AN31*D19)/AL42,(AC137+AN31*D19)/AM42,(AC138+AN31*D19)/AN42,(AC139+AN31*D19)/AO42)*AP42 ->  | AV109: =MIN((AD135+AN31*D19)/AK42,(AD136+AN31*D19)/AL42,(AD137+AN31*D19)/AM42,(AD138+AN31*D19)/AN42,(AD139+AN31*D19)/AO42)*AP42 ->  | AW109: =MIN((AE135+AN31*D19)/AK42,(AE136+AN31*D19)/AL42,(AE137+AN31*D19)/AM42,(AE138+AN31*D19)/AN42,(AE139+AN31*D19)/AO42)*AP42 ->  | AX109: =MIN((AF135+AN31*D19)/AK42,(AF136+AN31*D19)/AL42,(AF137+AN31*D19)/AM42,(AF138+AN31*D19)/AN42,(AF139+AN31*D19)/AO42)*AP42 ->  | BB109: =MIN((S135+AO31*D19)/AK43,(S136+AO31*D19)/AL43,(S137+AO31*D19)/AM43,(S138+AO31*D19)/AN43,(S139+AO31*D19)/AO43)*AP43 ->  | BC109: =MIN((T135+AO31*D19)/AK43,(T136+AO31*D19)/AL43,(T137+AO31*D19)/AM43,(T138+AO31*D19)/AN43,(T139+AO31*D19)/AO43)*AP43 ->  | BD109: =MIN((U135+AO31*D19)/AK43,(U136+AO31*D19)/AL43,(U137+AO31*D19)/AM43,(U138+AO31*D19)/AN43,(U139+AO31*D19)/AO43)*AP43 ->  | BE109: =MIN((V135+AO31*D19)/AK43,(V136+AO31*D19)/AL43,(V137+AO31*D19)/AM43,(V138+AO31*D19)/AN43,(V139+AO31*D19)/AO43)*AP43 ->  | BF109: =MIN((W135+AO31*D19)/AK43,(W136+AO31*D19)/AL43,(W137+AO31*D19)/AM43,(W138+AO31*D19)/AN43,(W139+AO31*D19)/AO43)*AP43 ->  | BG109: =MIN((X135+AO31*D19)/AK43,(X136+AO31*D19)/AL43,(X137+AO31*D19)/AM43,(X138+AO31*D19)/AN43,(X139+AO31*D19)/AO43)*AP43 ->  | BH109: =MIN((Y135+AO31*D19)/AK43,(Y136+AO31*D19)/AL43,(Y137+AO31*D19)/AM43,(Y138+AO31*D19)/AN43,(Y139+AO31*D19)/AO43)*AP43 ->  | BI109: =MIN((Z135+AO31*D19)/AK43,(Z136+AO31*D19)/AL43,(Z137+AO31*D19)/AM43,(Z138+AO31*D19)/AN43,(Z139+AO31*D19)/AO43)*AP43 ->  | BJ109: =MIN((AA135+AO31*D19)/AK43,(AA136+AO31*D19)/AL43,(AA137+AO31*D19)/AM43,(AA138+AO31*D19)/AN43,(AA139+AO31*D19)/AO43)*AP43 ->  | BK109: =MIN((AB135+AO31*D19)/AK43,(AB136+AO31*D19)/AL43,(AB137+AO31*D19)/AM43,(AB138+AO31*D19)/AN43,(AB139+AO31*D19)/AO43)*AP43 ->  | BL109: =MIN((AC135+AO31*D19)/AK43,(AC136+AO31*D19)/AL43,(AC137+AO31*D19)/AM43,(AC138+AO31*D19)/AN43,(AC139+AO31*D19)/AO43)*AP43 ->  | BM109: =MIN((AD135+AO31*D19)/AK43,(AD136+AO31*D19)/AL43,(AD137+AO31*D19)/AM43,(AD138+AO31*D19)/AN43,(AD139+AO31*D19)/AO43)*AP43 ->  | BN109: =MIN((AE135+AO31*D19)/AK43,(AE136+AO31*D19)/AL43,(AE137+AO31*D19)/AM43,(AE138+AO31*D19)/AN43,(AE139+AO31*D19)/AO43)*AP43 ->  | BO109: =MIN((AF135+AO31*D19)/AK43,(AF136+AO31*D19)/AL43,(AF137+AO31*D19)/AM43,(AF138+AO31*D19)/AN43,(AF139+AO31*D19)/AO43)*AP43 ->  | CO109: -
D110: =IF(MAX($I$104:$I$121)=I110,"CAP","") ->  | F110: 1 | G110: =IF(G17<>"",(R104/100+M17/500)/100,"") ->  | H110: =IF(G17<>"",IF(ISNA(IF(VLOOKUP(G17,$AI$8:$AV$25,14,FALSE)="","",(HLOOKUP(VLOOKUP(G17,$BA$10:$BB$20,2,FALSE),S99:AF104,6,FALSE)/100+M17/500)/100)),G110,IF(VLOOKUP(G17,$AI$8:$AV$25,14,FALSE)="","",(HLOOKUP(VLOOKUP(G17,$BA$10:$BB$20,2,FALSE),S99:AF104,6,FALSE)/100+M17/500)/100)),"") ->  | I110: =IF(G17<>"",IF(ISNA(IF(VLOOKUP(G17,$AI$8:$AV$25,14,FALSE)="","",((HLOOKUP(VLOOKUP(G17,$BA$10:$BB$20,2,FALSE),$S$99:$AF$104,6,FALSE)+IF(HLOOKUP(F110,$AJ$7:$AT$31,21,FALSE)=1,D19,0))/100+M17/500)/100)),H110,IF(VLOOKUP(G17,$AI$8:$AV$25,14,FALSE)="","",((HLOOKUP(VLOOKUP(G17,$BA$10:$BB$20,2,FALSE),$S$99:$AF$104,6,FALSE)+IF(HLOOKUP(F110,$AJ$7:$AT$31,21,FALSE)=1,D19,0))/100+M17/500)/100)),"") ->  | R110: =K18+AH42+D16+D17+D21+D19*AG15 ->  | S110: =R110+Q13 ->  | T110: =R110+R13 ->  | U110: =R110+S13 ->  | V110: =R110+T13 ->  | W110: =R110+U13 ->  | X110: =R110+V13 ->  | Y110: =R110+W13 ->  | Z110: =R110+X13 ->  | AA110: =R110+Y13 ->  | AB110: =R110+Z13 ->  | AC110: =R110+AA13 ->  | AD110: =R110+AB13 ->  | AE110: =R110+AC13 ->  | AF110: =R110+AD13 ->  | AK110: =MIN((S142+AN31*D19)/AK42,(S143+AN31*D19)/AL42,(S144+AN31*D19)/AM42,(S145+AN31*D19)/AN42,(S146+AN31*D19)/AO42)*AP42 ->  | AL110: =MIN((T142+AN31*D19)/AK42,(T143+AN31*D19)/AL42,(T144+AN31*D19)/AM42,(T145+AN31*D19)/AN42,(T146+AN31*D19)/AO42)*AP42 ->  | AM110: =MIN((U142+AN31*D19)/AK42,(U143+AN31*D19)/AL42,(U144+AN31*D19)/AM42,(U145+AN31*D19)/AN42,(U146+AN31*D19)/AO42)*AP42 ->  | AN110: =MIN((V142+AN31*D19)/AK42,(V143+AN31*D19)/AL42,(V144+AN31*D19)/AM42,(V145+AN31*D19)/AN42,(V146+AN31*D19)/AO42)*AP42 ->  | AO110: =MIN((W142+AN31*D19)/AK42,(W143+AN31*D19)/AL42,(W144+AN31*D19)/AM42,(W145+AN31*D19)/AN42,(W146+AN31*D19)/AO42)*AP42 ->  | AP110: =MIN((X142+AN31*D19)/AK42,(X143+AN31*D19)/AL42,(X144+AN31*D19)/AM42,(X145+AN31*D19)/AN42,(X146+AN31*D19)/AO42)*AP42 ->  | AQ110: =MIN((Y142+AN31*D19)/AK42,(Y143+AN31*D19)/AL42,(Y144+AN31*D19)/AM42,(Y145+AN31*D19)/AN42,(Y146+AN31*D19)/AO42)*AP42 ->  | AR110: =MIN((Z142+AN31*D19)/AK42,(Z143+AN31*D19)/AL42,(Z144+AN31*D19)/AM42,(Z145+AN31*D19)/AN42,(Z146+AN31*D19)/AO42)*AP42 ->  | AS110: =MIN((AA142+AN31*D19)/AK42,(AA143+AN31*D19)/AL42,(AA144+AN31*D19)/AM42,(AA145+AN31*D19)/AN42,(AA146+AN31*D19)/AO42)*AP42 ->  | AT110: =MIN((AB142+AN31*D19)/AK42,(AB143+AN31*D19)/AL42,(AB144+AN31*D19)/AM42,(AB145+AN31*D19)/AN42,(AB146+AN31*D19)/AO42)*AP42 ->  | AU110: =MIN((AC142+AN31*D19)/AK42,(AC143+AN31*D19)/AL42,(AC144+AN31*D19)/AM42,(AC145+AN31*D19)/AN42,(AC146+AN31*D19)/AO42)*AP42 ->  | AV110: =MIN((AD142+AN31*D19)/AK42,(AD143+AN31*D19)/AL42,(AD144+AN31*D19)/AM42,(AD145+AN31*D19)/AN42,(AD146+AN31*D19)/AO42)*AP42 ->  | AW110: =MIN((AE142+AN31*D19)/AK42,(AE143+AN31*D19)/AL42,(AE144+AN31*D19)/AM42,(AE145+AN31*D19)/AN42,(AE146+AN31*D19)/AO42)*AP42 ->  | AX110: =MIN((AF142+AN31*D19)/AK42,(AF143+AN31*D19)/AL42,(AF144+AN31*D19)/AM42,(AF145+AN31*D19)/AN42,(AF146+AN31*D19)/AO42)*AP42 ->  | BB110: =MIN((S142+AO31*D19)/AK43,(S143+AO31*D19)/AL43,(S144+AO31*D19)/AM43,(S145+AO31*D19)/AN43,(S146+AO31*D19)/AO43)*AP43 ->  | BC110: =MIN((T142+AO31*D19)/AK43,(T143+AO31*D19)/AL43,(T144+AO31*D19)/AM43,(T145+AO31*D19)/AN43,(T146+AO31*D19)/AO43)*AP43 ->  | BD110: =MIN((U142+AO31*D19)/AK43,(U143+AO31*D19)/AL43,(U144+AO31*D19)/AM43,(U145+AO31*D19)/AN43,(U146+AO31*D19)/AO43)*AP43 ->  | BE110: =MIN((V142+AO31*D19)/AK43,(V143+AO31*D19)/AL43,(V144+AO31*D19)/AM43,(V145+AO31*D19)/AN43,(V146+AO31*D19)/AO43)*AP43 ->  | BF110: =MIN((W142+AO31*D19)/AK43,(W143+AO31*D19)/AL43,(W144+AO31*D19)/AM43,(W145+AO31*D19)/AN43,(W146+AO31*D19)/AO43)*AP43 ->  | BG110: =MIN((X142+AO31*D19)/AK43,(X143+AO31*D19)/AL43,(X144+AO31*D19)/AM43,(X145+AO31*D19)/AN43,(X146+AO31*D19)/AO43)*AP43 ->  | BH110: =MIN((Y142+AO31*D19)/AK43,(Y143+AO31*D19)/AL43,(Y144+AO31*D19)/AM43,(Y145+AO31*D19)/AN43,(Y146+AO31*D19)/AO43)*AP43 ->  | BI110: =MIN((Z142+AO31*D19)/AK43,(Z143+AO31*D19)/AL43,(Z144+AO31*D19)/AM43,(Z145+AO31*D19)/AN43,(Z146+AO31*D19)/AO43)*AP43 ->  | BJ110: =MIN((AA142+AO31*D19)/AK43,(AA143+AO31*D19)/AL43,(AA144+AO31*D19)/AM43,(AA145+AO31*D19)/AN43,(AA146+AO31*D19)/AO43)*AP43 ->  | BK110: =MIN((AB142+AO31*D19)/AK43,(AB143+AO31*D19)/AL43,(AB144+AO31*D19)/AM43,(AB145+AO31*D19)/AN43,(AB146+AO31*D19)/AO43)*AP43 ->  | BL110: =MIN((AC142+AO31*D19)/AK43,(AC143+AO31*D19)/AL43,(AC144+AO31*D19)/AM43,(AC145+AO31*D19)/AN43,(AC146+AO31*D19)/AO43)*AP43 ->  | BM110: =MIN((AD142+AO31*D19)/AK43,(AD143+AO31*D19)/AL43,(AD144+AO31*D19)/AM43,(AD145+AO31*D19)/AN43,(AD146+AO31*D19)/AO43)*AP43 ->  | BN110: =MIN((AE142+AO31*D19)/AK43,(AE143+AO31*D19)/AL43,(AE144+AO31*D19)/AM43,(AE145+AO31*D19)/AN43,(AE146+AO31*D19)/AO43)*AP43 ->  | BO110: =MIN((AF142+AO31*D19)/AK43,(AF143+AO31*D19)/AL43,(AF144+AO31*D19)/AM43,(AF145+AO31*D19)/AN43,(AF146+AO31*D19)/AO43)*AP43 ->  | CO110: -
D111: =IF(MAX($I$104:$I$121)=I111,"CAP","") ->  | F111: 1 | G111: =IF(G18<>"",(R111/100+M18/500)/100,"") ->  | H111: =IF(G18<>"",IF(ISNA(IF(VLOOKUP(G18,$AI$8:$AV$25,14,FALSE)="","",(HLOOKUP(VLOOKUP(G18,$BA$10:$BB$20,2,FALSE),S106:AF111,6,FALSE)/100+M18/500)/100)),G111,IF(VLOOKUP(G18,$AI$8:$AV$25,14,FALSE)="","",(HLOOKUP(VLOOKUP(G18,$BA$10:$BB$20,2,FALSE),S106:AF111,6,FALSE)/100+M18/500)/100)),"") ->  | I111: =IF(G18<>"",IF(ISNA(IF(VLOOKUP(G18,$AI$8:$AV$25,14,FALSE)="","",((HLOOKUP(VLOOKUP(G18,$BA$10:$BB$20,2,FALSE),$S$106:$AF$111,6,FALSE)+IF(HLOOKUP(F111,$AJ$7:$AT$31,21,FALSE)=1,D19,0))/100+M18/500)/100)),H111,IF(VLOOKUP(G18,$AI$8:$AV$25,14,FALSE)="","",((HLOOKUP(VLOOKUP(G18,$BA$10:$BB$20,2,FALSE),$S$106:$AF$111,6,FALSE)+IF(HLOOKUP(F111,$AJ$7:$AT$31,21,FALSE)=1,D19,0))/100+M18/500)/100)),"") ->  | R111: =L18+AH43+D15+D17+D21+D19*AG15 ->  | S111: =R111+Q14 ->  | T111: =R111+R14 ->  | U111: =R111+S14 ->  | V111: =R111+T14 ->  | W111: =R111+U14 ->  | X111: =R111+V14 ->  | Y111: =R111+W14 ->  | Z111: =R111+X14 ->  | AA111: =R111+Y14 ->  | AB111: =R111+Z14 ->  | AC111: =R111+AA14 ->  | AD111: =R111+AB14 ->  | AE111: =R111+AC14 ->  | AF111: =R111+AD14 ->  | AK111: =MIN((S149+AN31*D19)/AK42,(S150+AN31*D19)/AL42,(S151+AN31*D19)/AM42,(S152+AN31*D19)/AN42,(S153+AN31*D19)/AO42)*AP42 ->  | AL111: =MIN((T149+AN31*D19)/AK42,(T150+AN31*D19)/AL42,(T151+AN31*D19)/AM42,(T152+AN31*D19)/AN42,(T153+AN31*D19)/AO42)*AP42 ->  | AM111: =MIN((U149+AN31*D19)/AK42,(U150+AN31*D19)/AL42,(U151+AN31*D19)/AM42,(U152+AN31*D19)/AN42,(U153+AN31*D19)/AO42)*AP42 ->  | AN111: =MIN((V149+AN31*D19)/AK42,(V150+AN31*D19)/AL42,(V151+AN31*D19)/AM42,(V152+AN31*D19)/AN42,(V153+AN31*D19)/AO42)*AP42 ->  | AO111: =MIN((W149+AN31*D19)/AK42,(W150+AN31*D19)/AL42,(W151+AN31*D19)/AM42,(W152+AN31*D19)/AN42,(W153+AN31*D19)/AO42)*AP42 ->  | AP111: =MIN((X149+AN31*D19)/AK42,(X150+AN31*D19)/AL42,(X151+AN31*D19)/AM42,(X152+AN31*D19)/AN42,(X153+AN31*D19)/AO42)*AP42 ->  | AQ111: =MIN((Y149+AN31*D19)/AK42,(Y150+AN31*D19)/AL42,(Y151+AN31*D19)/AM42,(Y152+AN31*D19)/AN42,(Y153+AN31*D19)/AO42)*AP42 ->  | AR111: =MIN((Z149+AN31*D19)/AK42,(Z150+AN31*D19)/AL42,(Z151+AN31*D19)/AM42,(Z152+AN31*D19)/AN42,(Z153+AN31*D19)/AO42)*AP42 ->  | AS111: =MIN((AA149+AN31*D19)/AK42,(AA150+AN31*D19)/AL42,(AA151+AN31*D19)/AM42,(AA152+AN31*D19)/AN42,(AA153+AN31*D19)/AO42)*AP42 ->  | AT111: =MIN((AB149+AN31*D19)/AK42,(AB150+AN31*D19)/AL42,(AB151+AN31*D19)/AM42,(AB152+AN31*D19)/AN42,(AB153+AN31*D19)/AO42)*AP42 ->  | AU111: =MIN((AC149+AN31*D19)/AK42,(AC150+AN31*D19)/AL42,(AC151+AN31*D19)/AM42,(AC152+AN31*D19)/AN42,(AC153+AN31*D19)/AO42)*AP42 ->  | AV111: =MIN((AD149+AN31*D19)/AK42,(AD150+AN31*D19)/AL42,(AD151+AN31*D19)/AM42,(AD152+AN31*D19)/AN42,(AD153+AN31*D19)/AO42)*AP42 ->  | AW111: =MIN((AE149+AN31*D19)/AK42,(AE150+AN31*D19)/AL42,(AE151+AN31*D19)/AM42,(AE152+AN31*D19)/AN42,(AE153+AN31*D19)/AO42)*AP42 ->  | AX111: =MIN((AF149+AN31*D19)/AK42,(AF150+AN31*D19)/AL42,(AF151+AN31*D19)/AM42,(AF152+AN31*D19)/AN42,(AF153+AN31*D19)/AO42)*AP42 ->  | BB111: =MIN((S149+AO31*D19)/AK43,(S150+AO31*D19)/AL43,(S151+AO31*D19)/AM43,(S152+AO31*D19)/AN43,(S153+AO31*D19)/AO43)*AP43 ->  | BC111: =MIN((T149+AO31*D19)/AK43,(T150+AO31*D19)/AL43,(T151+AO31*D19)/AM43,(T152+AO31*D19)/AN43,(T153+AO31*D19)/AO43)*AP43 ->  | BD111: =MIN((U149+AO31*D19)/AK43,(U150+AO31*D19)/AL43,(U151+AO31*D19)/AM43,(U152+AO31*D19)/AN43,(U153+AO31*D19)/AO43)*AP43 ->  | BE111: =MIN((V149+AO31*D19)/AK43,(V150+AO31*D19)/AL43,(V151+AO31*D19)/AM43,(V152+AO31*D19)/AN43,(V153+AO31*D19)/AO43)*AP43 ->  | BF111: =MIN((W149+AO31*D19)/AK43,(W150+AO31*D19)/AL43,(W151+AO31*D19)/AM43,(W152+AO31*D19)/AN43,(W153+AO31*D19)/AO43)*AP43 ->  | BG111: =MIN((X149+AO31*D19)/AK43,(X150+AO31*D19)/AL43,(X151+AO31*D19)/AM43,(X152+AO31*D19)/AN43,(X153+AO31*D19)/AO43)*AP43 ->  | BH111: =MIN((Y149+AO31*D19)/AK43,(Y150+AO31*D19)/AL43,(Y151+AO31*D19)/AM43,(Y152+AO31*D19)/AN43,(Y153+AO31*D19)/AO43)*AP43 ->  | BI111: =MIN((Z149+AO31*D19)/AK43,(Z150+AO31*D19)/AL43,(Z151+AO31*D19)/AM43,(Z152+AO31*D19)/AN43,(Z153+AO31*D19)/AO43)*AP43 ->  | BJ111: =MIN((AA149+AO31*D19)/AK43,(AA150+AO31*D19)/AL43,(AA151+AO31*D19)/AM43,(AA152+AO31*D19)/AN43,(AA153+AO31*D19)/AO43)*AP43 ->  | BK111: =MIN((AB149+AO31*D19)/AK43,(AB150+AO31*D19)/AL43,(AB151+AO31*D19)/AM43,(AB152+AO31*D19)/AN43,(AB153+AO31*D19)/AO43)*AP43 ->  | BL111: =MIN((AC149+AO31*D19)/AK43,(AC150+AO31*D19)/AL43,(AC151+AO31*D19)/AM43,(AC152+AO31*D19)/AN43,(AC153+AO31*D19)/AO43)*AP43 ->  | BM111: =MIN((AD149+AO31*D19)/AK43,(AD150+AO31*D19)/AL43,(AD151+AO31*D19)/AM43,(AD152+AO31*D19)/AN43,(AD153+AO31*D19)/AO43)*AP43 ->  | BN111: =MIN((AE149+AO31*D19)/AK43,(AE150+AO31*D19)/AL43,(AE151+AO31*D19)/AM43,(AE152+AO31*D19)/AN43,(AE153+AO31*D19)/AO43)*AP43 ->  | BO111: =MIN((AF149+AO31*D19)/AK43,(AF150+AO31*D19)/AL43,(AF151+AO31*D19)/AM43,(AF152+AO31*D19)/AN43,(AF153+AO31*D19)/AO43)*AP43 ->  | CO111: -
D112: =IF(MAX($I$104:$I$121)=I112,"CAP","") ->  | F112: 1 | G112: =IF(G19<>"",(R118/100+M19/500)/100,"") ->  | H112: =IF(G19<>"",IF(ISNA(IF(VLOOKUP(G19,$AI$8:$AV$25,14,FALSE)="","",(HLOOKUP(VLOOKUP(G19,$BA$10:$BB$20,2,FALSE),S113:AF118,6,FALSE)/100+M19/500)/100)),G112,IF(VLOOKUP(G19,$AI$8:$AV$25,14,FALSE)="","",(HLOOKUP(VLOOKUP(G19,$BA$10:$BB$20,2,FALSE),S113:AF118,6,FALSE)/100+M19/500)/100)),"") ->  | I112: =IF(G19<>"",IF(ISNA(IF(VLOOKUP(G19,$AI$8:$AV$25,14,FALSE)="","",((HLOOKUP(VLOOKUP(G19,$BA$10:$BB$20,2,FALSE),$S$113:$AF$118,6,FALSE)+IF(HLOOKUP(F112,$AJ$7:$AT$31,21,FALSE)=1,D19,0))/100+M19/500)/100)),H112,IF(VLOOKUP(G19,$AI$8:$AV$25,14,FALSE)="","",((HLOOKUP(VLOOKUP(G19,$BA$10:$BB$20,2,FALSE),$S$113:$AF$118,6,FALSE)+IF(HLOOKUP(F112,$AJ$7:$AT$31,21,FALSE)=1,D19,0))/100+M19/500)/100)),"") ->  | AK112: =MIN((S156+AN31*D19)/AK42,(S157+AN31*D19)/AL42,(S158+AN31*D19)/AM42,(S159+AN31*D19)/AN42,(S160+AN31*D19)/AO42)*AP42 ->  | AL112: =MIN((T156+AN31*D19)/AK42,(T157+AN31*D19)/AL42,(T158+AN31*D19)/AM42,(T159+AN31*D19)/AN42,(T160+AN31*D19)/AO42)*AP42 ->  | AM112: =MIN((U156+AN31*D19)/AK42,(U157+AN31*D19)/AL42,(U158+AN31*D19)/AM42,(U159+AN31*D19)/AN42,(U160+AN31*D19)/AO42)*AP42 ->  | AN112: =MIN((V156+AN31*D19)/AK42,(V157+AN31*D19)/AL42,(V158+AN31*D19)/AM42,(V159+AN31*D19)/AN42,(V160+AN31*D19)/AO42)*AP42 ->  | AO112: =MIN((W156+AN31*D19)/AK42,(W157+AN31*D19)/AL42,(W158+AN31*D19)/AM42,(W159+AN31*D19)/AN42,(W160+AN31*D19)/AO42)*AP42 ->  | AP112: =MIN((X156+AN31*D19)/AK42,(X157+AN31*D19)/AL42,(X158+AN31*D19)/AM42,(X159+AN31*D19)/AN42,(X160+AN31*D19)/AO42)*AP42 ->  | AQ112: =MIN((Y156+AN31*D19)/AK42,(Y157+AN31*D19)/AL42,(Y158+AN31*D19)/AM42,(Y159+AN31*D19)/AN42,(Y160+AN31*D19)/AO42)*AP42 ->  | AR112: =MIN((Z156+AN31*D19)/AK42,(Z157+AN31*D19)/AL42,(Z158+AN31*D19)/AM42,(Z159+AN31*D19)/AN42,(Z160+AN31*D19)/AO42)*AP42 ->  | AS112: =MIN((AA156+AN31*D19)/AK42,(AA157+AN31*D19)/AL42,(AA158+AN31*D19)/AM42,(AA159+AN31*D19)/AN42,(AA160+AN31*D19)/AO42)*AP42 ->  | AT112: =MIN((AB156+AN31*D19)/AK42,(AB157+AN31*D19)/AL42,(AB158+AN31*D19)/AM42,(AB159+AN31*D19)/AN42,(AB160+AN31*D19)/AO42)*AP42 ->  | AU112: =MIN((AC156+AN31*D19)/AK42,(AC157+AN31*D19)/AL42,(AC158+AN31*D19)/AM42,(AC159+AN31*D19)/AN42,(AC160+AN31*D19)/AO42)*AP42 ->  | AV112: =MIN((AD156+AN31*D19)/AK42,(AD157+AN31*D19)/AL42,(AD158+AN31*D19)/AM42,(AD159+AN31*D19)/AN42,(AD160+AN31*D19)/AO42)*AP42 ->  | AW112: =MIN((AE156+AN31*D19)/AK42,(AE157+AN31*D19)/AL42,(AE158+AN31*D19)/AM42,(AE159+AN31*D19)/AN42,(AE160+AN31*D19)/AO42)*AP42 ->  | AX112: =MIN((AF156+AN31*D19)/AK42,(AF157+AN31*D19)/AL42,(AF158+AN31*D19)/AM42,(AF159+AN31*D19)/AN42,(AF160+AN31*D19)/AO42)*AP42 ->  | BB112: =MIN((S156+AO31*D19)/AK43,(S157+AO31*D19)/AL43,(S158+AO31*D19)/AM43,(S159+AO31*D19)/AN43,(S160+AO31*D19)/AO43)*AP43 ->  | BC112: =MIN((T156+AO31*D19)/AK43,(T157+AO31*D19)/AL43,(T158+AO31*D19)/AM43,(T159+AO31*D19)/AN43,(T160+AO31*D19)/AO43)*AP43 ->  | BD112: =MIN((U156+AO31*D19)/AK43,(U157+AO31*D19)/AL43,(U158+AO31*D19)/AM43,(U159+AO31*D19)/AN43,(U160+AO31*D19)/AO43)*AP43 ->  | BE112: =MIN((V156+AO31*D19)/AK43,(V157+AO31*D19)/AL43,(V158+AO31*D19)/AM43,(V159+AO31*D19)/AN43,(V160+AO31*D19)/AO43)*AP43 ->  | BF112: =MIN((W156+AO31*D19)/AK43,(W157+AO31*D19)/AL43,(W158+AO31*D19)/AM43,(W159+AO31*D19)/AN43,(W160+AO31*D19)/AO43)*AP43 ->  | BG112: =MIN((X156+AO31*D19)/AK43,(X157+AO31*D19)/AL43,(X158+AO31*D19)/AM43,(X159+AO31*D19)/AN43,(X160+AO31*D19)/AO43)*AP43 ->  | BH112: =MIN((Y156+AO31*D19)/AK43,(Y157+AO31*D19)/AL43,(Y158+AO31*D19)/AM43,(Y159+AO31*D19)/AN43,(Y160+AO31*D19)/AO43)*AP43 ->  | BI112: =MIN((Z156+AO31*D19)/AK43,(Z157+AO31*D19)/AL43,(Z158+AO31*D19)/AM43,(Z159+AO31*D19)/AN43,(Z160+AO31*D19)/AO43)*AP43 ->  | BJ112: =MIN((AA156+AO31*D19)/AK43,(AA157+AO31*D19)/AL43,(AA158+AO31*D19)/AM43,(AA159+AO31*D19)/AN43,(AA160+AO31*D19)/AO43)*AP43 ->  | BK112: =MIN((AB156+AO31*D19)/AK43,(AB157+AO31*D19)/AL43,(AB158+AO31*D19)/AM43,(AB159+AO31*D19)/AN43,(AB160+AO31*D19)/AO43)*AP43 ->  | BL112: =MIN((AC156+AO31*D19)/AK43,(AC157+AO31*D19)/AL43,(AC158+AO31*D19)/AM43,(AC159+AO31*D19)/AN43,(AC160+AO31*D19)/AO43)*AP43 ->  | BM112: =MIN((AD156+AO31*D19)/AK43,(AD157+AO31*D19)/AL43,(AD158+AO31*D19)/AM43,(AD159+AO31*D19)/AN43,(AD160+AO31*D19)/AO43)*AP43 ->  | BN112: =MIN((AE156+AO31*D19)/AK43,(AE157+AO31*D19)/AL43,(AE158+AO31*D19)/AM43,(AE159+AO31*D19)/AN43,(AE160+AO31*D19)/AO43)*AP43 ->  | BO112: =MIN((AF156+AO31*D19)/AK43,(AF157+AO31*D19)/AL43,(AF158+AO31*D19)/AM43,(AF159+AO31*D19)/AN43,(AF160+AO31*D19)/AO43)*AP43 ->  | CO112: -
D113: =IF(MAX($I$104:$I$121)=I113,"CAP","") ->  | F113: 1 | G113: =IF(G20<>"",(R125/100+M20/500)/100,"") ->  | H113: =IF(G20<>"",IF(ISNA(IF(VLOOKUP(G20,$AI$8:$AV$25,14,FALSE)="","",(HLOOKUP(VLOOKUP(G20,$BA$10:$BB$20,2,FALSE),S120:AF125,6,FALSE)/100+M20/500)/100)),G113,IF(VLOOKUP(G20,$AI$8:$AV$25,14,FALSE)="","",(HLOOKUP(VLOOKUP(G20,$BA$10:$BB$20,2,FALSE),S120:AF125,6,FALSE)/100+M20/500)/100)),"") ->  | I113: =IF(G20<>"",IF(ISNA(IF(VLOOKUP(G20,$AI$8:$AV$25,14,FALSE)="","",((HLOOKUP(VLOOKUP(G20,$BA$10:$BB$20,2,FALSE),$S$120:$AF$125,6,FALSE)+IF(HLOOKUP(F113,$AJ$7:$AT$31,21,FALSE)=1,D19,0))/100+M20/500)/100)),H113,IF(VLOOKUP(G20,$AI$8:$AV$25,14,FALSE)="","",((HLOOKUP(VLOOKUP(G20,$BA$10:$BB$20,2,FALSE),$S$120:$AF$125,6,FALSE)+IF(HLOOKUP(F113,$AJ$7:$AT$31,21,FALSE)=1,D19,0))/100+M20/500)/100)),"") ->  | R113: =G19 ->  | S113: =S106 -> kit 1 | T113: =T106 -> kit 2A | U113: kit 2B | V113: kit 4A | W113: kit 4B | X113: kit 5 | Y113: kit 6A | Z113: kit 6B | AA113: kit 7 | AB113: kit 8 | AC113: kit 9A | AD113: kit 9B | AE113: =AE106 -> kit 10 | AF113: =AF106 -> kit 11 | AK113: =MIN((S163+AN31*D19)/AK42,(S164+AN31*D19)/AL42,(S165+AN31*D19)/AM42,(S166+AN31*D19)/AN42,(S167+AN31*D19)/AO42)*AP42 ->  | AL113: =MIN((T163+AN31*D19)/AK42,(T164+AN31*D19)/AL42,(T165+AN31*D19)/AM42,(T166+AN31*D19)/AN42,(T167+AN31*D19)/AO42)*AP42 ->  | AM113: =MIN((U163+AN31*D19)/AK42,(U164+AN31*D19)/AL42,(U165+AN31*D19)/AM42,(U166+AN31*D19)/AN42,(U167+AN31*D19)/AO42)*AP42 ->  | AN113: =MIN((V163+AN31*D19)/AK42,(V164+AN31*D19)/AL42,(V165+AN31*D19)/AM42,(V166+AN31*D19)/AN42,(V167+AN31*D19)/AO42)*AP42 ->  | AO113: =MIN((W163+AN31*D19)/AK42,(W164+AN31*D19)/AL42,(W165+AN31*D19)/AM42,(W166+AN31*D19)/AN42,(W167+AN31*D19)/AO42)*AP42 ->  | AP113: =MIN((X163+AN31*D19)/AK42,(X164+AN31*D19)/AL42,(X165+AN31*D19)/AM42,(X166+AN31*D19)/AN42,(X167+AN31*D19)/AO42)*AP42 ->  | AQ113: =MIN((Y163+AN31*D19)/AK42,(Y164+AN31*D19)/AL42,(Y165+AN31*D19)/AM42,(Y166+AN31*D19)/AN42,(Y167+AN31*D19)/AO42)*AP42 ->  | AR113: =MIN((Z163+AN31*D19)/AK42,(Z164+AN31*D19)/AL42,(Z165+AN31*D19)/AM42,(Z166+AN31*D19)/AN42,(Z167+AN31*D19)/AO42)*AP42 ->  | AS113: =MIN((AA163+AN31*D19)/AK42,(AA164+AN31*D19)/AL42,(AA165+AN31*D19)/AM42,(AA166+AN31*D19)/AN42,(AA167+AN31*D19)/AO42)*AP42 ->  | AT113: =MIN((AB163+AN31*D19)/AK42,(AB164+AN31*D19)/AL42,(AB165+AN31*D19)/AM42,(AB166+AN31*D19)/AN42,(AB167+AN31*D19)/AO42)*AP42 ->  | AU113: =MIN((AC163+AN31*D19)/AK42,(AC164+AN31*D19)/AL42,(AC165+AN31*D19)/AM42,(AC166+AN31*D19)/AN42,(AC167+AN31*D19)/AO42)*AP42 ->  | AV113: =MIN((AD163+AN31*D19)/AK42,(AD164+AN31*D19)/AL42,(AD165+AN31*D19)/AM42,(AD166+AN31*D19)/AN42,(AD167+AN31*D19)/AO42)*AP42 ->  | AW113: =MIN((AE163+AN31*D19)/AK42,(AE164+AN31*D19)/AL42,(AE165+AN31*D19)/AM42,(AE166+AN31*D19)/AN42,(AE167+AN31*D19)/AO42)*AP42 ->  | AX113: =MIN((AF163+AN31*D19)/AK42,(AF164+AN31*D19)/AL42,(AF165+AN31*D19)/AM42,(AF166+AN31*D19)/AN42,(AF167+AN31*D19)/AO42)*AP42 ->  | BB113: =MIN((S163+AO31*D19)/AK43,(S164+AO31*D19)/AL43,(S165+AO31*D19)/AM43,(S166+AO31*D19)/AN43,(S167+AO31*D19)/AO43)*AP43 ->  | BC113: =MIN((T163+AO31*D19)/AK43,(T164+AO31*D19)/AL43,(T165+AO31*D19)/AM43,(T166+AO31*D19)/AN43,(T167+AO31*D19)/AO43)*AP43 ->  | BD113: =MIN((U163+AO31*D19)/AK43,(U164+AO31*D19)/AL43,(U165+AO31*D19)/AM43,(U166+AO31*D19)/AN43,(U167+AO31*D19)/AO43)*AP43 ->  | BE113: =MIN((V163+AO31*D19)/AK43,(V164+AO31*D19)/AL43,(V165+AO31*D19)/AM43,(V166+AO31*D19)/AN43,(V167+AO31*D19)/AO43)*AP43 ->  | BF113: =MIN((W163+AO31*D19)/AK43,(W164+AO31*D19)/AL43,(W165+AO31*D19)/AM43,(W166+AO31*D19)/AN43,(W167+AO31*D19)/AO43)*AP43 ->  | BG113: =MIN((X163+AO31*D19)/AK43,(X164+AO31*D19)/AL43,(X165+AO31*D19)/AM43,(X166+AO31*D19)/AN43,(X167+AO31*D19)/AO43)*AP43 ->  | BH113: =MIN((Y163+AO31*D19)/AK43,(Y164+AO31*D19)/AL43,(Y165+AO31*D19)/AM43,(Y166+AO31*D19)/AN43,(Y167+AO31*D19)/AO43)*AP43 ->  | BI113: =MIN((Z163+AO31*D19)/AK43,(Z164+AO31*D19)/AL43,(Z165+AO31*D19)/AM43,(Z166+AO31*D19)/AN43,(Z167+AO31*D19)/AO43)*AP43 ->  | BJ113: =MIN((AA163+AO31*D19)/AK43,(AA164+AO31*D19)/AL43,(AA165+AO31*D19)/AM43,(AA166+AO31*D19)/AN43,(AA167+AO31*D19)/AO43)*AP43 ->  | BK113: =MIN((AB163+AO31*D19)/AK43,(AB164+AO31*D19)/AL43,(AB165+AO31*D19)/AM43,(AB166+AO31*D19)/AN43,(AB167+AO31*D19)/AO43)*AP43 ->  | BL113: =MIN((AC163+AO31*D19)/AK43,(AC164+AO31*D19)/AL43,(AC165+AO31*D19)/AM43,(AC166+AO31*D19)/AN43,(AC167+AO31*D19)/AO43)*AP43 ->  | BM113: =MIN((AD163+AO31*D19)/AK43,(AD164+AO31*D19)/AL43,(AD165+AO31*D19)/AM43,(AD166+AO31*D19)/AN43,(AD167+AO31*D19)/AO43)*AP43 ->  | BN113: =MIN((AE163+AO31*D19)/AK43,(AE164+AO31*D19)/AL43,(AE165+AO31*D19)/AM43,(AE166+AO31*D19)/AN43,(AE167+AO31*D19)/AO43)*AP43 ->  | BO113: =MIN((AF163+AO31*D19)/AK43,(AF164+AO31*D19)/AL43,(AF165+AO31*D19)/AM43,(AF166+AO31*D19)/AN43,(AF167+AO31*D19)/AO43)*AP43 ->  | CO113: -
F114: 1 | G114: =IF(G21<>"",(R132/100+M21/500)/100,"") ->  | H114: =IF(G21<>"",IF(ISNA(IF(VLOOKUP(G21,$AI$8:$AV$25,14,FALSE)="","",(HLOOKUP(VLOOKUP(G21,$BA$10:$BB$20,2,FALSE),S127:AF132,6,FALSE)/100+M21/500)/100)),G114,IF(VLOOKUP(G21,$AI$8:$AV$25,14,FALSE)="","",(HLOOKUP(VLOOKUP(G21,$BA$10:$BB$20,2,FALSE),S127:AF132,6,FALSE)/100+M21/500)/100)),"") ->  | I114: =IF(G21<>"",IF(ISNA(IF(VLOOKUP(G21,$AI$8:$AV$25,14,FALSE)="","",((HLOOKUP(VLOOKUP(G21,$BA$10:$BB$20,2,FALSE),$S$127:$AF$132,6,FALSE)+IF(HLOOKUP(F114,$AJ$7:$AT$31,21,FALSE)=1,D19,0))/100+M21/500)/100)),H114,IF(VLOOKUP(G21,$AI$8:$AV$25,14,FALSE)="","",((HLOOKUP(VLOOKUP(G21,$BA$10:$BB$20,2,FALSE),$S$127:$AF$132,6,FALSE)+IF(HLOOKUP(F114,$AJ$7:$AT$31,21,FALSE)=1,D19,0))/100+M21/500)/100)),"") ->  | R114: =H19+AH39+D16+D17+D21+D19*AG16 ->  | S114: =R114+Q10 ->  | T114: =R114+R10 ->  | U114: =R114+S10 ->  | V114: =R114+T10 ->  | W114: =R114+U10 ->  | X114: =R114+V10 ->  | Y114: =R114+W10 ->  | Z114: =R114+X10 ->  | AA114: =R114+Y10 ->  | AB114: =R114+Z10 ->  | AC114: =R114+AA10 ->  | AD114: =R114+AB10 ->  | AE114: =R114+AC10 ->  | AF114: =R114+AD10 ->  | AK114: =MIN((S170+AN31*D19)/AK42,(S171+AN31*D19)/AL42,(S172+AN31*D19)/AM42,(S173+AN31*D19)/AN42,(S174+AN31*D19)/AO42)*AP42 ->  | AL114: =MIN((T170+AN31*D19)/AK42,(T171+AN31*D19)/AL42,(T172+AN31*D19)/AM42,(T173+AN31*D19)/AN42,(T174+AN31*D19)/AO42)*AP42 ->  | AM114: =MIN((U170+AN31*D19)/AK42,(U171+AN31*D19)/AL42,(U172+AN31*D19)/AM42,(U173+AN31*D19)/AN42,(U174+AN31*D19)/AO42)*AP42 ->  | AN114: =MIN((V170+AN31*D19)/AK42,(V171+AN31*D19)/AL42,(V172+AN31*D19)/AM42,(V173+AN31*D19)/AN42,(V174+AN31*D19)/AO42)*AP42 ->  | AO114: =MIN((W170+AN31*D19)/AK42,(W171+AN31*D19)/AL42,(W172+AN31*D19)/AM42,(W173+AN31*D19)/AN42,(W174+AN31*D19)/AO42)*AP42 ->  | AP114: =MIN((X170+AN31*D19)/AK42,(X171+AN31*D19)/AL42,(X172+AN31*D19)/AM42,(X173+AN31*D19)/AN42,(X174+AN31*D19)/AO42)*AP42 ->  | AQ114: =MIN((Y170+AN31*D19)/AK42,(Y171+AN31*D19)/AL42,(Y172+AN31*D19)/AM42,(Y173+AN31*D19)/AN42,(Y174+AN31*D19)/AO42)*AP42 ->  | AR114: =MIN((Z170+AN31*D19)/AK42,(Z171+AN31*D19)/AL42,(Z172+AN31*D19)/AM42,(Z173+AN31*D19)/AN42,(Z174+AN31*D19)/AO42)*AP42 ->  | AS114: =MIN((AA170+AN31*D19)/AK42,(AA171+AN31*D19)/AL42,(AA172+AN31*D19)/AM42,(AA173+AN31*D19)/AN42,(AA174+AN31*D19)/AO42)*AP42 ->  | AT114: =MIN((AB170+AN31*D19)/AK42,(AB171+AN31*D19)/AL42,(AB172+AN31*D19)/AM42,(AB173+AN31*D19)/AN42,(AB174+AN31*D19)/AO42)*AP42 ->  | AU114: =MIN((AC170+AN31*D19)/AK42,(AC171+AN31*D19)/AL42,(AC172+AN31*D19)/AM42,(AC173+AN31*D19)/AN42,(AC174+AN31*D19)/AO42)*AP42 ->  | AV114: =MIN((AD170+AN31*D19)/AK42,(AD171+AN31*D19)/AL42,(AD172+AN31*D19)/AM42,(AD173+AN31*D19)/AN42,(AD174+AN31*D19)/AO42)*AP42 ->  | AW114: =MIN((AE170+AN31*D19)/AK42,(AE171+AN31*D19)/AL42,(AE172+AN31*D19)/AM42,(AE173+AN31*D19)/AN42,(AE174+AN31*D19)/AO42)*AP42 ->  | AX114: =MIN((AF170+AN31*D19)/AK42,(AF171+AN31*D19)/AL42,(AF172+AN31*D19)/AM42,(AF173+AN31*D19)/AN42,(AF174+AN31*D19)/AO42)*AP42 ->  | BB114: =MIN((S170+AO31*D19)/AK43,(S171+AO31*D19)/AL43,(S172+AO31*D19)/AM43,(S173+AO31*D19)/AN43,(S174+AO31*D19)/AO43)*AP43 ->  | BC114: =MIN((T170+AO31*D19)/AK43,(T171+AO31*D19)/AL43,(T172+AO31*D19)/AM43,(T173+AO31*D19)/AN43,(T174+AO31*D19)/AO43)*AP43 ->  | BD114: =MIN((U170+AO31*D19)/AK43,(U171+AO31*D19)/AL43,(U172+AO31*D19)/AM43,(U173+AO31*D19)/AN43,(U174+AO31*D19)/AO43)*AP43 ->  | BE114: =MIN((V170+AO31*D19)/AK43,(V171+AO31*D19)/AL43,(V172+AO31*D19)/AM43,(V173+AO31*D19)/AN43,(V174+AO31*D19)/AO43)*AP43 ->  | BF114: =MIN((W170+AO31*D19)/AK43,(W171+AO31*D19)/AL43,(W172+AO31*D19)/AM43,(W173+AO31*D19)/AN43,(W174+AO31*D19)/AO43)*AP43 ->  | BG114: =MIN((X170+AO31*D19)/AK43,(X171+AO31*D19)/AL43,(X172+AO31*D19)/AM43,(X173+AO31*D19)/AN43,(X174+AO31*D19)/AO43)*AP43 ->  | BH114: =MIN((Y170+AO31*D19)/AK43,(Y171+AO31*D19)/AL43,(Y172+AO31*D19)/AM43,(Y173+AO31*D19)/AN43,(Y174+AO31*D19)/AO43)*AP43 ->  | BI114: =MIN((Z170+AO31*D19)/AK43,(Z171+AO31*D19)/AL43,(Z172+AO31*D19)/AM43,(Z173+AO31*D19)/AN43,(Z174+AO31*D19)/AO43)*AP43 ->  | BJ114: =MIN((AA170+AO31*D19)/AK43,(AA171+AO31*D19)/AL43,(AA172+AO31*D19)/AM43,(AA173+AO31*D19)/AN43,(AA174+AO31*D19)/AO43)*AP43 ->  | BK114: =MIN((AB170+AO31*D19)/AK43,(AB171+AO31*D19)/AL43,(AB172+AO31*D19)/AM43,(AB173+AO31*D19)/AN43,(AB174+AO31*D19)/AO43)*AP43 ->  | BL114: =MIN((AC170+AO31*D19)/AK43,(AC171+AO31*D19)/AL43,(AC172+AO31*D19)/AM43,(AC173+AO31*D19)/AN43,(AC174+AO31*D19)/AO43)*AP43 ->  | BM114: =MIN((AD170+AO31*D19)/AK43,(AD171+AO31*D19)/AL43,(AD172+AO31*D19)/AM43,(AD173+AO31*D19)/AN43,(AD174+AO31*D19)/AO43)*AP43 ->  | BN114: =MIN((AE170+AO31*D19)/AK43,(AE171+AO31*D19)/AL43,(AE172+AO31*D19)/AM43,(AE173+AO31*D19)/AN43,(AE174+AO31*D19)/AO43)*AP43 ->  | BO114: =MIN((AF170+AO31*D19)/AK43,(AF171+AO31*D19)/AL43,(AF172+AO31*D19)/AM43,(AF173+AO31*D19)/AN43,(AF174+AO31*D19)/AO43)*AP43 ->  | CO114: -
